Workbook

Sheet Master Input
B1: Stumpage | D1: Harvest | G1: Transport | J1: Total | P1: Federal | W1: State | AD1: Private
A2: Cost | B2: 0 | C2: $/ton | D2: 3 | E2: $/ton | G2: 3.72 | H2: $/ton | J2: =(B2+D2+G2) -> 6.72 | K2: $/ton | M2: County code and name | N2: LP/UP | O2: N/S or E/W | P2: Total (ton) | Q2: Softwoods (ton) | R2: Hardwoods (ton) | T2: County code and name | U2: LP/UP | V2: N/S or E/W | W2: Total (ton) | X2: Softwoods (ton) | Y2: Hardwoods (ton) | AA2: County code and name | AB2: LP/UP | AC2: N/S or E/W | AD2: Total (ton) | AE2: Softwoods (ton) | AF2: Hardwoods (ton)
G3: 0.074 | H3: $/ton-mile | J3: =G3 -> 0.074 | K3: $/ton-mile | M3: 26001 MI Alcona | N3: LP | O3: N | P3: =SUM(Q3:R3) -> 3610146 | Q3: 1182724 | R3: 2427422 | T3: 26001 MI Alcona | U3: LP | V3: N | W3: =SUM(X3:Y3) -> 839538 | X3: 130601 | Y3: 708937 | AA3: 26001 MI Alcona | AB3: LP | AC3: N | AD3: =SUM(AE3:AF3) -> 6570977 | AE3: 2055367 | AF3: 4515610
B4: Stumpage | D4: Harvest | G4: Transport | J4: Total | M4: 26007 MI Alpena | N4: LP | O4: N | P4: =SUM(Q4:R4) -> 0 | Q4: 0 | R4: 0 | T4: 26007 MI Alpena | U4: LP | V4: N | W4: =SUM(X4:Y4) -> 1567513 | X4: 1023803 | Y4: 543710 | AA4: 26007 MI Alpena | AB4: LP | AC4: N | AD4: =SUM(AE4:AF4) -> 6334734 | AE4: 2550725 | AF4: 3784009
A5: Energy | D5: 137.433 | E5: 1000 Btu/ton | G5: 1.5924 | H5: 1000 Btu/ton-mile | M5: 26009 MI Antrim | N5: LP | O5: N | P5: 0 | Q5: 0 | R5: 0 | T5: 26009 MI Antrim | U5: LP | V5: N | W5: 3145318 | X5: 1076762 | Y5: 2068556 | AA5: 26009 MI Antrim | AB5: LP | AC5: N | AD5: 5299749 | AE5: 340356 | AF5: 4959393
B6: Stumpage | D6: Harvest | G6: Transport | J6: Total | M6: 26011 MI Arenac | N6: LP | O6: N | P6: 0 | Q6: 0 | R6: 0 | T6: 26011 MI Arenac | U6: LP | V6: N | W6: 625930 | X6: 88609 | Y6: 537321 | AA6: 26011 MI Arenac | AB6: LP | AC6: N | AD6: 5481397 | AE6: 1144137 | AF6: 4337260
A7: Emissions | D7: 25.6 | E7: lb GHG/ton | G7: 0.377 | H7: lb GHG/ton-mile | M7: 26015 MI Barry | N7: LP | O7: S | P7: 0 | Q7: 0 | R7: 0 | T7: 26015 MI Barry | U7: LP | V7: S | W7: 876142 | X7: 260052 | Y7: 616090 | AA7: 26015 MI Barry | AB7: LP | AC7: S | AD7: 6208382 | AE7: 324330 | AF7: 5884052
M8: 26017 MI Bay | N8: LP | O8: N | P8: 0 | Q8: 0 | R8: 0 | T8: 26017 MI Bay | U8: LP | V8: N | W8: 234995 | X8: 0 | Y8: 234995 | AA8: 26017 MI Bay | AB8: LP | AC8: N | AD8: 1221787 | AE8: 98372 | AF8: 1123415
A9: Federal | C9: Region | D9: Factor | F9: Residue | G9: Roundwood | H9: Total | M9: 26019 MI Benzie | N9: LP | O9: N | P9: 0 | Q9: 0 | R9: 0 | T9: 26019 MI Benzie | U9: LP | V9: N | W9: 3182835 | X9: 949901 | Y9: 2232934 | AA9: 26019 MI Benzie | AB9: LP | AC9: N | AD9: 3386430 | AE9: 635114 | AF9: 2751316
A10: Availability | B10: Soft | C10: N | D10: 0.9328821913 | F10: 0 | G10: =100%-F10 -> 1 | H10: 1 | M10: 26029 MI Charlevoix | N10: LP | O10: N | P10: 0 | Q10: 0 | R10: 0 | T10: 26029 MI Charlevoix | U10: LP | V10: N | W10: 500281 | X10: 338935 | Y10: 161346 | AA10: u | AB10: LP | AC10: N | AD10: 5220430 | AE10: 284295 | AF10: 4936135
C11: S | D11: 0.9328821913 | F11: 0 | G11: 1 | H11: 1 | M11: 26031 MI Cheboygan | N11: LP | O11: N | P11: 0 | Q11: 0 | R11: 0 | T11: 26031 MI Cheboygan | U11: LP | V11: N | W11: 4751606 | X11: 1511757 | Y11: 3239849 | AA11: 26031 MI Cheboygan | AB11: LP | AC11: N | AD11: 9709089 | AE11: 3054729 | AF11: 6654360
B12: Hard | C12: N | D12: 0.9095971683 | F12: 0 | G12: 1 | H12: 1 | M12: 26035 MI Clare | N12: LP | O12: N | P12: 0 | Q12: 0 | R12: 0 | T12: 26035 MI Clare | U12: LP | V12: N | W12: 1494315 | X12: 638650 | Y12: 855665 | AA12: 26035 MI Clare | AB12: LP | AC12: N | AD12: 6664000 | AE12: 1337892 | AF12: 5326108
C13: S | D13: 0.9095971683 | F13: 0 | G13: 1 | H13: 1 | M13: 26037 MI Clinton | N13: LP | O13: S | P13: 0 | Q13: 0 | R13: 0 | T13: 26037 MI Clinton | U13: LP | V13: S | W13: 377040 | X13: 10372 | Y13: 366668 | AA13: 26037 MI Clinton | AB13: LP | AC13: S | AD13: 1644130 | AE13: 156282 | AF13: 1487848
M14: 26039 MI Crawford | N14: LP | O14: N | P14: 1529259 | Q14: 590142 | R14: 939117 | T14: 26039 MI Crawford | U14: LP | V14: N | W14: 4277009 | X14: 2106357 | Y14: 2170652 | AA14: 26039 MI Crawford | AB14: LP | AC14: N | AD14: 1652232 | AE14: 660802 | AF14: 991430
A15: State | C15: Region | D15: Factor | F15: Residue | G15: Roundwood | H15: Total | M15: 26045 MI Eaton | N15: LP | O15: N | P15: 0 | Q15: 0 | R15: 0 | T15: 26045 MI Eaton | U15: LP | V15: N | W15: 209943 | X15: 0 | Y15: 209943 | AA15: 26045 MI Eaton | AB15: LP | AC15: N | AD15: 4978306 | AE15: 11812 | AF15: 4966494
A16: Availability | B16: Soft | C16: N | D16: 0.542104408 | F16: 0 | G16: =100%-F16 -> 1 | H16: 1 | M16: 26047 MI Emmet | N16: LP | O16: N | P16: 0 | Q16: 0 | R16: 0 | T16: 26047 MI Emmet | U16: LP | V16: N | W16: 2665256 | X16: 1130362 | Y16: 1534894 | AA16: 26047 MI Emmet | AB16: LP | AC16: N | AD16: 6089221 | AE16: 999283 | AF16: 5089938
C17: S | D17: 0.8936325285 | F17: 0 | G17: =100%-F17 -> 1 | H17: 1 | M17: 26049 MI Genesee | N17: LP | O17: S | P17: 0 | Q17: 0 | R17: 0 | T17: 26049 MI Genesee | U17: LP | V17: S | W17: 1646423 | X17: 0 | Y17: 1646423 | AA17: 26049 MI Genesee | AB17: LP | AC17: S | AD17: 3645186 | AE17: 87016 | AF17: 3558170
B18: Hard | C18: N | D18: 0.4813843108 | F18: 0 | G18: 1 | H18: 1 | M18: 26051 MI Gladwin | N18: LP | O18: N | P18: 0 | Q18: 0 | R18: 0 | T18: 26051 MI Gladwin | U18: LP | V18: N | W18: 2497106 | X18: 368529 | Y18: 2128577 | AA18: 26051 MI Gladwin | AB18: LP | AC18: N | AD18: 3931523 | AE18: 734654 | AF18: 3196869
C19: S | D19: 0.8856828487 | F19: 0 | G19: 1 | H19: 1 | M19: 26055 MI Grand Traverse | N19: LP | O19: N | P19: 0 | Q19: 0 | R19: 0 | T19: 26055 MI Grand Traverse | U19: LP | V19: N | W19: 1728622 | X19: 771223 | Y19: 957399 | AA19: 26055 MI Grand Traverse | AB19: LP | AC19: N | AD19: 5995581 | AE19: 2976889 | AF19: 3018692
M20: 26057 MI Gratiot | N20: LP | O20: S | P20: 0 | Q20: 0 | R20: 0 | T20: 26057 MI Gratiot | U20: LP | V20: S | W20: 219986 | X20: 0 | Y20: 219986 | AA20: 26057 MI Gratiot | AB20: LP | AC20: S | AD20: 2047095 | AE20: 0 | AF20: 2047095
A21: Private | C21: Region | D21: Factor | F21: Residue | G21: Roundwood | H21: Total | M21: 26063 MI Huron | N21: LP | O21: S | P21: 0 | Q21: 0 | R21: 0 | T21: 26063 MI Huron | U21: LP | V21: S | W21: 516384 | X21: 0 | Y21: 516384 | AA21: 26063 MI Huron | AB21: LP | AC21: S | AD21: 3563020 | AE21: 235105 | AF21: 3327915
A22: Availability | B22: Soft | C22: N | D22: 0.6854476174 | F22: 0 | G22: =100%-F22 -> 1 | H22: 1 | M22: 26065 MI Ingham | N22: LP | O22: S | P22: 0 | Q22: 0 | R22: 0 | T22: 26065 MI Ingham | U22: LP | V22: S | W22: 2395245 | X22: 467774 | Y22: 1927471 | AA22: 26065 MI Ingham | AB22: LP | AC22: S | AD22: 1939039 | AE22: 62954 | AF22: 1876085
C23: S | D23: 0.9528216154 | F23: 0 | G23: =100%-F23 -> 1 | H23: 1 | M23: 26067 MI Ionia | N23: LP | O23: S | P23: 0 | Q23: 0 | R23: 0 | T23: 26067 MI Ionia | U23: LP | V23: S | W23: 2090294 | X23: 0 | Y23: 2090294 | AA23: 26067 MI Ionia | AB23: LP | AC23: S | AD23: 4617704 | AE23: 251086 | AF23: 4366618
B24: Hard | C24: N | D24: 0.5618944385 | F24: 0 | G24: 1 | H24: 1 | M24: 26069 MI Iosco | N24: LP | O24: N | P24: 3546112 | Q24: 2803665 | R24: 742447 | T24: 26069 MI Iosco | U24: LP | V24: N | W24: 370824 | X24: 201494 | Y24: 169330 | AA24: 26069 MI Iosco | AB24: LP | AC24: N | AD24: 4807607 | AE24: 1353276 | AF24: 3454331
C25: S | D25: 0.7548539304 | F25: 0 | G25: 1 | H25: 1 | M25: 26073 MI Isabella | N25: LP | O25: N | P25: 0 | Q25: 0 | R25: 0 | T25: 26073 MI Isabella | U25: LP | V25: N | W25: 301435 | X25: 0 | Y25: 301435 | AA25: 26073 MI Isabella | AB25: LP | AC25: N | AD25: 6736060 | AE25: 50351 | AF25: 6685709
I26: KEY: | M26: 26079 MI Kalkaska | N26: LP | O26: N | P26: 17379 | Q26: 17379 | R26: 0 | T26: 26079 MI Kalkaska | U26: LP | V26: N | W26: 6457381 | X26: 3173387 | Y26: 3283994 | AA26: 26079 MI Kalkaska | AB26: LP | AC26: N | AD26: 5342214 | AE26: 2016093 | AF26: 3326121
A27: FRR | B27: 500000 | C27: tons hardwood (roundwood) | J27: INPUT CELLS | M27: 26081 MI Kent | N27: LP | O27: S | P27: 0 | Q27: 0 | R27: 0 | T27: 26081 MI Kent | U27: LP | V27: S | W27: 1057177 | X27: 26396 | Y27: 1030781 | AA27: 26081 MI Kent | AB27: LP | AC27: S | AD27: 6047706 | AE27: 1383804 | AF27: 4663902
M28: 26085 MI Lake | N28: LP | O28: N | P28: 3800714 | Q28: 1723244 | R28: 2077470 | T28: 26085 MI Lake | U28: LP | V28: N | W28: 2018012 | X28: 970798 | Y28: 1047214 | AA28: 26085 MI Lake | AB28: LP | AC28: N | AD28: 6380319 | AE28: 3155819 | AF28: 3224500
A29: Soft adjust | B29: Species | E29: Hard adjust | F29: Species | J29: CALCULATED CELLS | M29: 26087 MI Lapeer | N29: LP | O29: S | P29: 0 | Q29: 0 | R29: 0 | T29: 26087 MI Lapeer | U29: LP | V29: S | W29: 287692 | X29: 14375 | Y29: 273317 | AA29: 26087 MI Lapeer | AB29: LP | AC29: S | AD29: 3047788 | AE29: 217481 | AF29: 2830307
B30: Residue | C30: 0.8 | F30: Residue | G30: 1 | M30: 26089 MI Leelanau | N30: LP | O30: N | P30: 0 | Q30: 0 | R30: 0 | T30: 26089 MI Leelanau | U30: LP | V30: N | W30: 291438 | X30: 119727 | Y30: 171711 | AA30: 26089 MI Leelanau | AB30: LP | AC30: N | AD30: 2597974 | AE30: 157135 | AF30: 2440839
B31: Roundwood | C31: 0.8 | F31: Roundwood | G31: 1 | J31: MODEL RESULTS | M31: 26093 MI Livingston | N31: LP | O31: S | P31: 0 | Q31: 0 | R31: 0 | T31: 26093 MI Livingston | U31: LP | V31: S | W31: 592829 | X31: 7604 | Y31: 585225 | AA31: 26093 MI Livingston | AB31: LP | AC31: S | AD31: 2321003 | AE31: 316326 | AF31: 2004677
M32: 26101 MI Manistee | N32: LP | O32: N | P32: 3342112 | Q32: 929228 | R32: 2412884 | T32: 26101 MI Manistee | U32: LP | V32: N | W32: 1008054 | X32: 349266 | Y32: 658788 | AA32: 26101 MI Manistee | AB32: LP | AC32: N | AD32: 6533656 | AE32: 2472914 | AF32: 4060742
A33: Facility | B33: Location | C33: Size (MGY) | D33: Conversion Rate (gal/ton) | E33: Biomass Feedstock (ton) | M33: 26105 MI Mason | N33: LP | O33: N | P33: 2798639 | Q33: 1570618 | R33: 1228021 | T33: 26105 MI Mason | U33: LP | V33: N | W33: 420665 | X33: 230698 | Y33: 189967 | AA33: 26105 MI Mason | AB33: LP | AC33: N | AD33: 6567168 | AE33: 1043683 | AF33: 5523485
B34: Manton | C34: 30 | D34: 40 | E34: =C34*10^6/D34 -> 750000 | I34: KEY: | M34: 26107 MI Mecosta | N34: LP | O34: N | P34: 0 | Q34: 0 | R34: 0 | T34: 26107 MI Mecosta | U34: LP | V34: N | W34: 431641 | X34: 0 | Y34: 431641 | AA34: 26107 MI Mecosta | AB34: LP | AC34: N | AD34: 8199916 | AE34: 2782436 | AF34: 5417480
B35: Roscommon | C35: 30 | D35: 40 | E35: =C35*10^6/D35 -> 750000 | J35: INPUT CELLS | M35: 26111 MI Midland | N35: LP | O35: N | P35: 0 | Q35: 0 | R35: 0 | T35: 26111 MI Midland | U35: LP | V35: N | W35: 436750 | X35: 117186 | Y35: 319564 | AA35: 26111 MI Midland | AB35: LP | AC35: N | AD35: 4695521 | AE35: 205595 | AF35: 4489926
B36: Kingsley | C36: 30 | D36: 40 | E36: 750000 | M36: 26113 MI Missaukee | N36: LP | O36: N | P36: 0 | Q36: 0 | R36: 0 | T36: 26113 MI Missaukee | U36: LP | V36: N | W36: 5282587 | X36: 3289677 | Y36: 1992910 | AA36: 26113 MI Missaukee | AB36: LP | AC36: N | AD36: 7664063 | AE36: 2217001 | AF36: 5447062
B37: Kalkaska | C37: 30 | D37: 40 | E37: 750000 | J37: CALCULATED CELLS | M37: 26117 MI Montcalm | N37: LP | O37: S | P37: 0 | Q37: 0 | R37: 0 | T37: 26117 MI Montcalm | U37: LP | V37: S | W37: 845695 | X37: 97409 | Y37: 748286 | AA37: 26117 MI Montcalm | AB37: LP | AC37: S | AD37: 5769737 | AE37: 800226 | AF37: 4969511
B38: Gaylord | C38: 30 | D38: 40 | E38: 750000 | M38: 26119 MI Montmorency | N38: LP | O38: N | P38: 0 | Q38: 0 | R38: 0 | T38: 26119 MI Montmorency | U38: LP | V38: N | W38: 5011178 | X38: 1613008 | Y38: 3398170 | AA38: 26119 MI Montmorency | AB38: LP | AC38: N | AD38: 8014460 | AE38: 2773795 | AF38: 5240665
B39: Clare | C39: 30 | D39: 40 | E39: 750000 | J39: MODEL RESULTS | M39: 26121 MI Muskegon | N39: LP | O39: S | P39: 369587 | Q39: 176465 | R39: 193122 | T39: 26121 MI Muskegon | U39: LP | V39: S | W39: 1008942 | X39: 153137 | Y39: 855805 | AA39: 26121 MI Muskegon | AB39: LP | AC39: S | AD39: 6772526 | AE39: 910922 | AF39: 5861604
B40: West Branch | C40: 30 | D40: 40 | E40: 750000 | M40: 26123 MI Newaygo | N40: LP | O40: N | P40: 3221786 | Q40: 1439903 | R40: 1781883 | T40: 26123 MI Newaygo | U40: LP | V40: N | W40: 273105 | X40: 42811 | Y40: 230294 | AA40: 26123 MI Newaygo | AB40: LP | AC40: N | AD40: 11120084 | AE40: 5000686 | AF40: 6119398
B41: Traverse City | C41: 30 | D41: 40 | E41: 750000 | M41: 26127 MI Oceana | N41: LP | O41: N | P41: 2233111 | Q41: 975326 | R41: 1257785 | T41: 26127 MI Oceana | U41: LP | V41: N | W41: 577691 | X41: 125261 | Y41: 452430 | AA41: 26127 MI Oceana | AB41: LP | AC41: N | AD41: 7841769 | AE41: 2017992 | AF41: 5823777
B42: Boyne City | C42: 30 | D42: 40 | E42: 750000 | M42: 26129 MI Ogemaw | N42: LP | O42: N | P42: 823774 | Q42: 356258 | R42: 467516 | T42: 26129 MI Ogemaw | U42: LP | V42: N | W42: 2713088 | X42: 1023469 | Y42: 1689619 | AA42: 26129 MI Ogemaw | AB42: LP | AC42: N | AD42: 3995161 | AE42: 1301409 | AF42: 2693752
M43: 26133 MI Osceola | N43: LP | O43: N | P43: 0 | Q43: 0 | R43: 0 | T43: 26133 MI Osceola | U43: LP | V43: N | W43: 1058297 | X43: 205884 | Y43: 852413 | AA43: 26133 MI Osceola | AB43: LP | AC43: N | AD43: 6292884 | AE43: 1571219 | AF43: 4721665
A44: Update | M44: 26135 MI Oscoda | N44: LP | O44: N | P44: 6278618 | Q44: 3352508 | R44: 2926110 | T44: 26135 MI Oscoda | U44: LP | V44: N | W44: 1550748 | X44: 786867 | Y44: 763881 | AA44: 26135 MI Oscoda | AB44: LP | AC44: N | AD44: 4173132 | AE44: 1193189 | AF44: 2979943
A45: Model | M45: 26137 MI Otsego | N45: LP | O45: S | P45: 0 | Q45: 0 | R45: 0 | T45: 26137 MI Otsego | U45: LP | V45: S | W45: 4105273 | X45: 2249565 | Y45: 1855708 | AA45: 26137 MI Otsego | AB45: LP | AC45: S | AD45: 8048752 | AE45: 1850996 | AF45: 6197756
M46: 26139 MI Ottawa | N46: LP | O46: N | P46: 0 | Q46: 0 | R46: 0 | T46: 26139 MI Ottawa | U46: LP | V46: N | W46: 261688 | X46: 43461 | Y46: 218227 | AA46: 26139 MI Ottawa | AB46: LP | AC46: N | AD46: 3874817 | AE46: 398748 | AF46: 3476069
A47: MODEL OUTPUT | M47: 26141 MI Presque Isle | N47: LP | O47: N | P47: 0 | Q47: 0 | R47: 0 | T47: 26141 MI Presque Isle | U47: LP | V47: N | W47: 2211446 | X47: 1398746 | Y47: 812700 | AA47: 26141 MI Presque Isle | AB47: LP | AC47: N | AD47: 7380021 | AE47: 2514124 | AF47: 4865897
C48: Cost | E48: Energy (1000 Btu) | G48: Emissions (lbs/ton) | M48: 26143 MI Roscommon | N48: LP | O48: S | P48: 0 | Q48: 0 | R48: 0 | T48: 26143 MI Roscommon | U48: LP | V48: S | W48: 4260801 | X48: 2039244 | Y48: 2221557 | AA48: 26143 MI Roscommon | AB48: LP | AC48: S | AD48: 2155717 | AE48: 191913 | AF48: 1963804
B49: Location | C49: Total | D49: Average ($/ton) | E49: Total | F49: Average | G49: Total | H49: Average | M49: 26145 MI Saginaw | N49: LP | O49: S | P49: 683156 | Q49: 0 | R49: 683156 | T49: 26145 MI Saginaw | U49: LP | V49: S | W49: 131429 | X49: 44773 | Y49: 86656 | AA49: 26145 MI Saginaw | AB49: LP | AC49: S | AD49: 4749511 | AE49: 227164 | AF49: 4522347
B50: Manton | C50: ='Manton optimiz'!E86 -> 7522294.458 | D50: ='Manton optimiz'!F86 -> 10.02972594 | E50: ='Manton Energy Opt'!E82 -> 156491043.2 | F50: ='Manton Energy Opt'!E83 -> 208.6547242 | G50: ='Manton Emission Opt'!E83 -> 31846283.93 | H50: ='Manton Emission Opt'!E84 -> 42.4617119 | M50: 26151 MI Sanilac | N50: LP | O50: S | P50: 0 | Q50: 0 | R50: 0 | T50: 26151 MI Sanilac | U50: LP | V50: S | W50: 594126 | X50: 0 | Y50: 594126 | AA50: 26151 MI Sanilac | AB50: LP | AC50: S | AD50: 3111512 | AE50: 335663 | AF50: 2775849
B51: Roscommon | C51: ='Roscommon optimiz'!E86 -> 8061740.573 | D51: ='Roscommon optimiz'!F86 -> 10.74898743 | E51: ='Roscommon Energy Opt'!E82 -> 168099340.4 | F51: ='Roscommon Energy Opt'!E83 -> 224.1324539 | G51: ='Roscommon Emission Opt'!D82 -> 34594543.19 | H51: ='Roscommon Emission Opt'!D83 -> 46.12605759 | M51: 26155 MI Shiawassee | N51: LP | O51: S | P51: 0 | Q51: 0 | R51: 0 | T51: 26155 MI Shiawassee | U51: LP | V51: S | W51: 276189 | X51: 34481 | Y51: 241708 | AA51: 26155 MI Shiawassee | AB51: LP | AC51: S | AD51: 918447 | AE51: 0 | AF51: 918447
B52: Kingsley | C52: ='Kingsley optimiz'!E82 -> 7649676.467 | D52: ='Kingsley optimiz'!F82 -> 10.19956862 | E52: ='Kingsley Energy Opt'!E78 -> 159232166.3 | F52: ='Kingsley Energy Opt'!E79 -> 212.3095551 | G52: ='Kingsley Emission Opt'!D78 -> 32495243.62 | H52: ='Kingsley Emission Opt'!D79 -> 43.3269915 | M52: 26157 MI Tuscola | N52: LP | O52: S | P52: 0 | Q52: 0 | R52: 0 | T52: 26157 MI Tuscola | U52: LP | V52: S | W52: 968922 | X52: 51102 | Y52: 917820 | AA52: 26157 MI Tuscola | AB52: LP | AC52: S | AD52: 3913234 | AE52: 420931 | AF52: 3492303
B53: Kalkaska | C53: ='Kalkaska optimiz'!E80 -> 7588434.163 | D53: ='Kalkaska optimiz'!F80 -> 10.11791222 | E53: ='Kalkaska Energy Opt'!E76 -> 157914298.1 | F53: ='Kalkaska Energy Opt'!E77 -> 210.5523975 | G53: ='Kalkaska Emission Opt'!D76 -> 32183238.91 | H53: ='Kalkaska Emission Opt'!D77 -> 42.91098522 | M53: 26165 MI Wexford | N53: LP | O53: N | P53: 4680902 | Q53: 2101463 | R53: 2579439 | T53: 26165 MI Wexford | U53: LP | V53: N | W53: 2575447 | X53: 1421017 | Y53: 1154430 | AA53: 26165 MI Wexford | AB53: LP | AC53: N | AD53: 6092443 | AE53: 2338198 | AF53: 3754245
B54: Gaylord | C54: ='Gaylord optimiz'!E70 -> 7108537.186 | D54: ='Gaylord optimiz'!F70 -> 9.478049581 | E54: ='Gaylord Energy Opt'!E66 -> 147587434 | F54: ='Gaylord Energy Opt'!E67 -> 196.7832453 | G54: ='Gaylord Emission Opt'!D66 -> 29738358.36 | H54: ='Gaylord Emission Opt'!D67 -> 39.65114449
B55: Clare | C55: ='Clare optimiz'!E102 -> 8088349.869 | D55: ='Clare optimiz'!F102 -> 10.78446649 | E55: ='Clare Energy Opt'!E99 -> 168671943.7 | F55: ='Clare Energy Opt'!E100 -> 224.8959249 | G55: ='Clare Emission Opt'!D98 -> 34730106.76 | H55: ='Clare Emission Opt'!D99 -> 46.30680902
B56: West Branch | C56: ='West Branch optimiz'!E94 -> 7906221.464 | D56: ='West Branch optimiz'!F94 -> 10.54162862 | E56: ='West Branch Energy Opt'!E89 -> 164752737.3 | F56: ='West Branch Energy Opt'!E90 -> 219.6703164 | G56: ='West Branch Emission Opt'!D90 -> 33802236.38 | H56: ='West Branch Emission Opt'!D91 -> 45.0696485
B57: Traverse City | C57: ='Traverse City optimiz'!E74 -> 7997224.229 | D57: ='Traverse City optimiz'!F74 -> 10.66296564 | E57: ='Traverse City Energy Opt'!E69 -> 166711018.4 | F57: ='Traverse City Energy Opt'!E70 -> 222.2813579 | G57: ='Traverse City Emission Opt'!D70 -> 34265858.57 | H57: ='Traverse City Emission Opt'!D71 -> 45.68781143
B58: Boyne City | C58: ='Boyne City optimiz'!E64 -> 8180199.941 | D58: ='Boyne City optimiz'!F64 -> 10.90693326 | E58: ='Boyne City Energy Opt'!E60 -> 170020685.4 | F58: ='Boyne City Energy Opt'!E61 -> 226.6942473 | G58: ='Boyne City Emission Opt'!D60 -> 35049420.79 | H58: ='Boyne City Emission Opt'!D61 -> 46.73256105
A60: MULTIPLE LOCATIONS
A61: Configuration 1 | C61: Size (MGY) | D61: Conversion Rate (gal/tons) | E61: Biomass Feedstock (tons)
B62: Roscommon | C62: 50 | D62: 40 | E62: =C62*10^6/D62 -> 1250000 | I62: KEY:
B63: Clare | C63: 50 | D63: 40 | E63: =C63*10^6/D63 -> 1250000 | J63: INPUT CELLS
B64: Boyne City | C64: 50 | D64: 40 | E64: 1250000
A65: Configuration 2 | J65: CALCULATED CELLS
B66: Roscommon | C66: 50 | D66: 40 | E66: =C66*10^6/D66 -> 1250000
B67: Clare | C67: 50 | D67: 40 | E67: =C67*10^6/D67 -> 1250000 | J67: MODEL RESULTS
B68: Boyne City | C68: 50 | D68: 40 | E68: 1250000
B69: Traverse City | C69: 50 | D69: 40 | E69: 1250000
A70: Configuration 3
B71: Traverse City | C71: 50 | D71: 40 | E71: =C71*10^6/D71 -> 1250000
B72: Kalkaska | C72: 50 | D72: 40 | E72: =C72*10^6/D72 -> 1250000
B73: Kingsley | C73: 50 | D73: 40 | E73: 1250000
B74: Manton | C74: 50 | D74: 40 | E74: 1250000
A76: Update
A77: Model | D77: Note: For Multiple Locations, the model exceeds the Solver parameters and will request that you
D78: click Solve. It will result in an optimal solution.
A80: MODEL OUTPUT
A81: Configuration 1 | C81: Total Cost by Location | D81: Average ($/ton) | E81: Total Cost by Configuration | F81: Average ($/ton)
B82: Roscommon | C82: ='Ros-Clare-BC'!B111 -> 15359108.43 | D82: ='Ros-Clare-BC'!B112 -> 12.28728674 | I82: KEY:
B83: Clare | C83: ='Ros-Clare-BC'!C111 -> 15333555.56 | D83: ='Ros-Clare-BC'!C112 -> 12.26684445 | J83: INPUT CELLS
B84: Boyne City | C84: ='Ros-Clare-BC'!D111 -> 15104179.82 | D84: ='Ros-Clare-BC'!D112 -> 12.08334386
A85: Total Configuration 1 | E85: ='Ros-Clare-BC'!G109 -> 45796843.81 | F85: ='Ros-Clare-BC'!G110 -> 12.21249168 | J85: CALCULATED CELLS
A86: Configuration 2
B87: Roscommon | C87: ='Ros-Clare-BC-TC'!B111 -> 15644974.77 | D87: ='Ros-Clare-BC-TC'!B112 -> 12.51597981 | J87: MODEL RESULTS
B88: Clare | C88: ='Ros-Clare-BC-TC'!C111 -> 15432077.45 | D88: ='Ros-Clare-BC-TC'!C112 -> 12.34566196
B89: Boyne City | C89: ='Ros-Clare-BC-TC'!D111 -> 16225818.45 | D89: ='Ros-Clare-BC-TC'!D112 -> 12.98065476
B90: Traverse City | C90: ='Ros-Clare-BC-TC'!E111 -> 15655801.22 | D90: ='Ros-Clare-BC-TC'!E112 -> 12.52464097
A91: Total Configuration 2 | E91: ='Ros-Clare-BC-TC'!H109 -> 62958671.89 | F91: ='Ros-Clare-BC-TC'!H110 -> 12.59173438
A92: Configuration 3
B93: Traverse City | C93: ='TC, Kalk, King,Manton'!B87 -> 19295292.6 | D93: ='TC, Kalk, King,Manton'!B88 -> 15.43623408
B94: Kalkaska | C94: ='TC, Kalk, King,Manton'!C87 -> 19203190.77 | D94: ='TC, Kalk, King,Manton'!C88 -> 15.36255262
B95: Kingsley | C95: ='TC, Kalk, King,Manton'!D87 -> 18518964 | D95: ='TC, Kalk, King,Manton'!D88 -> 14.8151712
B96: Manton | C96: ='TC, Kalk, King,Manton'!E87 -> 21891505.52 | D96: ='TC, Kalk, King,Manton'!E88 -> 17.51320441
A97: Total Configuration 3 | E97: ='TC, Kalk, King,Manton'!H85 -> 78908952.88 | F97: ='TC, Kalk, King,Manton'!H86 -> 15.78179058

Sheet Cost per ton
A1: County (supplier) | B1: Cost ($/ton)
B2: Manton | C2: Roscommon | D2: Kingsley | E2: Kalkaska | F2: Gaylord | G2: Clare | H2: West Branch | I2: Traverse City | J2: Boyne City
A3: Alcona | B3: ='Master Input'!$J$2+'Master Input'!$J$3*'distance matrix'!B3*2 -> 22.908388 | C3: ='Master Input'!$J$2+'Master Input'!$J$3*'distance matrix'!C3*2 -> 16.1106 | D3: ='Master Input'!$J$2+'Master Input'!$J$3*'distance matrix'!D3*2 -> 22.136864 | E3: ='Master Input'!$J$2+'Master Input'!$J$3*'distance matrix'!E3*2 -> 18.555856 | F3: ='Master Input'!$J$2+'Master Input'!$J$3*'distance matrix'!F3*2 -> 17.960748 | G3: ='Master Input'!$J$2+'Master Input'!$J$3*'distance matrix'!G3*2 -> 24.087652 | H3: ='Master Input'!$J$2+'Master Input'!$J$3*'distance matrix'!H3*2 -> 15.627824 | I3: ='Master Input'!$J$2+'Master Input'!$J$3*'distance matrix'!I3*2 -> 21.806972 | J3: ='Master Input'!$J$2+'Master Input'!$J$3*'distance matrix'!J3*2 -> 22.30884
A4: Alpena | B4: ='Master Input'!$J$2+'Master Input'!$J$3*'distance matrix'!B4*2 -> 26.118804 | C4: ='Master Input'!$J$2+'Master Input'!$J$3*'distance matrix'!C4*2 -> 19.32072 | D4: ='Master Input'!$J$2+'Master Input'!$J$3*'distance matrix'!D4*2 -> 25.34728 | E4: ='Master Input'!$J$2+'Master Input'!$J$3*'distance matrix'!E4*2 -> 21.275208 | F4: ='Master Input'!$J$2+'Master Input'!$J$3*'distance matrix'!F4*2 -> 14.591084 | G4: 999 | H4: ='Master Input'!$J$2+'Master Input'!$J$3*'distance matrix'!H4*2 -> 18.83824 | I4: ='Master Input'!$J$2+'Master Input'!$J$3*'distance matrix'!I4*2 -> 24.116068 | J4: ='Master Input'!$J$2+'Master Input'!$J$3*'distance matrix'!J4*2 -> 18.396312
A5: Antrim | B5: ='Master Input'!$J$2+'Master Input'!$J$3*'distance matrix'!B5*2 -> 14.584128 | C5: ='Master Input'!$J$2+'Master Input'!$J$3*'distance matrix'!C5*2 -> 15.919532 | D5: ='Master Input'!$J$2+'Master Input'!$J$3*'distance matrix'!D5*2 -> 13.812604 | E5: ='Master Input'!$J$2+'Master Input'!$J$3*'distance matrix'!E5*2 -> 9.740532 | F5: ='Master Input'!$J$2+'Master Input'!$J$3*'distance matrix'!F5*2 -> 10.383592 | G5: ='Master Input'!$J$2+'Master Input'!$J$3*'distance matrix'!G5*2 -> 21.56292 | H5: ='Master Input'!$J$2+'Master Input'!$J$3*'distance matrix'!H5*2 -> 20.737228 | I5: ='Master Input'!$J$2+'Master Input'!$J$3*'distance matrix'!I5*2 -> 12.581392 | J5: ='Master Input'!$J$2+'Master Input'!$J$3*'distance matrix'!J5*2 -> 9.816308
A6: Arenac | B6: ='Master Input'!$J$2+'Master Input'!$J$3*'distance matrix'!B6*2 -> 21.180488 | C6: ='Master Input'!$J$2+'Master Input'!$J$3*'distance matrix'!C6*2 -> 16.160476 | D6: ='Master Input'!$J$2+'Master Input'!$J$3*'distance matrix'!D6*2 -> 23.936988 | E6: ='Master Input'!$J$2+'Master Input'!$J$3*'distance matrix'!E6*2 -> 22.914604 | F6: ='Master Input'!$J$2+'Master Input'!$J$3*'distance matrix'!F6*2 -> 22.319496 | G6: ='Master Input'!$J$2+'Master Input'!$J$3*'distance matrix'!G6*2 -> 15.663344 | H6: ='Master Input'!$J$2+'Master Input'!$J$3*'distance matrix'!H6*2 -> 11.34278 | I6: ='Master Input'!$J$2+'Master Input'!$J$3*'distance matrix'!I6*2 -> 26.16572 | J6: ='Master Input'!$J$2+'Master Input'!$J$3*'distance matrix'!J6*2 -> 26.667588
A7: Barry | B7: 999 | C7: 999 | D7: 999 | E7: 999 | F7: 999 | G7: ='Master Input'!$J$2+'Master Input'!$J$3*'distance matrix'!G7*2 -> 23.256336 | H7: 999 | I7: 999 | J7: 999
A8: Bay | B8: ='Master Input'!$J$2+'Master Input'!$J$3*'distance matrix'!B8*2 -> 24.238168 | C8: ='Master Input'!$J$2+'Master Input'!$J$3*'distance matrix'!C8*2 -> 19.218156 | D8: ='Master Input'!$J$2+'Master Input'!$J$3*'distance matrix'!D8*2 -> 26.994668 | E8: ='Master Input'!$J$2+'Master Input'!$J$3*'distance matrix'!E8*2 -> 25.972284 | F8: ='Master Input'!$J$2+'Master Input'!$J$3*'distance matrix'!F8*2 -> 25.377176 | G8: ='Master Input'!$J$2+'Master Input'!$J$3*'distance matrix'!G8*2 -> 13.574768 | H8: ='Master Input'!$J$2+'Master Input'!$J$3*'distance matrix'!H8*2 -> 14.40046 | I8: 999 | J8: 999
A9: Benzie | B9: ='Master Input'!$J$2+'Master Input'!$J$3*'distance matrix'!B9*2 -> 13.530664 | C9: ='Master Input'!$J$2+'Master Input'!$J$3*'distance matrix'!C9*2 -> 18.550676 | D9: ='Master Input'!$J$2+'Master Input'!$J$3*'distance matrix'!D9*2 -> 10.774164 | E9: ='Master Input'!$J$2+'Master Input'!$J$3*'distance matrix'!E9*2 -> 13.759028 | F9: ='Master Input'!$J$2+'Master Input'!$J$3*'distance matrix'!F9*2 -> 20.443152 | G9: ='Master Input'!$J$2+'Master Input'!$J$3*'distance matrix'!G9*2 -> 24.194064 | H9: ='Master Input'!$J$2+'Master Input'!$J$3*'distance matrix'!H9*2 -> 23.368372 | I9: ='Master Input'!$J$2+'Master Input'!$J$3*'distance matrix'!I9*2 -> 10.918168 | J9: ='Master Input'!$J$2+'Master Input'!$J$3*'distance matrix'!J9*2 -> 19.875868
A10: Charlevoix | B10: ='Master Input'!$J$2+'Master Input'!$J$3*'distance matrix'!B10*2 -> 17.748072 | C10: ='Master Input'!$J$2+'Master Input'!$J$3*'distance matrix'!C10*2 -> 18.909724 | D10: ='Master Input'!$J$2+'Master Input'!$J$3*'distance matrix'!D10*2 -> 16.976548 | E10: ='Master Input'!$J$2+'Master Input'!$J$3*'distance matrix'!E10*2 -> 12.904476 | F10: ='Master Input'!$J$2+'Master Input'!$J$3*'distance matrix'!F10*2 -> 12.750704 | G10: 999 | H10: ='Master Input'!$J$2+'Master Input'!$J$3*'distance matrix'!H10*2 -> 23.72742 | I10: ='Master Input'!$J$2+'Master Input'!$J$3*'distance matrix'!I10*2 -> 15.745336 | J10: ='Master Input'!$J$2+'Master Input'!$J$3*'distance matrix'!J10*2 -> 8.402612
A11: Cheboygan | B11: ='Master Input'!$J$2+'Master Input'!$J$3*'distance matrix'!B11*2 -> 23.776408 | C11: ='Master Input'!$J$2+'Master Input'!$J$3*'distance matrix'!C11*2 -> 16.978324 | D11: ='Master Input'!$J$2+'Master Input'!$J$3*'distance matrix'!D11*2 -> 23.004884 | E11: ='Master Input'!$J$2+'Master Input'!$J$3*'distance matrix'!E11*2 -> 18.932812 | F11: ='Master Input'!$J$2+'Master Input'!$J$3*'distance matrix'!F11*2 -> 12.248688 | G11: 999 | H11: ='Master Input'!$J$2+'Master Input'!$J$3*'distance matrix'!H11*2 -> 20.81478 | I11: ='Master Input'!$J$2+'Master Input'!$J$3*'distance matrix'!I11*2 -> 21.773672 | J11: ='Master Input'!$J$2+'Master Input'!$J$3*'distance matrix'!J11*2 -> 12.815972
A12: Clare | B12: ='Master Input'!$J$2+'Master Input'!$J$3*'distance matrix'!B12*2 -> 15.108048 | C12: ='Master Input'!$J$2+'Master Input'!$J$3*'distance matrix'!C12*2 -> 13.69154 | D12: ='Master Input'!$J$2+'Master Input'!$J$3*'distance matrix'!D12*2 -> 17.864548 | E12: ='Master Input'!$J$2+'Master Input'!$J$3*'distance matrix'!E12*2 -> 16.842164 | F12: ='Master Input'!$J$2+'Master Input'!$J$3*'distance matrix'!F12*2 -> 18.421176 | G12: ='Master Input'!$J$2+'Master Input'!$J$3*'distance matrix'!G12*2 -> 8.995352 | H12: ='Master Input'!$J$2+'Master Input'!$J$3*'distance matrix'!H12*2 -> 14.17402 | I12: ='Master Input'!$J$2+'Master Input'!$J$3*'distance matrix'!I12*2 -> 20.09328 | J12: ='Master Input'!$J$2+'Master Input'!$J$3*'distance matrix'!J12*2 -> 20.595148
A13: Clinton | B13: 999 | C13: 999 | D13: 999 | E13: 999 | F13: 999 | G13: ='Master Input'!$J$2+'Master Input'!$J$3*'distance matrix'!G13*2 -> 17.07778 | H13: ='Master Input'!$J$2+'Master Input'!$J$3*'distance matrix'!H13*2 -> 22.811448 | I13: 999 | J13: 999
A14: Crawford | B14: ='Master Input'!$J$2+'Master Input'!$J$3*'distance matrix'!B14*2 -> 15.310216 | C14: ='Master Input'!$J$2+'Master Input'!$J$3*'distance matrix'!C14*2 -> 8.854012 | D14: ='Master Input'!$J$2+'Master Input'!$J$3*'distance matrix'!D14*2 -> 14.538692 | E14: ='Master Input'!$J$2+'Master Input'!$J$3*'distance matrix'!E14*2 -> 11.340116 | F14: ='Master Input'!$J$2+'Master Input'!$J$3*'distance matrix'!F14*2 -> 10.745008 | G14: ='Master Input'!$J$2+'Master Input'!$J$3*'distance matrix'!G14*2 -> 16.48948 | H14: ='Master Input'!$J$2+'Master Input'!$J$3*'distance matrix'!H14*2 -> 13.671708 | I14: ='Master Input'!$J$2+'Master Input'!$J$3*'distance matrix'!I14*2 -> 14.591232 | J14: ='Master Input'!$J$2+'Master Input'!$J$3*'distance matrix'!J14*2 -> 15.0931
A15: Eaton | B15: 999 | C15: 999 | D15: 999 | E15: 999 | F15: 999 | G15: ='Master Input'!$J$2+'Master Input'!$J$3*'distance matrix'!G15*2 -> 19.65446 | H15: 999 | I15: 999 | J15: 999
A16: Emmet | B16: ='Master Input'!$J$2+'Master Input'!$J$3*'distance matrix'!B16*2 -> 21.66948 | C16: ='Master Input'!$J$2+'Master Input'!$J$3*'distance matrix'!C16*2 -> 19.534284 | D16: ='Master Input'!$J$2+'Master Input'!$J$3*'distance matrix'!D16*2 -> 20.897956 | E16: ='Master Input'!$J$2+'Master Input'!$J$3*'distance matrix'!E16*2 -> 16.825884 | F16: ='Master Input'!$J$2+'Master Input'!$J$3*'distance matrix'!F16*2 -> 13.375264 | G16: 999 | H16: ='Master Input'!$J$2+'Master Input'!$J$3*'distance matrix'!H16*2 -> 24.35198 | I16: ='Master Input'!$J$2+'Master Input'!$J$3*'distance matrix'!I16*2 -> 19.666744 | J16: ='Master Input'!$J$2+'Master Input'!$J$3*'distance matrix'!J16*2 -> 10.709044
A17: Genesee | B17: 999 | C17: 999 | D17: 999 | E17: 999 | F17: 999 | G17: ='Master Input'!$J$2+'Master Input'!$J$3*'distance matrix'!G17*2 -> 22.821068 | H17: ='Master Input'!$J$2+'Master Input'!$J$3*'distance matrix'!H17*2 -> 23.64676 | I17: 999 | J17: 999
A18: Gladwin | B18: ='Master Input'!$J$2+'Master Input'!$J$3*'distance matrix'!B18*2 -> 18.411112 | C18: ='Master Input'!$J$2+'Master Input'!$J$3*'distance matrix'!C18*2 -> 13.3911 | D18: ='Master Input'!$J$2+'Master Input'!$J$3*'distance matrix'!D18*2 -> 21.167612 | E18: ='Master Input'!$J$2+'Master Input'!$J$3*'distance matrix'!E18*2 -> 20.145228 | F18: ='Master Input'!$J$2+'Master Input'!$J$3*'distance matrix'!F18*2 -> 19.55012 | G18: ='Master Input'!$J$2+'Master Input'!$J$3*'distance matrix'!G18*2 -> 11.199664 | H18: ='Master Input'!$J$2+'Master Input'!$J$3*'distance matrix'!H18*2 -> 10.700164 | I18: ='Master Input'!$J$2+'Master Input'!$J$3*'distance matrix'!I18*2 -> 23.396344 | J18: ='Master Input'!$J$2+'Master Input'!$J$3*'distance matrix'!J18*2 -> 23.898212
A19: Grand Traverse | B19: ='Master Input'!$J$2+'Master Input'!$J$3*'distance matrix'!B19*2 -> 10.527744 | C19: ='Master Input'!$J$2+'Master Input'!$J$3*'distance matrix'!C19*2 -> 15.547756 | D19: ='Master Input'!$J$2+'Master Input'!$J$3*'distance matrix'!D19*2 -> 7.771244 | E19: ='Master Input'!$J$2+'Master Input'!$J$3*'distance matrix'!E19*2 -> 10.127996 | F19: ='Master Input'!$J$2+'Master Input'!$J$3*'distance matrix'!F19*2 -> 16.81212 | G19: ='Master Input'!$J$2+'Master Input'!$J$3*'distance matrix'!G19*2 -> 21.191144 | H19: ='Master Input'!$J$2+'Master Input'!$J$3*'distance matrix'!H19*2 -> 20.365452 | I19: ='Master Input'!$J$2+'Master Input'!$J$3*'distance matrix'!I19*2 -> 7.897488 | J19: ='Master Input'!$J$2+'Master Input'!$J$3*'distance matrix'!J19*2 -> 16.244836
A20: Gratiot | B20: ='Master Input'!$J$2+'Master Input'!$J$3*'distance matrix'!B20*2 -> 24.091352 | C20: ='Master Input'!$J$2+'Master Input'!$J$3*'distance matrix'!C20*2 -> 19.07134 | D20: 999 | E20: 999 | F20: 999 | G20: ='Master Input'!$J$2+'Master Input'!$J$3*'distance matrix'!G20*2 -> 13.427952 | H20: ='Master Input'!$J$2+'Master Input'!$J$3*'distance matrix'!H20*2 -> 19.3333 | I20: 999 | J20: 999
A21: Huron | B21: 999 | C21: ='Master Input'!$J$2+'Master Input'!$J$3*'distance matrix'!C21*2 -> 24.865688 | D21: 999 | E21: 999 | F21: 999 | G21: ='Master Input'!$J$2+'Master Input'!$J$3*'distance matrix'!G21*2 -> 20.026532 | H21: ='Master Input'!$J$2+'Master Input'!$J$3*'distance matrix'!H21*2 -> 20.047992 | I21: 999 | J21: 999
A22: Ingham | B22: 999 | C22: 999 | D22: 999 | E22: 999 | F22: 999 | G22: ='Master Input'!$J$2+'Master Input'!$J$3*'distance matrix'!G22*2 -> 22.364636 | H22: 999 | I22: 999 | J22: 999
A23: Ionia | B23: 999 | C23: 999 | D23: 999 | E23: 999 | F23: 999 | G23: ='Master Input'!$J$2+'Master Input'!$J$3*'distance matrix'!G23*2 -> 17.936476 | H23: 999 | I23: 999 | J23: 999
A24: Iosco | B24: ='Master Input'!$J$2+'Master Input'!$J$3*'distance matrix'!B24*2 -> 19.986424 | C24: ='Master Input'!$J$2+'Master Input'!$J$3*'distance matrix'!C24*2 -> 14.966412 | D24: ='Master Input'!$J$2+'Master Input'!$J$3*'distance matrix'!D24*2 -> 22.742924 | E24: ='Master Input'!$J$2+'Master Input'!$J$3*'distance matrix'!E24*2 -> 21.72054 | F24: ='Master Input'!$J$2+'Master Input'!$J$3*'distance matrix'!F24*2 -> 21.125432 | G24: ='Master Input'!$J$2+'Master Input'!$J$3*'distance matrix'!G24*2 -> 20.502056 | H24: ='Master Input'!$J$2+'Master Input'!$J$3*'distance matrix'!H24*2 -> 12.042228 | I24: 999 | J24: ='Master Input'!$J$2+'Master Input'!$J$3*'distance matrix'!J24*2 -> 25.473524
A25: Isabella | B25: ='Master Input'!$J$2+'Master Input'!$J$3*'distance matrix'!B25*2 -> 18.712588 | C25: ='Master Input'!$J$2+'Master Input'!$J$3*'distance matrix'!C25*2 -> 17.18064 | D25: ='Master Input'!$J$2+'Master Input'!$J$3*'distance matrix'!D25*2 -> 21.469088 | E25: ='Master Input'!$J$2+'Master Input'!$J$3*'distance matrix'!E25*2 -> 20.446704 | F25: ='Master Input'!$J$2+'Master Input'!$J$3*'distance matrix'!F25*2 -> 21.910276 | G25: ='Master Input'!$J$2+'Master Input'!$J$3*'distance matrix'!G25*2 -> 9.203292 | H25: ='Master Input'!$J$2+'Master Input'!$J$3*'distance matrix'!H25*2 -> 17.66312 | I25: ='Master Input'!$J$2+'Master Input'!$J$3*'distance matrix'!I25*2 -> 23.69782 | J25: 999
A26: Kalkaska | B26: ='Master Input'!$J$2+'Master Input'!$J$3*'distance matrix'!B26*2 -> 11.7742 | C26: ='Master Input'!$J$2+'Master Input'!$J$3*'distance matrix'!C26*2 -> 12.313068 | D26: ='Master Input'!$J$2+'Master Input'!$J$3*'distance matrix'!D26*2 -> 11.002676 | E26: ='Master Input'!$J$2+'Master Input'!$J$3*'distance matrix'!E26*2 -> 7.88106 | F26: ='Master Input'!$J$2+'Master Input'!$J$3*'distance matrix'!F26*2 -> 13.19352 | G26: ='Master Input'!$J$2+'Master Input'!$J$3*'distance matrix'!G26*2 -> 17.956456 | H26: ='Master Input'!$J$2+'Master Input'!$J$3*'distance matrix'!H26*2 -> 17.130764 | I26: ='Master Input'!$J$2+'Master Input'!$J$3*'distance matrix'!I26*2 -> 11.132176 | J26: ='Master Input'!$J$2+'Master Input'!$J$3*'distance matrix'!J26*2 -> 12.626236
A27: Kent | B27: ='Master Input'!$J$2+'Master Input'!$J$3*'distance matrix'!B27*2 -> 21.825472 | C27: 999 | D27: 999 | E27: 999 | F27: 999 | G27: ='Master Input'!$J$2+'Master Input'!$J$3*'distance matrix'!G27*2 -> 20.646208 | H27: 999 | I27: 999 | J27: 999
A28: Lake | B28: ='Master Input'!$J$2+'Master Input'!$J$3*'distance matrix'!B28*2 -> 13.96312 | C28: ='Master Input'!$J$2+'Master Input'!$J$3*'distance matrix'!C28*2 -> 20.761204 | D28: ='Master Input'!$J$2+'Master Input'!$J$3*'distance matrix'!D28*2 -> 14.734644 | E28: ='Master Input'!$J$2+'Master Input'!$J$3*'distance matrix'!E28*2 -> 18.806716 | F28: ='Master Input'!$J$2+'Master Input'!$J$3*'distance matrix'!F28*2 -> 25.49084 | G28: ='Master Input'!$J$2+'Master Input'!$J$3*'distance matrix'!G28*2 -> 15.992792 | H28: ='Master Input'!$J$2+'Master Input'!$J$3*'distance matrix'!H28*2 -> 21.243684 | I28: ='Master Input'!$J$2+'Master Input'!$J$3*'distance matrix'!I28*2 -> 15.965856 | J28: ='Master Input'!$J$2+'Master Input'!$J$3*'distance matrix'!J28*2 -> 24.923556
A29: Lapeer | B29: 999 | C29: 999 | D29: 999 | E29: 999 | F29: 999 | G29: ='Master Input'!$J$2+'Master Input'!$J$3*'distance matrix'!G29*2 -> 25.621376 | H29: ='Master Input'!$J$2+'Master Input'!$J$3*'distance matrix'!H29*2 -> 26.447068 | I29: 999 | J29: 999
A30: Leelanau | B30: ='Master Input'!$J$2+'Master Input'!$J$3*'distance matrix'!B30*2 -> 15.114708 | C30: ='Master Input'!$J$2+'Master Input'!$J$3*'distance matrix'!C30*2 -> 20.13472 | D30: ='Master Input'!$J$2+'Master Input'!$J$3*'distance matrix'!D30*2 -> 12.358208 | E30: ='Master Input'!$J$2+'Master Input'!$J$3*'distance matrix'!E30*2 -> 13.380592 | F30: ='Master Input'!$J$2+'Master Input'!$J$3*'distance matrix'!F30*2 -> 15.904436 | G30: ='Master Input'!$J$2+'Master Input'!$J$3*'distance matrix'!G30*2 -> 25.778108 | H30: ='Master Input'!$J$2+'Master Input'!$J$3*'distance matrix'!H30*2 -> 24.952416 | I30: ='Master Input'!$J$2+'Master Input'!$J$3*'distance matrix'!I30*2 -> 10.129476 | J30: ='Master Input'!$J$2+'Master Input'!$J$3*'distance matrix'!J30*2 -> 15.337152
A31: Livingston | B31: 999 | C31: 999 | D31: 999 | E31: 999 | F31: 999 | G31: ='Master Input'!$J$2+'Master Input'!$J$3*'distance matrix'!G31*2 -> 25.71062 | H31: 999 | I31: 999 | J31: 999
A32: Manistee | B32: ='Master Input'!$J$2+'Master Input'!$J$3*'distance matrix'!B32*2 -> 12.341928 | C32: ='Master Input'!$J$2+'Master Input'!$J$3*'distance matrix'!C32*2 -> 19.140012 | D32: ='Master Input'!$J$2+'Master Input'!$J$3*'distance matrix'!D32*2 -> 13.113452 | E32: ='Master Input'!$J$2+'Master Input'!$J$3*'distance matrix'!E32*2 -> 17.185524 | F32: ='Master Input'!$J$2+'Master Input'!$J$3*'distance matrix'!F32*2 -> 23.869648 | G32: ='Master Input'!$J$2+'Master Input'!$J$3*'distance matrix'!G32*2 -> 21.373776 | H32: ='Master Input'!$J$2+'Master Input'!$J$3*'distance matrix'!H32*2 -> 20.548084 | I32: ='Master Input'!$J$2+'Master Input'!$J$3*'distance matrix'!I32*2 -> 14.344664 | J32: ='Master Input'!$J$2+'Master Input'!$J$3*'distance matrix'!J32*2 -> 23.302364
A33: Mason | B33: ='Master Input'!$J$2+'Master Input'!$J$3*'distance matrix'!B33*2 -> 17.216012 | C33: ='Master Input'!$J$2+'Master Input'!$J$3*'distance matrix'!C33*2 -> 24.014096 | D33: ='Master Input'!$J$2+'Master Input'!$J$3*'distance matrix'!D33*2 -> 17.987536 | E33: ='Master Input'!$J$2+'Master Input'!$J$3*'distance matrix'!E33*2 -> 22.059608 | F33: 999 | G33: ='Master Input'!$J$2+'Master Input'!$J$3*'distance matrix'!G33*2 -> 19.351652 | H33: 999 | I33: ='Master Input'!$J$2+'Master Input'!$J$3*'distance matrix'!I33*2 -> 19.218748 | J33: 999
A34: Mecosta | B34: ='Master Input'!$J$2+'Master Input'!$J$3*'distance matrix'!B34*2 -> 15.206172 | C34: ='Master Input'!$J$2+'Master Input'!$J$3*'distance matrix'!C34*2 -> 20.76224 | D34: ='Master Input'!$J$2+'Master Input'!$J$3*'distance matrix'!D34*2 -> 17.962672 | E34: ='Master Input'!$J$2+'Master Input'!$J$3*'distance matrix'!E34*2 -> 18.807752 | F34: 999 | G34: ='Master Input'!$J$2+'Master Input'!$J$3*'distance matrix'!G34*2 -> 12.784892 | H34: ='Master Input'!$J$2+'Master Input'!$J$3*'distance matrix'!H34*2 -> 21.24472 | I34: ='Master Input'!$J$2+'Master Input'!$J$3*'distance matrix'!I34*2 -> 20.191404 | J34: 999
A35: Midland | B35: ='Master Input'!$J$2+'Master Input'!$J$3*'distance matrix'!B35*2 -> 21.991972 | C35: ='Master Input'!$J$2+'Master Input'!$J$3*'distance matrix'!C35*2 -> 16.97196 | D35: ='Master Input'!$J$2+'Master Input'!$J$3*'distance matrix'!D35*2 -> 24.748472 | E35: ='Master Input'!$J$2+'Master Input'!$J$3*'distance matrix'!E35*2 -> 23.726088 | F35: ='Master Input'!$J$2+'Master Input'!$J$3*'distance matrix'!F35*2 -> 23.13098 | G35: ='Master Input'!$J$2+'Master Input'!$J$3*'distance matrix'!G35*2 -> 11.328572 | H35: ='Master Input'!$J$2+'Master Input'!$J$3*'distance matrix'!H35*2 -> 14.141608 | I35: ='Master Input'!$J$2+'Master Input'!$J$3*'distance matrix'!I35*2 -> 26.977204 | J35: 999
A36: Missaukee | B36: ='Master Input'!$J$2+'Master Input'!$J$3*'distance matrix'!B36*2 -> 9.702348 | C36: ='Master Input'!$J$2+'Master Input'!$J$3*'distance matrix'!C36*2 -> 12.00508 | D36: ='Master Input'!$J$2+'Master Input'!$J$3*'distance matrix'!D36*2 -> 12.458848 | E36: ='Master Input'!$J$2+'Master Input'!$J$3*'distance matrix'!E36*2 -> 11.436464 | F36: ='Master Input'!$J$2+'Master Input'!$J$3*'distance matrix'!F36*2 -> 16.734716 | G36: ='Master Input'!$J$2+'Master Input'!$J$3*'distance matrix'!G36*2 -> 14.401052 | H36: ='Master Input'!$J$2+'Master Input'!$J$3*'distance matrix'!H36*2 -> 13.57536 | I36: ='Master Input'!$J$2+'Master Input'!$J$3*'distance matrix'!I36*2 -> 14.68758 | J36: ='Master Input'!$J$2+'Master Input'!$J$3*'distance matrix'!J36*2 -> 16.167432
A37: Montcalm | B37: ='Master Input'!$J$2+'Master Input'!$J$3*'distance matrix'!B37*2 -> 19.874832 | C37: ='Master Input'!$J$2+'Master Input'!$J$3*'distance matrix'!C37*2 -> 22.805084 | D37: ='Master Input'!$J$2+'Master Input'!$J$3*'distance matrix'!D37*2 -> 22.631332 | E37: ='Master Input'!$J$2+'Master Input'!$J$3*'distance matrix'!E37*2 -> 21.608948 | F37: 999 | G37: ='Master Input'!$J$2+'Master Input'!$J$3*'distance matrix'!G37*2 -> 14.827736 | H37: ='Master Input'!$J$2+'Master Input'!$J$3*'distance matrix'!H37*2 -> 23.287564 | I37: 999 | J37: 999
A38: Montmorency | B38: ='Master Input'!$J$2+'Master Input'!$J$3*'distance matrix'!B38*2 -> 22.333556 | C38: ='Master Input'!$J$2+'Master Input'!$J$3*'distance matrix'!C38*2 -> 15.535472 | D38: ='Master Input'!$J$2+'Master Input'!$J$3*'distance matrix'!D38*2 -> 21.562032 | E38: ='Master Input'!$J$2+'Master Input'!$J$3*'distance matrix'!E38*2 -> 17.48996 | F38: ='Master Input'!$J$2+'Master Input'!$J$3*'distance matrix'!F38*2 -> 10.805836 | G38: ='Master Input'!$J$2+'Master Input'!$J$3*'distance matrix'!G38*2 -> 23.51282 | H38: ='Master Input'!$J$2+'Master Input'!$J$3*'distance matrix'!H38*2 -> 15.052992 | I38: ='Master Input'!$J$2+'Master Input'!$J$3*'distance matrix'!I38*2 -> 20.33082 | J38: ='Master Input'!$J$2+'Master Input'!$J$3*'distance matrix'!J38*2 -> 14.949096
A39: Muskegon | B39: ='Master Input'!$J$2+'Master Input'!$J$3*'distance matrix'!B39*2 -> 23.696784 | C39: 999 | D39: ='Master Input'!$J$2+'Master Input'!$J$3*'distance matrix'!D39*2 -> 24.468308 | E39: 999 | F39: 999 | G39: ='Master Input'!$J$2+'Master Input'!$J$3*'distance matrix'!G39*2 -> 22.51752 | H39: 999 | I39: 999 | J39: 999
A40: Newaygo | B40: ='Master Input'!$J$2+'Master Input'!$J$3*'distance matrix'!B40*2 -> 18.400752 | C40: ='Master Input'!$J$2+'Master Input'!$J$3*'distance matrix'!C40*2 -> 25.198836 | D40: ='Master Input'!$J$2+'Master Input'!$J$3*'distance matrix'!D40*2 -> 19.172276 | E40: ='Master Input'!$J$2+'Master Input'!$J$3*'distance matrix'!E40*2 -> 23.244348 | F40: 999 | G40: ='Master Input'!$J$2+'Master Input'!$J$3*'distance matrix'!G40*2 -> 17.221488 | H40: ='Master Input'!$J$2+'Master Input'!$J$3*'distance matrix'!H40*2 -> 25.681316 | I40: ='Master Input'!$J$2+'Master Input'!$J$3*'distance matrix'!I40*2 -> 20.403488 | J40: 999
A41: Oceana | B41: ='Master Input'!$J$2+'Master Input'!$J$3*'distance matrix'!B41*2 -> 20.975804 | C41: 999 | D41: ='Master Input'!$J$2+'Master Input'!$J$3*'distance matrix'!D41*2 -> 21.747328 | E41: ='Master Input'!$J$2+'Master Input'!$J$3*'distance matrix'!E41*2 -> 25.8194 | F41: 999 | G41: ='Master Input'!$J$2+'Master Input'!$J$3*'distance matrix'!G41*2 -> 19.79654 | H41: 999 | I41: ='Master Input'!$J$2+'Master Input'!$J$3*'distance matrix'!I41*2 -> 22.97854 | J41: 999
A42: Ogemaw | B42: ='Master Input'!$J$2+'Master Input'!$J$3*'distance matrix'!B42*2 -> 16.704524 | C42: ='Master Input'!$J$2+'Master Input'!$J$3*'distance matrix'!C42*2 -> 11.684512 | D42: ='Master Input'!$J$2+'Master Input'!$J$3*'distance matrix'!D42*2 -> 19.461024 | E42: ='Master Input'!$J$2+'Master Input'!$J$3*'distance matrix'!E42*2 -> 18.43864 | F42: ='Master Input'!$J$2+'Master Input'!$J$3*'distance matrix'!F42*2 -> 17.843532 | G42: ='Master Input'!$J$2+'Master Input'!$J$3*'distance matrix'!G42*2 -> 16.606844 | H42: ='Master Input'!$J$2+'Master Input'!$J$3*'distance matrix'!H42*2 -> 8.147016 | I42: ='Master Input'!$J$2+'Master Input'!$J$3*'distance matrix'!I42*2 -> 21.689756 | J42: ='Master Input'!$J$2+'Master Input'!$J$3*'distance matrix'!J42*2 -> 22.191624
A43: Osceola | B43: ='Master Input'!$J$2+'Master Input'!$J$3*'distance matrix'!B43*2 -> 11.607108 | C43: ='Master Input'!$J$2+'Master Input'!$J$3*'distance matrix'!C43*2 -> 17.231848 | D43: ='Master Input'!$J$2+'Master Input'!$J$3*'distance matrix'!D43*2 -> 14.363608 | E43: ='Master Input'!$J$2+'Master Input'!$J$3*'distance matrix'!E43*2 -> 15.27736 | F43: ='Master Input'!$J$2+'Master Input'!$J$3*'distance matrix'!F43*2 -> 21.961484 | G43: ='Master Input'!$J$2+'Master Input'!$J$3*'distance matrix'!G43*2 -> 12.496292 | H43: ='Master Input'!$J$2+'Master Input'!$J$3*'distance matrix'!H43*2 -> 17.714328 | I43: ='Master Input'!$J$2+'Master Input'!$J$3*'distance matrix'!I43*2 -> 16.59234 | J43: ='Master Input'!$J$2+'Master Input'!$J$3*'distance matrix'!J43*2 -> 21.3942
A44: Oscoda | B44: ='Master Input'!$J$2+'Master Input'!$J$3*'distance matrix'!B44*2 -> 18.863844 | C44: ='Master Input'!$J$2+'Master Input'!$J$3*'distance matrix'!C44*2 -> 12.06576 | D44: ='Master Input'!$J$2+'Master Input'!$J$3*'distance matrix'!D44*2 -> 18.09232 | E44: ='Master Input'!$J$2+'Master Input'!$J$3*'distance matrix'!E44*2 -> 14.791328 | F44: ='Master Input'!$J$2+'Master Input'!$J$3*'distance matrix'!F44*2 -> 14.19622 | G44: ='Master Input'!$J$2+'Master Input'!$J$3*'distance matrix'!G44*2 -> 20.043108 | H44: ='Master Input'!$J$2+'Master Input'!$J$3*'distance matrix'!H44*2 -> 11.58328 | I44: ='Master Input'!$J$2+'Master Input'!$J$3*'distance matrix'!I44*2 -> 18.042444 | J44: ='Master Input'!$J$2+'Master Input'!$J$3*'distance matrix'!J44*2 -> 18.544312
A45: Otsego | B45: ='Master Input'!$J$2+'Master Input'!$J$3*'distance matrix'!B45*2 -> 18.785404 | C45: ='Master Input'!$J$2+'Master Input'!$J$3*'distance matrix'!C45*2 -> 12.283616 | D45: ='Master Input'!$J$2+'Master Input'!$J$3*'distance matrix'!D45*2 -> 18.01388 | E45: ='Master Input'!$J$2+'Master Input'!$J$3*'distance matrix'!E45*2 -> 13.941808 | F45: ='Master Input'!$J$2+'Master Input'!$J$3*'distance matrix'!F45*2 -> 7.315404 | G45: ='Master Input'!$J$2+'Master Input'!$J$3*'distance matrix'!G45*2 -> 19.964668 | H45: ='Master Input'!$J$2+'Master Input'!$J$3*'distance matrix'!H45*2 -> 17.101312 | I45: ='Master Input'!$J$2+'Master Input'!$J$3*'distance matrix'!I45*2 -> 16.782668 | J45: ='Master Input'!$J$2+'Master Input'!$J$3*'distance matrix'!J45*2 -> 11.663496
A46: Ottawa | B46: 999 | C46: 999 | D46: 999 | E46: 999 | F46: 999 | G46: ='Master Input'!$J$2+'Master Input'!$J$3*'distance matrix'!G46*2 -> 24.740628 | H46: 999 | I46: 999 | J46: 999
A47: Presque Isle | B47: ='Master Input'!$J$2+'Master Input'!$J$3*'distance matrix'!B47*2 -> 27.0034 | C47: ='Master Input'!$J$2+'Master Input'!$J$3*'distance matrix'!C47*2 -> 20.205316 | D47: ='Master Input'!$J$2+'Master Input'!$J$3*'distance matrix'!D47*2 -> 26.231876 | E47: ='Master Input'!$J$2+'Master Input'!$J$3*'distance matrix'!E47*2 -> 22.159804 | F47: ='Master Input'!$J$2+'Master Input'!$J$3*'distance matrix'!F47*2 -> 15.47568 | G47: 999 | H47: ='Master Input'!$J$2+'Master Input'!$J$3*'distance matrix'!H47*2 -> 19.722836 | I47: ='Master Input'!$J$2+'Master Input'!$J$3*'distance matrix'!I47*2 -> 25.000664 | J47: ='Master Input'!$J$2+'Master Input'!$J$3*'distance matrix'!J47*2 -> 16.042964
A48: Roscommon | B48: ='Master Input'!$J$2+'Master Input'!$J$3*'distance matrix'!B48*2 -> 13.211872 | C48: ='Master Input'!$J$2+'Master Input'!$J$3*'distance matrix'!C48*2 -> 8.431324 | D48: ='Master Input'!$J$2+'Master Input'!$J$3*'distance matrix'!D48*2 -> 15.968372 | E48: ='Master Input'!$J$2+'Master Input'!$J$3*'distance matrix'!E48*2 -> 14.945988 | F48: ='Master Input'!$J$2+'Master Input'!$J$3*'distance matrix'!F48*2 -> 14.35088 | G48: ='Master Input'!$J$2+'Master Input'!$J$3*'distance matrix'!G48*2 -> 12.986024 | H48: ='Master Input'!$J$2+'Master Input'!$J$3*'distance matrix'!H48*2 -> 10.065836 | I48: ='Master Input'!$J$2+'Master Input'!$J$3*'distance matrix'!I48*2 -> 18.197104 | J48: ='Master Input'!$J$2+'Master Input'!$J$3*'distance matrix'!J48*2 -> 18.698972
A49: Saginaw | B49: 999 | C49: ='Master Input'!$J$2+'Master Input'!$J$3*'distance matrix'!C49*2 -> 22.659896 | D49: 999 | E49: 999 | F49: 999 | G49: ='Master Input'!$J$2+'Master Input'!$J$3*'distance matrix'!G49*2 -> 17.016508 | H49: ='Master Input'!$J$2+'Master Input'!$J$3*'distance matrix'!H49*2 -> 17.8422 | I49: 999 | J49: 999
A50: Sanilac | B50: 999 | C50: 999 | D50: 999 | E50: 999 | F50: 999 | G50: 999 | H50: ='Master Input'!$J$2+'Master Input'!$J$3*'distance matrix'!H50*2 -> 25.813036 | I50: 999 | J50: 999
A51: Shiawassee | B51: 999 | C51: 999 | D51: 999 | E51: 999 | F51: 999 | G51: ='Master Input'!$J$2+'Master Input'!$J$3*'distance matrix'!G51*2 -> 20.317056 | H51: ='Master Input'!$J$2+'Master Input'!$J$3*'distance matrix'!H51*2 -> 21.142748 | I51: 999 | J51: 999
A52: Tuscola | B52: 999 | C52: ='Master Input'!$J$2+'Master Input'!$J$3*'distance matrix'!C52*2 -> 25.914712 | D52: 999 | E52: 999 | F52: 999 | G52: ='Master Input'!$J$2+'Master Input'!$J$3*'distance matrix'!G52*2 -> 20.271324 | H52: ='Master Input'!$J$2+'Master Input'!$J$3*'distance matrix'!H52*2 -> 21.097016 | I52: 999 | J52: 999
A53: Wexford | B53: ='Master Input'!$J$2+'Master Input'!$J$3*'distance matrix'!B53*2 -> 8.771576 | C53: ='Master Input'!$J$2+'Master Input'!$J$3*'distance matrix'!C53*2 -> 15.56966 | D53: ='Master Input'!$J$2+'Master Input'!$J$3*'distance matrix'!D53*2 -> 9.5431 | E53: ='Master Input'!$J$2+'Master Input'!$J$3*'distance matrix'!E53*2 -> 13.615172 | F53: ='Master Input'!$J$2+'Master Input'!$J$3*'distance matrix'!F53*2 -> 20.299296 | G53: ='Master Input'!$J$2+'Master Input'!$J$3*'distance matrix'!G53*2 -> 17.928928 | H53: ='Master Input'!$J$2+'Master Input'!$J$3*'distance matrix'!H53*2 -> 17.103236 | I53: ='Master Input'!$J$2+'Master Input'!$J$3*'distance matrix'!I53*2 -> 11.159704 | J53: ='Master Input'!$J$2+'Master Input'!$J$3*'distance matrix'!J53*2 -> 19.732012

Sheet Energy per ton
A1: County (supplier) | B1: Energy Intensity (1000 Btu/ton)
B2: Manton | C2: Roscommon | D2: Kingsley | E2: Kalkaska | F2: Gaylord | G2: Clare | H2: West Branch | I2: Traverse City | J2: Boyne City
A3: Alcona | B3: ='Master Input'!$D$5+'Master Input'!$G$5*'distance matrix'!B3*2 -> 485.7896088 | C3: ='Master Input'!$D$5+'Master Input'!$G$5*'distance matrix'!C3*2 -> 339.50856 | D3: ='Master Input'!$D$5+'Master Input'!$G$5*'distance matrix'!D3*2 -> 469.1872464 | E3: ='Master Input'!$D$5+'Master Input'!$G$5*'distance matrix'!E3*2 -> 392.1278256 | F3: ='Master Input'!$D$5+'Master Input'!$G$5*'distance matrix'!F3*2 -> 379.3217448 | G3: ='Master Input'!$D$5+'Master Input'!$G$5*'distance matrix'!G3*2 -> 511.1660952 | H3: ='Master Input'!$D$5+'Master Input'!$G$5*'distance matrix'!H3*2 -> 329.1197424 | I3: ='Master Input'!$D$5+'Master Input'!$G$5*'distance matrix'!I3*2 -> 462.0883272 | J3: ='Master Input'!$D$5+'Master Input'!$G$5*'distance matrix'!J3*2 -> 472.887984
A4: Alpena | B4: ='Master Input'!$D$5+'Master Input'!$G$5*'distance matrix'!B4*2 -> 554.8742904 | C4: ='Master Input'!$D$5+'Master Input'!$G$5*'distance matrix'!C4*2 -> 408.586872 | D4: ='Master Input'!$D$5+'Master Input'!$G$5*'distance matrix'!D4*2 -> 538.271928 | E4: ='Master Input'!$D$5+'Master Input'!$G$5*'distance matrix'!E4*2 -> 450.6453408 | F4: ='Master Input'!$D$5+'Master Input'!$G$5*'distance matrix'!F4*2 -> 306.8102184 | G4: 99999 | H4: ='Master Input'!$D$5+'Master Input'!$G$5*'distance matrix'!H4*2 -> 398.204424 | I4: ='Master Input'!$D$5+'Master Input'!$G$5*'distance matrix'!I4*2 -> 511.7775768 | J4: ='Master Input'!$D$5+'Master Input'!$G$5*'distance matrix'!J4*2 -> 388.6946112
A5: Antrim | B5: ='Master Input'!$D$5+'Master Input'!$G$5*'distance matrix'!B5*2 -> 306.6605328 | C5: ='Master Input'!$D$5+'Master Input'!$G$5*'distance matrix'!C5*2 -> 335.3969832 | D5: ='Master Input'!$D$5+'Master Input'!$G$5*'distance matrix'!D5*2 -> 290.0581704 | E5: ='Master Input'!$D$5+'Master Input'!$G$5*'distance matrix'!E5*2 -> 202.4315832 | F5: ='Master Input'!$D$5+'Master Input'!$G$5*'distance matrix'!F5*2 -> 216.2695392 | G5: ='Master Input'!$D$5+'Master Input'!$G$5*'distance matrix'!G5*2 -> 456.836592 | H5: ='Master Input'!$D$5+'Master Input'!$G$5*'distance matrix'!H5*2 -> 439.0685928 | I5: ='Master Input'!$D$5+'Master Input'!$G$5*'distance matrix'!I5*2 -> 263.5638192 | J5: ='Master Input'!$D$5+'Master Input'!$G$5*'distance matrix'!J5*2 -> 204.0622008
A6: Arenac | B6: ='Master Input'!$D$5+'Master Input'!$G$5*'distance matrix'!B6*2 -> 448.6070688 | C6: ='Master Input'!$D$5+'Master Input'!$G$5*'distance matrix'!C6*2 -> 340.5818376 | D6: ='Master Input'!$D$5+'Master Input'!$G$5*'distance matrix'!D6*2 -> 507.9239688 | E6: ='Master Input'!$D$5+'Master Input'!$G$5*'distance matrix'!E6*2 -> 485.9233704 | F6: ='Master Input'!$D$5+'Master Input'!$G$5*'distance matrix'!F6*2 -> 473.1172896 | G6: ='Master Input'!$D$5+'Master Input'!$G$5*'distance matrix'!G6*2 -> 329.8840944 | H6: ='Master Input'!$D$5+'Master Input'!$G$5*'distance matrix'!H6*2 -> 236.910228 | I6: ='Master Input'!$D$5+'Master Input'!$G$5*'distance matrix'!I6*2 -> 555.883872 | J6: ='Master Input'!$D$5+'Master Input'!$G$5*'distance matrix'!J6*2 -> 566.6835288
A7: Barry | B7: 99999 | C7: 99999 | D7: 99999 | E7: 99999 | F7: 99999 | G7: ='Master Input'!$D$5+'Master Input'!$G$5*'distance matrix'!G7*2 -> 493.2770736 | H7: 99999 | I7: 99999 | J7: 99999
A8: Bay | B8: ='Master Input'!$D$5+'Master Input'!$G$5*'distance matrix'!B8*2 -> 514.4050368 | C8: ='Master Input'!$D$5+'Master Input'!$G$5*'distance matrix'!C8*2 -> 406.3798056 | D8: ='Master Input'!$D$5+'Master Input'!$G$5*'distance matrix'!D8*2 -> 573.7219368 | E8: ='Master Input'!$D$5+'Master Input'!$G$5*'distance matrix'!E8*2 -> 551.7213384 | F8: ='Master Input'!$D$5+'Master Input'!$G$5*'distance matrix'!F8*2 -> 538.9152576 | G8: ='Master Input'!$D$5+'Master Input'!$G$5*'distance matrix'!G8*2 -> 284.9401968 | H8: ='Master Input'!$D$5+'Master Input'!$G$5*'distance matrix'!H8*2 -> 302.708196 | I8: 99999 | J8: 99999
A9: Benzie | B9: ='Master Input'!$D$5+'Master Input'!$G$5*'distance matrix'!B9*2 -> 283.9911264 | C9: ='Master Input'!$D$5+'Master Input'!$G$5*'distance matrix'!C9*2 -> 392.0163576 | D9: ='Master Input'!$D$5+'Master Input'!$G$5*'distance matrix'!D9*2 -> 224.6742264 | E9: ='Master Input'!$D$5+'Master Input'!$G$5*'distance matrix'!E9*2 -> 288.9052728 | F9: ='Master Input'!$D$5+'Master Input'!$G$5*'distance matrix'!F9*2 -> 432.7403952 | G9: ='Master Input'!$D$5+'Master Input'!$G$5*'distance matrix'!G9*2 -> 513.4559664 | H9: ='Master Input'!$D$5+'Master Input'!$G$5*'distance matrix'!H9*2 -> 495.6879672 | I9: ='Master Input'!$D$5+'Master Input'!$G$5*'distance matrix'!I9*2 -> 227.7730368 | J9: ='Master Input'!$D$5+'Master Input'!$G$5*'distance matrix'!J9*2 -> 420.5330568
A10: Charlevoix | B10: ='Master Input'!$D$5+'Master Input'!$G$5*'distance matrix'!B10*2 -> 374.7451872 | C10: ='Master Input'!$D$5+'Master Input'!$G$5*'distance matrix'!C10*2 -> 399.7426824 | D10: ='Master Input'!$D$5+'Master Input'!$G$5*'distance matrix'!D10*2 -> 358.1428248 | E10: ='Master Input'!$D$5+'Master Input'!$G$5*'distance matrix'!E10*2 -> 270.5162376 | F10: ='Master Input'!$D$5+'Master Input'!$G$5*'distance matrix'!F10*2 -> 267.2072304 | G10: 99999 | H10: ='Master Input'!$D$5+'Master Input'!$G$5*'distance matrix'!H10*2 -> 503.414292 | I10: ='Master Input'!$D$5+'Master Input'!$G$5*'distance matrix'!I10*2 -> 331.6484736 | J10: ='Master Input'!$D$5+'Master Input'!$G$5*'distance matrix'!J10*2 -> 173.6409912
A11: Cheboygan | B11: ='Master Input'!$D$5+'Master Input'!$G$5*'distance matrix'!B11*2 -> 504.4684608 | C11: ='Master Input'!$D$5+'Master Input'!$G$5*'distance matrix'!C11*2 -> 358.1810424 | D11: ='Master Input'!$D$5+'Master Input'!$G$5*'distance matrix'!D11*2 -> 487.8660984 | E11: ='Master Input'!$D$5+'Master Input'!$G$5*'distance matrix'!E11*2 -> 400.2395112 | F11: ='Master Input'!$D$5+'Master Input'!$G$5*'distance matrix'!F11*2 -> 256.4043888 | G11: 99999 | H11: ='Master Input'!$D$5+'Master Input'!$G$5*'distance matrix'!H11*2 -> 440.737428 | I11: ='Master Input'!$D$5+'Master Input'!$G$5*'distance matrix'!I11*2 -> 461.3717472 | J11: ='Master Input'!$D$5+'Master Input'!$G$5*'distance matrix'!J11*2 -> 268.6117272
A12: Clare | B12: ='Master Input'!$D$5+'Master Input'!$G$5*'distance matrix'!B12*2 -> 317.9347248 | C12: ='Master Input'!$D$5+'Master Input'!$G$5*'distance matrix'!C12*2 -> 287.453004 | D12: ='Master Input'!$D$5+'Master Input'!$G$5*'distance matrix'!D12*2 -> 377.2516248 | E12: ='Master Input'!$D$5+'Master Input'!$G$5*'distance matrix'!E12*2 -> 355.2510264 | F12: ='Master Input'!$D$5+'Master Input'!$G$5*'distance matrix'!F12*2 -> 389.2296576 | G12: ='Master Input'!$D$5+'Master Input'!$G$5*'distance matrix'!G12*2 -> 186.3961152 | H12: ='Master Input'!$D$5+'Master Input'!$G$5*'distance matrix'!H12*2 -> 297.835452 | I12: ='Master Input'!$D$5+'Master Input'!$G$5*'distance matrix'!I12*2 -> 425.211528 | J12: ='Master Input'!$D$5+'Master Input'!$G$5*'distance matrix'!J12*2 -> 436.0111848
A13: Clinton | B13: 99999 | C13: 99999 | D13: 99999 | E13: 99999 | F13: 99999 | G13: ='Master Input'!$D$5+'Master Input'!$G$5*'distance matrix'!G13*2 -> 360.321228 | H13: ='Master Input'!$D$5+'Master Input'!$G$5*'distance matrix'!H13*2 -> 483.7035648 | I13: 99999 | J13: 99999
A14: Crawford | B14: ='Master Input'!$D$5+'Master Input'!$G$5*'distance matrix'!B14*2 -> 322.2851616 | C14: ='Master Input'!$D$5+'Master Input'!$G$5*'distance matrix'!C14*2 -> 183.3546312 | D14: ='Master Input'!$D$5+'Master Input'!$G$5*'distance matrix'!D14*2 -> 305.6827992 | E14: ='Master Input'!$D$5+'Master Input'!$G$5*'distance matrix'!E14*2 -> 236.8529016 | F14: ='Master Input'!$D$5+'Master Input'!$G$5*'distance matrix'!F14*2 -> 224.0468208 | G14: ='Master Input'!$D$5+'Master Input'!$G$5*'distance matrix'!G14*2 -> 347.661648 | H14: ='Master Input'!$D$5+'Master Input'!$G$5*'distance matrix'!H14*2 -> 287.0262408 | I14: ='Master Input'!$D$5+'Master Input'!$G$5*'distance matrix'!I14*2 -> 306.8134032 | J14: ='Master Input'!$D$5+'Master Input'!$G$5*'distance matrix'!J14*2 -> 317.61306
A15: Eaton | B15: 99999 | C15: 99999 | D15: 99999 | E15: 99999 | F15: 99999 | G15: ='Master Input'!$D$5+'Master Input'!$G$5*'distance matrix'!G15*2 -> 415.768596 | H15: 99999 | I15: 99999 | J15: 99999
A16: Emmet | B16: ='Master Input'!$D$5+'Master Input'!$G$5*'distance matrix'!B16*2 -> 459.129648 | C16: ='Master Input'!$D$5+'Master Input'!$G$5*'distance matrix'!C16*2 -> 413.1825384 | D16: ='Master Input'!$D$5+'Master Input'!$G$5*'distance matrix'!D16*2 -> 442.5272856 | E16: ='Master Input'!$D$5+'Master Input'!$G$5*'distance matrix'!E16*2 -> 354.9006984 | F16: ='Master Input'!$D$5+'Master Input'!$G$5*'distance matrix'!F16*2 -> 280.6470864 | G16: 99999 | H16: ='Master Input'!$D$5+'Master Input'!$G$5*'distance matrix'!H16*2 -> 516.854148 | I16: ='Master Input'!$D$5+'Master Input'!$G$5*'distance matrix'!I16*2 -> 416.0329344 | J16: ='Master Input'!$D$5+'Master Input'!$G$5*'distance matrix'!J16*2 -> 223.2729144
A17: Genesee | B17: 99999 | C17: 99999 | D17: 99999 | E17: 99999 | F17: 99999 | G17: ='Master Input'!$D$5+'Master Input'!$G$5*'distance matrix'!G17*2 -> 483.9105768 | H17: ='Master Input'!$D$5+'Master Input'!$G$5*'distance matrix'!H17*2 -> 501.678576 | I17: 99999 | J17: 99999
A18: Gladwin | B18: ='Master Input'!$D$5+'Master Input'!$G$5*'distance matrix'!B18*2 -> 389.0130912 | C18: ='Master Input'!$D$5+'Master Input'!$G$5*'distance matrix'!C18*2 -> 280.98786 | D18: ='Master Input'!$D$5+'Master Input'!$G$5*'distance matrix'!D18*2 -> 448.3299912 | E18: ='Master Input'!$D$5+'Master Input'!$G$5*'distance matrix'!E18*2 -> 426.3293928 | F18: ='Master Input'!$D$5+'Master Input'!$G$5*'distance matrix'!F18*2 -> 413.523312 | G18: ='Master Input'!$D$5+'Master Input'!$G$5*'distance matrix'!G18*2 -> 233.8305264 | H18: ='Master Input'!$D$5+'Master Input'!$G$5*'distance matrix'!H18*2 -> 223.0818264 | I18: ='Master Input'!$D$5+'Master Input'!$G$5*'distance matrix'!I18*2 -> 496.2898944 | J18: ='Master Input'!$D$5+'Master Input'!$G$5*'distance matrix'!J18*2 -> 507.0895512
A19: Grand Traverse | B19: ='Master Input'!$D$5+'Master Input'!$G$5*'distance matrix'!B19*2 -> 219.3715344 | C19: ='Master Input'!$D$5+'Master Input'!$G$5*'distance matrix'!C19*2 -> 327.3967656 | D19: ='Master Input'!$D$5+'Master Input'!$G$5*'distance matrix'!D19*2 -> 160.0546344 | E19: ='Master Input'!$D$5+'Master Input'!$G$5*'distance matrix'!E19*2 -> 210.7693896 | F19: ='Master Input'!$D$5+'Master Input'!$G$5*'distance matrix'!F19*2 -> 354.604512 | G19: ='Master Input'!$D$5+'Master Input'!$G$5*'distance matrix'!G19*2 -> 448.8363744 | H19: ='Master Input'!$D$5+'Master Input'!$G$5*'distance matrix'!H19*2 -> 431.0683752 | I19: ='Master Input'!$D$5+'Master Input'!$G$5*'distance matrix'!I19*2 -> 162.7712688 | J19: ='Master Input'!$D$5+'Master Input'!$G$5*'distance matrix'!J19*2 -> 342.3971736
A20: Gratiot | B20: ='Master Input'!$D$5+'Master Input'!$G$5*'distance matrix'!B20*2 -> 511.2457152 | C20: ='Master Input'!$D$5+'Master Input'!$G$5*'distance matrix'!C20*2 -> 403.220484 | D20: 99999 | E20: 99999 | F20: 99999 | G20: ='Master Input'!$D$5+'Master Input'!$G$5*'distance matrix'!G20*2 -> 281.7808752 | H20: ='Master Input'!$D$5+'Master Input'!$G$5*'distance matrix'!H20*2 -> 408.85758 | I20: 99999 | J20: 99999
A21: Huron | B21: 99999 | C21: ='Master Input'!$D$5+'Master Input'!$G$5*'distance matrix'!C21*2 -> 527.9085888 | D21: 99999 | E21: 99999 | F21: 99999 | G21: ='Master Input'!$D$5+'Master Input'!$G$5*'distance matrix'!G21*2 -> 423.7751832 | H21: ='Master Input'!$D$5+'Master Input'!$G$5*'distance matrix'!H21*2 -> 424.2369792 | I21: 99999 | J21: 99999
A22: Ingham | B22: 99999 | C22: 99999 | D22: 99999 | E22: 99999 | F22: 99999 | G22: ='Master Input'!$D$5+'Master Input'!$G$5*'distance matrix'!G22*2 -> 474.0886536 | H22: 99999 | I22: 99999 | J22: 99999
A23: Ionia | B23: 99999 | C23: 99999 | D23: 99999 | E23: 99999 | F23: 99999 | G23: ='Master Input'!$D$5+'Master Input'!$G$5*'distance matrix'!G23*2 -> 378.7994376 | H23: 99999 | I23: 99999 | J23: 99999
A24: Iosco | B24: ='Master Input'!$D$5+'Master Input'!$G$5*'distance matrix'!B24*2 -> 422.9121024 | C24: ='Master Input'!$D$5+'Master Input'!$G$5*'distance matrix'!C24*2 -> 314.8868712 | D24: ='Master Input'!$D$5+'Master Input'!$G$5*'distance matrix'!D24*2 -> 482.2290024 | E24: ='Master Input'!$D$5+'Master Input'!$G$5*'distance matrix'!E24*2 -> 460.228404 | F24: ='Master Input'!$D$5+'Master Input'!$G$5*'distance matrix'!F24*2 -> 447.4223232 | G24: ='Master Input'!$D$5+'Master Input'!$G$5*'distance matrix'!G24*2 -> 434.0079456 | H24: ='Master Input'!$D$5+'Master Input'!$G$5*'distance matrix'!H24*2 -> 251.9615928 | I24: 99999 | J24: ='Master Input'!$D$5+'Master Input'!$G$5*'distance matrix'!J24*2 -> 540.9885624
A25: Isabella | B25: ='Master Input'!$D$5+'Master Input'!$G$5*'distance matrix'!B25*2 -> 395.5005288 | C25: ='Master Input'!$D$5+'Master Input'!$G$5*'distance matrix'!C25*2 -> 362.534664 | D25: ='Master Input'!$D$5+'Master Input'!$G$5*'distance matrix'!D25*2 -> 454.8174288 | E25: ='Master Input'!$D$5+'Master Input'!$G$5*'distance matrix'!E25*2 -> 432.8168304 | F25: ='Master Input'!$D$5+'Master Input'!$G$5*'distance matrix'!F25*2 -> 464.3113176 | G25: ='Master Input'!$D$5+'Master Input'!$G$5*'distance matrix'!G25*2 -> 190.8707592 | H25: ='Master Input'!$D$5+'Master Input'!$G$5*'distance matrix'!H25*2 -> 372.917112 | I25: ='Master Input'!$D$5+'Master Input'!$G$5*'distance matrix'!I25*2 -> 502.777332 | J25: 99999
A26: Kalkaska | B26: ='Master Input'!$D$5+'Master Input'!$G$5*'distance matrix'!B26*2 -> 246.19392 | C26: ='Master Input'!$D$5+'Master Input'!$G$5*'distance matrix'!C26*2 -> 257.7897768 | D26: ='Master Input'!$D$5+'Master Input'!$G$5*'distance matrix'!D26*2 -> 229.5915576 | E26: ='Master Input'!$D$5+'Master Input'!$G$5*'distance matrix'!E26*2 -> 162.417756 | F26: ='Master Input'!$D$5+'Master Input'!$G$5*'distance matrix'!F26*2 -> 276.736152 | G26: ='Master Input'!$D$5+'Master Input'!$G$5*'distance matrix'!G26*2 -> 379.2293856 | H26: ='Master Input'!$D$5+'Master Input'!$G$5*'distance matrix'!H26*2 -> 361.4613864 | I26: ='Master Input'!$D$5+'Master Input'!$G$5*'distance matrix'!I26*2 -> 232.3782576 | J26: ='Master Input'!$D$5+'Master Input'!$G$5*'distance matrix'!J26*2 -> 264.5288136
A27: Kent | B27: ='Master Input'!$D$5+'Master Input'!$G$5*'distance matrix'!B27*2 -> 462.4864272 | C27: 99999 | D27: 99999 | E27: 99999 | F27: 99999 | G27: ='Master Input'!$D$5+'Master Input'!$G$5*'distance matrix'!G27*2 -> 437.1099408 | H27: 99999 | I27: 99999 | J27: 99999
A28: Lake | B28: ='Master Input'!$D$5+'Master Input'!$G$5*'distance matrix'!B28*2 -> 293.297112 | C28: ='Master Input'!$D$5+'Master Input'!$G$5*'distance matrix'!C28*2 -> 439.5845304 | D28: ='Master Input'!$D$5+'Master Input'!$G$5*'distance matrix'!D28*2 -> 309.8994744 | E28: ='Master Input'!$D$5+'Master Input'!$G$5*'distance matrix'!E28*2 -> 397.5260616 | F28: ='Master Input'!$D$5+'Master Input'!$G$5*'distance matrix'!F28*2 -> 541.361184 | G28: ='Master Input'!$D$5+'Master Input'!$G$5*'distance matrix'!G28*2 -> 336.9734592 | H28: ='Master Input'!$D$5+'Master Input'!$G$5*'distance matrix'!H28*2 -> 449.9669784 | I28: ='Master Input'!$D$5+'Master Input'!$G$5*'distance matrix'!I28*2 -> 336.3938256 | J28: ='Master Input'!$D$5+'Master Input'!$G$5*'distance matrix'!J28*2 -> 529.1538456
A29: Lapeer | B29: 99999 | C29: 99999 | D29: 99999 | E29: 99999 | F29: 99999 | G29: ='Master Input'!$D$5+'Master Input'!$G$5*'distance matrix'!G29*2 -> 544.1701776 | H29: ='Master Input'!$D$5+'Master Input'!$G$5*'distance matrix'!H29*2 -> 561.9381768 | I29: 99999 | J29: 99999
A30: Leelanau | B30: ='Master Input'!$D$5+'Master Input'!$G$5*'distance matrix'!B30*2 -> 318.0780408 | C30: ='Master Input'!$D$5+'Master Input'!$G$5*'distance matrix'!C30*2 -> 426.103272 | D30: ='Master Input'!$D$5+'Master Input'!$G$5*'distance matrix'!D30*2 -> 258.7611408 | E30: ='Master Input'!$D$5+'Master Input'!$G$5*'distance matrix'!E30*2 -> 280.7617392 | F30: ='Master Input'!$D$5+'Master Input'!$G$5*'distance matrix'!F30*2 -> 335.0721336 | G30: ='Master Input'!$D$5+'Master Input'!$G$5*'distance matrix'!G30*2 -> 547.5428808 | H30: ='Master Input'!$D$5+'Master Input'!$G$5*'distance matrix'!H30*2 -> 529.7748816 | I30: ='Master Input'!$D$5+'Master Input'!$G$5*'distance matrix'!I30*2 -> 210.8012376 | J30: ='Master Input'!$D$5+'Master Input'!$G$5*'distance matrix'!J30*2 -> 322.8647952
A31: Livingston | B31: 99999 | C31: 99999 | D31: 99999 | E31: 99999 | F31: 99999 | G31: ='Master Input'!$D$5+'Master Input'!$G$5*'distance matrix'!G31*2 -> 546.090612 | H31: 99999 | I31: 99999 | J31: 99999
A32: Manistee | B32: ='Master Input'!$D$5+'Master Input'!$G$5*'distance matrix'!B32*2 -> 258.4108128 | C32: ='Master Input'!$D$5+'Master Input'!$G$5*'distance matrix'!C32*2 -> 404.6982312 | D32: ='Master Input'!$D$5+'Master Input'!$G$5*'distance matrix'!D32*2 -> 275.0131752 | E32: ='Master Input'!$D$5+'Master Input'!$G$5*'distance matrix'!E32*2 -> 362.6397624 | F32: ='Master Input'!$D$5+'Master Input'!$G$5*'distance matrix'!F32*2 -> 506.4748848 | G32: ='Master Input'!$D$5+'Master Input'!$G$5*'distance matrix'!G32*2 -> 452.7664176 | H32: ='Master Input'!$D$5+'Master Input'!$G$5*'distance matrix'!H32*2 -> 434.9984184 | I32: ='Master Input'!$D$5+'Master Input'!$G$5*'distance matrix'!I32*2 -> 301.5075264 | J32: ='Master Input'!$D$5+'Master Input'!$G$5*'distance matrix'!J32*2 -> 494.2675464
A33: Mason | B33: ='Master Input'!$D$5+'Master Input'!$G$5*'distance matrix'!B33*2 -> 363.2958312 | C33: ='Master Input'!$D$5+'Master Input'!$G$5*'distance matrix'!C33*2 -> 509.5832496 | D33: ='Master Input'!$D$5+'Master Input'!$G$5*'distance matrix'!D33*2 -> 379.8981936 | E33: ='Master Input'!$D$5+'Master Input'!$G$5*'distance matrix'!E33*2 -> 467.5247808 | F33: 99999 | G33: ='Master Input'!$D$5+'Master Input'!$G$5*'distance matrix'!G33*2 -> 409.2524952 | H33: 99999 | I33: ='Master Input'!$D$5+'Master Input'!$G$5*'distance matrix'!I33*2 -> 406.3925448 | J33: 99999
A34: Mecosta | B34: ='Master Input'!$D$5+'Master Input'!$G$5*'distance matrix'!B34*2 -> 320.0462472 | C34: ='Master Input'!$D$5+'Master Input'!$G$5*'distance matrix'!C34*2 -> 439.606824 | D34: ='Master Input'!$D$5+'Master Input'!$G$5*'distance matrix'!D34*2 -> 379.3631472 | E34: ='Master Input'!$D$5+'Master Input'!$G$5*'distance matrix'!E34*2 -> 397.5483552 | F34: 99999 | G34: ='Master Input'!$D$5+'Master Input'!$G$5*'distance matrix'!G34*2 -> 267.9429192 | H34: ='Master Input'!$D$5+'Master Input'!$G$5*'distance matrix'!H34*2 -> 449.989272 | I34: ='Master Input'!$D$5+'Master Input'!$G$5*'distance matrix'!I34*2 -> 427.3230504 | J34: 99999
A35: Midland | B35: ='Master Input'!$D$5+'Master Input'!$G$5*'distance matrix'!B35*2 -> 466.0693272 | C35: ='Master Input'!$D$5+'Master Input'!$G$5*'distance matrix'!C35*2 -> 358.044096 | D35: ='Master Input'!$D$5+'Master Input'!$G$5*'distance matrix'!D35*2 -> 525.3862272 | E35: ='Master Input'!$D$5+'Master Input'!$G$5*'distance matrix'!E35*2 -> 503.3856288 | F35: ='Master Input'!$D$5+'Master Input'!$G$5*'distance matrix'!F35*2 -> 490.579548 | G35: ='Master Input'!$D$5+'Master Input'!$G$5*'distance matrix'!G35*2 -> 236.6044872 | H35: ='Master Input'!$D$5+'Master Input'!$G$5*'distance matrix'!H35*2 -> 297.1379808 | I35: ='Master Input'!$D$5+'Master Input'!$G$5*'distance matrix'!I35*2 -> 573.3461304 | J35: 99999
A36: Missaukee | B36: ='Master Input'!$D$5+'Master Input'!$G$5*'distance matrix'!B36*2 -> 201.6099048 | C36: ='Master Input'!$D$5+'Master Input'!$G$5*'distance matrix'!C36*2 -> 251.162208 | D36: ='Master Input'!$D$5+'Master Input'!$G$5*'distance matrix'!D36*2 -> 260.9268048 | E36: ='Master Input'!$D$5+'Master Input'!$G$5*'distance matrix'!E36*2 -> 238.9262064 | F36: ='Master Input'!$D$5+'Master Input'!$G$5*'distance matrix'!F36*2 -> 352.9388616 | G36: ='Master Input'!$D$5+'Master Input'!$G$5*'distance matrix'!G36*2 -> 302.7209352 | H36: ='Master Input'!$D$5+'Master Input'!$G$5*'distance matrix'!H36*2 -> 284.952936 | I36: ='Master Input'!$D$5+'Master Input'!$G$5*'distance matrix'!I36*2 -> 308.886708 | J36: ='Master Input'!$D$5+'Master Input'!$G$5*'distance matrix'!J36*2 -> 340.7315232
A37: Montcalm | B37: ='Master Input'!$D$5+'Master Input'!$G$5*'distance matrix'!B37*2 -> 420.5107632 | C37: ='Master Input'!$D$5+'Master Input'!$G$5*'distance matrix'!C37*2 -> 483.5666184 | D37: ='Master Input'!$D$5+'Master Input'!$G$5*'distance matrix'!D37*2 -> 479.8276632 | E37: ='Master Input'!$D$5+'Master Input'!$G$5*'distance matrix'!E37*2 -> 457.8270648 | F37: 99999 | G37: ='Master Input'!$D$5+'Master Input'!$G$5*'distance matrix'!G37*2 -> 311.9027136 | H37: ='Master Input'!$D$5+'Master Input'!$G$5*'distance matrix'!H37*2 -> 493.9490664 | I37: 99999 | J37: 99999
A38: Montmorency | B38: ='Master Input'!$D$5+'Master Input'!$G$5*'distance matrix'!B38*2 -> 473.4198456 | C38: ='Master Input'!$D$5+'Master Input'!$G$5*'distance matrix'!C38*2 -> 327.1324272 | D38: ='Master Input'!$D$5+'Master Input'!$G$5*'distance matrix'!D38*2 -> 456.8174832 | E38: ='Master Input'!$D$5+'Master Input'!$G$5*'distance matrix'!E38*2 -> 369.190896 | F38: ='Master Input'!$D$5+'Master Input'!$G$5*'distance matrix'!F38*2 -> 225.3557736 | G38: ='Master Input'!$D$5+'Master Input'!$G$5*'distance matrix'!G38*2 -> 498.796332 | H38: ='Master Input'!$D$5+'Master Input'!$G$5*'distance matrix'!H38*2 -> 316.7499792 | I38: ='Master Input'!$D$5+'Master Input'!$G$5*'distance matrix'!I38*2 -> 430.323132 | J38: ='Master Input'!$D$5+'Master Input'!$G$5*'distance matrix'!J38*2 -> 314.5142496
A39: Muskegon | B39: ='Master Input'!$D$5+'Master Input'!$G$5*'distance matrix'!B39*2 -> 502.7550384 | C39: 99999 | D39: ='Master Input'!$D$5+'Master Input'!$G$5*'distance matrix'!D39*2 -> 519.3574008 | E39: 99999 | F39: 99999 | G39: ='Master Input'!$D$5+'Master Input'!$G$5*'distance matrix'!G39*2 -> 477.378552 | H39: 99999 | I39: 99999 | J39: 99999
A40: Newaygo | B40: ='Master Input'!$D$5+'Master Input'!$G$5*'distance matrix'!B40*2 -> 388.7901552 | C40: ='Master Input'!$D$5+'Master Input'!$G$5*'distance matrix'!C40*2 -> 535.0775736 | D40: ='Master Input'!$D$5+'Master Input'!$G$5*'distance matrix'!D40*2 -> 405.3925176 | E40: ='Master Input'!$D$5+'Master Input'!$G$5*'distance matrix'!E40*2 -> 493.0191048 | F40: 99999 | G40: ='Master Input'!$D$5+'Master Input'!$G$5*'distance matrix'!G40*2 -> 363.4136688 | H40: ='Master Input'!$D$5+'Master Input'!$G$5*'distance matrix'!H40*2 -> 545.4600216 | I40: ='Master Input'!$D$5+'Master Input'!$G$5*'distance matrix'!I40*2 -> 431.8868688 | J40: 99999
A41: Oceana | B41: ='Master Input'!$D$5+'Master Input'!$G$5*'distance matrix'!B41*2 -> 444.2024904 | C41: 99999 | D41: ='Master Input'!$D$5+'Master Input'!$G$5*'distance matrix'!D41*2 -> 460.8048528 | E41: ='Master Input'!$D$5+'Master Input'!$G$5*'distance matrix'!E41*2 -> 548.43144 | F41: 99999 | G41: ='Master Input'!$D$5+'Master Input'!$G$5*'distance matrix'!G41*2 -> 418.826004 | H41: 99999 | I41: ='Master Input'!$D$5+'Master Input'!$G$5*'distance matrix'!I41*2 -> 487.299204 | J41: 99999
A42: Ogemaw | B42: ='Master Input'!$D$5+'Master Input'!$G$5*'distance matrix'!B42*2 -> 352.2891624 | C42: ='Master Input'!$D$5+'Master Input'!$G$5*'distance matrix'!C42*2 -> 244.2639312 | D42: ='Master Input'!$D$5+'Master Input'!$G$5*'distance matrix'!D42*2 -> 411.6060624 | E42: ='Master Input'!$D$5+'Master Input'!$G$5*'distance matrix'!E42*2 -> 389.605464 | F42: ='Master Input'!$D$5+'Master Input'!$G$5*'distance matrix'!F42*2 -> 376.7993832 | G42: ='Master Input'!$D$5+'Master Input'!$G$5*'distance matrix'!G42*2 -> 350.1871944 | H42: ='Master Input'!$D$5+'Master Input'!$G$5*'distance matrix'!H42*2 -> 168.1408416 | I42: ='Master Input'!$D$5+'Master Input'!$G$5*'distance matrix'!I42*2 -> 459.5659656 | J42: ='Master Input'!$D$5+'Master Input'!$G$5*'distance matrix'!J42*2 -> 470.3656224
A43: Osceola | B43: ='Master Input'!$D$5+'Master Input'!$G$5*'distance matrix'!B43*2 -> 242.5982808 | C43: ='Master Input'!$D$5+'Master Input'!$G$5*'distance matrix'!C43*2 -> 363.6366048 | D43: ='Master Input'!$D$5+'Master Input'!$G$5*'distance matrix'!D43*2 -> 301.9151808 | E43: ='Master Input'!$D$5+'Master Input'!$G$5*'distance matrix'!E43*2 -> 321.578136 | F43: ='Master Input'!$D$5+'Master Input'!$G$5*'distance matrix'!F43*2 -> 465.4132584 | G43: ='Master Input'!$D$5+'Master Input'!$G$5*'distance matrix'!G43*2 -> 261.7325592 | H43: ='Master Input'!$D$5+'Master Input'!$G$5*'distance matrix'!H43*2 -> 374.0190528 | I43: ='Master Input'!$D$5+'Master Input'!$G$5*'distance matrix'!I43*2 -> 349.875084 | J43: ='Master Input'!$D$5+'Master Input'!$G$5*'distance matrix'!J43*2 -> 453.20592
A44: Oscoda | B44: ='Master Input'!$D$5+'Master Input'!$G$5*'distance matrix'!B44*2 -> 398.7553944 | C44: ='Master Input'!$D$5+'Master Input'!$G$5*'distance matrix'!C44*2 -> 252.467976 | D44: ='Master Input'!$D$5+'Master Input'!$G$5*'distance matrix'!D44*2 -> 382.153032 | E44: ='Master Input'!$D$5+'Master Input'!$G$5*'distance matrix'!E44*2 -> 311.1192528 | F44: ='Master Input'!$D$5+'Master Input'!$G$5*'distance matrix'!F44*2 -> 298.313172 | G44: ='Master Input'!$D$5+'Master Input'!$G$5*'distance matrix'!G44*2 -> 424.1318808 | H44: ='Master Input'!$D$5+'Master Input'!$G$5*'distance matrix'!H44*2 -> 242.085528 | I44: ='Master Input'!$D$5+'Master Input'!$G$5*'distance matrix'!I44*2 -> 381.0797544 | J44: ='Master Input'!$D$5+'Master Input'!$G$5*'distance matrix'!J44*2 -> 391.8794112
A45: Otsego | B45: ='Master Input'!$D$5+'Master Input'!$G$5*'distance matrix'!B45*2 -> 397.0674504 | C45: ='Master Input'!$D$5+'Master Input'!$G$5*'distance matrix'!C45*2 -> 257.1560016 | D45: ='Master Input'!$D$5+'Master Input'!$G$5*'distance matrix'!D45*2 -> 380.465088 | E45: ='Master Input'!$D$5+'Master Input'!$G$5*'distance matrix'!E45*2 -> 292.8385008 | F45: ='Master Input'!$D$5+'Master Input'!$G$5*'distance matrix'!F45*2 -> 150.2454504 | G45: ='Master Input'!$D$5+'Master Input'!$G$5*'distance matrix'!G45*2 -> 422.4439368 | H45: ='Master Input'!$D$5+'Master Input'!$G$5*'distance matrix'!H45*2 -> 360.8276112 | I45: ='Master Input'!$D$5+'Master Input'!$G$5*'distance matrix'!I45*2 -> 353.9707368 | J45: ='Master Input'!$D$5+'Master Input'!$G$5*'distance matrix'!J45*2 -> 243.8116896
A46: Ottawa | B46: 99999 | C46: 99999 | D46: 99999 | E46: 99999 | F46: 99999 | G46: ='Master Input'!$D$5+'Master Input'!$G$5*'distance matrix'!G46*2 -> 525.2174328 | H46: 99999 | I46: 99999 | J46: 99999
A47: Presque Isle | B47: ='Master Input'!$D$5+'Master Input'!$G$5*'distance matrix'!B47*2 -> 573.90984 | C47: ='Master Input'!$D$5+'Master Input'!$G$5*'distance matrix'!C47*2 -> 427.6224216 | D47: ='Master Input'!$D$5+'Master Input'!$G$5*'distance matrix'!D47*2 -> 557.3074776 | E47: ='Master Input'!$D$5+'Master Input'!$G$5*'distance matrix'!E47*2 -> 469.6808904 | F47: ='Master Input'!$D$5+'Master Input'!$G$5*'distance matrix'!F47*2 -> 325.845768 | G47: 99999 | H47: ='Master Input'!$D$5+'Master Input'!$G$5*'distance matrix'!H47*2 -> 417.2399736 | I47: ='Master Input'!$D$5+'Master Input'!$G$5*'distance matrix'!I47*2 -> 530.8131264 | J47: ='Master Input'!$D$5+'Master Input'!$G$5*'distance matrix'!J47*2 -> 338.0531064
A48: Roscommon | B48: ='Master Input'!$D$5+'Master Input'!$G$5*'distance matrix'!B48*2 -> 277.1310672 | C48: ='Master Input'!$D$5+'Master Input'!$G$5*'distance matrix'!C48*2 -> 174.2588424 | D48: ='Master Input'!$D$5+'Master Input'!$G$5*'distance matrix'!D48*2 -> 336.4479672 | E48: ='Master Input'!$D$5+'Master Input'!$G$5*'distance matrix'!E48*2 -> 314.4473688 | F48: ='Master Input'!$D$5+'Master Input'!$G$5*'distance matrix'!F48*2 -> 301.641288 | G48: ='Master Input'!$D$5+'Master Input'!$G$5*'distance matrix'!G48*2 -> 272.2710624 | H48: ='Master Input'!$D$5+'Master Input'!$G$5*'distance matrix'!H48*2 -> 209.4317736 | I48: ='Master Input'!$D$5+'Master Input'!$G$5*'distance matrix'!I48*2 -> 384.4078704 | J48: ='Master Input'!$D$5+'Master Input'!$G$5*'distance matrix'!J48*2 -> 395.2075272
A49: Saginaw | B49: 99999 | C49: ='Master Input'!$D$5+'Master Input'!$G$5*'distance matrix'!C49*2 -> 480.4423296 | D49: 99999 | E49: 99999 | F49: 99999 | G49: ='Master Input'!$D$5+'Master Input'!$G$5*'distance matrix'!G49*2 -> 359.0027208 | H49: ='Master Input'!$D$5+'Master Input'!$G$5*'distance matrix'!H49*2 -> 376.77072 | I49: 99999 | J49: 99999
A50: Sanilac | B50: 99999 | C50: 99999 | D50: 99999 | E50: 99999 | F50: 99999 | G50: 99999 | H50: ='Master Input'!$D$5+'Master Input'!$G$5*'distance matrix'!H50*2 -> 548.2944936 | I50: 99999 | J50: 99999
A51: Shiawassee | B51: 99999 | C51: 99999 | D51: 99999 | E51: 99999 | F51: 99999 | G51: ='Master Input'!$D$5+'Master Input'!$G$5*'distance matrix'!G51*2 -> 430.0269456 | H51: ='Master Input'!$D$5+'Master Input'!$G$5*'distance matrix'!H51*2 -> 447.7949448 | I51: 99999 | J51: 99999
A52: Tuscola | B52: 99999 | C52: ='Master Input'!$D$5+'Master Input'!$G$5*'distance matrix'!C52*2 -> 550.4824512 | D52: 99999 | E52: 99999 | F52: 99999 | G52: ='Master Input'!$D$5+'Master Input'!$G$5*'distance matrix'!G52*2 -> 429.0428424 | H52: ='Master Input'!$D$5+'Master Input'!$G$5*'distance matrix'!H52*2 -> 446.8108416 | I52: 99999 | J52: 99999
A53: Wexford | B53: ='Master Input'!$D$5+'Master Input'!$G$5*'distance matrix'!B53*2 -> 181.5806976 | C53: ='Master Input'!$D$5+'Master Input'!$G$5*'distance matrix'!C53*2 -> 327.868116 | D53: ='Master Input'!$D$5+'Master Input'!$G$5*'distance matrix'!D53*2 -> 198.18306 | E53: ='Master Input'!$D$5+'Master Input'!$G$5*'distance matrix'!E53*2 -> 285.8096472 | F53: ='Master Input'!$D$5+'Master Input'!$G$5*'distance matrix'!F53*2 -> 429.6447696 | G53: ='Master Input'!$D$5+'Master Input'!$G$5*'distance matrix'!G53*2 -> 378.6370128 | H53: ='Master Input'!$D$5+'Master Input'!$G$5*'distance matrix'!H53*2 -> 360.8690136 | I53: ='Master Input'!$D$5+'Master Input'!$G$5*'distance matrix'!I53*2 -> 232.9706304 | J53: ='Master Input'!$D$5+'Master Input'!$G$5*'distance matrix'!J53*2 -> 417.4374312

Sheet Emissions per ton
A1: County (supplier) | B1: GHG Emissions (lb/ton)
B2: Manton | C2: Roscommon | D2: Kingsley | E2: Kalkaska | F2: Gaylord | G2: Clare | H2: West Branch | I2: Traverse City | J2: Boyne City
A3: Alcona | B3: ='Master Input'!$D$7+'Master Input'!$G$7*'distance matrix'!B3*2 -> 108.073274 | C3: ='Master Input'!$D$7+'Master Input'!$G$7*'distance matrix'!C3*2 -> 73.4413 | D3: ='Master Input'!$D$7+'Master Input'!$G$7*'distance matrix'!D3*2 -> 104.142672 | E3: ='Master Input'!$D$7+'Master Input'!$G$7*'distance matrix'!E3*2 -> 85.898888 | F3: ='Master Input'!$D$7+'Master Input'!$G$7*'distance matrix'!F3*2 -> 82.867054 | G3: ='Master Input'!$D$7+'Master Input'!$G$7*'distance matrix'!G3*2 -> 114.081146 | H3: ='Master Input'!$D$7+'Master Input'!$G$7*'distance matrix'!H3*2 -> 70.981752 | I3: ='Master Input'!$D$7+'Master Input'!$G$7*'distance matrix'!I3*2 -> 102.462006 | J3: ='Master Input'!$D$7+'Master Input'!$G$7*'distance matrix'!J3*2 -> 105.01882
A4: Alpena | B4: ='Master Input'!$D$7+'Master Input'!$G$7*'distance matrix'!B4*2 -> 124.429042 | C4: ='Master Input'!$D$7+'Master Input'!$G$7*'distance matrix'!C4*2 -> 89.79556 | D4: ='Master Input'!$D$7+'Master Input'!$G$7*'distance matrix'!D4*2 -> 120.49844 | E4: ='Master Input'!$D$7+'Master Input'!$G$7*'distance matrix'!E4*2 -> 99.752884 | F4: ='Master Input'!$D$7+'Master Input'!$G$7*'distance matrix'!F4*2 -> 65.699982 | G4: 999 | H4: ='Master Input'!$D$7+'Master Input'!$G$7*'distance matrix'!H4*2 -> 87.33752 | I4: ='Master Input'!$D$7+'Master Input'!$G$7*'distance matrix'!I4*2 -> 114.225914 | J4: ='Master Input'!$D$7+'Master Input'!$G$7*'distance matrix'!J4*2 -> 85.086076
A5: Antrim | B5: ='Master Input'!$D$7+'Master Input'!$G$7*'distance matrix'!B5*2 -> 65.664544 | C5: ='Master Input'!$D$7+'Master Input'!$G$7*'distance matrix'!C5*2 -> 72.467886 | D5: ='Master Input'!$D$7+'Master Input'!$G$7*'distance matrix'!D5*2 -> 61.733942 | E5: ='Master Input'!$D$7+'Master Input'!$G$7*'distance matrix'!E5*2 -> 40.988386 | F5: ='Master Input'!$D$7+'Master Input'!$G$7*'distance matrix'!F5*2 -> 44.264516 | G5: ='Master Input'!$D$7+'Master Input'!$G$7*'distance matrix'!G5*2 -> 101.21866 | H5: ='Master Input'!$D$7+'Master Input'!$G$7*'distance matrix'!H5*2 -> 97.012094 | I5: ='Master Input'!$D$7+'Master Input'!$G$7*'distance matrix'!I5*2 -> 55.461416 | J5: ='Master Input'!$D$7+'Master Input'!$G$7*'distance matrix'!J5*2 -> 41.374434
A6: Arenac | B6: ='Master Input'!$D$7+'Master Input'!$G$7*'distance matrix'!B6*2 -> 99.270324 | C6: ='Master Input'!$D$7+'Master Input'!$G$7*'distance matrix'!C6*2 -> 73.695398 | D6: ='Master Input'!$D$7+'Master Input'!$G$7*'distance matrix'!D6*2 -> 113.313574 | E6: ='Master Input'!$D$7+'Master Input'!$G$7*'distance matrix'!E6*2 -> 108.104942 | F6: ='Master Input'!$D$7+'Master Input'!$G$7*'distance matrix'!F6*2 -> 105.073108 | G6: ='Master Input'!$D$7+'Master Input'!$G$7*'distance matrix'!G6*2 -> 71.162712 | H6: ='Master Input'!$D$7+'Master Input'!$G$7*'distance matrix'!H6*2 -> 49.15119 | I6: ='Master Input'!$D$7+'Master Input'!$G$7*'distance matrix'!I6*2 -> 124.66806 | J6: ='Master Input'!$D$7+'Master Input'!$G$7*'distance matrix'!J6*2 -> 127.224874
A7: Barry | B7: 999 | C7: 999 | D7: 999 | E7: 999 | F7: 999 | G7: ='Master Input'!$D$7+'Master Input'!$G$7*'distance matrix'!G7*2 -> 109.845928 | H7: 999 | I7: 999 | J7: 999
A8: Bay | B8: ='Master Input'!$D$7+'Master Input'!$G$7*'distance matrix'!B8*2 -> 114.847964 | C8: ='Master Input'!$D$7+'Master Input'!$G$7*'distance matrix'!C8*2 -> 89.273038 | D8: ='Master Input'!$D$7+'Master Input'!$G$7*'distance matrix'!D8*2 -> 128.891214 | E8: ='Master Input'!$D$7+'Master Input'!$G$7*'distance matrix'!E8*2 -> 123.682582 | F8: ='Master Input'!$D$7+'Master Input'!$G$7*'distance matrix'!F8*2 -> 120.650748 | G8: ='Master Input'!$D$7+'Master Input'!$G$7*'distance matrix'!G8*2 -> 60.522264 | H8: ='Master Input'!$D$7+'Master Input'!$G$7*'distance matrix'!H8*2 -> 64.72883 | I8: 999 | J8: 999
A9: Benzie | B9: ='Master Input'!$D$7+'Master Input'!$G$7*'distance matrix'!B9*2 -> 60.297572 | C9: ='Master Input'!$D$7+'Master Input'!$G$7*'distance matrix'!C9*2 -> 85.872498 | D9: ='Master Input'!$D$7+'Master Input'!$G$7*'distance matrix'!D9*2 -> 46.254322 | E9: ='Master Input'!$D$7+'Master Input'!$G$7*'distance matrix'!E9*2 -> 61.460994 | F9: ='Master Input'!$D$7+'Master Input'!$G$7*'distance matrix'!F9*2 -> 95.513896 | G9: ='Master Input'!$D$7+'Master Input'!$G$7*'distance matrix'!G9*2 -> 114.623272 | H9: ='Master Input'!$D$7+'Master Input'!$G$7*'distance matrix'!H9*2 -> 110.416706 | I9: ='Master Input'!$D$7+'Master Input'!$G$7*'distance matrix'!I9*2 -> 46.987964 | J9: ='Master Input'!$D$7+'Master Input'!$G$7*'distance matrix'!J9*2 -> 92.623814
A10: Charlevoix | B10: ='Master Input'!$D$7+'Master Input'!$G$7*'distance matrix'!B10*2 -> 81.783556 | C10: ='Master Input'!$D$7+'Master Input'!$G$7*'distance matrix'!C10*2 -> 87.701702 | D10: ='Master Input'!$D$7+'Master Input'!$G$7*'distance matrix'!D10*2 -> 77.852954 | E10: ='Master Input'!$D$7+'Master Input'!$G$7*'distance matrix'!E10*2 -> 57.107398 | F10: ='Master Input'!$D$7+'Master Input'!$G$7*'distance matrix'!F10*2 -> 56.323992 | G10: 999 | H10: ='Master Input'!$D$7+'Master Input'!$G$7*'distance matrix'!H10*2 -> 112.24591 | I10: ='Master Input'!$D$7+'Master Input'!$G$7*'distance matrix'!I10*2 -> 71.580428 | J10: ='Master Input'!$D$7+'Master Input'!$G$7*'distance matrix'!J10*2 -> 34.172226
A11: Cheboygan | B11: ='Master Input'!$D$7+'Master Input'!$G$7*'distance matrix'!B11*2 -> 112.495484 | C11: ='Master Input'!$D$7+'Master Input'!$G$7*'distance matrix'!C11*2 -> 77.862002 | D11: ='Master Input'!$D$7+'Master Input'!$G$7*'distance matrix'!D11*2 -> 108.564882 | E11: ='Master Input'!$D$7+'Master Input'!$G$7*'distance matrix'!E11*2 -> 87.819326 | F11: ='Master Input'!$D$7+'Master Input'!$G$7*'distance matrix'!F11*2 -> 53.766424 | G11: 999 | H11: ='Master Input'!$D$7+'Master Input'!$G$7*'distance matrix'!H11*2 -> 97.40719 | I11: ='Master Input'!$D$7+'Master Input'!$G$7*'distance matrix'!I11*2 -> 102.292356 | J11: ='Master Input'!$D$7+'Master Input'!$G$7*'distance matrix'!J11*2 -> 56.656506
A12: Clare | B12: ='Master Input'!$D$7+'Master Input'!$G$7*'distance matrix'!B12*2 -> 68.333704 | C12: ='Master Input'!$D$7+'Master Input'!$G$7*'distance matrix'!C12*2 -> 61.11717 | D12: ='Master Input'!$D$7+'Master Input'!$G$7*'distance matrix'!D12*2 -> 82.376954 | E12: ='Master Input'!$D$7+'Master Input'!$G$7*'distance matrix'!E12*2 -> 77.168322 | F12: ='Master Input'!$D$7+'Master Input'!$G$7*'distance matrix'!F12*2 -> 85.212748 | G12: ='Master Input'!$D$7+'Master Input'!$G$7*'distance matrix'!G12*2 -> 37.191996 | H12: ='Master Input'!$D$7+'Master Input'!$G$7*'distance matrix'!H12*2 -> 63.57521 | I12: ='Master Input'!$D$7+'Master Input'!$G$7*'distance matrix'!I12*2 -> 93.73144 | J12: ='Master Input'!$D$7+'Master Input'!$G$7*'distance matrix'!J12*2 -> 96.288254
A13: Clinton | B13: 999 | C13: 999 | D13: 999 | E13: 999 | F13: 999 | G13: ='Master Input'!$D$7+'Master Input'!$G$7*'distance matrix'!G13*2 -> 78.36869 | H13: ='Master Input'!$D$7+'Master Input'!$G$7*'distance matrix'!H13*2 -> 107.579404 | I13: 999 | J13: 999
A14: Crawford | B14: ='Master Input'!$D$7+'Master Input'!$G$7*'distance matrix'!B14*2 -> 69.363668 | C14: ='Master Input'!$D$7+'Master Input'!$G$7*'distance matrix'!C14*2 -> 36.471926 | D14: ='Master Input'!$D$7+'Master Input'!$G$7*'distance matrix'!D14*2 -> 65.433066 | E14: ='Master Input'!$D$7+'Master Input'!$G$7*'distance matrix'!E14*2 -> 49.137618 | F14: ='Master Input'!$D$7+'Master Input'!$G$7*'distance matrix'!F14*2 -> 46.105784 | G14: ='Master Input'!$D$7+'Master Input'!$G$7*'distance matrix'!G14*2 -> 75.37154 | H14: ='Master Input'!$D$7+'Master Input'!$G$7*'distance matrix'!H14*2 -> 61.016134 | I14: ='Master Input'!$D$7+'Master Input'!$G$7*'distance matrix'!I14*2 -> 65.700736 | J14: ='Master Input'!$D$7+'Master Input'!$G$7*'distance matrix'!J14*2 -> 68.25755
A15: Eaton | B15: 999 | C15: 999 | D15: 999 | E15: 999 | F15: 999 | G15: ='Master Input'!$D$7+'Master Input'!$G$7*'distance matrix'!G15*2 -> 91.49583 | H15: 999 | I15: 999 | J15: 999
A16: Emmet | B16: ='Master Input'!$D$7+'Master Input'!$G$7*'distance matrix'!B16*2 -> 101.76154 | C16: ='Master Input'!$D$7+'Master Input'!$G$7*'distance matrix'!C16*2 -> 90.883582 | D16: ='Master Input'!$D$7+'Master Input'!$G$7*'distance matrix'!D16*2 -> 97.830938 | E16: ='Master Input'!$D$7+'Master Input'!$G$7*'distance matrix'!E16*2 -> 77.085382 | F16: ='Master Input'!$D$7+'Master Input'!$G$7*'distance matrix'!F16*2 -> 59.505872 | G16: 999 | H16: ='Master Input'!$D$7+'Master Input'!$G$7*'distance matrix'!H16*2 -> 115.42779 | I16: ='Master Input'!$D$7+'Master Input'!$G$7*'distance matrix'!I16*2 -> 91.558412 | J16: ='Master Input'!$D$7+'Master Input'!$G$7*'distance matrix'!J16*2 -> 45.922562
A17: Genesee | B17: 999 | C17: 999 | D17: 999 | E17: 999 | F17: 999 | G17: ='Master Input'!$D$7+'Master Input'!$G$7*'distance matrix'!G17*2 -> 107.628414 | H17: ='Master Input'!$D$7+'Master Input'!$G$7*'distance matrix'!H17*2 -> 111.83498 | I17: 999 | J17: 999
A18: Gladwin | B18: ='Master Input'!$D$7+'Master Input'!$G$7*'distance matrix'!B18*2 -> 85.161476 | C18: ='Master Input'!$D$7+'Master Input'!$G$7*'distance matrix'!C18*2 -> 59.58655 | D18: ='Master Input'!$D$7+'Master Input'!$G$7*'distance matrix'!D18*2 -> 99.204726 | E18: ='Master Input'!$D$7+'Master Input'!$G$7*'distance matrix'!E18*2 -> 93.996094 | F18: ='Master Input'!$D$7+'Master Input'!$G$7*'distance matrix'!F18*2 -> 90.96426 | G18: ='Master Input'!$D$7+'Master Input'!$G$7*'distance matrix'!G18*2 -> 48.422072 | H18: ='Master Input'!$D$7+'Master Input'!$G$7*'distance matrix'!H18*2 -> 45.877322 | I18: ='Master Input'!$D$7+'Master Input'!$G$7*'distance matrix'!I18*2 -> 110.559212 | J18: ='Master Input'!$D$7+'Master Input'!$G$7*'distance matrix'!J18*2 -> 113.116026
A19: Grand Traverse | B19: ='Master Input'!$D$7+'Master Input'!$G$7*'distance matrix'!B19*2 -> 44.998912 | C19: ='Master Input'!$D$7+'Master Input'!$G$7*'distance matrix'!C19*2 -> 70.573838 | D19: ='Master Input'!$D$7+'Master Input'!$G$7*'distance matrix'!D19*2 -> 30.955662 | E19: ='Master Input'!$D$7+'Master Input'!$G$7*'distance matrix'!E19*2 -> 42.962358 | F19: ='Master Input'!$D$7+'Master Input'!$G$7*'distance matrix'!F19*2 -> 77.01526 | G19: ='Master Input'!$D$7+'Master Input'!$G$7*'distance matrix'!G19*2 -> 99.324612 | H19: ='Master Input'!$D$7+'Master Input'!$G$7*'distance matrix'!H19*2 -> 95.118046 | I19: ='Master Input'!$D$7+'Master Input'!$G$7*'distance matrix'!I19*2 -> 31.598824 | J19: ='Master Input'!$D$7+'Master Input'!$G$7*'distance matrix'!J19*2 -> 74.125178
A20: Gratiot | B20: ='Master Input'!$D$7+'Master Input'!$G$7*'distance matrix'!B20*2 -> 114.099996 | C20: ='Master Input'!$D$7+'Master Input'!$G$7*'distance matrix'!C20*2 -> 88.52507 | D20: 999 | E20: 999 | F20: 999 | G20: ='Master Input'!$D$7+'Master Input'!$G$7*'distance matrix'!G20*2 -> 59.774296 | H20: ='Master Input'!$D$7+'Master Input'!$G$7*'distance matrix'!H20*2 -> 89.85965 | I20: 999 | J20: 999
A21: Huron | B21: 999 | C21: ='Master Input'!$D$7+'Master Input'!$G$7*'distance matrix'!C21*2 -> 118.044924 | D21: 999 | E21: 999 | F21: 999 | G21: ='Master Input'!$D$7+'Master Input'!$G$7*'distance matrix'!G21*2 -> 93.391386 | H21: ='Master Input'!$D$7+'Master Input'!$G$7*'distance matrix'!H21*2 -> 93.500716 | I21: 999 | J21: 999
A22: Ingham | B22: 999 | C22: 999 | D22: 999 | E22: 999 | F22: 999 | G22: ='Master Input'!$D$7+'Master Input'!$G$7*'distance matrix'!G22*2 -> 105.303078 | H22: 999 | I22: 999 | J22: 999
A23: Ionia | B23: 999 | C23: 999 | D23: 999 | E23: 999 | F23: 999 | G23: ='Master Input'!$D$7+'Master Input'!$G$7*'distance matrix'!G23*2 -> 82.743398 | H23: 999 | I23: 999 | J23: 999
A24: Iosco | B24: ='Master Input'!$D$7+'Master Input'!$G$7*'distance matrix'!B24*2 -> 93.187052 | C24: ='Master Input'!$D$7+'Master Input'!$G$7*'distance matrix'!C24*2 -> 67.612126 | D24: ='Master Input'!$D$7+'Master Input'!$G$7*'distance matrix'!D24*2 -> 107.230302 | E24: ='Master Input'!$D$7+'Master Input'!$G$7*'distance matrix'!E24*2 -> 102.02167 | F24: ='Master Input'!$D$7+'Master Input'!$G$7*'distance matrix'!F24*2 -> 98.989836 | G24: ='Master Input'!$D$7+'Master Input'!$G$7*'distance matrix'!G24*2 -> 95.813988 | H24: ='Master Input'!$D$7+'Master Input'!$G$7*'distance matrix'!H24*2 -> 52.714594 | I24: 999 | J24: ='Master Input'!$D$7+'Master Input'!$G$7*'distance matrix'!J24*2 -> 121.141602
A25: Isabella | B25: ='Master Input'!$D$7+'Master Input'!$G$7*'distance matrix'!B25*2 -> 86.697374 | C25: ='Master Input'!$D$7+'Master Input'!$G$7*'distance matrix'!C25*2 -> 78.89272 | D25: ='Master Input'!$D$7+'Master Input'!$G$7*'distance matrix'!D25*2 -> 100.740624 | E25: ='Master Input'!$D$7+'Master Input'!$G$7*'distance matrix'!E25*2 -> 95.531992 | F25: ='Master Input'!$D$7+'Master Input'!$G$7*'distance matrix'!F25*2 -> 102.988298 | G25: ='Master Input'!$D$7+'Master Input'!$G$7*'distance matrix'!G25*2 -> 38.251366 | H25: ='Master Input'!$D$7+'Master Input'!$G$7*'distance matrix'!H25*2 -> 81.35076 | I25: ='Master Input'!$D$7+'Master Input'!$G$7*'distance matrix'!I25*2 -> 112.09511 | J25: 999
A26: Kalkaska | B26: ='Master Input'!$D$7+'Master Input'!$G$7*'distance matrix'!B26*2 -> 51.3491 | C26: ='Master Input'!$D$7+'Master Input'!$G$7*'distance matrix'!C26*2 -> 54.094414 | D26: ='Master Input'!$D$7+'Master Input'!$G$7*'distance matrix'!D26*2 -> 47.418498 | E26: ='Master Input'!$D$7+'Master Input'!$G$7*'distance matrix'!E26*2 -> 31.51513 | F26: ='Master Input'!$D$7+'Master Input'!$G$7*'distance matrix'!F26*2 -> 58.57996 | G26: ='Master Input'!$D$7+'Master Input'!$G$7*'distance matrix'!G26*2 -> 82.845188 | H26: ='Master Input'!$D$7+'Master Input'!$G$7*'distance matrix'!H26*2 -> 78.638622 | I26: ='Master Input'!$D$7+'Master Input'!$G$7*'distance matrix'!I26*2 -> 48.078248 | J26: ='Master Input'!$D$7+'Master Input'!$G$7*'distance matrix'!J26*2 -> 55.689878
A27: Kent | B27: ='Master Input'!$D$7+'Master Input'!$G$7*'distance matrix'!B27*2 -> 102.556256 | C27: 999 | D27: 999 | E27: 999 | F27: 999 | G27: ='Master Input'!$D$7+'Master Input'!$G$7*'distance matrix'!G27*2 -> 96.548384 | H27: 999 | I27: 999 | J27: 999
A28: Lake | B28: ='Master Input'!$D$7+'Master Input'!$G$7*'distance matrix'!B28*2 -> 62.50076 | C28: ='Master Input'!$D$7+'Master Input'!$G$7*'distance matrix'!C28*2 -> 97.134242 | D28: ='Master Input'!$D$7+'Master Input'!$G$7*'distance matrix'!D28*2 -> 66.431362 | E28: ='Master Input'!$D$7+'Master Input'!$G$7*'distance matrix'!E28*2 -> 87.176918 | F28: ='Master Input'!$D$7+'Master Input'!$G$7*'distance matrix'!F28*2 -> 121.22982 | G28: ='Master Input'!$D$7+'Master Input'!$G$7*'distance matrix'!G28*2 -> 72.841116 | H28: ='Master Input'!$D$7+'Master Input'!$G$7*'distance matrix'!H28*2 -> 99.592282 | I28: ='Master Input'!$D$7+'Master Input'!$G$7*'distance matrix'!I28*2 -> 72.703888 | J28: ='Master Input'!$D$7+'Master Input'!$G$7*'distance matrix'!J28*2 -> 118.339738
A29: Lapeer | B29: 999 | C29: 999 | D29: 999 | E29: 999 | F29: 999 | G29: ='Master Input'!$D$7+'Master Input'!$G$7*'distance matrix'!G29*2 -> 121.894848 | H29: ='Master Input'!$D$7+'Master Input'!$G$7*'distance matrix'!H29*2 -> 126.101414 | I29: 999 | J29: 999
A30: Leelanau | B30: ='Master Input'!$D$7+'Master Input'!$G$7*'distance matrix'!B30*2 -> 68.367634 | C30: ='Master Input'!$D$7+'Master Input'!$G$7*'distance matrix'!C30*2 -> 93.94256 | D30: ='Master Input'!$D$7+'Master Input'!$G$7*'distance matrix'!D30*2 -> 54.324384 | E30: ='Master Input'!$D$7+'Master Input'!$G$7*'distance matrix'!E30*2 -> 59.533016 | F30: ='Master Input'!$D$7+'Master Input'!$G$7*'distance matrix'!F30*2 -> 72.390978 | G30: ='Master Input'!$D$7+'Master Input'!$G$7*'distance matrix'!G30*2 -> 122.693334 | H30: ='Master Input'!$D$7+'Master Input'!$G$7*'distance matrix'!H30*2 -> 118.486768 | I30: ='Master Input'!$D$7+'Master Input'!$G$7*'distance matrix'!I30*2 -> 42.969898 | J30: ='Master Input'!$D$7+'Master Input'!$G$7*'distance matrix'!J30*2 -> 69.500896
A31: Livingston | B31: 999 | C31: 999 | D31: 999 | E31: 999 | F31: 999 | G31: ='Master Input'!$D$7+'Master Input'!$G$7*'distance matrix'!G31*2 -> 122.34951 | H31: 999 | I31: 999 | J31: 999
A32: Manistee | B32: ='Master Input'!$D$7+'Master Input'!$G$7*'distance matrix'!B32*2 -> 54.241444 | C32: ='Master Input'!$D$7+'Master Input'!$G$7*'distance matrix'!C32*2 -> 88.874926 | D32: ='Master Input'!$D$7+'Master Input'!$G$7*'distance matrix'!D32*2 -> 58.172046 | E32: ='Master Input'!$D$7+'Master Input'!$G$7*'distance matrix'!E32*2 -> 78.917602 | F32: ='Master Input'!$D$7+'Master Input'!$G$7*'distance matrix'!F32*2 -> 112.970504 | G32: ='Master Input'!$D$7+'Master Input'!$G$7*'distance matrix'!G32*2 -> 100.255048 | H32: ='Master Input'!$D$7+'Master Input'!$G$7*'distance matrix'!H32*2 -> 96.048482 | I32: ='Master Input'!$D$7+'Master Input'!$G$7*'distance matrix'!I32*2 -> 64.444572 | J32: ='Master Input'!$D$7+'Master Input'!$G$7*'distance matrix'!J32*2 -> 110.080422
A33: Mason | B33: ='Master Input'!$D$7+'Master Input'!$G$7*'distance matrix'!B33*2 -> 79.072926 | C33: ='Master Input'!$D$7+'Master Input'!$G$7*'distance matrix'!C33*2 -> 113.706408 | D33: ='Master Input'!$D$7+'Master Input'!$G$7*'distance matrix'!D33*2 -> 83.003528 | E33: ='Master Input'!$D$7+'Master Input'!$G$7*'distance matrix'!E33*2 -> 103.749084 | F33: 999 | G33: ='Master Input'!$D$7+'Master Input'!$G$7*'distance matrix'!G33*2 -> 89.953146 | H33: 999 | I33: ='Master Input'!$D$7+'Master Input'!$G$7*'distance matrix'!I33*2 -> 89.276054 | J33: 999
A34: Mecosta | B34: ='Master Input'!$D$7+'Master Input'!$G$7*'distance matrix'!B34*2 -> 68.833606 | C34: ='Master Input'!$D$7+'Master Input'!$G$7*'distance matrix'!C34*2 -> 97.13952 | D34: ='Master Input'!$D$7+'Master Input'!$G$7*'distance matrix'!D34*2 -> 82.876856 | E34: ='Master Input'!$D$7+'Master Input'!$G$7*'distance matrix'!E34*2 -> 87.182196 | F34: 999 | G34: ='Master Input'!$D$7+'Master Input'!$G$7*'distance matrix'!G34*2 -> 56.498166 | H34: ='Master Input'!$D$7+'Master Input'!$G$7*'distance matrix'!H34*2 -> 99.59756 | I34: ='Master Input'!$D$7+'Master Input'!$G$7*'distance matrix'!I34*2 -> 94.231342 | J34: 999
A35: Midland | B35: ='Master Input'!$D$7+'Master Input'!$G$7*'distance matrix'!B35*2 -> 103.404506 | C35: ='Master Input'!$D$7+'Master Input'!$G$7*'distance matrix'!C35*2 -> 77.82958 | D35: ='Master Input'!$D$7+'Master Input'!$G$7*'distance matrix'!D35*2 -> 117.447756 | E35: ='Master Input'!$D$7+'Master Input'!$G$7*'distance matrix'!E35*2 -> 112.239124 | F35: ='Master Input'!$D$7+'Master Input'!$G$7*'distance matrix'!F35*2 -> 109.20729 | G35: ='Master Input'!$D$7+'Master Input'!$G$7*'distance matrix'!G35*2 -> 49.078806 | H35: ='Master Input'!$D$7+'Master Input'!$G$7*'distance matrix'!H35*2 -> 63.410084 | I35: ='Master Input'!$D$7+'Master Input'!$G$7*'distance matrix'!I35*2 -> 128.802242 | J35: 999
A36: Missaukee | B36: ='Master Input'!$D$7+'Master Input'!$G$7*'distance matrix'!B36*2 -> 40.793854 | C36: ='Master Input'!$D$7+'Master Input'!$G$7*'distance matrix'!C36*2 -> 52.52534 | D36: ='Master Input'!$D$7+'Master Input'!$G$7*'distance matrix'!D36*2 -> 54.837104 | E36: ='Master Input'!$D$7+'Master Input'!$G$7*'distance matrix'!E36*2 -> 49.628472 | F36: ='Master Input'!$D$7+'Master Input'!$G$7*'distance matrix'!F36*2 -> 76.620918 | G36: ='Master Input'!$D$7+'Master Input'!$G$7*'distance matrix'!G36*2 -> 64.731846 | H36: ='Master Input'!$D$7+'Master Input'!$G$7*'distance matrix'!H36*2 -> 60.52528 | I36: ='Master Input'!$D$7+'Master Input'!$G$7*'distance matrix'!I36*2 -> 66.19159 | J36: ='Master Input'!$D$7+'Master Input'!$G$7*'distance matrix'!J36*2 -> 73.730836
A37: Montcalm | B37: ='Master Input'!$D$7+'Master Input'!$G$7*'distance matrix'!B37*2 -> 92.618536 | C37: ='Master Input'!$D$7+'Master Input'!$G$7*'distance matrix'!C37*2 -> 107.546982 | D37: ='Master Input'!$D$7+'Master Input'!$G$7*'distance matrix'!D37*2 -> 106.661786 | E37: ='Master Input'!$D$7+'Master Input'!$G$7*'distance matrix'!E37*2 -> 101.453154 | F37: 999 | G37: ='Master Input'!$D$7+'Master Input'!$G$7*'distance matrix'!G37*2 -> 66.905628 | H37: ='Master Input'!$D$7+'Master Input'!$G$7*'distance matrix'!H37*2 -> 110.005022 | I37: 999 | J37: 999
A38: Montmorency | B38: ='Master Input'!$D$7+'Master Input'!$G$7*'distance matrix'!B38*2 -> 105.144738 | C38: ='Master Input'!$D$7+'Master Input'!$G$7*'distance matrix'!C38*2 -> 70.511256 | D38: ='Master Input'!$D$7+'Master Input'!$G$7*'distance matrix'!D38*2 -> 101.214136 | E38: ='Master Input'!$D$7+'Master Input'!$G$7*'distance matrix'!E38*2 -> 80.46858 | F38: ='Master Input'!$D$7+'Master Input'!$G$7*'distance matrix'!F38*2 -> 46.415678 | G38: ='Master Input'!$D$7+'Master Input'!$G$7*'distance matrix'!G38*2 -> 111.15261 | H38: ='Master Input'!$D$7+'Master Input'!$G$7*'distance matrix'!H38*2 -> 68.053216 | I38: ='Master Input'!$D$7+'Master Input'!$G$7*'distance matrix'!I38*2 -> 94.94161 | J38: ='Master Input'!$D$7+'Master Input'!$G$7*'distance matrix'!J38*2 -> 67.523908
A39: Muskegon | B39: ='Master Input'!$D$7+'Master Input'!$G$7*'distance matrix'!B39*2 -> 112.089832 | C39: 999 | D39: ='Master Input'!$D$7+'Master Input'!$G$7*'distance matrix'!D39*2 -> 116.020434 | E39: 999 | F39: 999 | G39: ='Master Input'!$D$7+'Master Input'!$G$7*'distance matrix'!G39*2 -> 106.08196 | H39: 999 | I39: 999 | J39: 999
A40: Newaygo | B40: ='Master Input'!$D$7+'Master Input'!$G$7*'distance matrix'!B40*2 -> 85.108696 | C40: ='Master Input'!$D$7+'Master Input'!$G$7*'distance matrix'!C40*2 -> 119.742178 | D40: ='Master Input'!$D$7+'Master Input'!$G$7*'distance matrix'!D40*2 -> 89.039298 | E40: ='Master Input'!$D$7+'Master Input'!$G$7*'distance matrix'!E40*2 -> 109.784854 | F40: 999 | G40: ='Master Input'!$D$7+'Master Input'!$G$7*'distance matrix'!G40*2 -> 79.100824 | H40: ='Master Input'!$D$7+'Master Input'!$G$7*'distance matrix'!H40*2 -> 122.200218 | I40: ='Master Input'!$D$7+'Master Input'!$G$7*'distance matrix'!I40*2 -> 95.311824 | J40: 999
A41: Oceana | B41: ='Master Input'!$D$7+'Master Input'!$G$7*'distance matrix'!B41*2 -> 98.227542 | C41: 999 | D41: ='Master Input'!$D$7+'Master Input'!$G$7*'distance matrix'!D41*2 -> 102.158144 | E41: ='Master Input'!$D$7+'Master Input'!$G$7*'distance matrix'!E41*2 -> 122.9037 | F41: 999 | G41: ='Master Input'!$D$7+'Master Input'!$G$7*'distance matrix'!G41*2 -> 92.21967 | H41: 999 | I41: ='Master Input'!$D$7+'Master Input'!$G$7*'distance matrix'!I41*2 -> 108.43067 | J41: 999
A42: Ogemaw | B42: ='Master Input'!$D$7+'Master Input'!$G$7*'distance matrix'!B42*2 -> 76.467102 | C42: ='Master Input'!$D$7+'Master Input'!$G$7*'distance matrix'!C42*2 -> 50.892176 | D42: ='Master Input'!$D$7+'Master Input'!$G$7*'distance matrix'!D42*2 -> 90.510352 | E42: ='Master Input'!$D$7+'Master Input'!$G$7*'distance matrix'!E42*2 -> 85.30172 | F42: ='Master Input'!$D$7+'Master Input'!$G$7*'distance matrix'!F42*2 -> 82.269886 | G42: ='Master Input'!$D$7+'Master Input'!$G$7*'distance matrix'!G42*2 -> 75.969462 | H42: ='Master Input'!$D$7+'Master Input'!$G$7*'distance matrix'!H42*2 -> 32.870068 | I42: ='Master Input'!$D$7+'Master Input'!$G$7*'distance matrix'!I42*2 -> 101.864838 | J42: ='Master Input'!$D$7+'Master Input'!$G$7*'distance matrix'!J42*2 -> 104.421652
A43: Osceola | B43: ='Master Input'!$D$7+'Master Input'!$G$7*'distance matrix'!B43*2 -> 50.497834 | C43: ='Master Input'!$D$7+'Master Input'!$G$7*'distance matrix'!C43*2 -> 79.153604 | D43: ='Master Input'!$D$7+'Master Input'!$G$7*'distance matrix'!D43*2 -> 64.541084 | E43: ='Master Input'!$D$7+'Master Input'!$G$7*'distance matrix'!E43*2 -> 69.19628 | F43: ='Master Input'!$D$7+'Master Input'!$G$7*'distance matrix'!F43*2 -> 103.249182 | G43: ='Master Input'!$D$7+'Master Input'!$G$7*'distance matrix'!G43*2 -> 55.027866 | H43: ='Master Input'!$D$7+'Master Input'!$G$7*'distance matrix'!H43*2 -> 81.611644 | I43: ='Master Input'!$D$7+'Master Input'!$G$7*'distance matrix'!I43*2 -> 75.89557 | J43: ='Master Input'!$D$7+'Master Input'!$G$7*'distance matrix'!J43*2 -> 100.3591
A44: Oscoda | B44: ='Master Input'!$D$7+'Master Input'!$G$7*'distance matrix'!B44*2 -> 87.467962 | C44: ='Master Input'!$D$7+'Master Input'!$G$7*'distance matrix'!C44*2 -> 52.83448 | D44: ='Master Input'!$D$7+'Master Input'!$G$7*'distance matrix'!D44*2 -> 83.53736 | E44: ='Master Input'!$D$7+'Master Input'!$G$7*'distance matrix'!E44*2 -> 66.720144 | F44: ='Master Input'!$D$7+'Master Input'!$G$7*'distance matrix'!F44*2 -> 63.68831 | G44: ='Master Input'!$D$7+'Master Input'!$G$7*'distance matrix'!G44*2 -> 93.475834 | H44: ='Master Input'!$D$7+'Master Input'!$G$7*'distance matrix'!H44*2 -> 50.37644 | I44: ='Master Input'!$D$7+'Master Input'!$G$7*'distance matrix'!I44*2 -> 83.283262 | J44: ='Master Input'!$D$7+'Master Input'!$G$7*'distance matrix'!J44*2 -> 85.840076
A45: Otsego | B45: ='Master Input'!$D$7+'Master Input'!$G$7*'distance matrix'!B45*2 -> 87.068342 | C45: ='Master Input'!$D$7+'Master Input'!$G$7*'distance matrix'!C45*2 -> 53.944368 | D45: ='Master Input'!$D$7+'Master Input'!$G$7*'distance matrix'!D45*2 -> 83.13774 | E45: ='Master Input'!$D$7+'Master Input'!$G$7*'distance matrix'!E45*2 -> 62.392184 | F45: ='Master Input'!$D$7+'Master Input'!$G$7*'distance matrix'!F45*2 -> 28.633342 | G45: ='Master Input'!$D$7+'Master Input'!$G$7*'distance matrix'!G45*2 -> 93.076214 | H45: ='Master Input'!$D$7+'Master Input'!$G$7*'distance matrix'!H45*2 -> 78.488576 | I45: ='Master Input'!$D$7+'Master Input'!$G$7*'distance matrix'!I45*2 -> 76.865214 | J45: ='Master Input'!$D$7+'Master Input'!$G$7*'distance matrix'!J45*2 -> 50.785108
A46: Ottawa | B46: 999 | C46: 999 | D46: 999 | E46: 999 | F46: 999 | G46: ='Master Input'!$D$7+'Master Input'!$G$7*'distance matrix'!G46*2 -> 117.407794 | H46: 999 | I46: 999 | J46: 999
A47: Presque Isle | B47: ='Master Input'!$D$7+'Master Input'!$G$7*'distance matrix'!B47*2 -> 128.9357 | C47: ='Master Input'!$D$7+'Master Input'!$G$7*'distance matrix'!C47*2 -> 94.302218 | D47: ='Master Input'!$D$7+'Master Input'!$G$7*'distance matrix'!D47*2 -> 125.005098 | E47: ='Master Input'!$D$7+'Master Input'!$G$7*'distance matrix'!E47*2 -> 104.259542 | F47: ='Master Input'!$D$7+'Master Input'!$G$7*'distance matrix'!F47*2 -> 70.20664 | G47: 999 | H47: ='Master Input'!$D$7+'Master Input'!$G$7*'distance matrix'!H47*2 -> 91.844178 | I47: ='Master Input'!$D$7+'Master Input'!$G$7*'distance matrix'!I47*2 -> 118.732572 | J47: ='Master Input'!$D$7+'Master Input'!$G$7*'distance matrix'!J47*2 -> 73.096722
A48: Roscommon | B48: ='Master Input'!$D$7+'Master Input'!$G$7*'distance matrix'!B48*2 -> 58.673456 | C48: ='Master Input'!$D$7+'Master Input'!$G$7*'distance matrix'!C48*2 -> 34.318502 | D48: ='Master Input'!$D$7+'Master Input'!$G$7*'distance matrix'!D48*2 -> 72.716706 | E48: ='Master Input'!$D$7+'Master Input'!$G$7*'distance matrix'!E48*2 -> 67.508074 | F48: ='Master Input'!$D$7+'Master Input'!$G$7*'distance matrix'!F48*2 -> 64.47624 | G48: ='Master Input'!$D$7+'Master Input'!$G$7*'distance matrix'!G48*2 -> 57.522852 | H48: ='Master Input'!$D$7+'Master Input'!$G$7*'distance matrix'!H48*2 -> 42.645678 | I48: ='Master Input'!$D$7+'Master Input'!$G$7*'distance matrix'!I48*2 -> 84.071192 | J48: ='Master Input'!$D$7+'Master Input'!$G$7*'distance matrix'!J48*2 -> 86.628006
A49: Saginaw | B49: 999 | C49: ='Master Input'!$D$7+'Master Input'!$G$7*'distance matrix'!C49*2 -> 106.807308 | D49: 999 | E49: 999 | F49: 999 | G49: ='Master Input'!$D$7+'Master Input'!$G$7*'distance matrix'!G49*2 -> 78.056534 | H49: ='Master Input'!$D$7+'Master Input'!$G$7*'distance matrix'!H49*2 -> 82.2631 | I49: 999 | J49: 999
A50: Sanilac | B50: 999 | C50: 999 | D50: 999 | E50: 999 | F50: 999 | G50: 999 | H50: ='Master Input'!$D$7+'Master Input'!$G$7*'distance matrix'!H50*2 -> 122.871278 | I50: 999 | J50: 999
A51: Shiawassee | B51: 999 | C51: 999 | D51: 999 | E51: 999 | F51: 999 | G51: ='Master Input'!$D$7+'Master Input'!$G$7*'distance matrix'!G51*2 -> 94.871488 | H51: ='Master Input'!$D$7+'Master Input'!$G$7*'distance matrix'!H51*2 -> 99.078054 | I51: 999 | J51: 999
A52: Tuscola | B52: 999 | C52: ='Master Input'!$D$7+'Master Input'!$G$7*'distance matrix'!C52*2 -> 123.389276 | D52: 999 | E52: 999 | F52: 999 | G52: ='Master Input'!$D$7+'Master Input'!$G$7*'distance matrix'!G52*2 -> 94.638502 | H52: ='Master Input'!$D$7+'Master Input'!$G$7*'distance matrix'!H52*2 -> 98.845068 | I52: 999 | J52: 999
A53: Wexford | B53: ='Master Input'!$D$7+'Master Input'!$G$7*'distance matrix'!B53*2 -> 36.051948 | C53: ='Master Input'!$D$7+'Master Input'!$G$7*'distance matrix'!C53*2 -> 70.68543 | D53: ='Master Input'!$D$7+'Master Input'!$G$7*'distance matrix'!D53*2 -> 39.98255 | E53: ='Master Input'!$D$7+'Master Input'!$G$7*'distance matrix'!E53*2 -> 60.728106 | F53: ='Master Input'!$D$7+'Master Input'!$G$7*'distance matrix'!F53*2 -> 94.781008 | G53: ='Master Input'!$D$7+'Master Input'!$G$7*'distance matrix'!G53*2 -> 82.704944 | H53: ='Master Input'!$D$7+'Master Input'!$G$7*'distance matrix'!H53*2 -> 78.498378 | I53: ='Master Input'!$D$7+'Master Input'!$G$7*'distance matrix'!I53*2 -> 48.218492 | J53: ='Master Input'!$D$7+'Master Input'!$G$7*'distance matrix'!J53*2 -> 91.890926

Sheet distance matrix
A1: County (supplier) | B1: Rectilinear Distance (miles)
B2: Manton | C2: Roscommon | D2: Kingsley | E2: Kalkaska | F2: Gaylord | G2: Clare | H2: West Branch | I2: Traverse City | J2: Boyne City
A3: Alcona | B3: 109.381 | C3: 63.45 | D3: 104.168 | E3: 79.972 | F3: 75.951 | G3: 117.349 | H3: 60.188 | I3: 101.939 | J3: 105.33
A4: Alpena | B4: 131.073 | C4: 85.14 | D4: 125.86 | E4: 98.346 | F4: 53.183 | G4: 0 | H4: 81.88 | I4: 117.541 | J4: 78.894
A5: Antrim | B5: 53.136 | C5: 62.159 | D5: 47.923 | E5: 20.409 | F5: 24.754 | G5: 100.29 | H5: 94.711 | I5: 39.604 | J5: 20.921
A6: Arenac | B6: 97.706 | C6: 63.787 | D6: 116.331 | E6: 109.423 | F6: 105.402 | G6: 60.428 | H6: 31.235 | I6: 131.39 | J6: 134.781
A7: Barry | B7: 0 | C7: 0 | D7: 0 | E7: 0 | F7: 0 | G7: 111.732 | H7: 0 | I7: 0 | J7: 0
A8: Bay | B8: 118.366 | C8: 84.447 | D8: 136.991 | E8: 130.083 | F8: 126.062 | G8: 46.316 | H8: 51.895 | I8: 0 | J8: 0
A9: Benzie | B9: 46.018 | C9: 79.937 | D9: 27.393 | E9: 47.561 | F9: 92.724 | G9: 118.068 | H9: 112.489 | I9: 28.366 | J9: 88.891
A10: Charlevoix | B10: 74.514 | C10: 82.363 | D10: 69.301 | E10: 41.787 | F10: 40.748 | G10: 0 | H10: 114.915 | I10: 60.982 | J10: 11.369
A11: Cheboygan | B11: 115.246 | C11: 69.313 | D11: 110.033 | E11: 82.519 | F11: 37.356 | G11: 0 | H11: 95.235 | I11: 101.714 | J11: 41.189
A12: Clare | B12: 56.676 | C12: 47.105 | D12: 75.301 | E12: 68.393 | F12: 79.062 | G12: 15.374 | H12: 50.365 | I12: 90.36 | J12: 93.751
A13: Clinton | B13: 0 | C13: 0 | D13: 0 | E13: 0 | F13: 0 | G13: 69.985 | H13: 108.726 | I13: 0 | J13: 0
A14: Crawford | B14: 58.042 | C14: 14.419 | D14: 52.829 | E14: 31.217 | F14: 27.196 | G14: 66.01 | H14: 46.971 | I14: 53.184 | J14: 56.575
A15: Eaton | B15: 0 | C15: 0 | D15: 0 | E15: 0 | F15: 0 | G15: 87.395 | H15: 0 | I15: 0 | J15: 0
A16: Emmet | B16: 101.01 | C16: 86.583 | D16: 95.797 | E16: 68.283 | F16: 44.968 | G16: 0 | H16: 119.135 | I16: 87.478 | J16: 26.953
A17: Genesee | B17: 0 | C17: 0 | D17: 0 | E17: 0 | F17: 0 | G17: 108.791 | H17: 114.37 | I17: 0 | J17: 0
A18: Gladwin | B18: 78.994 | C18: 45.075 | D18: 97.619 | E18: 90.711 | F18: 86.69 | G18: 30.268 | H18: 26.893 | I18: 112.678 | J18: 116.069
A19: Grand Traverse | B19: 25.728 | C19: 59.647 | D19: 7.103 | E19: 23.027 | F19: 68.19 | G19: 97.778 | H19: 92.199 | I19: 7.956 | J19: 64.357
A20: Gratiot | B20: 117.374 | C20: 83.455 | D20: 0 | E20: 0 | F20: 0 | G20: 45.324 | H20: 85.225 | I20: 0 | J20: 0
A21: Huron | B21: 0 | C21: 122.606 | D21: 0 | E21: 0 | F21: 0 | G21: 89.909 | H21: 90.054 | I21: 0 | J21: 0
A22: Ingham | B22: 0 | C22: 0 | D22: 0 | E22: 0 | F22: 0 | G22: 105.707 | H22: 0 | I22: 0 | J22: 0
A23: Ionia | B23: 0 | C23: 0 | D23: 0 | E23: 0 | F23: 0 | G23: 75.787 | H23: 0 | I23: 0 | J23: 0
A24: Iosco | B24: 89.638 | C24: 55.719 | D24: 108.263 | E24: 101.355 | F24: 97.334 | G24: 93.122 | H24: 35.961 | I24: 0 | J24: 126.713
A25: Isabella | B25: 81.031 | C25: 70.68 | D25: 99.656 | E25: 92.748 | F25: 102.637 | G25: 16.779 | H25: 73.94 | I25: 114.715 | J25: 0
A26: Kalkaska | B26: 34.15 | C26: 37.791 | D26: 28.937 | E26: 7.845 | F26: 43.74 | G26: 75.922 | H26: 70.343 | I26: 29.812 | J26: 39.907
A27: Kent | B27: 102.064 | C27: 0 | D27: 0 | E27: 0 | F27: 0 | G27: 94.096 | H27: 0 | I27: 0 | J27: 0
A28: Lake | B28: 48.94 | C28: 94.873 | D28: 54.153 | E28: 81.667 | F28: 126.83 | G28: 62.654 | H28: 98.133 | I28: 62.472 | J28: 122.997
A29: Lapeer | B29: 0 | C29: 0 | D29: 0 | E29: 0 | F29: 0 | G29: 127.712 | H29: 133.291 | I29: 0 | J29: 0
A30: Leelanau | B30: 56.721 | C30: 90.64 | D30: 38.096 | E30: 45.004 | F30: 62.057 | G30: 128.771 | H30: 123.192 | I30: 23.037 | J30: 58.224
A31: Livingston | B31: 0 | C31: 0 | D31: 0 | E31: 0 | F31: 0 | G31: 128.315 | H31: 0 | I31: 0 | J31: 0
A32: Manistee | B32: 37.986 | C32: 83.919 | D32: 43.199 | E32: 70.713 | F32: 115.876 | G32: 99.012 | H32: 93.433 | I32: 51.518 | J32: 112.043
A33: Mason | B33: 70.919 | C33: 116.852 | D33: 76.132 | E33: 103.646 | F33: 0 | G33: 85.349 | H33: 0 | I33: 84.451 | J33: 0
A34: Mecosta | B34: 57.339 | C34: 94.88 | D34: 75.964 | E34: 81.674 | F34: 0 | G34: 40.979 | H34: 98.14 | I34: 91.023 | J34: 0
A35: Midland | B35: 103.189 | C35: 69.27 | D35: 121.814 | E35: 114.906 | F35: 110.885 | G35: 31.139 | H35: 50.146 | I35: 136.873 | J35: 0
A36: Missaukee | B36: 20.151 | C36: 35.71 | D36: 38.776 | E36: 31.868 | F36: 67.667 | G36: 51.899 | H36: 46.32 | I36: 53.835 | J36: 63.834
A37: Montcalm | B37: 88.884 | C37: 108.683 | D37: 107.509 | E37: 100.601 | F37: 0 | G37: 54.782 | H37: 111.943 | I37: 0 | J37: 0
A38: Montmorency | B38: 105.497 | C38: 59.564 | D38: 100.284 | E38: 72.77 | F38: 27.607 | G38: 113.465 | H38: 56.304 | I38: 91.965 | J38: 55.602
A39: Muskegon | B39: 114.708 | C39: 0 | D39: 119.921 | E39: 0 | F39: 0 | G39: 106.74 | H39: 0 | I39: 0 | J39: 0
A40: Newaygo | B40: 78.924 | C40: 124.857 | D40: 84.137 | E40: 111.651 | F40: 0 | G40: 70.956 | H40: 128.117 | I40: 92.456 | J40: 0
A41: Oceana | B41: 96.323 | C41: 0 | D41: 101.536 | E41: 129.05 | F41: 0 | G41: 88.355 | H41: 0 | I41: 109.855 | J41: 0
A42: Ogemaw | B42: 67.463 | C42: 33.544 | D42: 86.088 | E42: 79.18 | F42: 75.159 | G42: 66.803 | H42: 9.642 | I42: 101.147 | J42: 104.538
A43: Osceola | B43: 33.021 | C43: 71.026 | D43: 51.646 | E43: 57.82 | F43: 102.983 | G43: 39.029 | H43: 74.286 | I43: 66.705 | J43: 99.15
A44: Oscoda | B44: 82.053 | C44: 36.12 | D44: 76.84 | E44: 54.536 | F44: 50.515 | G44: 90.021 | H44: 32.86 | I44: 76.503 | J44: 79.894
A45: Otsego | B45: 81.523 | C45: 37.592 | D45: 76.31 | E45: 48.796 | F45: 4.023 | G45: 89.491 | H45: 70.144 | I45: 67.991 | J45: 33.402
A46: Ottawa | B46: 0 | C46: 0 | D46: 0 | E46: 0 | F46: 0 | G46: 121.761 | H46: 0 | I46: 0 | J46: 0
A47: Presque Isle | B47: 137.05 | C47: 91.117 | D47: 131.837 | E47: 104.323 | F47: 59.16 | G47: 0 | H47: 87.857 | I47: 123.518 | J47: 62.993
A48: Roscommon | B48: 43.864 | C48: 11.563 | D48: 62.489 | E48: 55.581 | F48: 51.56 | G48: 42.338 | H48: 22.607 | I48: 77.548 | J48: 80.939
A49: Saginaw | B49: 0 | C49: 107.702 | D49: 0 | E49: 0 | F49: 0 | G49: 69.571 | H49: 75.15 | I49: 0 | J49: 0
A50: Sanilac | B50: 0 | C50: 0 | D50: 0 | E50: 0 | F50: 0 | G50: 0 | H50: 129.007 | I50: 0 | J50: 0
A51: Shiawassee | B51: 0 | C51: 0 | D51: 0 | E51: 0 | F51: 0 | G51: 91.872 | H51: 97.451 | I51: 0 | J51: 0
A52: Tuscola | B52: 0 | C52: 129.694 | D52: 0 | E52: 0 | F52: 0 | G52: 91.563 | H52: 97.142 | I52: 0 | J52: 0
A53: Wexford | B53: 13.862 | C53: 59.795 | D53: 19.075 | E53: 46.589 | F53: 91.752 | G53: 75.736 | H53: 70.157 | I53: 29.998 | J53: 87.919

Sheet Federal
A1: County code and name | B1: LP/UP | C1: N/S or E/W | D1: Total | E1: Softwoods | F1: Hardwoods | G1: soft_avail | H1: hard_avail | I1: soft_vol_avail | J1: hard_vol_avail | K1: soft_GT_avail | L1: hard_GT_avail | M1: soft_GT_avail (Residue) | N1: soft_GT_avail(Roundwood) | O1: hard_GT_avail (Residue) | P1: hard_GT_avail(Roundwood)
A2: 26001 MI Alcona | B2: LP | C2: N | D2: =SUM(E2:F2) -> 3610146 | E2: ='Master Input'!Q3 -> 1182724 | F2: ='Master Input'!R3 -> 2427422 | G2: ='Master Input'!$D$10 -> 0.9328821913 | H2: ='Master Input'!$D$12 -> 0.9095971683 | I2: =G2*E2 -> 1103342.157 | J2: =H2*F2 -> 2207976.177 | K2: =I2*28.3/0.55/2000 -> 28385.98458 | L2: =J2*41.5/0.55/2000 -> 83300.91942 | M2: =K2*'Master Input'!$F$10 -> 0 | N2: =K2*'Master Input'!$G$10 -> 28385.98458 | O2: =L2*'Master Input'!$F$12 -> 0 | P2: =L2*'Master Input'!$G$12 -> 83300.91942
A3: 26007 MI Alpena | B3: LP | C3: N | D3: =SUM(E3:F3) -> 0 | E3: ='Master Input'!Q4 -> 0 | F3: ='Master Input'!R4 -> 0 | G3: ='Master Input'!$D$10 -> 0.9328821913 | H3: ='Master Input'!$D$12 -> 0.9095971683 | I3: 0 | J3: 0 | K3: 0 | L3: 0 | M3: =K3*'Master Input'!$F$10 -> 0 | N3: =K3*'Master Input'!$G$10 -> 0 | O3: =L3*'Master Input'!$F$12 -> 0 | P3: =L3*'Master Input'!$G$12 -> 0
A4: 26009 MI Antrim | B4: LP | C4: N | D4: 0 | E4: ='Master Input'!Q5 -> 0 | F4: ='Master Input'!R5 -> 0 | G4: ='Master Input'!$D$10 -> 0.9328821913 | H4: ='Master Input'!$D$12 -> 0.9095971683 | I4: 0 | J4: 0 | K4: 0 | L4: 0 | M4: =K4*'Master Input'!$F$10 -> 0 | N4: =K4*'Master Input'!$G$10 -> 0 | O4: =L4*'Master Input'!$F$12 -> 0 | P4: =L4*'Master Input'!$G$12 -> 0
A5: 26011 MI Arenac | B5: LP | C5: N | D5: 0 | E5: ='Master Input'!Q6 -> 0 | F5: ='Master Input'!R6 -> 0 | G5: ='Master Input'!$D$10 -> 0.9328821913 | H5: ='Master Input'!$D$12 -> 0.9095971683 | I5: 0 | J5: 0 | K5: 0 | L5: 0 | M5: =K5*'Master Input'!$F$10 -> 0 | N5: =K5*'Master Input'!$G$10 -> 0 | O5: =L5*'Master Input'!$F$12 -> 0 | P5: =L5*'Master Input'!$G$12 -> 0
A6: 26015 MI Barry | B6: LP | C6: S | D6: 0 | E6: ='Master Input'!Q7 -> 0 | F6: ='Master Input'!R7 -> 0 | G6: ='Master Input'!$D$11 -> 0.9328821913 | H6: ='Master Input'!$D$13 -> 0.9095971683 | I6: 0 | J6: 0 | K6: 0 | L6: 0 | M6: =K6*'Master Input'!$F$11 -> 0 | N6: =K6*'Master Input'!$G$11 -> 0 | O6: =L6*'Master Input'!$F$13 -> 0 | P6: =L6*'Master Input'!$G$13 -> 0
A7: 26017 MI Bay | B7: LP | C7: N | D7: 0 | E7: ='Master Input'!Q8 -> 0 | F7: ='Master Input'!R8 -> 0 | G7: ='Master Input'!$D$10 -> 0.9328821913 | H7: ='Master Input'!$D$12 -> 0.9095971683 | I7: 0 | J7: 0 | K7: 0 | L7: 0 | M7: =K7*'Master Input'!$F$10 -> 0 | N7: =K7*'Master Input'!$G$10 -> 0 | O7: =L7*'Master Input'!$F$12 -> 0 | P7: =L7*'Master Input'!$G$12 -> 0
A8: 26019 MI Benzie | B8: LP | C8: N | D8: 0 | E8: ='Master Input'!Q9 -> 0 | F8: ='Master Input'!R9 -> 0 | G8: ='Master Input'!$D$10 -> 0.9328821913 | H8: ='Master Input'!$D$12 -> 0.9095971683 | I8: 0 | J8: 0 | K8: 0 | L8: 0 | M8: =K8*'Master Input'!$F$10 -> 0 | N8: =K8*'Master Input'!$G$10 -> 0 | O8: =L8*'Master Input'!$F$12 -> 0 | P8: =L8*'Master Input'!$G$12 -> 0
A9: 26029 MI Charlevoix | B9: LP | C9: N | D9: 0 | E9: ='Master Input'!Q10 -> 0 | F9: ='Master Input'!R10 -> 0 | G9: ='Master Input'!$D$10 -> 0.9328821913 | H9: ='Master Input'!$D$12 -> 0.9095971683 | I9: 0 | J9: 0 | K9: 0 | L9: 0 | M9: =K9*'Master Input'!$F$10 -> 0 | N9: =K9*'Master Input'!$G$10 -> 0 | O9: =L9*'Master Input'!$F$12 -> 0 | P9: =L9*'Master Input'!$G$12 -> 0
A10: 26031 MI Cheboygan | B10: LP | C10: N | D10: 0 | E10: ='Master Input'!Q11 -> 0 | F10: ='Master Input'!R11 -> 0 | G10: ='Master Input'!$D$10 -> 0.9328821913 | H10: ='Master Input'!$D$12 -> 0.9095971683 | I10: 0 | J10: 0 | K10: 0 | L10: 0 | M10: =K10*'Master Input'!$F$10 -> 0 | N10: =K10*'Master Input'!$G$10 -> 0 | O10: =L10*'Master Input'!$F$12 -> 0 | P10: =L10*'Master Input'!$G$12 -> 0
A11: 26035 MI Clare | B11: LP | C11: N | D11: 0 | E11: ='Master Input'!Q12 -> 0 | F11: ='Master Input'!R12 -> 0 | G11: ='Master Input'!$D$10 -> 0.9328821913 | H11: ='Master Input'!$D$12 -> 0.9095971683 | I11: 0 | J11: 0 | K11: 0 | L11: 0 | M11: =K11*'Master Input'!$F$10 -> 0 | N11: =K11*'Master Input'!$G$10 -> 0 | O11: =L11*'Master Input'!$F$12 -> 0 | P11: =L11*'Master Input'!$G$12 -> 0
A12: 26037 MI Clinton | B12: LP | C12: S | D12: 0 | E12: ='Master Input'!Q13 -> 0 | F12: ='Master Input'!R13 -> 0 | G12: ='Master Input'!$D$11 -> 0.9328821913 | H12: ='Master Input'!$D$13 -> 0.9095971683 | I12: 0 | J12: 0 | K12: 0 | L12: 0 | M12: =K12*'Master Input'!$F$11 -> 0 | N12: =K12*'Master Input'!$G$11 -> 0 | O12: =L12*'Master Input'!$F$13 -> 0 | P12: =L12*'Master Input'!$G$13 -> 0
A13: 26039 MI Crawford | B13: LP | C13: N | D13: 1529259 | E13: ='Master Input'!Q14 -> 590142 | F13: ='Master Input'!R14 -> 939117 | G13: ='Master Input'!$D$10 -> 0.9328821913 | H13: ='Master Input'!$D$12 -> 0.9095971683 | I13: 550532.9621 | J13: 854218.1639 | K13: 14163.71166 | L13: 32227.32164 | M13: =K13*'Master Input'!$F$10 -> 0 | N13: =K13*'Master Input'!$G$10 -> 14163.71166 | O13: =L13*'Master Input'!$F$12 -> 0 | P13: =L13*'Master Input'!$G$12 -> 32227.32164
A14: 26045 MI Eaton | B14: LP | C14: N | D14: 0 | E14: ='Master Input'!Q15 -> 0 | F14: ='Master Input'!R15 -> 0 | G14: ='Master Input'!$D$10 -> 0.9328821913 | H14: ='Master Input'!$D$12 -> 0.9095971683 | I14: 0 | J14: 0 | K14: 0 | L14: 0 | M14: =K14*'Master Input'!$F$10 -> 0 | N14: =K14*'Master Input'!$G$10 -> 0 | O14: =L14*'Master Input'!$F$12 -> 0 | P14: =L14*'Master Input'!$G$12 -> 0
A15: 26047 MI Emmet | B15: LP | C15: N | D15: 0 | E15: ='Master Input'!Q16 -> 0 | F15: ='Master Input'!R16 -> 0 | G15: ='Master Input'!$D$10 -> 0.9328821913 | H15: ='Master Input'!$D$12 -> 0.9095971683 | I15: 0 | J15: 0 | K15: 0 | L15: 0 | M15: =K15*'Master Input'!$F$10 -> 0 | N15: =K15*'Master Input'!$G$10 -> 0 | O15: =L15*'Master Input'!$F$12 -> 0 | P15: =L15*'Master Input'!$G$12 -> 0
A16: 26049 MI Genesee | B16: LP | C16: S | D16: 0 | E16: ='Master Input'!Q17 -> 0 | F16: ='Master Input'!R17 -> 0 | G16: ='Master Input'!$D$11 -> 0.9328821913 | H16: ='Master Input'!$D$13 -> 0.9095971683 | I16: 0 | J16: 0 | K16: 0 | L16: 0 | M16: =K16*'Master Input'!$F$11 -> 0 | N16: =K16*'Master Input'!$G$11 -> 0 | O16: =L16*'Master Input'!$F$13 -> 0 | P16: =L16*'Master Input'!$G$13 -> 0
A17: 26051 MI Gladwin | B17: LP | C17: N | D17: 0 | E17: ='Master Input'!Q18 -> 0 | F17: ='Master Input'!R18 -> 0 | G17: ='Master Input'!$D$10 -> 0.9328821913 | H17: ='Master Input'!$D$12 -> 0.9095971683 | I17: 0 | J17: 0 | K17: 0 | L17: 0 | M17: =K17*'Master Input'!$F$10 -> 0 | N17: =K17*'Master Input'!$G$10 -> 0 | O17: =L17*'Master Input'!$F$12 -> 0 | P17: =L17*'Master Input'!$G$12 -> 0
A18: 26055 MI Grand Traverse | B18: LP | C18: N | D18: 0 | E18: ='Master Input'!Q19 -> 0 | F18: ='Master Input'!R19 -> 0 | G18: ='Master Input'!$D$10 -> 0.9328821913 | H18: ='Master Input'!$D$12 -> 0.9095971683 | I18: 0 | J18: 0 | K18: 0 | L18: 0 | M18: =K18*'Master Input'!$F$10 -> 0 | N18: =K18*'Master Input'!$G$10 -> 0 | O18: =L18*'Master Input'!$F$12 -> 0 | P18: =L18*'Master Input'!$G$12 -> 0
A19: 26057 MI Gratiot | B19: LP | C19: S | D19: 0 | E19: ='Master Input'!Q20 -> 0 | F19: ='Master Input'!R20 -> 0 | G19: ='Master Input'!$D$11 -> 0.9328821913 | H19: ='Master Input'!$D$13 -> 0.9095971683 | I19: 0 | J19: 0 | K19: 0 | L19: 0 | M19: =K19*'Master Input'!$F$11 -> 0 | N19: =K19*'Master Input'!$G$11 -> 0 | O19: =L19*'Master Input'!$F$13 -> 0 | P19: =L19*'Master Input'!$G$13 -> 0
A20: 26063 MI Huron | B20: LP | C20: S | D20: 0 | E20: ='Master Input'!Q21 -> 0 | F20: ='Master Input'!R21 -> 0 | G20: ='Master Input'!$D$11 -> 0.9328821913 | H20: ='Master Input'!$D$13 -> 0.9095971683 | I20: 0 | J20: 0 | K20: 0 | L20: 0 | M20: =K20*'Master Input'!$F$11 -> 0 | N20: =K20*'Master Input'!$G$11 -> 0 | O20: =L20*'Master Input'!$F$13 -> 0 | P20: =L20*'Master Input'!$G$13 -> 0
A21: 26065 MI Ingham | B21: LP | C21: S | D21: 0 | E21: ='Master Input'!Q22 -> 0 | F21: ='Master Input'!R22 -> 0 | G21: ='Master Input'!$D$11 -> 0.9328821913 | H21: ='Master Input'!$D$13 -> 0.9095971683 | I21: 0 | J21: 0 | K21: 0 | L21: 0 | M21: =K21*'Master Input'!$F$11 -> 0 | N21: =K21*'Master Input'!$G$11 -> 0 | O21: =L21*'Master Input'!$F$13 -> 0 | P21: =L21*'Master Input'!$G$13 -> 0
A22: 26067 MI Ionia | B22: LP | C22: S | D22: 0 | E22: ='Master Input'!Q23 -> 0 | F22: ='Master Input'!R23 -> 0 | G22: ='Master Input'!$D$11 -> 0.9328821913 | H22: ='Master Input'!$D$13 -> 0.9095971683 | I22: 0 | J22: 0 | K22: 0 | L22: 0 | M22: =K22*'Master Input'!$F$11 -> 0 | N22: =K22*'Master Input'!$G$11 -> 0 | O22: =L22*'Master Input'!$F$13 -> 0 | P22: =L22*'Master Input'!$G$13 -> 0
A23: 26069 MI Iosco | B23: LP | C23: N | D23: 3546112 | E23: ='Master Input'!Q24 -> 2803665 | F23: ='Master Input'!R24 -> 742447 | G23: ='Master Input'!$D$10 -> 0.9328821913 | H23: ='Master Input'!$D$12 -> 0.9095971683 | I23: 2615489.149 | J23: 675327.6888 | K23: 67289.40265 | L23: 25478.2719 | M23: =K23*'Master Input'!$F$10 -> 0 | N23: =K23*'Master Input'!$G$10 -> 67289.40265 | O23: =L23*'Master Input'!$F$12 -> 0 | P23: =L23*'Master Input'!$G$12 -> 25478.2719
A24: 26073 MI Isabella | B24: LP | C24: N | D24: 0 | E24: ='Master Input'!Q25 -> 0 | F24: ='Master Input'!R25 -> 0 | G24: ='Master Input'!$D$10 -> 0.9328821913 | H24: ='Master Input'!$D$12 -> 0.9095971683 | I24: 0 | J24: 0 | K24: 0 | L24: 0 | M24: =K24*'Master Input'!$F$10 -> 0 | N24: =K24*'Master Input'!$G$10 -> 0 | O24: =L24*'Master Input'!$F$12 -> 0 | P24: =L24*'Master Input'!$G$12 -> 0
A25: 26079 MI Kalkaska | B25: LP | C25: N | D25: 17379 | E25: ='Master Input'!Q26 -> 17379 | F25: ='Master Input'!R26 -> 0 | G25: ='Master Input'!$D$10 -> 0.9328821913 | H25: ='Master Input'!$D$12 -> 0.9095971683 | I25: 16212.5596 | J25: 0 | K25: 417.1049425 | L25: 0 | M25: =K25*'Master Input'!$F$10 -> 0 | N25: =K25*'Master Input'!$G$10 -> 417.1049425 | O25: =L25*'Master Input'!$F$12 -> 0 | P25: =L25*'Master Input'!$G$12 -> 0
A26: 26081 MI Kent | B26: LP | C26: S | D26: 0 | E26: ='Master Input'!Q27 -> 0 | F26: ='Master Input'!R27 -> 0 | G26: ='Master Input'!$D$11 -> 0.9328821913 | H26: ='Master Input'!$D$13 -> 0.9095971683 | I26: 0 | J26: 0 | K26: 0 | L26: 0 | M26: =K26*'Master Input'!$F$11 -> 0 | N26: =K26*'Master Input'!$G$11 -> 0 | O26: =L26*'Master Input'!$F$13 -> 0 | P26: =L26*'Master Input'!$G$13 -> 0
A27: 26085 MI Lake | B27: LP | C27: N | D27: 3800714 | E27: ='Master Input'!Q28 -> 1723244 | F27: ='Master Input'!R28 -> 2077470 | G27: ='Master Input'!$D$10 -> 0.9328821913 | H27: ='Master Input'!$D$12 -> 0.9095971683 | I27: 1607583.639 | J27: 1889660.829 | K27: 41358.74271 | L27: 71291.74946 | M27: =K27*'Master Input'!$F$10 -> 0 | N27: =K27*'Master Input'!$G$10 -> 41358.74271 | O27: =L27*'Master Input'!$F$12 -> 0 | P27: =L27*'Master Input'!$G$12 -> 71291.74946
A28: 26087 MI Lapeer | B28: LP | C28: S | D28: 0 | E28: ='Master Input'!Q29 -> 0 | F28: ='Master Input'!R29 -> 0 | G28: ='Master Input'!$D$11 -> 0.9328821913 | H28: ='Master Input'!$D$13 -> 0.9095971683 | I28: 0 | J28: 0 | K28: 0 | L28: 0 | M28: =K28*'Master Input'!$F$11 -> 0 | N28: =K28*'Master Input'!$G$11 -> 0 | O28: =L28*'Master Input'!$F$13 -> 0 | P28: =L28*'Master Input'!$G$13 -> 0
A29: 26089 MI Leelanau | B29: LP | C29: N | D29: 0 | E29: ='Master Input'!Q30 -> 0 | F29: ='Master Input'!R30 -> 0 | G29: ='Master Input'!$D$10 -> 0.9328821913 | H29: ='Master Input'!$D$12 -> 0.9095971683 | I29: 0 | J29: 0 | K29: 0 | L29: 0 | M29: =K29*'Master Input'!$F$10 -> 0 | N29: =K29*'Master Input'!$G$10 -> 0 | O29: =L29*'Master Input'!$F$12 -> 0 | P29: =L29*'Master Input'!$G$12 -> 0
A30: 26093 MI Livingston | B30: LP | C30: S | D30: 0 | E30: ='Master Input'!Q31 -> 0 | F30: ='Master Input'!R31 -> 0 | G30: ='Master Input'!$D$11 -> 0.9328821913 | H30: ='Master Input'!$D$13 -> 0.9095971683 | I30: 0 | J30: 0 | K30: 0 | L30: 0 | M30: =K30*'Master Input'!$F$11 -> 0 | N30: =K30*'Master Input'!$G$11 -> 0 | O30: =L30*'Master Input'!$F$13 -> 0 | P30: =L30*'Master Input'!$G$13 -> 0
A31: 26101 MI Manistee | B31: LP | C31: N | D31: 3342112 | E31: ='Master Input'!Q32 -> 929228 | F31: ='Master Input'!R32 -> 2412884 | G31: ='Master Input'!$D$10 -> 0.9328821913 | H31: ='Master Input'!$D$12 -> 0.9095971683 | I31: 866860.2528 | J31: 2194752.454 | K31: 22301.95014 | L31: 82802.02439 | M31: =K31*'Master Input'!$F$10 -> 0 | N31: =K31*'Master Input'!$G$10 -> 22301.95014 | O31: =L31*'Master Input'!$F$12 -> 0 | P31: =L31*'Master Input'!$G$12 -> 82802.02439
A32: 26105 MI Mason | B32: LP | C32: N | D32: 2798639 | E32: ='Master Input'!Q33 -> 1570618 | F32: ='Master Input'!R33 -> 1228021 | G32: ='Master Input'!$D$10 -> 0.9328821913 | H32: ='Master Input'!$D$12 -> 0.9095971683 | I32: 1465201.562 | J32: 1117004.424 | K32: 37695.64017 | L32: 42141.53055 | M32: =K32*'Master Input'!$F$10 -> 0 | N32: =K32*'Master Input'!$G$10 -> 37695.64017 | O32: =L32*'Master Input'!$F$12 -> 0 | P32: =L32*'Master Input'!$G$12 -> 42141.53055
A33: 26107 MI Mecosta | B33: LP | C33: N | D33: 0 | E33: ='Master Input'!Q34 -> 0 | F33: ='Master Input'!R34 -> 0 | G33: ='Master Input'!$D$10 -> 0.9328821913 | H33: ='Master Input'!$D$12 -> 0.9095971683 | I33: 0 | J33: 0 | K33: 0 | L33: 0 | M33: =K33*'Master Input'!$F$10 -> 0 | N33: =K33*'Master Input'!$G$10 -> 0 | O33: =L33*'Master Input'!$F$12 -> 0 | P33: =L33*'Master Input'!$G$12 -> 0
A34: 26111 MI Midland | B34: LP | C34: N | D34: 0 | E34: ='Master Input'!Q35 -> 0 | F34: ='Master Input'!R35 -> 0 | G34: ='Master Input'!$D$10 -> 0.9328821913 | H34: ='Master Input'!$D$12 -> 0.9095971683 | I34: =G34*E34 -> 0 | J34: =H34*F34 -> 0 | K34: =I34*28.3/0.55/2000 -> 0 | L34: =J34*41.5/0.55/2000 -> 0 | M34: =K34*'Master Input'!$F$10 -> 0 | N34: =K34*'Master Input'!$G$10 -> 0 | O34: =L34*'Master Input'!$F$12 -> 0 | P34: =L34*'Master Input'!$G$12 -> 0
A35: 26113 MI Missaukee | B35: LP | C35: N | D35: 0 | E35: ='Master Input'!Q36 -> 0 | F35: ='Master Input'!R36 -> 0 | G35: ='Master Input'!$D$10 -> 0.9328821913 | H35: ='Master Input'!$D$12 -> 0.9095971683 | I35: 0 | J35: 0 | K35: 0 | L35: 0 | M35: =K35*'Master Input'!$F$10 -> 0 | N35: =K35*'Master Input'!$G$10 -> 0 | O35: =L35*'Master Input'!$F$12 -> 0 | P35: =L35*'Master Input'!$G$12 -> 0
A36: 26117 MI Montcalm | B36: LP | C36: S | D36: 0 | E36: ='Master Input'!Q37 -> 0 | F36: ='Master Input'!R37 -> 0 | G36: ='Master Input'!$D$11 -> 0.9328821913 | H36: ='Master Input'!$D$13 -> 0.9095971683 | I36: 0 | J36: 0 | K36: 0 | L36: 0 | M36: =K36*'Master Input'!$F$11 -> 0 | N36: =K36*'Master Input'!$G$11 -> 0 | O36: =L36*'Master Input'!$F$13 -> 0 | P36: =L36*'Master Input'!$G$13 -> 0
A37: 26119 MI Montmorency | B37: LP | C37: N | D37: 0 | E37: ='Master Input'!Q38 -> 0 | F37: ='Master Input'!R38 -> 0 | G37: ='Master Input'!$D$10 -> 0.9328821913 | H37: ='Master Input'!$D$12 -> 0.9095971683 | I37: 0 | J37: 0 | K37: 0 | L37: 0 | M37: =K37*'Master Input'!$F$10 -> 0 | N37: =K37*'Master Input'!$G$10 -> 0 | O37: =L37*'Master Input'!$F$12 -> 0 | P37: =L37*'Master Input'!$G$12 -> 0
A38: 26121 MI Muskegon | B38: LP | C38: S | D38: 369587 | E38: ='Master Input'!Q39 -> 176465 | F38: ='Master Input'!R39 -> 193122 | G38: ='Master Input'!$D$11 -> 0.9328821913 | H38: ='Master Input'!$D$13 -> 0.9095971683 | I38: 164621.0559 | J38: 175663.2243 | K38: 4235.250801 | L38: 6627.294373 | M38: =K38*'Master Input'!$F$11 -> 0 | N38: =K38*'Master Input'!$G$11 -> 4235.250801 | O38: =L38*'Master Input'!$F$13 -> 0 | P38: =L38*'Master Input'!$G$13 -> 6627.294373
A39: 26123 MI Newaygo | B39: LP | C39: N | D39: 3221786 | E39: ='Master Input'!Q40 -> 1439903 | F39: ='Master Input'!R40 -> 1781883 | G39: ='Master Input'!$D$10 -> 0.9328821913 | H39: ='Master Input'!$D$12 -> 0.9095971683 | I39: 1343259.866 | J39: 1620795.731 | K39: 34558.41291 | L39: 61148.20258 | M39: =K39*'Master Input'!$F$10 -> 0 | N39: =K39*'Master Input'!$G$10 -> 34558.41291 | O39: =L39*'Master Input'!$F$12 -> 0 | P39: =L39*'Master Input'!$G$12 -> 61148.20258
A40: 26127 MI Oceana | B40: LP | C40: N | D40: 2233111 | E40: ='Master Input'!Q41 -> 975326 | F40: ='Master Input'!R41 -> 1257785 | G40: ='Master Input'!$D$10 -> 0.9328821913 | H40: ='Master Input'!$D$12 -> 0.9095971683 | I40: 909864.2561 | J40: 1144077.674 | K40: 23408.32586 | L40: 43162.93044 | M40: =K40*'Master Input'!$F$10 -> 0 | N40: =K40*'Master Input'!$G$10 -> 23408.32586 | O40: =L40*'Master Input'!$F$12 -> 0 | P40: =L40*'Master Input'!$G$12 -> 43162.93044
A41: 26129 MI Ogemaw | B41: LP | C41: N | D41: 823774 | E41: ='Master Input'!Q42 -> 356258 | F41: ='Master Input'!R42 -> 467516 | G41: ='Master Input'!$D$10 -> 0.9328821913 | H41: ='Master Input'!$D$12 -> 0.9095971683 | I41: 332346.7437 | J41: 425251.2297 | K41: 8550.375315 | L41: 16043.56912 | M41: =K41*'Master Input'!$F$10 -> 0 | N41: =K41*'Master Input'!$G$10 -> 8550.375315 | O41: =L41*'Master Input'!$F$12 -> 0 | P41: =L41*'Master Input'!$G$12 -> 16043.56912
A42: 26133 MI Osceola | B42: LP | C42: N | D42: 0 | E42: ='Master Input'!Q43 -> 0 | F42: ='Master Input'!R43 -> 0 | G42: ='Master Input'!$D$10 -> 0.9328821913 | H42: ='Master Input'!$D$12 -> 0.9095971683 | I42: 0 | J42: 0 | K42: 0 | L42: 0 | M42: =K42*'Master Input'!$F$10 -> 0 | N42: =K42*'Master Input'!$G$10 -> 0 | O42: =L42*'Master Input'!$F$12 -> 0 | P42: =L42*'Master Input'!$G$12 -> 0
A43: 26135 MI Oscoda | B43: LP | C43: N | D43: 6278618 | E43: ='Master Input'!Q44 -> 3352508 | F43: ='Master Input'!R44 -> 2926110 | G43: ='Master Input'!$D$10 -> 0.9328821913 | H43: ='Master Input'!$D$12 -> 0.9095971683 | I43: 3127495.009 | J43: 2661581.37 | K43: 80461.91706 | L43: 100414.2062 | M43: =K43*'Master Input'!$F$10 -> 0 | N43: =K43*'Master Input'!$G$10 -> 80461.91706 | O43: =L43*'Master Input'!$F$12 -> 0 | P43: =L43*'Master Input'!$G$12 -> 100414.2062
A44: 26137 MI Otsego | B44: LP | C44: S | D44: 0 | E44: ='Master Input'!Q45 -> 0 | F44: ='Master Input'!R45 -> 0 | G44: ='Master Input'!$D$11 -> 0.9328821913 | H44: ='Master Input'!$D$13 -> 0.9095971683 | I44: 0 | J44: 0 | K44: 0 | L44: 0 | M44: =K44*'Master Input'!$F$11 -> 0 | N44: =K44*'Master Input'!$G$11 -> 0 | O44: =L44*'Master Input'!$F$13 -> 0 | P44: =L44*'Master Input'!$G$13 -> 0
A45: 26139 MI Ottawa | B45: LP | C45: N | D45: 0 | E45: ='Master Input'!Q46 -> 0 | F45: ='Master Input'!R46 -> 0 | G45: ='Master Input'!$D$10 -> 0.9328821913 | H45: ='Master Input'!$D$12 -> 0.9095971683 | I45: 0 | J45: 0 | K45: 0 | L45: 0 | M45: =K45*'Master Input'!$F$10 -> 0 | N45: =K45*'Master Input'!$G$10 -> 0 | O45: =L45*'Master Input'!$F$12 -> 0 | P45: =L45*'Master Input'!$G$12 -> 0
A46: 26141 MI Presque Isle | B46: LP | C46: N | D46: 0 | E46: ='Master Input'!Q47 -> 0 | F46: ='Master Input'!R47 -> 0 | G46: ='Master Input'!$D$10 -> 0.9328821913 | H46: ='Master Input'!$D$12 -> 0.9095971683 | I46: 0 | J46: 0 | K46: 0 | L46: 0 | M46: =K46*'Master Input'!$F$10 -> 0 | N46: =K46*'Master Input'!$G$10 -> 0 | O46: =L46*'Master Input'!$F$12 -> 0 | P46: =L46*'Master Input'!$G$12 -> 0
A47: 26143 MI Roscommon | B47: LP | C47: S | D47: 0 | E47: ='Master Input'!Q48 -> 0 | F47: ='Master Input'!R48 -> 0 | G47: ='Master Input'!$D$11 -> 0.9328821913 | H47: ='Master Input'!$D$13 -> 0.9095971683 | I47: 0 | J47: 0 | K47: 0 | L47: 0 | M47: =K47*'Master Input'!$F$11 -> 0 | N47: =K47*'Master Input'!$G$11 -> 0 | O47: =L47*'Master Input'!$F$13 -> 0 | P47: =L47*'Master Input'!$G$13 -> 0
A48: 26145 MI Saginaw | B48: LP | C48: S | D48: 683156 | E48: ='Master Input'!Q49 -> 0 | F48: ='Master Input'!R49 -> 683156 | G48: ='Master Input'!$D$11 -> 0.9328821913 | H48: ='Master Input'!$D$13 -> 0.9095971683 | I48: 0 | J48: 621396.7631 | K48: 0 | L48: 23443.60515 | M48: =K48*'Master Input'!$F$11 -> 0 | N48: =K48*'Master Input'!$G$11 -> 0 | O48: =L48*'Master Input'!$F$13 -> 0 | P48: =L48*'Master Input'!$G$13 -> 23443.60515
A49: 26151 MI Sanilac | B49: LP | C49: S | D49: 0 | E49: ='Master Input'!Q50 -> 0 | F49: ='Master Input'!R50 -> 0 | G49: ='Master Input'!$D$11 -> 0.9328821913 | H49: ='Master Input'!$D$13 -> 0.9095971683 | I49: 0 | J49: 0 | K49: 0 | L49: 0 | M49: =K49*'Master Input'!$F$11 -> 0 | N49: =K49*'Master Input'!$G$11 -> 0 | O49: =L49*'Master Input'!$F$13 -> 0 | P49: =L49*'Master Input'!$G$13 -> 0
A50: 26155 MI Shiawassee | B50: LP | C50: S | D50: 0 | E50: ='Master Input'!Q51 -> 0 | F50: ='Master Input'!R51 -> 0 | G50: ='Master Input'!$D$11 -> 0.9328821913 | H50: ='Master Input'!$D$13 -> 0.9095971683 | I50: 0 | J50: 0 | K50: 0 | L50: 0 | M50: =K50*'Master Input'!$F$11 -> 0 | N50: =K50*'Master Input'!$G$11 -> 0 | O50: =L50*'Master Input'!$F$13 -> 0 | P50: =L50*'Master Input'!$G$13 -> 0
A51: 26157 MI Tuscola | B51: LP | C51: S | D51: 0 | E51: ='Master Input'!Q52 -> 0 | F51: ='Master Input'!R52 -> 0 | G51: ='Master Input'!$D$11 -> 0.9328821913 | H51: ='Master Input'!$D$13 -> 0.9095971683 | I51: 0 | J51: 0 | K51: 0 | L51: 0 | M51: =K51*'Master Input'!$F$11 -> 0 | N51: =K51*'Master Input'!$G$11 -> 0 | O51: =L51*'Master Input'!$F$13 -> 0 | P51: =L51*'Master Input'!$G$13 -> 0
A52: 26165 MI Wexford | B52: LP | C52: N | D52: 4680902 | E52: ='Master Input'!Q53 -> 2101463 | F52: ='Master Input'!R53 -> 2579439 | G52: ='Master Input'!$D$10 -> 0.9328821913 | H52: ='Master Input'!$D$12 -> 0.9095971683 | I52: 1960417.408 | J52: 2346250.41 | K52: 50436.19332 | L52: 88517.62911 | M52: =K52*'Master Input'!$F$10 -> 0 | N52: =K52*'Master Input'!$G$10 -> 50436.19332 | O52: =L52*'Master Input'!$F$12 -> 0 | P52: =L52*'Master Input'!$G$12 -> 88517.62911

Sheet State
A1: County code and name | B1: LP/UP | C1: N/S or E/W | D1: Total | E1: Softwoods | F1: Hardwoods | G1: soft_avail | H1: hard_avail | I1: soft_vol_avail | J1: hard_vol_avail | K1: soft_GT_avail | L1: hard_GT_avail | M1: soft_GT_avail (Residue) | N1: soft_GT_avail(Roundwood) | O1: hard_GT_avail (Residue) | P1: hard_GT_avail(Roundwood)
A2: 26001 MI Alcona | B2: LP | C2: N | D2: =SUM(E2:F2) -> 839538 | E2: ='Master Input'!X3 -> 130601 | F2: ='Master Input'!Y3 -> 708937 | G2: ='Master Input'!$D$16 -> 0.542104408 | H2: ='Master Input'!$D$18 -> 0.4813843108 | I2: =G2*E2 -> 70799.37779 | J2: =H2*F2 -> 341271.1492 | K2: =I2*28.3/0.55/2000 -> 1821.474901 | L2: =J2*41.5/0.55/2000 -> 12875.22972 | M2: =K2*'Master Input'!$F$16 -> 0 | N2: =K2*'Master Input'!$G$16 -> 1821.474901 | O2: =L2*'Master Input'!$F$18 -> 0 | P2: =L2*'Master Input'!$G$18 -> 12875.22972
A3: 26007 MI Alpena | B3: LP | C3: N | D3: =SUM(E3:F3) -> 1567513 | E3: ='Master Input'!X4 -> 1023803 | F3: ='Master Input'!Y4 -> 543710 | G3: ='Master Input'!$D$16 -> 0.542104408 | H3: ='Master Input'!$D$18 -> 0.4813843108 | I3: 555008.1192 | J3: 261733.4636 | K3: 14278.84525 | L3: 9874.489765 | M3: =K3*'Master Input'!$F$16 -> 0 | N3: =K3*'Master Input'!$G$16 -> 14278.84525 | O3: =L3*'Master Input'!$F$18 -> 0 | P3: =L3*'Master Input'!$G$18 -> 9874.489765
A4: 26009 MI Antrim | B4: LP | C4: N | D4: 3145318 | E4: ='Master Input'!X5 -> 1076762 | F4: ='Master Input'!Y5 -> 2068556 | G4: ='Master Input'!$D$16 -> 0.542104408 | H4: ='Master Input'!$D$18 -> 0.4813843108 | I4: 583717.4265 | J4: 995770.4045 | K4: 15017.45743 | L4: 37567.70162 | M4: =K4*'Master Input'!$F$16 -> 0 | N4: =K4*'Master Input'!$G$16 -> 15017.45743 | O4: =L4*'Master Input'!$F$18 -> 0 | P4: =L4*'Master Input'!$G$18 -> 37567.70162
A5: 26011 MI Arenac | B5: LP | C5: N | D5: 625930 | E5: ='Master Input'!X6 -> 88609 | F5: ='Master Input'!Y6 -> 537321 | G5: ='Master Input'!$D$16 -> 0.542104408 | H5: ='Master Input'!$D$18 -> 0.4813843108 | I5: 48035.32949 | J5: 258657.8993 | K5: 1235.818022 | L5: 9758.457109 | M5: =K5*'Master Input'!$F$16 -> 0 | N5: =K5*'Master Input'!$G$16 -> 1235.818022 | O5: =L5*'Master Input'!$F$18 -> 0 | P5: =L5*'Master Input'!$G$18 -> 9758.457109
A6: 26015 MI Barry | B6: LP | C6: S | D6: 876142 | E6: ='Master Input'!X7 -> 260052 | F6: ='Master Input'!Y7 -> 616090 | G6: ='Master Input'!$D$17 -> 0.8936325285 | H6: ='Master Input'!$D$19 -> 0.8856828487 | I6: 232390.9263 | J6: 545660.3462 | K6: 5978.78474 | L6: 20586.2767 | M6: =K6*'Master Input'!$F$17 -> 0 | N6: =K6*'Master Input'!$G$17 -> 5978.78474 | O6: =L6*'Master Input'!$F$19 -> 0 | P6: =L6*'Master Input'!$G$19 -> 20586.2767
A7: 26017 MI Bay | B7: LP | C7: N | D7: 234995 | E7: ='Master Input'!X8 -> 0 | F7: ='Master Input'!Y8 -> 234995 | G7: ='Master Input'!$D$16 -> 0.542104408 | H7: ='Master Input'!$D$18 -> 0.4813843108 | I7: 0 | J7: 113122.9061 | K7: 0 | L7: 4267.818731 | M7: =K7*'Master Input'!$F$16 -> 0 | N7: =K7*'Master Input'!$G$16 -> 0 | O7: =L7*'Master Input'!$F$18 -> 0 | P7: =L7*'Master Input'!$G$18 -> 4267.818731
A8: 26019 MI Benzie | B8: LP | C8: N | D8: 3182835 | E8: ='Master Input'!X9 -> 949901 | F8: ='Master Input'!Y9 -> 2232934 | G8: ='Master Input'!$D$16 -> 0.542104408 | H8: ='Master Input'!$D$18 -> 0.4813843108 | I8: 514945.5192 | J8: 1074899.395 | K8: 13248.14381 | L8: 40553.02262 | M8: =K8*'Master Input'!$F$16 -> 0 | N8: =K8*'Master Input'!$G$16 -> 13248.14381 | O8: =L8*'Master Input'!$F$18 -> 0 | P8: =L8*'Master Input'!$G$18 -> 40553.02262
A9: 26029 MI Charlevoix | B9: LP | C9: N | D9: 500281 | E9: ='Master Input'!X10 -> 338935 | F9: ='Master Input'!Y10 -> 161346 | G9: ='Master Input'!$D$16 -> 0.542104408 | H9: ='Master Input'!$D$18 -> 0.4813843108 | I9: 183738.1575 | J9: 77669.43302 | K9: 4727.081689 | L9: 2930.255882 | M9: =K9*'Master Input'!$F$16 -> 0 | N9: =K9*'Master Input'!$G$16 -> 4727.081689 | O9: =L9*'Master Input'!$F$18 -> 0 | P9: =L9*'Master Input'!$G$18 -> 2930.255882
A10: 26031 MI Cheboygan | B10: LP | C10: N | D10: 4751606 | E10: ='Master Input'!X11 -> 1511757 | F10: ='Master Input'!Y11 -> 3239849 | G10: ='Master Input'!$D$16 -> 0.542104408 | H10: ='Master Input'!$D$18 -> 0.4813843108 | I10: 819530.1335 | J10: 1559612.478 | K10: 21084.27525 | L10: 58839.92531 | M10: =K10*'Master Input'!$F$16 -> 0 | N10: =K10*'Master Input'!$G$16 -> 21084.27525 | O10: =L10*'Master Input'!$F$18 -> 0 | P10: =L10*'Master Input'!$G$18 -> 58839.92531
A11: 26035 MI Clare | B11: LP | C11: N | D11: 1494315 | E11: ='Master Input'!X12 -> 638650 | F11: ='Master Input'!Y12 -> 855665 | G11: ='Master Input'!$D$16 -> 0.542104408 | H11: ='Master Input'!$D$18 -> 0.4813843108 | I11: 346214.9802 | J11: 411903.7063 | K11: 8907.167217 | L11: 15540.00347 | M11: =K11*'Master Input'!$F$16 -> 0 | N11: =K11*'Master Input'!$G$16 -> 8907.167217 | O11: =L11*'Master Input'!$F$18 -> 0 | P11: =L11*'Master Input'!$G$18 -> 15540.00347
A12: 26037 MI Clinton | B12: LP | C12: S | D12: 377040 | E12: ='Master Input'!X13 -> 10372 | F12: ='Master Input'!Y13 -> 366668 | G12: ='Master Input'!$D$17 -> 0.8936325285 | H12: ='Master Input'!$D$19 -> 0.8856828487 | I12: 9268.756586 | J12: 324751.5588 | K12: 238.4598285 | L12: 12251.99063 | M12: =K12*'Master Input'!$F$17 -> 0 | N12: =K12*'Master Input'!$G$17 -> 238.4598285 | O12: =L12*'Master Input'!$F$19 -> 0 | P12: =L12*'Master Input'!$G$19 -> 12251.99063
A13: 26039 MI Crawford | B13: LP | C13: N | D13: 4277009 | E13: ='Master Input'!X14 -> 2106357 | F13: ='Master Input'!Y14 -> 2170652 | G13: ='Master Input'!$D$16 -> 0.542104408 | H13: ='Master Input'!$D$18 -> 0.4813843108 | I13: 1141865.414 | J13: 1044917.817 | K13: 29377.08294 | L13: 39421.89946 | M13: =K13*'Master Input'!$F$16 -> 0 | N13: =K13*'Master Input'!$G$16 -> 29377.08294 | O13: =L13*'Master Input'!$F$18 -> 0 | P13: =L13*'Master Input'!$G$18 -> 39421.89946
A14: 26045 MI Eaton | B14: LP | C14: N | D14: 209943 | E14: ='Master Input'!X15 -> 0 | F14: ='Master Input'!Y15 -> 209943 | G14: ='Master Input'!$D$16 -> 0.542104408 | H14: ='Master Input'!$D$18 -> 0.4813843108 | I14: 0 | J14: 101063.2664 | K14: 0 | L14: 3812.841413 | M14: =K14*'Master Input'!$F$16 -> 0 | N14: =K14*'Master Input'!$G$16 -> 0 | O14: =L14*'Master Input'!$F$18 -> 0 | P14: =L14*'Master Input'!$G$18 -> 3812.841413
A15: 26047 MI Emmet | B15: LP | C15: N | D15: 2665256 | E15: ='Master Input'!X16 -> 1130362 | F15: ='Master Input'!Y16 -> 1534894 | G15: ='Master Input'!$D$16 -> 0.542104408 | H15: ='Master Input'!$D$18 -> 0.4813843108 | I15: 612774.2228 | J15: 738873.8904 | K15: 15765.00955 | L15: 27875.69677 | M15: =K15*'Master Input'!$F$16 -> 0 | N15: =K15*'Master Input'!$G$16 -> 15765.00955 | O15: =L15*'Master Input'!$F$18 -> 0 | P15: =L15*'Master Input'!$G$18 -> 27875.69677
A16: 26049 MI Genesee | B16: LP | C16: S | D16: 1646423 | E16: ='Master Input'!X17 -> 0 | F16: ='Master Input'!Y17 -> 1646423 | G16: ='Master Input'!$D$17 -> 0.8936325285 | H16: ='Master Input'!$D$19 -> 0.8856828487 | I16: 0 | J16: 1458208.613 | K16: 0 | L16: 55014.23403 | M16: =K16*'Master Input'!$F$17 -> 0 | N16: =K16*'Master Input'!$G$17 -> 0 | O16: =L16*'Master Input'!$F$19 -> 0 | P16: =L16*'Master Input'!$G$19 -> 55014.23403
A17: 26051 MI Gladwin | B17: LP | C17: N | D17: 2497106 | E17: ='Master Input'!X18 -> 368529 | F17: ='Master Input'!Y18 -> 2128577 | G17: ='Master Input'!$D$16 -> 0.542104408 | H17: ='Master Input'!$D$18 -> 0.4813843108 | I17: 199781.1954 | J17: 1024663.572 | K17: 5139.825299 | L17: 38657.76204 | M17: =K17*'Master Input'!$F$16 -> 0 | N17: =K17*'Master Input'!$G$16 -> 5139.825299 | O17: =L17*'Master Input'!$F$18 -> 0 | P17: =L17*'Master Input'!$G$18 -> 38657.76204
A18: 26055 MI Grand Traverse | B18: LP | C18: N | D18: 1728622 | E18: ='Master Input'!X19 -> 771223 | F18: ='Master Input'!Y19 -> 957399 | G18: ='Master Input'!$D$16 -> 0.542104408 | H18: ='Master Input'!$D$18 -> 0.4813843108 | I18: 418083.3878 | J18: 460876.8578 | K18: 10756.14534 | L18: 17387.62691 | M18: =K18*'Master Input'!$F$16 -> 0 | N18: =K18*'Master Input'!$G$16 -> 10756.14534 | O18: =L18*'Master Input'!$F$18 -> 0 | P18: =L18*'Master Input'!$G$18 -> 17387.62691
A19: 26057 MI Gratiot | B19: LP | C19: S | D19: 219986 | E19: ='Master Input'!X20 -> 0 | F19: ='Master Input'!Y20 -> 219986 | G19: ='Master Input'!$D$17 -> 0.8936325285 | H19: ='Master Input'!$D$19 -> 0.8856828487 | I19: 0 | J19: 194837.8271 | K19: 0 | L19: 7350.699842 | M19: =K19*'Master Input'!$F$17 -> 0 | N19: =K19*'Master Input'!$G$17 -> 0 | O19: =L19*'Master Input'!$F$19 -> 0 | P19: =L19*'Master Input'!$G$19 -> 7350.699842
A20: 26063 MI Huron | B20: LP | C20: S | D20: 516384 | E20: ='Master Input'!X21 -> 0 | F20: ='Master Input'!Y21 -> 516384 | G20: ='Master Input'!$D$17 -> 0.8936325285 | H20: ='Master Input'!$D$19 -> 0.8856828487 | I20: 0 | J20: 457352.4521 | K20: 0 | L20: 17254.66069 | M20: =K20*'Master Input'!$F$17 -> 0 | N20: =K20*'Master Input'!$G$17 -> 0 | O20: =L20*'Master Input'!$F$19 -> 0 | P20: =L20*'Master Input'!$G$19 -> 17254.66069
A21: 26065 MI Ingham | B21: LP | C21: S | D21: 2395245 | E21: ='Master Input'!X22 -> 467774 | F21: ='Master Input'!Y22 -> 1927471 | G21: ='Master Input'!$D$17 -> 0.8936325285 | H21: ='Master Input'!$D$19 -> 0.8856828487 | I21: 418018.0624 | J21: 1707128.006 | K21: 10754.4647 | L21: 64405.28386 | M21: =K21*'Master Input'!$F$17 -> 0 | N21: =K21*'Master Input'!$G$17 -> 10754.4647 | O21: =L21*'Master Input'!$F$19 -> 0 | P21: =L21*'Master Input'!$G$19 -> 64405.28386
A22: 26067 MI Ionia | B22: LP | C22: S | D22: 2090294 | E22: ='Master Input'!X23 -> 0 | F22: ='Master Input'!Y23 -> 2090294 | G22: ='Master Input'!$D$17 -> 0.8936325285 | H22: ='Master Input'!$D$19 -> 0.8856828487 | I22: 0 | J22: 1851337.544 | K22: 0 | L22: 69845.91645 | M22: =K22*'Master Input'!$F$17 -> 0 | N22: =K22*'Master Input'!$G$17 -> 0 | O22: =L22*'Master Input'!$F$19 -> 0 | P22: =L22*'Master Input'!$G$19 -> 69845.91645
A23: 26069 MI Iosco | B23: LP | C23: N | D23: 370824 | E23: ='Master Input'!X24 -> 201494 | F23: ='Master Input'!Y24 -> 169330 | G23: ='Master Input'!$D$16 -> 0.542104408 | H23: ='Master Input'!$D$18 -> 0.4813843108 | I23: 109230.7856 | J23: 81512.80535 | K23: 2810.210211 | L23: 3075.255838 | M23: =K23*'Master Input'!$F$16 -> 0 | N23: =K23*'Master Input'!$G$16 -> 2810.210211 | O23: =L23*'Master Input'!$F$18 -> 0 | P23: =L23*'Master Input'!$G$18 -> 3075.255838
A24: 26073 MI Isabella | B24: LP | C24: N | D24: 301435 | E24: ='Master Input'!X25 -> 0 | F24: ='Master Input'!Y25 -> 301435 | G24: ='Master Input'!$D$16 -> 0.542104408 | H24: ='Master Input'!$D$18 -> 0.4813843108 | I24: 0 | J24: 145106.0797 | K24: 0 | L24: 5474.456645 | M24: =K24*'Master Input'!$F$16 -> 0 | N24: =K24*'Master Input'!$G$16 -> 0 | O24: =L24*'Master Input'!$F$18 -> 0 | P24: =L24*'Master Input'!$G$18 -> 5474.456645
A25: 26079 MI Kalkaska | B25: LP | C25: N | D25: 6457381 | E25: ='Master Input'!X26 -> 3173387 | F25: ='Master Input'!Y26 -> 3283994 | G25: ='Master Input'!$D$16 -> 0.542104408 | H25: ='Master Input'!$D$18 -> 0.4813843108 | I25: 1720307.081 | J25: 1580863.188 | K25: 44258.80945 | L25: 59641.65666 | M25: =K25*'Master Input'!$F$16 -> 0 | N25: =K25*'Master Input'!$G$16 -> 44258.80945 | O25: =L25*'Master Input'!$F$18 -> 0 | P25: =L25*'Master Input'!$G$18 -> 59641.65666
A26: 26081 MI Kent | B26: LP | C26: S | D26: 1057177 | E26: ='Master Input'!X27 -> 26396 | F26: ='Master Input'!Y27 -> 1030781 | G26: ='Master Input'!$D$17 -> 0.8936325285 | H26: ='Master Input'!$D$19 -> 0.8856828487 | I26: 23588.32422 | J26: 912945.0524 | K26: 606.8632504 | L26: 34442.92698 | M26: =K26*'Master Input'!$F$17 -> 0 | N26: =K26*'Master Input'!$G$17 -> 606.8632504 | O26: =L26*'Master Input'!$F$19 -> 0 | P26: =L26*'Master Input'!$G$19 -> 34442.92698
A27: 26085 MI Lake | B27: LP | C27: N | D27: 2018012 | E27: ='Master Input'!X28 -> 970798 | F27: ='Master Input'!Y28 -> 1047214 | G27: ='Master Input'!$D$16 -> 0.542104408 | H27: ='Master Input'!$D$18 -> 0.4813843108 | I27: 526273.8751 | J27: 504112.3897 | K27: 13539.59151 | L27: 19018.78561 | M27: =K27*'Master Input'!$F$16 -> 0 | N27: =K27*'Master Input'!$G$16 -> 13539.59151 | O27: =L27*'Master Input'!$F$18 -> 0 | P27: =L27*'Master Input'!$G$18 -> 19018.78561
A28: 26087 MI Lapeer | B28: LP | C28: S | D28: 287692 | E28: ='Master Input'!X29 -> 14375 | F28: ='Master Input'!Y29 -> 273317 | G28: ='Master Input'!$D$17 -> 0.8936325285 | H28: ='Master Input'!$D$19 -> 0.8856828487 | I28: 12845.9676 | J28: 242072.1792 | K28: 330.4917118 | L28: 9132.723123 | M28: =K28*'Master Input'!$F$17 -> 0 | N28: =K28*'Master Input'!$G$17 -> 330.4917118 | O28: =L28*'Master Input'!$F$19 -> 0 | P28: =L28*'Master Input'!$G$19 -> 9132.723123
A29: 26089 MI Leelanau | B29: LP | C29: N | D29: 291438 | E29: ='Master Input'!X30 -> 119727 | F29: ='Master Input'!Y30 -> 171711 | G29: ='Master Input'!$D$16 -> 0.542104408 | H29: ='Master Input'!$D$18 -> 0.4813843108 | I29: 64904.53445 | J29: 82658.9814 | K29: 1669.816659 | L29: 3118.497935 | M29: =K29*'Master Input'!$F$16 -> 0 | N29: =K29*'Master Input'!$G$16 -> 1669.816659 | O29: =L29*'Master Input'!$F$18 -> 0 | P29: =L29*'Master Input'!$G$18 -> 3118.497935
A30: 26093 MI Livingston | B30: LP | C30: S | D30: 592829 | E30: ='Master Input'!X31 -> 7604 | F30: ='Master Input'!Y31 -> 585225 | G30: ='Master Input'!$D$17 -> 0.8936325285 | H30: ='Master Input'!$D$19 -> 0.8856828487 | I30: 6795.181747 | J30: 518323.7451 | K30: 174.821494 | L30: 19554.94129 | M30: =K30*'Master Input'!$F$17 -> 0 | N30: =K30*'Master Input'!$G$17 -> 174.821494 | O30: =L30*'Master Input'!$F$19 -> 0 | P30: =L30*'Master Input'!$G$19 -> 19554.94129
A31: 26101 MI Manistee | B31: LP | C31: N | D31: 1008054 | E31: ='Master Input'!X32 -> 349266 | F31: ='Master Input'!Y32 -> 658788 | G31: ='Master Input'!$D$16 -> 0.542104408 | H31: ='Master Input'!$D$18 -> 0.4813843108 | I31: 189338.6382 | J31: 317130.2074 | K31: 4871.166782 | L31: 11964.45782 | M31: =K31*'Master Input'!$F$16 -> 0 | N31: =K31*'Master Input'!$G$16 -> 4871.166782 | O31: =L31*'Master Input'!$F$18 -> 0 | P31: =L31*'Master Input'!$G$18 -> 11964.45782
A32: 26105 MI Mason | B32: LP | C32: N | D32: 420665 | E32: ='Master Input'!X33 -> 230698 | F32: ='Master Input'!Y33 -> 189967 | G32: ='Master Input'!$D$16 -> 0.542104408 | H32: ='Master Input'!$D$18 -> 0.4813843108 | I32: 125062.4027 | J32: 91447.13338 | K32: 3217.514542 | L32: 3450.050941 | M32: =K32*'Master Input'!$F$16 -> 0 | N32: =K32*'Master Input'!$G$16 -> 3217.514542 | O32: =L32*'Master Input'!$F$18 -> 0 | P32: =L32*'Master Input'!$G$18 -> 3450.050941
A33: 26107 MI Mecosta | B33: LP | C33: N | D33: 431641 | E33: ='Master Input'!X34 -> 0 | F33: ='Master Input'!Y34 -> 431641 | G33: ='Master Input'!$D$16 -> 0.542104408 | H33: ='Master Input'!$D$18 -> 0.4813843108 | I33: 0 | J33: 207785.2053 | K33: 0 | L33: 7839.16911 | M33: =K33*'Master Input'!$F$16 -> 0 | N33: =K33*'Master Input'!$G$16 -> 0 | O33: =L33*'Master Input'!$F$18 -> 0 | P33: =L33*'Master Input'!$G$18 -> 7839.16911
A34: 26111 MI Midland | B34: LP | C34: N | D34: 436750 | E34: ='Master Input'!X35 -> 117186 | F34: ='Master Input'!Y35 -> 319564 | G34: ='Master Input'!$D$16 -> 0.542104408 | H34: ='Master Input'!$D$18 -> 0.4813843108 | I34: =G34*E34 -> 63527.04715 | J34: =H34*F34 -> 153833.0959 | K34: =I34*28.3/0.55/2000 -> 1634.377668 | L34: =J34*41.5/0.55/2000 -> 5803.703164 | M34: =K34*'Master Input'!$F$16 -> 0 | N34: =K34*'Master Input'!$G$16 -> 1634.377668 | O34: =L34*'Master Input'!$F$18 -> 0 | P34: =L34*'Master Input'!$G$18 -> 5803.703164
A35: 26113 MI Missaukee | B35: LP | C35: N | D35: 5282587 | E35: ='Master Input'!X36 -> 3289677 | F35: ='Master Input'!Y36 -> 1992910 | G35: ='Master Input'!$D$16 -> 0.542104408 | H35: ='Master Input'!$D$18 -> 0.4813843108 | I35: 1783348.403 | J35: 959355.6069 | K35: 45880.69072 | L35: 36193.87062 | M35: =K35*'Master Input'!$F$16 -> 0 | N35: =K35*'Master Input'!$G$16 -> 45880.69072 | O35: =L35*'Master Input'!$F$18 -> 0 | P35: =L35*'Master Input'!$G$18 -> 36193.87062
A36: 26117 MI Montcalm | B36: LP | C36: S | D36: 845695 | E36: ='Master Input'!X37 -> 97409 | F36: ='Master Input'!Y37 -> 748286 | G36: ='Master Input'!$D$17 -> 0.8936325285 | H36: ='Master Input'!$D$19 -> 0.8856828487 | I36: 87047.85097 | J36: 662744.0761 | K36: 2239.503802 | L36: 25003.52651 | M36: =K36*'Master Input'!$F$17 -> 0 | N36: =K36*'Master Input'!$G$17 -> 2239.503802 | O36: =L36*'Master Input'!$F$19 -> 0 | P36: =L36*'Master Input'!$G$19 -> 25003.52651
A37: 26119 MI Montmorency | B37: LP | C37: N | D37: 5011178 | E37: ='Master Input'!X38 -> 1613008 | F37: ='Master Input'!Y38 -> 3398170 | G37: ='Master Input'!$D$16 -> 0.542104408 | H37: ='Master Input'!$D$18 -> 0.4813843108 | I37: 874418.7469 | J37: 1635825.724 | K37: 22496.40958 | L37: 61715.24321 | M37: =K37*'Master Input'!$F$16 -> 0 | N37: =K37*'Master Input'!$G$16 -> 22496.40958 | O37: =L37*'Master Input'!$F$18 -> 0 | P37: =L37*'Master Input'!$G$18 -> 61715.24321
A38: 26121 MI Muskegon | B38: LP | C38: S | D38: 1008942 | E38: ='Master Input'!X39 -> 153137 | F38: ='Master Input'!Y39 -> 855805 | G38: ='Master Input'!$D$17 -> 0.8936325285 | H38: ='Master Input'!$D$19 -> 0.8856828487 | I38: 136848.2045 | J38: 757971.8103 | K38: 3520.73108 | L38: 28596.20921 | M38: =K38*'Master Input'!$F$17 -> 0 | N38: =K38*'Master Input'!$G$17 -> 3520.73108 | O38: =L38*'Master Input'!$F$19 -> 0 | P38: =L38*'Master Input'!$G$19 -> 28596.20921
A39: 26123 MI Newaygo | B39: LP | C39: N | D39: 273105 | E39: ='Master Input'!X40 -> 42811 | F39: ='Master Input'!Y40 -> 230294 | G39: ='Master Input'!$D$16 -> 0.542104408 | H39: ='Master Input'!$D$18 -> 0.4813843108 | I39: 23208.03181 | J39: 110859.9185 | K39: 597.0793638 | L39: 4182.442379 | M39: =K39*'Master Input'!$F$16 -> 0 | N39: =K39*'Master Input'!$G$16 -> 597.0793638 | O39: =L39*'Master Input'!$F$18 -> 0 | P39: =L39*'Master Input'!$G$18 -> 4182.442379
A40: 26127 MI Oceana | B40: LP | C40: N | D40: 577691 | E40: ='Master Input'!X41 -> 125261 | F40: ='Master Input'!Y41 -> 452430 | G40: ='Master Input'!$D$16 -> 0.542104408 | H40: ='Master Input'!$D$18 -> 0.4813843108 | I40: 67904.54025 | J40: 217792.7038 | K40: 1746.998626 | L40: 8216.724732 | M40: =K40*'Master Input'!$F$16 -> 0 | N40: =K40*'Master Input'!$G$16 -> 1746.998626 | O40: =L40*'Master Input'!$F$18 -> 0 | P40: =L40*'Master Input'!$G$18 -> 8216.724732
A41: 26129 MI Ogemaw | B41: LP | C41: N | D41: 2713088 | E41: ='Master Input'!X42 -> 1023469 | F41: ='Master Input'!Y42 -> 1689619 | G41: ='Master Input'!$D$16 -> 0.542104408 | H41: ='Master Input'!$D$18 -> 0.4813843108 | I41: 554827.0563 | J41: 813356.0779 | K41: 14274.18699 | L41: 30685.70658 | M41: =K41*'Master Input'!$F$16 -> 0 | N41: =K41*'Master Input'!$G$16 -> 14274.18699 | O41: =L41*'Master Input'!$F$18 -> 0 | P41: =L41*'Master Input'!$G$18 -> 30685.70658
A42: 26133 MI Osceola | B42: LP | C42: N | D42: 1058297 | E42: ='Master Input'!X43 -> 205884 | F42: ='Master Input'!Y43 -> 852413 | G42: ='Master Input'!$D$16 -> 0.542104408 | H42: ='Master Input'!$D$18 -> 0.4813843108 | I42: 111610.6239 | J42: 410338.2446 | K42: 2871.436961 | L42: 15480.94286 | M42: =K42*'Master Input'!$F$16 -> 0 | N42: =K42*'Master Input'!$G$16 -> 2871.436961 | O42: =L42*'Master Input'!$F$18 -> 0 | P42: =L42*'Master Input'!$G$18 -> 15480.94286
A43: 26135 MI Oscoda | B43: LP | C43: N | D43: 1550748 | E43: ='Master Input'!X44 -> 786867 | F43: ='Master Input'!Y44 -> 763881 | G43: ='Master Input'!$D$16 -> 0.542104408 | H43: ='Master Input'!$D$18 -> 0.4813843108 | I43: 426564.0692 | J43: 367720.3287 | K43: 10974.33014 | L43: 13873.08513 | M43: =K43*'Master Input'!$F$16 -> 0 | N43: =K43*'Master Input'!$G$16 -> 10974.33014 | O43: =L43*'Master Input'!$F$18 -> 0 | P43: =L43*'Master Input'!$G$18 -> 13873.08513
A44: 26137 MI Otsego | B44: LP | C44: S | D44: 4105273 | E44: ='Master Input'!X45 -> 2249565 | F44: ='Master Input'!Y45 -> 1855708 | G44: ='Master Input'!$D$17 -> 0.8936325285 | H44: ='Master Input'!$D$19 -> 0.8856828487 | I44: 2010284.459 | J44: 1643568.748 | K44: 51719.13654 | L44: 62007.36639 | M44: =K44*'Master Input'!$F$17 -> 0 | N44: =K44*'Master Input'!$G$17 -> 51719.13654 | O44: =L44*'Master Input'!$F$19 -> 0 | P44: =L44*'Master Input'!$G$19 -> 62007.36639
A45: 26139 MI Ottawa | B45: LP | C45: N | D45: 261688 | E45: ='Master Input'!X46 -> 43461 | F45: ='Master Input'!Y46 -> 218227 | G45: ='Master Input'!$D$16 -> 0.542104408 | H45: ='Master Input'!$D$18 -> 0.4813843108 | I45: 23560.39968 | J45: 105051.054 | K45: 606.144828 | L45: 3963.289765 | M45: =K45*'Master Input'!$F$16 -> 0 | N45: =K45*'Master Input'!$G$16 -> 606.144828 | O45: =L45*'Master Input'!$F$18 -> 0 | P45: =L45*'Master Input'!$G$18 -> 3963.289765
A46: 26141 MI Presque Isle | B46: LP | C46: N | D46: 2211446 | E46: ='Master Input'!X47 -> 1398746 | F46: ='Master Input'!Y47 -> 812700 | G46: ='Master Input'!$D$16 -> 0.542104408 | H46: ='Master Input'!$D$18 -> 0.4813843108 | I46: 758266.3722 | J46: 391221.0294 | K46: 19508.12576 | L46: 14759.70247 | M46: =K46*'Master Input'!$F$16 -> 0 | N46: =K46*'Master Input'!$G$16 -> 19508.12576 | O46: =L46*'Master Input'!$F$18 -> 0 | P46: =L46*'Master Input'!$G$18 -> 14759.70247
A47: 26143 MI Roscommon | B47: LP | C47: S | D47: 4260801 | E47: ='Master Input'!X48 -> 2039244 | F47: ='Master Input'!Y48 -> 2221557 | G47: ='Master Input'!$D$17 -> 0.8936325285 | H47: ='Master Input'!$D$19 -> 0.8856828487 | I47: 1822334.772 | J47: 1967594.932 | K47: 46883.70368 | L47: 74231.99063 | M47: =K47*'Master Input'!$F$17 -> 0 | N47: =K47*'Master Input'!$G$17 -> 46883.70368 | O47: =L47*'Master Input'!$F$19 -> 0 | P47: =L47*'Master Input'!$G$19 -> 74231.99063
A48: 26145 MI Saginaw | B48: LP | C48: S | D48: 131429 | E48: ='Master Input'!X49 -> 44773 | F48: ='Master Input'!Y49 -> 86656 | G48: ='Master Input'!$D$17 -> 0.8936325285 | H48: ='Master Input'!$D$19 -> 0.8856828487 | I48: 40010.6092 | J48: 76749.73293 | K48: 1029.363855 | L48: 2895.558106 | M48: =K48*'Master Input'!$F$17 -> 0 | N48: =K48*'Master Input'!$G$17 -> 1029.363855 | O48: =L48*'Master Input'!$F$19 -> 0 | P48: =L48*'Master Input'!$G$19 -> 2895.558106
A49: 26151 MI Sanilac | B49: LP | C49: S | D49: 594126 | E49: ='Master Input'!X50 -> 0 | F49: ='Master Input'!Y50 -> 594126 | G49: ='Master Input'!$D$17 -> 0.8936325285 | H49: ='Master Input'!$D$19 -> 0.8856828487 | I49: 0 | J49: 526207.2082 | K49: 0 | L49: 19852.36285 | M49: =K49*'Master Input'!$F$17 -> 0 | N49: =K49*'Master Input'!$G$17 -> 0 | O49: =L49*'Master Input'!$F$19 -> 0 | P49: =L49*'Master Input'!$G$19 -> 19852.36285
A50: 26155 MI Shiawassee | B50: LP | C50: S | D50: 276189 | E50: ='Master Input'!X51 -> 34481 | F50: ='Master Input'!Y51 -> 241708 | G50: ='Master Input'!$D$17 -> 0.8936325285 | H50: ='Master Input'!$D$19 -> 0.8856828487 | I50: 30813.34322 | J50: 214076.63 | K50: 792.7432845 | L50: 8076.527404 | M50: =K50*'Master Input'!$F$17 -> 0 | N50: =K50*'Master Input'!$G$17 -> 792.7432845 | O50: =L50*'Master Input'!$F$19 -> 0 | P50: =L50*'Master Input'!$G$19 -> 8076.527404
A51: 26157 MI Tuscola | B51: LP | C51: S | D51: 968922 | E51: ='Master Input'!X52 -> 51102 | F51: ='Master Input'!Y52 -> 917820 | G51: ='Master Input'!$D$17 -> 0.8936325285 | H51: ='Master Input'!$D$19 -> 0.8856828487 | I51: 45666.40947 | J51: 812897.4322 | K51: 1174.872171 | L51: 30668.40312 | M51: =K51*'Master Input'!$F$17 -> 0 | N51: =K51*'Master Input'!$G$17 -> 1174.872171 | O51: =L51*'Master Input'!$F$19 -> 0 | P51: =L51*'Master Input'!$G$19 -> 30668.40312
A52: 26165 MI Wexford | B52: LP | C52: N | D52: 2575447 | E52: ='Master Input'!X53 -> 1421017 | F52: ='Master Input'!Y53 -> 1154430 | G52: ='Master Input'!$D$16 -> 0.542104408 | H52: ='Master Input'!$D$18 -> 0.4813843108 | I52: 770339.5795 | J52: 555724.49 | K52: 19818.73645 | L52: 20965.96939 | M52: =K52*'Master Input'!$F$16 -> 0 | N52: =K52*'Master Input'!$G$16 -> 19818.73645 | O52: =L52*'Master Input'!$F$18 -> 0 | P52: =L52*'Master Input'!$G$18 -> 20965.96939

Sheet Private
A1: County code and name | B1: LP/UP | C1: N/S or E/W | D1: Total | E1: Softwoods | F1: Hardwoods | G1: soft_avail | H1: hard_avail | I1: soft_vol_avail | J1: hard_vol_avail | K1: soft_GT_avail | L1: hard_GT_avail | M1: soft_GT_avail (Residue) | N1: soft_GT_avail(Roundwood) | O1: hard_GT_avail (Residue) | P1: hard_GT_avail(Roundwood)
A2: 26001 MI Alcona | B2: LP | C2: N | D2: =SUM(E2:F2) -> 6570977 | E2: ='Master Input'!AE3 -> 2055367 | F2: ='Master Input'!AF3 -> 4515610 | G2: ='Master Input'!$D$22 -> 0.6854476174 | H2: ='Master Input'!$D$24 -> 0.5618944385 | I2: =G2*E2 -> 1408846.413 | J2: =H2*F2 -> 2537296.145 | K2: =I2*28.3/0.55/2000 -> 36245.7759 | L2: =J2*41.5/0.55/2000 -> 95725.26367 | M2: =K2*'Master Input'!$F$22 -> 0 | N2: =K2*'Master Input'!$G$22 -> 36245.7759 | O2: =L2*'Master Input'!$F$24 -> 0 | P2: =L2*'Master Input'!$G$24 -> 95725.26367
A3: 26007 MI Alpena | B3: LP | C3: N | D3: =SUM(E3:F3) -> 6334734 | E3: ='Master Input'!AE4 -> 2550725 | F3: ='Master Input'!AF4 -> 3784009 | G3: ='Master Input'!$D$22 -> 0.6854476174 | H3: ='Master Input'!$D$24 -> 0.5618944385 | I3: 1748388.374 | J3: 2126213.612 | K3: 44981.26453 | L3: 80216.24083 | M3: =K3*'Master Input'!$F$22 -> 0 | N3: =K3*'Master Input'!$G$22 -> 44981.26453 | O3: =L3*'Master Input'!$F$24 -> 0 | P3: =L3*'Master Input'!$G$24 -> 80216.24083
A4: 26009 MI Antrim | B4: LP | C4: N | D4: 5299749 | E4: ='Master Input'!AE5 -> 340356 | F4: ='Master Input'!AF5 -> 4959393 | G4: ='Master Input'!$D$22 -> 0.6854476174 | H4: ='Master Input'!$D$24 -> 0.5618944385 | I4: 233296.2093 | J4: 2786655.345 | K4: 6002.075202 | L4: 105132.9062 | M4: =K4*'Master Input'!$F$22 -> 0 | N4: =K4*'Master Input'!$G$22 -> 6002.075202 | O4: =L4*'Master Input'!$F$24 -> 0 | P4: =L4*'Master Input'!$G$24 -> 105132.9062
A5: 26011 MI Arenac | B5: LP | C5: N | D5: 5481397 | E5: ='Master Input'!AE6 -> 1144137 | F5: ='Master Input'!AF6 -> 4337260 | G5: ='Master Input'!$D$22 -> 0.6854476174 | H5: ='Master Input'!$D$24 -> 0.5618944385 | I5: 784245.9807 | J5: 2437082.272 | K5: 20176.51023 | L5: 91944.46755 | M5: =K5*'Master Input'!$F$22 -> 0 | N5: =K5*'Master Input'!$G$22 -> 20176.51023 | O5: =L5*'Master Input'!$F$24 -> 0 | P5: =L5*'Master Input'!$G$24 -> 91944.46755
A6: 26015 MI Barry | B6: LP | C6: S | D6: 6208382 | E6: ='Master Input'!AE7 -> 324330 | F6: ='Master Input'!AF7 -> 5884052 | G6: ='Master Input'!$D$23 -> 0.9528216154 | H6: ='Master Input'!$D$25 -> 0.7548539304 | I6: 309028.6345 | J6: 4441599.779 | K6: 7950.463961 | L6: 167569.4462 | M6: =K6*'Master Input'!$F$23 -> 0 | N6: =K6*'Master Input'!$G$23 -> 7950.463961 | O6: =L6*'Master Input'!$F$25 -> 0 | P6: =L6*'Master Input'!$G$25 -> 167569.4462
A7: 26017 MI Bay | B7: LP | C7: N | D7: 1221787 | E7: ='Master Input'!AE8 -> 98372 | F7: ='Master Input'!AF8 -> 1123415 | G7: ='Master Input'!$D$22 -> 0.6854476174 | H7: ='Master Input'!$D$24 -> 0.5618944385 | I7: 67428.85302 | J7: 631240.6406 | K7: 1734.760491 | L7: 23814.98781 | M7: =K7*'Master Input'!$F$22 -> 0 | N7: =K7*'Master Input'!$G$22 -> 1734.760491 | O7: =L7*'Master Input'!$F$24 -> 0 | P7: =L7*'Master Input'!$G$24 -> 23814.98781
A8: 26019 MI Benzie | B8: LP | C8: N | D8: 3386430 | E8: ='Master Input'!AE9 -> 635114 | F8: ='Master Input'!AF9 -> 2751316 | G8: ='Master Input'!$D$22 -> 0.6854476174 | H8: ='Master Input'!$D$24 -> 0.5618944385 | I8: 435337.3781 | J8: 1545949.159 | K8: 11200.04345 | L8: 58324.44554 | M8: =K8*'Master Input'!$F$22 -> 0 | N8: =K8*'Master Input'!$G$22 -> 11200.04345 | O8: =L8*'Master Input'!$F$24 -> 0 | P8: =L8*'Master Input'!$G$24 -> 58324.44554
A9: 26029 MI Charlevoix | B9: LP | C9: N | D9: 5220430 | E9: ='Master Input'!AE10 -> 284295 | F9: ='Master Input'!AF10 -> 4936135 | G9: ='Master Input'!$D$22 -> 0.6854476174 | H9: ='Master Input'!$D$24 -> 0.5618944385 | I9: 194869.3304 | J9: 2773586.804 | K9: 5013.456409 | L9: 104639.8658 | M9: =K9*'Master Input'!$F$22 -> 0 | N9: =K9*'Master Input'!$G$22 -> 5013.456409 | O9: =L9*'Master Input'!$F$24 -> 0 | P9: =L9*'Master Input'!$G$24 -> 104639.8658
A10: 26031 MI Cheboygan | B10: LP | C10: N | D10: 9709089 | E10: ='Master Input'!AE11 -> 3054729 | F10: ='Master Input'!AF11 -> 6654360 | G10: ='Master Input'!$D$22 -> 0.6854476174 | H10: ='Master Input'!$D$24 -> 0.5618944385 | I10: 2093856.715 | J10: 3739047.876 | K10: 53869.22276 | L10: 141064.0789 | M10: =K10*'Master Input'!$F$22 -> 0 | N10: =K10*'Master Input'!$G$22 -> 53869.22276 | O10: =L10*'Master Input'!$F$24 -> 0 | P10: =L10*'Master Input'!$G$24 -> 141064.0789
A11: 26035 MI Clare | B11: LP | C11: N | D11: 6664000 | E11: ='Master Input'!AE12 -> 1337892 | F11: ='Master Input'!AF12 -> 5326108 | G11: ='Master Input'!$D$22 -> 0.6854476174 | H11: ='Master Input'!$D$24 -> 0.5618944385 | I11: 917054.8838 | J11: 2992710.464 | K11: 23593.3211 | L11: 112906.8039 | M11: =K11*'Master Input'!$F$22 -> 0 | N11: =K11*'Master Input'!$G$22 -> 23593.3211 | O11: =L11*'Master Input'!$F$24 -> 0 | P11: =L11*'Master Input'!$G$24 -> 112906.8039
A12: 26037 MI Clinton | B12: LP | C12: S | D12: 1644130 | E12: ='Master Input'!AE13 -> 156282 | F12: ='Master Input'!AF13 -> 1487848 | G12: ='Master Input'!$D$23 -> 0.9528216154 | H12: ='Master Input'!$D$25 -> 0.7548539304 | I12: 148908.8677 | J12: 1123107.911 | K12: 3831.019051 | L12: 42371.79845 | M12: =K12*'Master Input'!$F$23 -> 0 | N12: =K12*'Master Input'!$G$23 -> 3831.019051 | O12: =L12*'Master Input'!$F$25 -> 0 | P12: =L12*'Master Input'!$G$25 -> 42371.79845
A13: 26039 MI Crawford | B13: LP | C13: N | D13: 1652232 | E13: ='Master Input'!AE14 -> 660802 | F13: ='Master Input'!AF14 -> 991430 | G13: ='Master Input'!$D$22 -> 0.6854476174 | H13: ='Master Input'!$D$24 -> 0.5618944385 | I13: 452945.1565 | J13: 557079.0032 | K13: 11653.04357 | L13: 21017.07148 | M13: =K13*'Master Input'!$F$22 -> 0 | N13: =K13*'Master Input'!$G$22 -> 11653.04357 | O13: =L13*'Master Input'!$F$24 -> 0 | P13: =L13*'Master Input'!$G$24 -> 21017.07148
A14: 26045 MI Eaton | B14: LP | C14: N | D14: 4978306 | E14: ='Master Input'!AE15 -> 11812 | F14: ='Master Input'!AF15 -> 4966494 | G14: ='Master Input'!$D$22 -> 0.6854476174 | H14: ='Master Input'!$D$24 -> 0.5618944385 | I14: 8096.507257 | J14: 2790645.357 | K14: 208.3010503 | L14: 105283.4385 | M14: =K14*'Master Input'!$F$22 -> 0 | N14: =K14*'Master Input'!$G$22 -> 208.3010503 | O14: =L14*'Master Input'!$F$24 -> 0 | P14: =L14*'Master Input'!$G$24 -> 105283.4385
A15: 26047 MI Emmet | B15: LP | C15: N | D15: 6089221 | E15: ='Master Input'!AE16 -> 999283 | F15: ='Master Input'!AF16 -> 5089938 | G15: ='Master Input'!$D$22 -> 0.6854476174 | H15: ='Master Input'!$D$24 -> 0.5618944385 | I15: 684956.1515 | J15: 2860007.854 | K15: 17622.05372 | L15: 107900.2963 | M15: =K15*'Master Input'!$F$22 -> 0 | N15: =K15*'Master Input'!$G$22 -> 17622.05372 | O15: =L15*'Master Input'!$F$24 -> 0 | P15: =L15*'Master Input'!$G$24 -> 107900.2963
A16: 26049 MI Genesee | B16: LP | C16: S | D16: 3645186 | E16: ='Master Input'!AE17 -> 87016 | F16: ='Master Input'!AF17 -> 3558170 | G16: ='Master Input'!$D$23 -> 0.9528216154 | H16: ='Master Input'!$D$25 -> 0.7548539304 | I16: 82910.72569 | J16: 2685898.61 | K16: 2133.066852 | L16: 101331.6294 | M16: =K16*'Master Input'!$F$23 -> 0 | N16: =K16*'Master Input'!$G$23 -> 2133.066852 | O16: =L16*'Master Input'!$F$25 -> 0 | P16: =L16*'Master Input'!$G$25 -> 101331.6294
A17: 26051 MI Gladwin | B17: LP | C17: N | D17: 3931523 | E17: ='Master Input'!AE18 -> 734654 | F17: ='Master Input'!AF18 -> 3196869 | G17: ='Master Input'!$D$22 -> 0.6854476174 | H17: ='Master Input'!$D$24 -> 0.5618944385 | I17: 503566.8339 | J17: 1796302.912 | K17: 12955.40127 | L17: 67769.60985 | M17: =K17*'Master Input'!$F$22 -> 0 | N17: =K17*'Master Input'!$G$22 -> 12955.40127 | O17: =L17*'Master Input'!$F$24 -> 0 | P17: =L17*'Master Input'!$G$24 -> 67769.60985
A18: 26055 MI Grand Traverse | B18: LP | C18: N | D18: 5995581 | E18: ='Master Input'!AE19 -> 2976889 | F18: ='Master Input'!AF19 -> 3018692 | G18: ='Master Input'!$D$22 -> 0.6854476174 | H18: ='Master Input'!$D$24 -> 0.5618944385 | I18: 2040501.472 | J18: 1696186.246 | K18: 52496.53788 | L18: 63992.48111 | M18: =K18*'Master Input'!$F$22 -> 0 | N18: =K18*'Master Input'!$G$22 -> 52496.53788 | O18: =L18*'Master Input'!$F$24 -> 0 | P18: =L18*'Master Input'!$G$24 -> 63992.48111
A19: 26057 MI Gratiot | B19: LP | C19: S | D19: 2047095 | E19: ='Master Input'!AE20 -> 0 | F19: ='Master Input'!AF20 -> 2047095 | G19: ='Master Input'!$D$23 -> 0.9528216154 | H19: ='Master Input'!$D$25 -> 0.7548539304 | I19: 0 | J19: 1545257.707 | K19: 0 | L19: 58298.35894 | M19: =K19*'Master Input'!$F$23 -> 0 | N19: =K19*'Master Input'!$G$23 -> 0 | O19: =L19*'Master Input'!$F$25 -> 0 | P19: =L19*'Master Input'!$G$25 -> 58298.35894
A20: 26063 MI Huron | B20: LP | C20: S | D20: 3563020 | E20: ='Master Input'!AE21 -> 235105 | F20: ='Master Input'!AF21 -> 3327915 | G20: ='Master Input'!$D$23 -> 0.9528216154 | H20: ='Master Input'!$D$25 -> 0.7548539304 | I20: 224013.1259 | J20: 2512089.718 | K20: 5763.246784 | L20: 94774.2939 | M20: =K20*'Master Input'!$F$23 -> 0 | N20: =K20*'Master Input'!$G$23 -> 5763.246784 | O20: =L20*'Master Input'!$F$25 -> 0 | P20: =L20*'Master Input'!$G$25 -> 94774.2939
A21: 26065 MI Ingham | B21: LP | C21: S | D21: 1939039 | E21: ='Master Input'!AE22 -> 62954 | F21: ='Master Input'!AF22 -> 1876085 | G21: ='Master Input'!$D$23 -> 0.9528216154 | H21: ='Master Input'!$D$25 -> 0.7548539304 | I21: 59983.93198 | J21: 1416170.136 | K21: 1543.222977 | L21: 53428.23695 | M21: =K21*'Master Input'!$F$23 -> 0 | N21: =K21*'Master Input'!$G$23 -> 1543.222977 | O21: =L21*'Master Input'!$F$25 -> 0 | P21: =L21*'Master Input'!$G$25 -> 53428.23695
A22: 26067 MI Ionia | B22: LP | C22: S | D22: 4617704 | E22: ='Master Input'!AE23 -> 251086 | F22: ='Master Input'!AF23 -> 4366618 | G22: ='Master Input'!$D$23 -> 0.9528216154 | H22: ='Master Input'!$D$25 -> 0.7548539304 | I22: 239240.1681 | J22: 3296158.76 | K22: 6154.997053 | L22: 124355.0805 | M22: =K22*'Master Input'!$F$23 -> 0 | N22: =K22*'Master Input'!$G$23 -> 6154.997053 | O22: =L22*'Master Input'!$F$25 -> 0 | P22: =L22*'Master Input'!$G$25 -> 124355.0805
A23: 26069 MI Iosco | B23: LP | C23: N | D23: 4807607 | E23: ='Master Input'!AE24 -> 1353276 | F23: ='Master Input'!AF24 -> 3454331 | G23: ='Master Input'!$D$22 -> 0.6854476174 | H23: ='Master Input'!$D$24 -> 0.5618944385 | I23: 927599.8099 | J23: 1940969.378 | K23: 23864.61329 | L23: 73227.48106 | M23: =K23*'Master Input'!$F$22 -> 0 | N23: =K23*'Master Input'!$G$22 -> 23864.61329 | O23: =L23*'Master Input'!$F$24 -> 0 | P23: =L23*'Master Input'!$G$24 -> 73227.48106
A24: 26073 MI Isabella | B24: LP | C24: N | D24: 6736060 | E24: ='Master Input'!AE25 -> 50351 | F24: ='Master Input'!AF25 -> 6685709 | G24: ='Master Input'!$D$22 -> 0.6854476174 | H24: ='Master Input'!$D$24 -> 0.5618944385 | I24: 34512.97299 | J24: 3756662.704 | K24: 887.9246686 | L24: 141728.6384 | M24: =K24*'Master Input'!$F$22 -> 0 | N24: =K24*'Master Input'!$G$22 -> 887.9246686 | O24: =L24*'Master Input'!$F$24 -> 0 | P24: =L24*'Master Input'!$G$24 -> 141728.6384
A25: 26079 MI Kalkaska | B25: LP | C25: N | D25: 5342214 | E25: ='Master Input'!AE26 -> 2016093 | F25: ='Master Input'!AF26 -> 3326121 | G25: ='Master Input'!$D$22 -> 0.6854476174 | H25: ='Master Input'!$D$24 -> 0.5618944385 | I25: 1381926.143 | J25: 1868928.892 | K25: 35553.19078 | L25: 70509.59 | M25: =K25*'Master Input'!$F$22 -> 0 | N25: =K25*'Master Input'!$G$22 -> 35553.19078 | O25: =L25*'Master Input'!$F$24 -> 0 | P25: =L25*'Master Input'!$G$24 -> 70509.59
A26: 26081 MI Kent | B26: LP | C26: S | D26: 6047706 | E26: ='Master Input'!AE27 -> 1383804 | F26: ='Master Input'!AF27 -> 4663902 | G26: ='Master Input'!$D$23 -> 0.9528216154 | H26: ='Master Input'!$D$25 -> 0.7548539304 | I26: 1318518.363 | J26: 3520564.756 | K26: 33921.88151 | L26: 132821.3067 | M26: =K26*'Master Input'!$F$23 -> 0 | N26: =K26*'Master Input'!$G$23 -> 33921.88151 | O26: =L26*'Master Input'!$F$25 -> 0 | P26: =L26*'Master Input'!$G$25 -> 132821.3067
A27: 26085 MI Lake | B27: LP | C27: N | D27: 6380319 | E27: ='Master Input'!AE28 -> 3155819 | F27: ='Master Input'!AF28 -> 3224500 | G27: ='Master Input'!$D$22 -> 0.6854476174 | H27: ='Master Input'!$D$24 -> 0.5618944385 | I27: 2163148.615 | J27: 1811828.617 | K27: 55651.91436 | L27: 68355.35237 | M27: =K27*'Master Input'!$F$22 -> 0 | N27: =K27*'Master Input'!$G$22 -> 55651.91436 | O27: =L27*'Master Input'!$F$24 -> 0 | P27: =L27*'Master Input'!$G$24 -> 68355.35237
A28: 26087 MI Lapeer | B28: LP | C28: S | D28: 3047788 | E28: ='Master Input'!AE29 -> 217481 | F28: ='Master Input'!AF29 -> 2830307 | G28: ='Master Input'!$D$23 -> 0.9528216154 | H28: ='Master Input'!$D$25 -> 0.7548539304 | I28: 207220.5977 | J28: 2136468.363 | K28: 5331.220833 | L28: 80603.12462 | M28: =K28*'Master Input'!$F$23 -> 0 | N28: =K28*'Master Input'!$G$23 -> 5331.220833 | O28: =L28*'Master Input'!$F$25 -> 0 | P28: =L28*'Master Input'!$G$25 -> 80603.12462
A29: 26089 MI Leelanau | B29: LP | C29: N | D29: 2597974 | E29: ='Master Input'!AE30 -> 157135 | F29: ='Master Input'!AF30 -> 2440839 | G29: ='Master Input'!$D$22 -> 0.6854476174 | H29: ='Master Input'!$D$24 -> 0.5618944385 | I29: 107707.8114 | J29: 1371493.859 | K29: 2771.028238 | L29: 51742.72288 | M29: =K29*'Master Input'!$F$22 -> 0 | N29: =K29*'Master Input'!$G$22 -> 2771.028238 | O29: =L29*'Master Input'!$F$24 -> 0 | P29: =L29*'Master Input'!$G$24 -> 51742.72288
A30: 26093 MI Livingston | B30: LP | C30: S | D30: 2321003 | E30: ='Master Input'!AE31 -> 316326 | F30: ='Master Input'!AF31 -> 2004677 | G30: ='Master Input'!$D$23 -> 0.9528216154 | H30: ='Master Input'!$D$25 -> 0.7548539304 | I30: 301402.2503 | J30: 1513238.313 | K30: 7754.257895 | L30: 57090.35453 | M30: =K30*'Master Input'!$F$23 -> 0 | N30: =K30*'Master Input'!$G$23 -> 7754.257895 | O30: =L30*'Master Input'!$F$25 -> 0 | P30: =L30*'Master Input'!$G$25 -> 57090.35453
A31: 26101 MI Manistee | B31: LP | C31: N | D31: 6533656 | E31: ='Master Input'!AE32 -> 2472914 | F31: ='Master Input'!AF32 -> 4060742 | G31: ='Master Input'!$D$22 -> 0.6854476174 | H31: ='Master Input'!$D$24 -> 0.5618944385 | I31: 1695053.009 | J31: 2281708.346 | K31: 43609.09106 | L31: 86082.63305 | M31: =K31*'Master Input'!$F$22 -> 0 | N31: =K31*'Master Input'!$G$22 -> 43609.09106 | O31: =L31*'Master Input'!$F$24 -> 0 | P31: =L31*'Master Input'!$G$24 -> 86082.63305
A32: 26105 MI Mason | B32: LP | C32: N | D32: 6567168 | E32: ='Master Input'!AE33 -> 1043683 | F32: ='Master Input'!AF33 -> 5523485 | G32: ='Master Input'!$D$22 -> 0.6854476174 | H32: ='Master Input'!$D$24 -> 0.5618944385 | I32: 715390.0257 | J32: 3103615.503 | K32: 18405.0343 | L32: 117090.9485 | M32: =K32*'Master Input'!$F$22 -> 0 | N32: =K32*'Master Input'!$G$22 -> 18405.0343 | O32: =L32*'Master Input'!$F$24 -> 0 | P32: =L32*'Master Input'!$G$24 -> 117090.9485
A33: 26107 MI Mecosta | B33: LP | C33: N | D33: 8199916 | E33: ='Master Input'!AE34 -> 2782436 | F33: ='Master Input'!AF34 -> 5417480 | G33: ='Master Input'!$D$22 -> 0.6854476174 | H33: ='Master Input'!$D$24 -> 0.5618944385 | I33: 1907214.127 | J33: 3044051.883 | K33: 49067.41799 | L33: 114843.7756 | M33: =K33*'Master Input'!$F$22 -> 0 | N33: =K33*'Master Input'!$G$22 -> 49067.41799 | O33: =L33*'Master Input'!$F$24 -> 0 | P33: =L33*'Master Input'!$G$24 -> 114843.7756
A34: 26111 MI Midland | B34: LP | C34: N | D34: 4695521 | E34: ='Master Input'!AE35 -> 205595 | F34: ='Master Input'!AF35 -> 4489926 | G34: ='Master Input'!$D$22 -> 0.6854476174 | H34: ='Master Input'!$D$24 -> 0.5618944385 | I34: =G34*E34 -> 140924.6029 | J34: =H34*F34 -> 2522864.449 | K34: =I34*28.3/0.55/2000 -> 3625.605693 | L34: =J34*41.5/0.55/2000 -> 95180.79511 | M34: =K34*'Master Input'!$F$22 -> 0 | N34: =K34*'Master Input'!$G$22 -> 3625.605693 | O34: =L34*'Master Input'!$F$24 -> 0 | P34: =L34*'Master Input'!$G$24 -> 95180.79511
A35: 26113 MI Missaukee | B35: LP | C35: N | D35: 7664063 | E35: ='Master Input'!AE36 -> 2217001 | F35: ='Master Input'!AF36 -> 5447062 | G35: ='Master Input'!$D$22 -> 0.6854476174 | H35: ='Master Input'!$D$24 -> 0.5618944385 | I35: 1519638.053 | J35: 3060673.844 | K35: 39096.14264 | L35: 115470.8768 | M35: =K35*'Master Input'!$F$22 -> 0 | N35: =K35*'Master Input'!$G$22 -> 39096.14264 | O35: =L35*'Master Input'!$F$24 -> 0 | P35: =L35*'Master Input'!$G$24 -> 115470.8768
A36: 26117 MI Montcalm | B36: LP | C36: S | D36: 5769737 | E36: ='Master Input'!AE37 -> 800226 | F36: ='Master Input'!AF37 -> 4969511 | G36: ='Master Input'!$D$23 -> 0.9528216154 | H36: ='Master Input'!$D$25 -> 0.7548539304 | I36: 762472.63 | J36: 3751254.911 | K36: 19616.3413 | L36: 141524.6171 | M36: =K36*'Master Input'!$F$23 -> 0 | N36: =K36*'Master Input'!$G$23 -> 19616.3413 | O36: =L36*'Master Input'!$F$25 -> 0 | P36: =L36*'Master Input'!$G$25 -> 141524.6171
A37: 26119 MI Montmorency | B37: LP | C37: N | D37: 8014460 | E37: ='Master Input'!AE38 -> 2773795 | F37: ='Master Input'!AF38 -> 5240665 | G37: ='Master Input'!$D$22 -> 0.6854476174 | H37: ='Master Input'!$D$24 -> 0.5618944385 | I37: 1901291.174 | J37: 2944700.517 | K37: 48915.03657 | L37: 111095.5195 | M37: =K37*'Master Input'!$F$22 -> 0 | N37: =K37*'Master Input'!$G$22 -> 48915.03657 | O37: =L37*'Master Input'!$F$24 -> 0 | P37: =L37*'Master Input'!$G$24 -> 111095.5195
A38: 26121 MI Muskegon | B38: LP | C38: S | D38: 6772526 | E38: ='Master Input'!AE39 -> 910922 | F38: ='Master Input'!AF39 -> 5861604 | G38: ='Master Input'!$D$23 -> 0.9528216154 | H38: ='Master Input'!$D$25 -> 0.7548539304 | I38: 867946.1716 | J38: 4424654.818 | K38: 22329.88787 | L38: 166930.159 | M38: =K38*'Master Input'!$F$23 -> 0 | N38: =K38*'Master Input'!$G$23 -> 22329.88787 | O38: =L38*'Master Input'!$F$25 -> 0 | P38: =L38*'Master Input'!$G$25 -> 166930.159
A39: 26123 MI Newaygo | B39: LP | C39: N | D39: 11120084 | E39: ='Master Input'!AE40 -> 5000686 | F39: ='Master Input'!AF40 -> 6119398 | G39: ='Master Input'!$D$22 -> 0.6854476174 | H39: ='Master Input'!$D$24 -> 0.5618944385 | I39: 3427708.304 | J39: 3438455.703 | K39: 88185.58637 | L39: 129723.5561 | M39: =K39*'Master Input'!$F$22 -> 0 | N39: =K39*'Master Input'!$G$22 -> 88185.58637 | O39: =L39*'Master Input'!$F$24 -> 0 | P39: =L39*'Master Input'!$G$24 -> 129723.5561
A40: 26127 MI Oceana | B40: LP | C40: N | D40: 7841769 | E40: ='Master Input'!AE41 -> 2017992 | F40: ='Master Input'!AF41 -> 5823777 | G40: ='Master Input'!$D$22 -> 0.6854476174 | H40: ='Master Input'!$D$24 -> 0.5618944385 | I40: 1383227.808 | J40: 3272347.907 | K40: 35586.67907 | L40: 123456.762 | M40: =K40*'Master Input'!$F$22 -> 0 | N40: =K40*'Master Input'!$G$22 -> 35586.67907 | O40: =L40*'Master Input'!$F$24 -> 0 | P40: =L40*'Master Input'!$G$24 -> 123456.762
A41: 26129 MI Ogemaw | B41: LP | C41: N | D41: 3995161 | E41: ='Master Input'!AE42 -> 1301409 | F41: ='Master Input'!AF42 -> 2693752 | G41: ='Master Input'!$D$22 -> 0.6854476174 | H41: ='Master Input'!$D$24 -> 0.5618944385 | I41: 892047.6984 | J41: 1513604.267 | K41: 22949.95442 | L41: 57104.161 | M41: =K41*'Master Input'!$F$22 -> 0 | N41: =K41*'Master Input'!$G$22 -> 22949.95442 | O41: =L41*'Master Input'!$F$24 -> 0 | P41: =L41*'Master Input'!$G$24 -> 57104.161
A42: 26133 MI Osceola | B42: LP | C42: N | D42: 6292884 | E42: ='Master Input'!AE43 -> 1571219 | F42: ='Master Input'!AF43 -> 4721665 | G42: ='Master Input'!$D$22 -> 0.6854476174 | H42: ='Master Input'!$D$24 -> 0.5618944385 | I42: 1076988.32 | J42: 2653077.304 | K42: 27707.97223 | L42: 100093.371 | M42: =K42*'Master Input'!$F$22 -> 0 | N42: =K42*'Master Input'!$G$22 -> 27707.97223 | O42: =L42*'Master Input'!$F$24 -> 0 | P42: =L42*'Master Input'!$G$24 -> 100093.371
A43: 26135 MI Oscoda | B43: LP | C43: N | D43: 4173132 | E43: ='Master Input'!AE44 -> 1193189 | F43: ='Master Input'!AF44 -> 2979943 | G43: ='Master Input'!$D$22 -> 0.6854476174 | H43: ='Master Input'!$D$24 -> 0.5618944385 | I43: 817868.5572 | J43: 1674413.399 | K43: 21041.52743 | L43: 63171.05095 | M43: =K43*'Master Input'!$F$22 -> 0 | N43: =K43*'Master Input'!$G$22 -> 21041.52743 | O43: =L43*'Master Input'!$F$24 -> 0 | P43: =L43*'Master Input'!$G$24 -> 63171.05095
A44: 26137 MI Otsego | B44: LP | C44: S | D44: 8048752 | E44: ='Master Input'!AE45 -> 1850996 | F44: ='Master Input'!AF45 -> 6197756 | G44: ='Master Input'!$D$23 -> 0.9528216154 | H44: ='Master Input'!$D$25 -> 0.7548539304 | I44: 1763668.999 | J44: 4678400.477 | K44: 45374.39333 | L44: 176503.2907 | M44: =K44*'Master Input'!$F$23 -> 0 | N44: =K44*'Master Input'!$G$23 -> 45374.39333 | O44: =L44*'Master Input'!$F$25 -> 0 | P44: =L44*'Master Input'!$G$25 -> 176503.2907
A45: 26139 MI Ottawa | B45: LP | C45: N | D45: 3874817 | E45: ='Master Input'!AE46 -> 398748 | F45: ='Master Input'!AF46 -> 3476069 | G45: ='Master Input'!$D$22 -> 0.6854476174 | H45: ='Master Input'!$D$24 -> 0.5618944385 | I45: 273320.8666 | J45: 1953183.839 | K45: 7031.800476 | L45: 73688.29938 | M45: =K45*'Master Input'!$F$22 -> 0 | N45: =K45*'Master Input'!$G$22 -> 7031.800476 | O45: =L45*'Master Input'!$F$24 -> 0 | P45: =L45*'Master Input'!$G$24 -> 73688.29938
A46: 26141 MI Presque Isle | B46: LP | C46: N | D46: 7380021 | E46: ='Master Input'!AE47 -> 2514124 | F46: ='Master Input'!AF47 -> 4865897 | G46: ='Master Input'!$D$22 -> 0.6854476174 | H46: ='Master Input'!$D$24 -> 0.5618944385 | I46: 1723300.306 | J46: 2734120.463 | K46: 44335.81696 | L46: 103150.9084 | M46: =K46*'Master Input'!$F$22 -> 0 | N46: =K46*'Master Input'!$G$22 -> 44335.81696 | O46: =L46*'Master Input'!$F$24 -> 0 | P46: =L46*'Master Input'!$G$24 -> 103150.9084
A47: 26143 MI Roscommon | B47: LP | C47: S | D47: 2155717 | E47: ='Master Input'!AE48 -> 191913 | F47: ='Master Input'!AF48 -> 1963804 | G47: ='Master Input'!$D$23 -> 0.9528216154 | H47: ='Master Input'!$D$25 -> 0.7548539304 | I47: 182858.8547 | J47: 1482385.168 | K47: 4704.459625 | L47: 55926.34952 | M47: =K47*'Master Input'!$F$23 -> 0 | N47: =K47*'Master Input'!$G$23 -> 4704.459625 | O47: =L47*'Master Input'!$F$25 -> 0 | P47: =L47*'Master Input'!$G$25 -> 55926.34952
A48: 26145 MI Saginaw | B48: LP | C48: S | D48: 4749511 | E48: ='Master Input'!AE49 -> 227164 | F48: ='Master Input'!AF49 -> 4522347 | G48: ='Master Input'!$D$23 -> 0.9528216154 | H48: ='Master Input'!$D$25 -> 0.7548539304 | I48: 216446.7694 | J48: 3413711.408 | K48: 5568.585069 | L48: 128790.0213 | M48: =K48*'Master Input'!$F$23 -> 0 | N48: =K48*'Master Input'!$G$23 -> 5568.585069 | O48: =L48*'Master Input'!$F$25 -> 0 | P48: =L48*'Master Input'!$G$25 -> 128790.0213
A49: 26151 MI Sanilac | B49: LP | C49: S | D49: 3111512 | E49: ='Master Input'!AE50 -> 335663 | F49: ='Master Input'!AF50 -> 2775849 | G49: ='Master Input'!$D$23 -> 0.9528216154 | H49: ='Master Input'!$D$25 -> 0.7548539304 | I49: 319826.9619 | J49: 2095360.528 | K49: 8228.275474 | L49: 79052.2381 | M49: =K49*'Master Input'!$F$23 -> 0 | N49: =K49*'Master Input'!$G$23 -> 8228.275474 | O49: =L49*'Master Input'!$F$25 -> 0 | P49: =L49*'Master Input'!$G$25 -> 79052.2381
A50: 26155 MI Shiawassee | B50: LP | C50: S | D50: 918447 | E50: ='Master Input'!AE51 -> 0 | F50: ='Master Input'!AF51 -> 918447 | G50: ='Master Input'!$D$23 -> 0.9528216154 | H50: ='Master Input'!$D$25 -> 0.7548539304 | I50: 0 | J50: 693293.3279 | K50: 0 | L50: 26156.06646 | M50: =K50*'Master Input'!$F$23 -> 0 | N50: =K50*'Master Input'!$G$23 -> 0 | O50: =L50*'Master Input'!$F$25 -> 0 | P50: =L50*'Master Input'!$G$25 -> 26156.06646
A51: 26157 MI Tuscola | B51: LP | C51: S | D51: 3913234 | E51: ='Master Input'!AE52 -> 420931 | F51: ='Master Input'!AF52 -> 3492303 | G51: ='Master Input'!$D$23 -> 0.9528216154 | H51: ='Master Input'!$D$25 -> 0.7548539304 | I51: 401072.1554 | J51: 2636178.646 | K51: 10318.49273 | L51: 99455.83073 | M51: =K51*'Master Input'!$F$23 -> 0 | N51: =K51*'Master Input'!$G$23 -> 10318.49273 | O51: =L51*'Master Input'!$F$25 -> 0 | P51: =L51*'Master Input'!$G$25 -> 99455.83073
A52: 26165 MI Wexford | B52: LP | C52: N | D52: 6092443 | E52: ='Master Input'!AE53 -> 2338198 | F52: ='Master Input'!AF53 -> 3754245 | G52: ='Master Input'!$D$22 -> 0.6854476174 | H52: ='Master Input'!$D$24 -> 0.5618944385 | I52: 1602712.248 | J52: 2109489.386 | K52: 41233.41511 | L52: 79585.28139 | M52: =K52*'Master Input'!$F$22 -> 0 | N52: =K52*'Master Input'!$G$22 -> 41233.41511 | O52: =L52*'Master Input'!$F$24 -> 0 | P52: =L52*'Master Input'!$G$24 -> 79585.28139

Sheet total
B1: Federal | F1: State | J1: Private | N1: total | R1: CoEE | T1: FBSCC
A2: County code and name | B2: soft_GT_avail (Residue) | C2: soft_GT_avail(Roundwood) | D2: hard_GT_avail (Residue) | E2: hard_GT_avail(Roundwood) | F2: soft_GT_avail (Residue) | G2: soft_GT_avail(Roundwood) | H2: hard_GT_avail (Residue) | I2: hard_GT_avail(Roundwood) | J2: soft_GT_avail (Residue) | K2: soft_GT_avail(Roundwood) | L2: hard_GT_avail (Residue) | M2: hard_GT_avail(Roundwood) | N2: soft_GT_avail (Residue) | O2: soft_GT_avail(Roundwood) | P2: hard_GT_avail (Residue) | Q2: hard_GT_avail(Roundwood) | T2: soft_GT_avail (Residue) | U2: soft_GT_avail(Roundwood) | V2: hard_GT_avail (Residue) | W2: hard_GT_avail(Roundwood) | X2: total
A3: Alcona | B3: =Federal!M2 -> 0 | C3: =Federal!N2 -> 28385.98458 | D3: =Federal!O2 -> 0 | E3: =Federal!P2 -> 83300.91942 | F3: =State!M2 -> 0 | G3: =State!N2 -> 1821.474901 | H3: =State!O2 -> 0 | I3: =State!P2 -> 12875.22972 | J3: =Private!M2 -> 0 | K3: =Private!N2 -> 36245.7759 | L3: =Private!O2 -> 0 | M3: =Private!P2 -> 95725.26367 | N3: =SUM(B3,F3,J3) -> 0 | O3: =SUM(C3,G3,K3) -> 66453.23538 | P3: 0 | Q3: 191901.4128 | R3: =Q3/$Q$55 -> 0.06640359374 | S3: =R3*'Master Input'!$B$27 -> 33201.79687 | T3: =N3*'Master Input'!$C$30 -> 0 | U3: =O3*'Master Input'!$C$31 -> 53162.58831 | V3: =P3*'Master Input'!$G$30 -> 0 | W3: =(Q3-S3)*'Master Input'!$G$31 -> 158699.6159 | X3: =SUM(T3:W3) -> 211862.2042
A4: Alpena | B4: =Federal!M3 -> 0 | C4: =Federal!N3 -> 0 | D4: =Federal!O3 -> 0 | E4: =Federal!P3 -> 0 | F4: =State!M3 -> 0 | G4: =State!N3 -> 14278.84525 | H4: =State!O3 -> 0 | I4: =State!P3 -> 9874.489765 | J4: =Private!M3 -> 0 | K4: =Private!N3 -> 44981.26453 | L4: =Private!O3 -> 0 | M4: =Private!P3 -> 80216.24083 | N4: =SUM(B4,F4,J4) -> 0 | O4: =SUM(C4,G4,K4) -> 59260.10978 | P4: =SUM(D4,H4,L4) -> 0 | Q4: =SUM(E4,I4,M4) -> 90090.73059 | R4: =Q4/$Q$55 -> 0.03117407103 | S4: =R4*'Master Input'!$B$27 -> 15587.03552 | T4: =N4*'Master Input'!$C$30 -> 0 | U4: =O4*'Master Input'!$C$31 -> 47408.08782 | V4: =P4*'Master Input'!$G$30 -> 0 | W4: =(Q4-S4)*'Master Input'!$G$31 -> 74503.69508 | X4: =SUM(T4:W4) -> 121911.7829
A5: Antrim | B5: =Federal!M4 -> 0 | C5: =Federal!N4 -> 0 | D5: =Federal!O4 -> 0 | E5: =Federal!P4 -> 0 | F5: =State!M4 -> 0 | G5: =State!N4 -> 15017.45743 | H5: =State!O4 -> 0 | I5: =State!P4 -> 37567.70162 | J5: =Private!M4 -> 0 | K5: =Private!N4 -> 6002.075202 | L5: =Private!O4 -> 0 | M5: =Private!P4 -> 105132.9062 | N5: 0 | O5: 21019.53263 | P5: 0 | Q5: 142700.6078 | R5: 0.04937865256 | S5: =R5*'Master Input'!$B$27 -> 24689.32628 | T5: =N5*'Master Input'!$C$30 -> 0 | U5: =O5*'Master Input'!$C$31 -> 16815.6261 | V5: =P5*'Master Input'!$G$30 -> 0 | W5: =(Q5-S5)*'Master Input'!$G$31 -> 118011.2815 | X5: 134826.9076
A6: Arenac | B6: =Federal!M5 -> 0 | C6: =Federal!N5 -> 0 | D6: =Federal!O5 -> 0 | E6: =Federal!P5 -> 0 | F6: =State!M5 -> 0 | G6: =State!N5 -> 1235.818022 | H6: =State!O5 -> 0 | I6: =State!P5 -> 9758.457109 | J6: =Private!M5 -> 0 | K6: =Private!N5 -> 20176.51023 | L6: =Private!O5 -> 0 | M6: =Private!P5 -> 91944.46755 | N6: 0 | O6: 21412.32825 | P6: 0 | Q6: 101702.9247 | R6: 0 | S6: =R6*'Master Input'!$B$27 -> 0 | T6: =N6*'Master Input'!$C$30 -> 0 | U6: =O6*'Master Input'!$C$31 -> 17129.8626 | V6: =P6*'Master Input'!$G$30 -> 0 | W6: =(Q6-S6)*'Master Input'!$G$31 -> 101702.9247 | X6: 118832.7873
A7: Barry | B7: =Federal!M6 -> 0 | C7: =Federal!N6 -> 0 | D7: =Federal!O6 -> 0 | E7: =Federal!P6 -> 0 | F7: =State!M6 -> 0 | G7: =State!N6 -> 5978.78474 | H7: =State!O6 -> 0 | I7: =State!P6 -> 20586.2767 | J7: =Private!M6 -> 0 | K7: =Private!N6 -> 7950.463961 | L7: =Private!O6 -> 0 | M7: =Private!P6 -> 167569.4462 | N7: 0 | O7: 13929.2487 | P7: 0 | Q7: 188155.7229 | R7: 0 | S7: =R7*'Master Input'!$B$27 -> 0 | T7: =N7*'Master Input'!$C$30 -> 0 | U7: =O7*'Master Input'!$C$31 -> 11143.39896 | V7: =P7*'Master Input'!$G$30 -> 0 | W7: =(Q7-S7)*'Master Input'!$G$31 -> 188155.7229 | X7: 199299.1219
A8: Bay | B8: =Federal!M7 -> 0 | C8: =Federal!N7 -> 0 | D8: =Federal!O7 -> 0 | E8: =Federal!P7 -> 0 | F8: =State!M7 -> 0 | G8: =State!N7 -> 0 | H8: =State!O7 -> 0 | I8: =State!P7 -> 4267.818731 | J8: =Private!M7 -> 0 | K8: =Private!N7 -> 1734.760491 | L8: =Private!O7 -> 0 | M8: =Private!P7 -> 23814.98781 | N8: 0 | O8: 1734.760491 | P8: 0 | Q8: 28082.80654 | R8: 0 | S8: =R8*'Master Input'!$B$27 -> 0 | T8: =N8*'Master Input'!$C$30 -> 0 | U8: =O8*'Master Input'!$C$31 -> 1387.808393 | V8: =P8*'Master Input'!$G$30 -> 0 | W8: =(Q8-S8)*'Master Input'!$G$31 -> 28082.80654 | X8: 29470.61493
A9: Benzie | B9: =Federal!M8 -> 0 | C9: =Federal!N8 -> 0 | D9: =Federal!O8 -> 0 | E9: =Federal!P8 -> 0 | F9: =State!M8 -> 0 | G9: =State!N8 -> 13248.14381 | H9: =State!O8 -> 0 | I9: =State!P8 -> 40553.02262 | J9: =Private!M8 -> 0 | K9: =Private!N8 -> 11200.04345 | L9: =Private!O8 -> 0 | M9: =Private!P8 -> 58324.44554 | N9: 0 | O9: 24448.18727 | P9: 0 | Q9: 98877.46816 | R9: =Q9/$Q$55 -> 0.03421454345 | S9: =R9*'Master Input'!$B$27 -> 17107.27172 | T9: =N9*'Master Input'!$C$30 -> 0 | U9: =O9*'Master Input'!$C$31 -> 19558.54981 | V9: =P9*'Master Input'!$G$30 -> 0 | W9: =(Q9-S9)*'Master Input'!$G$31 -> 81770.19644 | X9: 101328.7463
A10: Charlevoix | B10: =Federal!M9 -> 0 | C10: =Federal!N9 -> 0 | D10: =Federal!O9 -> 0 | E10: =Federal!P9 -> 0 | F10: =State!M9 -> 0 | G10: =State!N9 -> 4727.081689 | H10: =State!O9 -> 0 | I10: =State!P9 -> 2930.255882 | J10: =Private!M9 -> 0 | K10: =Private!N9 -> 5013.456409 | L10: =Private!O9 -> 0 | M10: =Private!P9 -> 104639.8658 | N10: 0 | O10: 9740.538098 | P10: 0 | Q10: 107570.1217 | R10: =Q10/$Q$55 -> 0.03722245998 | S10: =R10*'Master Input'!$B$27 -> 18611.22999 | T10: =N10*'Master Input'!$C$30 -> 0 | U10: =O10*'Master Input'!$C$31 -> 7792.430479 | V10: =P10*'Master Input'!$G$30 -> 0 | W10: =(Q10-S10)*'Master Input'!$G$31 -> 88958.89168 | X10: 96751.32216
A11: Cheboygan | B11: =Federal!M10 -> 0 | C11: =Federal!N10 -> 0 | D11: =Federal!O10 -> 0 | E11: =Federal!P10 -> 0 | F11: =State!M10 -> 0 | G11: =State!N10 -> 21084.27525 | H11: =State!O10 -> 0 | I11: =State!P10 -> 58839.92531 | J11: =Private!M10 -> 0 | K11: =Private!N10 -> 53869.22276 | L11: =Private!O10 -> 0 | M11: =Private!P10 -> 141064.0789 | N11: 0 | O11: 74953.49801 | P11: 0 | Q11: 199904.0043 | R11: =Q11/$Q$55 -> 0.06917272829 | S11: =R11*'Master Input'!$B$27 -> 34586.36415 | T11: =N11*'Master Input'!$C$30 -> 0 | U11: =O11*'Master Input'!$C$31 -> 59962.79841 | V11: =P11*'Master Input'!$G$30 -> 0 | W11: =(Q11-S11)*'Master Input'!$G$31 -> 165317.6401 | X11: 225280.4385
A12: Clare | B12: =Federal!M11 -> 0 | C12: =Federal!N11 -> 0 | D12: =Federal!O11 -> 0 | E12: =Federal!P11 -> 0 | F12: =State!M11 -> 0 | G12: =State!N11 -> 8907.167217 | H12: =State!O11 -> 0 | I12: =State!P11 -> 15540.00347 | J12: =Private!M11 -> 0 | K12: =Private!N11 -> 23593.3211 | L12: =Private!O11 -> 0 | M12: =Private!P11 -> 112906.8039 | N12: 0 | O12: 32500.48832 | P12: 0 | Q12: 128446.8073 | R12: 0 | S12: =R12*'Master Input'!$B$27 -> 0 | T12: =N12*'Master Input'!$C$30 -> 0 | U12: =O12*'Master Input'!$C$31 -> 26000.39065 | V12: =P12*'Master Input'!$G$30 -> 0 | W12: =(Q12-S12)*'Master Input'!$G$31 -> 128446.8073 | X12: 154447.198
A13: Clinton | B13: =Federal!M12 -> 0 | C13: =Federal!N12 -> 0 | D13: =Federal!O12 -> 0 | E13: =Federal!P12 -> 0 | F13: =State!M12 -> 0 | G13: =State!N12 -> 238.4598285 | H13: =State!O12 -> 0 | I13: =State!P12 -> 12251.99063 | J13: =Private!M12 -> 0 | K13: =Private!N12 -> 3831.019051 | L13: =Private!O12 -> 0 | M13: =Private!P12 -> 42371.79845 | N13: 0 | O13: 4069.478879 | P13: 0 | Q13: 54623.78908 | R13: 0 | S13: =R13*'Master Input'!$B$27 -> 0 | T13: =N13*'Master Input'!$C$30 -> 0 | U13: =O13*'Master Input'!$C$31 -> 3255.583104 | V13: =P13*'Master Input'!$G$30 -> 0 | W13: =(Q13-S13)*'Master Input'!$G$31 -> 54623.78908 | X13: 57879.37218
A14: Crawford | B14: =Federal!M13 -> 0 | C14: =Federal!N13 -> 14163.71166 | D14: =Federal!O13 -> 0 | E14: =Federal!P13 -> 32227.32164 | F14: =State!M13 -> 0 | G14: =State!N13 -> 29377.08294 | H14: =State!O13 -> 0 | I14: =State!P13 -> 39421.89946 | J14: =Private!M13 -> 0 | K14: =Private!N13 -> 11653.04357 | L14: =Private!O13 -> 0 | M14: =Private!P13 -> 21017.07148 | N14: 0 | O14: 55193.83817 | P14: 0 | Q14: 92666.29258 | R14: =Q14/$Q$55 -> 0.03206529205 | S14: =R14*'Master Input'!$B$27 -> 16032.64603 | T14: =N14*'Master Input'!$C$30 -> 0 | U14: =O14*'Master Input'!$C$31 -> 44155.07054 | V14: =P14*'Master Input'!$G$30 -> 0 | W14: =(Q14-S14)*'Master Input'!$G$31 -> 76633.64656 | X14: 120788.7171
A15: Eaton | B15: =Federal!M14 -> 0 | C15: =Federal!N14 -> 0 | D15: =Federal!O14 -> 0 | E15: =Federal!P14 -> 0 | F15: =State!M14 -> 0 | G15: =State!N14 -> 0 | H15: =State!O14 -> 0 | I15: =State!P14 -> 3812.841413 | J15: =Private!M14 -> 0 | K15: =Private!N14 -> 208.3010503 | L15: =Private!O14 -> 0 | M15: =Private!P14 -> 105283.4385 | N15: 0 | O15: 208.3010503 | P15: 0 | Q15: 109096.2799 | R15: 0 | S15: =R15*'Master Input'!$B$27 -> 0 | T15: =N15*'Master Input'!$C$30 -> 0 | U15: =O15*'Master Input'!$C$31 -> 166.6408403 | V15: =P15*'Master Input'!$G$30 -> 0 | W15: =(Q15-S15)*'Master Input'!$G$31 -> 109096.2799 | X15: 109262.9207
A16: Emmet | B16: =Federal!M15 -> 0 | C16: =Federal!N15 -> 0 | D16: =Federal!O15 -> 0 | E16: =Federal!P15 -> 0 | F16: =State!M15 -> 0 | G16: =State!N15 -> 15765.00955 | H16: =State!O15 -> 0 | I16: =State!P15 -> 27875.69677 | J16: =Private!M15 -> 0 | K16: =Private!N15 -> 17622.05372 | L16: =Private!O15 -> 0 | M16: =Private!P15 -> 107900.2963 | N16: 0 | O16: 33387.06327 | P16: 0 | Q16: 135775.9931 | R16: =Q16/$Q$55 -> 0.04698253001 | S16: =R16*'Master Input'!$B$27 -> 23491.26501 | T16: =N16*'Master Input'!$C$30 -> 0 | U16: =O16*'Master Input'!$C$31 -> 26709.65061 | V16: =P16*'Master Input'!$G$30 -> 0 | W16: =(Q16-S16)*'Master Input'!$G$31 -> 112284.7281 | X16: 138994.3787
A17: Genesee | B17: =Federal!M16 -> 0 | C17: =Federal!N16 -> 0 | D17: =Federal!O16 -> 0 | E17: =Federal!P16 -> 0 | F17: =State!M16 -> 0 | G17: =State!N16 -> 0 | H17: =State!O16 -> 0 | I17: =State!P16 -> 55014.23403 | J17: =Private!M16 -> 0 | K17: =Private!N16 -> 2133.066852 | L17: =Private!O16 -> 0 | M17: =Private!P16 -> 101331.6294 | N17: 0 | O17: 2133.066852 | P17: 0 | Q17: 156345.8634 | R17: 0 | S17: =R17*'Master Input'!$B$27 -> 0 | T17: =N17*'Master Input'!$C$30 -> 0 | U17: =O17*'Master Input'!$C$31 -> 1706.453481 | V17: =P17*'Master Input'!$G$30 -> 0 | W17: =(Q17-S17)*'Master Input'!$G$31 -> 156345.8634 | X17: 158052.3169
A18: Gladwin | B18: =Federal!M17 -> 0 | C18: =Federal!N17 -> 0 | D18: =Federal!O17 -> 0 | E18: =Federal!P17 -> 0 | F18: =State!M17 -> 0 | G18: =State!N17 -> 5139.825299 | H18: =State!O17 -> 0 | I18: =State!P17 -> 38657.76204 | J18: =Private!M17 -> 0 | K18: =Private!N17 -> 12955.40127 | L18: =Private!O17 -> 0 | M18: =Private!P17 -> 67769.60985 | N18: 0 | O18: 18095.22657 | P18: 0 | Q18: 106427.3719 | R18: 0 | S18: =R18*'Master Input'!$B$27 -> 0 | T18: =N18*'Master Input'!$C$30 -> 0 | U18: =O18*'Master Input'!$C$31 -> 14476.18126 | V18: =P18*'Master Input'!$G$30 -> 0 | W18: =(Q18-S18)*'Master Input'!$G$31 -> 106427.3719 | X18: 120903.5532
A19: Grand Traverse | B19: =Federal!M18 -> 0 | C19: =Federal!N18 -> 0 | D19: =Federal!O18 -> 0 | E19: =Federal!P18 -> 0 | F19: =State!M18 -> 0 | G19: =State!N18 -> 10756.14534 | H19: =State!O18 -> 0 | I19: =State!P18 -> 17387.62691 | J19: =Private!M18 -> 0 | K19: =Private!N18 -> 52496.53788 | L19: =Private!O18 -> 0 | M19: =Private!P18 -> 63992.48111 | N19: 0 | O19: 63252.68322 | P19: 0 | Q19: 81380.10802 | R19: =Q19/$Q$55 -> 0.02815993667 | S19: =R19*'Master Input'!$B$27 -> 14079.96834 | T19: =N19*'Master Input'!$C$30 -> 0 | U19: =O19*'Master Input'!$C$31 -> 50602.14658 | V19: =P19*'Master Input'!$G$30 -> 0 | W19: =(Q19-S19)*'Master Input'!$G$31 -> 67300.13968 | X19: 117902.2863
A20: Gratiot | B20: =Federal!M19 -> 0 | C20: =Federal!N19 -> 0 | D20: =Federal!O19 -> 0 | E20: =Federal!P19 -> 0 | F20: =State!M19 -> 0 | G20: =State!N19 -> 0 | H20: =State!O19 -> 0 | I20: =State!P19 -> 7350.699842 | J20: =Private!M19 -> 0 | K20: =Private!N19 -> 0 | L20: =Private!O19 -> 0 | M20: =Private!P19 -> 58298.35894 | N20: 0 | O20: 0 | P20: 0 | Q20: 65649.05878 | R20: 0 | S20: =R20*'Master Input'!$B$27 -> 0 | T20: =N20*'Master Input'!$C$30 -> 0 | U20: =O20*'Master Input'!$C$31 -> 0 | V20: =P20*'Master Input'!$G$30 -> 0 | W20: =(Q20-S20)*'Master Input'!$G$31 -> 65649.05878 | X20: 65649.05878
A21: Huron | B21: =Federal!M20 -> 0 | C21: =Federal!N20 -> 0 | D21: =Federal!O20 -> 0 | E21: =Federal!P20 -> 0 | F21: =State!M20 -> 0 | G21: =State!N20 -> 0 | H21: =State!O20 -> 0 | I21: =State!P20 -> 17254.66069 | J21: =Private!M20 -> 0 | K21: =Private!N20 -> 5763.246784 | L21: =Private!O20 -> 0 | M21: =Private!P20 -> 94774.2939 | N21: 0 | O21: 5763.246784 | P21: 0 | Q21: 112028.9546 | R21: 0 | S21: =R21*'Master Input'!$B$27 -> 0 | T21: =N21*'Master Input'!$C$30 -> 0 | U21: =O21*'Master Input'!$C$31 -> 4610.597428 | V21: =P21*'Master Input'!$G$30 -> 0 | W21: =(Q21-S21)*'Master Input'!$G$31 -> 112028.9546 | X21: 116639.552
A22: Ingham | B22: =Federal!M21 -> 0 | C22: =Federal!N21 -> 0 | D22: =Federal!O21 -> 0 | E22: =Federal!P21 -> 0 | F22: =State!M21 -> 0 | G22: =State!N21 -> 10754.4647 | H22: =State!O21 -> 0 | I22: =State!P21 -> 64405.28386 | J22: =Private!M21 -> 0 | K22: =Private!N21 -> 1543.222977 | L22: =Private!O21 -> 0 | M22: =Private!P21 -> 53428.23695 | N22: 0 | O22: 12297.68767 | P22: 0 | Q22: 117833.5208 | R22: 0 | S22: =R22*'Master Input'!$B$27 -> 0 | T22: =N22*'Master Input'!$C$30 -> 0 | U22: =O22*'Master Input'!$C$31 -> 9838.150139 | V22: =P22*'Master Input'!$G$30 -> 0 | W22: =(Q22-S22)*'Master Input'!$G$31 -> 117833.5208 | X22: 127671.671
A23: Ionia | B23: =Federal!M22 -> 0 | C23: =Federal!N22 -> 0 | D23: =Federal!O22 -> 0 | E23: =Federal!P22 -> 0 | F23: =State!M22 -> 0 | G23: =State!N22 -> 0 | H23: =State!O22 -> 0 | I23: =State!P22 -> 69845.91645 | J23: =Private!M22 -> 0 | K23: =Private!N22 -> 6154.997053 | L23: =Private!O22 -> 0 | M23: =Private!P22 -> 124355.0805 | N23: 0 | O23: 6154.997053 | P23: 0 | Q23: 194200.9969 | R23: 0 | S23: =R23*'Master Input'!$B$27 -> 0 | T23: =N23*'Master Input'!$C$30 -> 0 | U23: =O23*'Master Input'!$C$31 -> 4923.997642 | V23: =P23*'Master Input'!$G$30 -> 0 | W23: =(Q23-S23)*'Master Input'!$G$31 -> 194200.9969 | X23: 199124.9946
A24: Iosco | B24: =Federal!M23 -> 0 | C24: =Federal!N23 -> 67289.40265 | D24: =Federal!O23 -> 0 | E24: =Federal!P23 -> 25478.2719 | F24: =State!M23 -> 0 | G24: =State!N23 -> 2810.210211 | H24: =State!O23 -> 0 | I24: =State!P23 -> 3075.255838 | J24: =Private!M23 -> 0 | K24: =Private!N23 -> 23864.61329 | L24: =Private!O23 -> 0 | M24: =Private!P23 -> 73227.48106 | N24: 0 | O24: 93964.22615 | P24: 0 | Q24: 101781.0088 | R24: =Q24/$Q$55 -> 0.03521925483 | S24: =R24*'Master Input'!$B$27 -> 17609.62741 | T24: =N24*'Master Input'!$C$30 -> 0 | U24: =O24*'Master Input'!$C$31 -> 75171.38092 | V24: =P24*'Master Input'!$G$30 -> 0 | W24: =(Q24-S24)*'Master Input'!$G$31 -> 84171.38139 | X24: 159342.7623
A25: Isabella | B25: =Federal!M24 -> 0 | C25: =Federal!N24 -> 0 | D25: =Federal!O24 -> 0 | E25: =Federal!P24 -> 0 | F25: =State!M24 -> 0 | G25: =State!N24 -> 0 | H25: =State!O24 -> 0 | I25: =State!P24 -> 5474.456645 | J25: =Private!M24 -> 0 | K25: =Private!N24 -> 887.9246686 | L25: =Private!O24 -> 0 | M25: =Private!P24 -> 141728.6384 | N25: 0 | O25: 887.9246686 | P25: 0 | Q25: 147203.095 | R25: 0 | S25: =R25*'Master Input'!$B$27 -> 0 | T25: =N25*'Master Input'!$C$30 -> 0 | U25: =O25*'Master Input'!$C$31 -> 710.3397349 | V25: =P25*'Master Input'!$G$30 -> 0 | W25: =(Q25-S25)*'Master Input'!$G$31 -> 147203.095 | X25: 147913.4348
A26: Kalkaska | B26: =Federal!M25 -> 0 | C26: =Federal!N25 -> 417.1049425 | D26: =Federal!O25 -> 0 | E26: =Federal!P25 -> 0 | F26: =State!M25 -> 0 | G26: =State!N25 -> 44258.80945 | H26: =State!O25 -> 0 | I26: =State!P25 -> 59641.65666 | J26: =Private!M25 -> 0 | K26: =Private!N25 -> 35553.19078 | L26: =Private!O25 -> 0 | M26: =Private!P25 -> 70509.59 | N26: 0 | O26: 80229.10517 | P26: 0 | Q26: 130151.2467 | R26: =Q26/$Q$55 -> 0.04503620053 | S26: =R26*'Master Input'!$B$27 -> 22518.10026 | T26: =N26*'Master Input'!$C$30 -> 0 | U26: =O26*'Master Input'!$C$31 -> 64183.28413 | V26: =P26*'Master Input'!$G$30 -> 0 | W26: =(Q26-S26)*'Master Input'!$G$31 -> 107633.1464 | X26: 171816.4305
A27: Kent | B27: =Federal!M26 -> 0 | C27: =Federal!N26 -> 0 | D27: =Federal!O26 -> 0 | E27: =Federal!P26 -> 0 | F27: =State!M26 -> 0 | G27: =State!N26 -> 606.8632504 | H27: =State!O26 -> 0 | I27: =State!P26 -> 34442.92698 | J27: =Private!M26 -> 0 | K27: =Private!N26 -> 33921.88151 | L27: =Private!O26 -> 0 | M27: =Private!P26 -> 132821.3067 | N27: 0 | O27: 34528.74476 | P27: 0 | Q27: 167264.2337 | R27: 0 | S27: =R27*'Master Input'!$B$27 -> 0 | T27: =N27*'Master Input'!$C$30 -> 0 | U27: =O27*'Master Input'!$C$31 -> 27622.99581 | V27: =P27*'Master Input'!$G$30 -> 0 | W27: =(Q27-S27)*'Master Input'!$G$31 -> 167264.2337 | X27: 194887.2295
A28: Lake | B28: =Federal!M27 -> 0 | C28: =Federal!N27 -> 41358.74271 | D28: =Federal!O27 -> 0 | E28: =Federal!P27 -> 71291.74946 | F28: =State!M27 -> 0 | G28: =State!N27 -> 13539.59151 | H28: =State!O27 -> 0 | I28: =State!P27 -> 19018.78561 | J28: =Private!M27 -> 0 | K28: =Private!N27 -> 55651.91436 | L28: =Private!O27 -> 0 | M28: =Private!P27 -> 68355.35237 | N28: 0 | O28: 110550.2486 | P28: 0 | Q28: 158665.8874 | R28: 0 | S28: =R28*'Master Input'!$B$27 -> 0 | T28: =N28*'Master Input'!$C$30 -> 0 | U28: =O28*'Master Input'!$C$31 -> 88440.19886 | V28: =P28*'Master Input'!$G$30 -> 0 | W28: =(Q28-S28)*'Master Input'!$G$31 -> 158665.8874 | X28: 247106.0863
A29: Lapeer | B29: =Federal!M28 -> 0 | C29: =Federal!N28 -> 0 | D29: =Federal!O28 -> 0 | E29: =Federal!P28 -> 0 | F29: =State!M28 -> 0 | G29: =State!N28 -> 330.4917118 | H29: =State!O28 -> 0 | I29: =State!P28 -> 9132.723123 | J29: =Private!M28 -> 0 | K29: =Private!N28 -> 5331.220833 | L29: =Private!O28 -> 0 | M29: =Private!P28 -> 80603.12462 | N29: 0 | O29: 5661.712545 | P29: 0 | Q29: 89735.84774 | R29: 0 | S29: =R29*'Master Input'!$B$27 -> 0 | T29: =N29*'Master Input'!$C$30 -> 0 | U29: =O29*'Master Input'!$C$31 -> 4529.370036 | V29: =P29*'Master Input'!$G$30 -> 0 | W29: =(Q29-S29)*'Master Input'!$G$31 -> 89735.84774 | X29: 94265.21777
A30: Leelanau | B30: =Federal!M29 -> 0 | C30: =Federal!N29 -> 0 | D30: =Federal!O29 -> 0 | E30: =Federal!P29 -> 0 | F30: =State!M29 -> 0 | G30: =State!N29 -> 1669.816659 | H30: =State!O29 -> 0 | I30: =State!P29 -> 3118.497935 | J30: =Private!M29 -> 0 | K30: =Private!N29 -> 2771.028238 | L30: =Private!O29 -> 0 | M30: =Private!P29 -> 51742.72288 | N30: 0 | O30: 4440.844897 | P30: 0 | Q30: 54861.22081 | R30: =Q30/$Q$55 -> 0.01898361333 | S30: =R30*'Master Input'!$B$27 -> 9491.806667 | T30: =N30*'Master Input'!$C$30 -> 0 | U30: =O30*'Master Input'!$C$31 -> 3552.675918 | V30: =P30*'Master Input'!$G$30 -> 0 | W30: =(Q30-S30)*'Master Input'!$G$31 -> 45369.41414 | X30: 48922.09006
A31: Livingston | B31: =Federal!M30 -> 0 | C31: =Federal!N30 -> 0 | D31: =Federal!O30 -> 0 | E31: =Federal!P30 -> 0 | F31: =State!M30 -> 0 | G31: =State!N30 -> 174.821494 | H31: =State!O30 -> 0 | I31: =State!P30 -> 19554.94129 | J31: =Private!M30 -> 0 | K31: =Private!N30 -> 7754.257895 | L31: =Private!O30 -> 0 | M31: =Private!P30 -> 57090.35453 | N31: 0 | O31: 7929.079389 | P31: 0 | Q31: 76645.29582 | R31: 0 | S31: =R31*'Master Input'!$B$27 -> 0 | T31: =N31*'Master Input'!$C$30 -> 0 | U31: =O31*'Master Input'!$C$31 -> 6343.263511 | V31: =P31*'Master Input'!$G$30 -> 0 | W31: =(Q31-S31)*'Master Input'!$G$31 -> 76645.29582 | X31: 82988.55933
A32: Manistee | B32: =Federal!M31 -> 0 | C32: =Federal!N31 -> 22301.95014 | D32: =Federal!O31 -> 0 | E32: =Federal!P31 -> 82802.02439 | F32: =State!M31 -> 0 | G32: =State!N31 -> 4871.166782 | H32: =State!O31 -> 0 | I32: =State!P31 -> 11964.45782 | J32: =Private!M31 -> 0 | K32: =Private!N31 -> 43609.09106 | L32: =Private!O31 -> 0 | M32: =Private!P31 -> 86082.63305 | N32: 0 | O32: 70782.20798 | P32: 0 | Q32: 180849.1153 | R32: =Q32/$Q$55 -> 0.06257917023 | S32: =R32*'Master Input'!$B$27 -> 31289.58511 | T32: =N32*'Master Input'!$C$30 -> 0 | U32: =O32*'Master Input'!$C$31 -> 56625.76639 | V32: =P32*'Master Input'!$G$30 -> 0 | W32: =(Q32-S32)*'Master Input'!$G$31 -> 149559.5302 | X32: 206185.2965
A33: Mason | B33: =Federal!M32 -> 0 | C33: =Federal!N32 -> 37695.64017 | D33: =Federal!O32 -> 0 | E33: =Federal!P32 -> 42141.53055 | F33: =State!M32 -> 0 | G33: =State!N32 -> 3217.514542 | H33: =State!O32 -> 0 | I33: =State!P32 -> 3450.050941 | J33: =Private!M32 -> 0 | K33: =Private!N32 -> 18405.0343 | L33: =Private!O32 -> 0 | M33: =Private!P32 -> 117090.9485 | N33: 0 | O33: 59318.18901 | P33: 0 | Q33: 162682.53 | R33: 0 | S33: =R33*'Master Input'!$B$27 -> 0 | T33: =N33*'Master Input'!$C$30 -> 0 | U33: =O33*'Master Input'!$C$31 -> 47454.55121 | V33: =P33*'Master Input'!$G$30 -> 0 | W33: =(Q33-S33)*'Master Input'!$G$31 -> 162682.53 | X33: 210137.0812
A34: Mecosta | B34: =Federal!M33 -> 0 | C34: =Federal!N33 -> 0 | D34: =Federal!O33 -> 0 | E34: =Federal!P33 -> 0 | F34: =State!M33 -> 0 | G34: =State!N33 -> 0 | H34: =State!O33 -> 0 | I34: =State!P33 -> 7839.16911 | J34: =Private!M33 -> 0 | K34: =Private!N33 -> 49067.41799 | L34: =Private!O33 -> 0 | M34: =Private!P33 -> 114843.7756 | N34: 0 | O34: 49067.41799 | P34: 0 | Q34: 122682.9447 | R34: 0 | S34: =R34*'Master Input'!$B$27 -> 0 | T34: =N34*'Master Input'!$C$30 -> 0 | U34: =O34*'Master Input'!$C$31 -> 39253.93439 | V34: =P34*'Master Input'!$G$30 -> 0 | W34: =(Q34-S34)*'Master Input'!$G$31 -> 122682.9447 | X34: 161936.8791
A35: Midland | B35: =Federal!M34 -> 0 | C35: =Federal!N34 -> 0 | D35: =Federal!O34 -> 0 | E35: =Federal!P34 -> 0 | F35: =State!M34 -> 0 | G35: =State!N34 -> 1634.377668 | H35: =State!O34 -> 0 | I35: =State!P34 -> 5803.703164 | J35: =Private!M34 -> 0 | K35: =Private!N34 -> 3625.605693 | L35: =Private!O34 -> 0 | M35: =Private!P34 -> 95180.79511 | N35: 0 | O35: 5259.983361 | P35: 0 | Q35: 100984.4983 | R35: 0 | S35: =R35*'Master Input'!$B$27 -> 0 | T35: =N35*'Master Input'!$C$30 -> 0 | U35: =O35*'Master Input'!$C$31 -> 4207.986689 | V35: =P35*'Master Input'!$G$30 -> 0 | W35: =(Q35-S35)*'Master Input'!$G$31 -> 100984.4983 | X35: 105192.485
A36: Missaukee | B36: =Federal!M35 -> 0 | C36: =Federal!N35 -> 0 | D36: =Federal!O35 -> 0 | E36: =Federal!P35 -> 0 | F36: =State!M35 -> 0 | G36: =State!N35 -> 45880.69072 | H36: =State!O35 -> 0 | I36: =State!P35 -> 36193.87062 | J36: =Private!M35 -> 0 | K36: =Private!N35 -> 39096.14264 | L36: =Private!O35 -> 0 | M36: =Private!P35 -> 115470.8768 | N36: 0 | O36: 84976.83336 | P36: 0 | Q36: 151664.7475 | R36: =Q36/$Q$55 -> 0.05248051137 | S36: =R36*'Master Input'!$B$27 -> 26240.25568 | T36: =N36*'Master Input'!$C$30 -> 0 | U36: =O36*'Master Input'!$C$31 -> 67981.46669 | V36: =P36*'Master Input'!$G$30 -> 0 | W36: =(Q36-S36)*'Master Input'!$G$31 -> 125424.4918 | X36: 193405.9585
A37: Montcalm | B37: =Federal!M36 -> 0 | C37: =Federal!N36 -> 0 | D37: =Federal!O36 -> 0 | E37: =Federal!P36 -> 0 | F37: =State!M36 -> 0 | G37: =State!N36 -> 2239.503802 | H37: =State!O36 -> 0 | I37: =State!P36 -> 25003.52651 | J37: =Private!M36 -> 0 | K37: =Private!N36 -> 19616.3413 | L37: =Private!O36 -> 0 | M37: =Private!P36 -> 141524.6171 | N37: 0 | O37: 21855.8451 | P37: 0 | Q37: 166528.1436 | R37: 0 | S37: =R37*'Master Input'!$B$27 -> 0 | T37: =N37*'Master Input'!$C$30 -> 0 | U37: =O37*'Master Input'!$C$31 -> 17484.67608 | V37: =P37*'Master Input'!$G$30 -> 0 | W37: =(Q37-S37)*'Master Input'!$G$31 -> 166528.1436 | X37: 184012.8197
A38: Montmorency | B38: =Federal!M37 -> 0 | C38: =Federal!N37 -> 0 | D38: =Federal!O37 -> 0 | E38: =Federal!P37 -> 0 | F38: =State!M37 -> 0 | G38: =State!N37 -> 22496.40958 | H38: =State!O37 -> 0 | I38: =State!P37 -> 61715.24321 | J38: =Private!M37 -> 0 | K38: =Private!N37 -> 48915.03657 | L38: =Private!O37 -> 0 | M38: =Private!P37 -> 111095.5195 | N38: 0 | O38: 71411.44615 | P38: 0 | Q38: 172810.7627 | R38: =Q38/$Q$55 -> 0.05979766128 | S38: =R38*'Master Input'!$B$27 -> 29898.83064 | T38: =N38*'Master Input'!$C$30 -> 0 | U38: =O38*'Master Input'!$C$31 -> 57129.15692 | V38: =P38*'Master Input'!$G$30 -> 0 | W38: =(Q38-S38)*'Master Input'!$G$31 -> 142911.9321 | X38: 200041.089
A39: Muskegon | B39: =Federal!M38 -> 0 | C39: =Federal!N38 -> 4235.250801 | D39: =Federal!O38 -> 0 | E39: =Federal!P38 -> 6627.294373 | F39: =State!M38 -> 0 | G39: =State!N38 -> 3520.73108 | H39: =State!O38 -> 0 | I39: =State!P38 -> 28596.20921 | J39: =Private!M38 -> 0 | K39: =Private!N38 -> 22329.88787 | L39: =Private!O38 -> 0 | M39: =Private!P38 -> 166930.159 | N39: 0 | O39: 30085.86975 | P39: 0 | Q39: 202153.6626 | R39: 0 | S39: =R39*'Master Input'!$B$27 -> 0 | T39: =N39*'Master Input'!$C$30 -> 0 | U39: =O39*'Master Input'!$C$31 -> 24068.6958 | V39: =P39*'Master Input'!$G$30 -> 0 | W39: =(Q39-S39)*'Master Input'!$G$31 -> 202153.6626 | X39: 226222.3584
A40: Newaygo | B40: =Federal!M39 -> 0 | C40: =Federal!N39 -> 34558.41291 | D40: =Federal!O39 -> 0 | E40: =Federal!P39 -> 61148.20258 | F40: =State!M39 -> 0 | G40: =State!N39 -> 597.0793638 | H40: =State!O39 -> 0 | I40: =State!P39 -> 4182.442379 | J40: =Private!M39 -> 0 | K40: =Private!N39 -> 88185.58637 | L40: =Private!O39 -> 0 | M40: =Private!P39 -> 129723.5561 | N40: 0 | O40: 123341.0787 | P40: 0 | Q40: 195054.201 | R40: 0 | S40: =R40*'Master Input'!$B$27 -> 0 | T40: =N40*'Master Input'!$C$30 -> 0 | U40: =O40*'Master Input'!$C$31 -> 98672.86292 | V40: =P40*'Master Input'!$G$30 -> 0 | W40: =(Q40-S40)*'Master Input'!$G$31 -> 195054.201 | X40: 293727.064
A41: Oceana | B41: =Federal!M40 -> 0 | C41: =Federal!N40 -> 23408.32586 | D41: =Federal!O40 -> 0 | E41: =Federal!P40 -> 43162.93044 | F41: =State!M40 -> 0 | G41: =State!N40 -> 1746.998626 | H41: =State!O40 -> 0 | I41: =State!P40 -> 8216.724732 | J41: =Private!M40 -> 0 | K41: =Private!N40 -> 35586.67907 | L41: =Private!O40 -> 0 | M41: =Private!P40 -> 123456.762 | N41: 0 | O41: 60742.00356 | P41: 0 | Q41: 174836.4171 | R41: 0 | S41: =R41*'Master Input'!$B$27 -> 0 | T41: =N41*'Master Input'!$C$30 -> 0 | U41: =O41*'Master Input'!$C$31 -> 48593.60285 | V41: =P41*'Master Input'!$G$30 -> 0 | W41: =(Q41-S41)*'Master Input'!$G$31 -> 174836.4171 | X41: 223430.02
A42: Ogemaw | B42: =Federal!M41 -> 0 | C42: =Federal!N41 -> 8550.375315 | D42: =Federal!O41 -> 0 | E42: =Federal!P41 -> 16043.56912 | F42: =State!M41 -> 0 | G42: =State!N41 -> 14274.18699 | H42: =State!O41 -> 0 | I42: =State!P41 -> 30685.70658 | J42: =Private!M41 -> 0 | K42: =Private!N41 -> 22949.95442 | L42: =Private!O41 -> 0 | M42: =Private!P41 -> 57104.161 | N42: 0 | O42: 45774.51673 | P42: 0 | Q42: 103833.4367 | R42: =Q42/$Q$55 -> 0.03592945589 | S42: =R42*'Master Input'!$B$27 -> 17964.72795 | T42: =N42*'Master Input'!$C$30 -> 0 | U42: =O42*'Master Input'!$C$31 -> 36619.61339 | V42: =P42*'Master Input'!$G$30 -> 0 | W42: =(Q42-S42)*'Master Input'!$G$31 -> 85868.70875 | X42: 122488.3221
A43: Osceola | B43: =Federal!M42 -> 0 | C43: =Federal!N42 -> 0 | D43: =Federal!O42 -> 0 | E43: =Federal!P42 -> 0 | F43: =State!M42 -> 0 | G43: =State!N42 -> 2871.436961 | H43: =State!O42 -> 0 | I43: =State!P42 -> 15480.94286 | J43: =Private!M42 -> 0 | K43: =Private!N42 -> 27707.97223 | L43: =Private!O42 -> 0 | M43: =Private!P42 -> 100093.371 | N43: 0 | O43: 30579.40919 | P43: 0 | Q43: 115574.3139 | R43: 0 | S43: =R43*'Master Input'!$B$27 -> 0 | T43: =N43*'Master Input'!$C$30 -> 0 | U43: =O43*'Master Input'!$C$31 -> 24463.52736 | V43: =P43*'Master Input'!$G$30 -> 0 | W43: =(Q43-S43)*'Master Input'!$G$31 -> 115574.3139 | X43: 140037.8412
A44: Oscoda | B44: =Federal!M43 -> 0 | C44: =Federal!N43 -> 80461.91706 | D44: =Federal!O43 -> 0 | E44: =Federal!P43 -> 100414.2062 | F44: =State!M43 -> 0 | G44: =State!N43 -> 10974.33014 | H44: =State!O43 -> 0 | I44: =State!P43 -> 13873.08513 | J44: =Private!M43 -> 0 | K44: =Private!N43 -> 21041.52743 | L44: =Private!O43 -> 0 | M44: =Private!P43 -> 63171.05095 | N44: 0 | O44: 112477.7746 | P44: 0 | Q44: 177458.3423 | R44: =Q44/$Q$55 -> 0.06140586199 | S44: =R44*'Master Input'!$B$27 -> 30702.93099 | T44: =N44*'Master Input'!$C$30 -> 0 | U44: =O44*'Master Input'!$C$31 -> 89982.2197 | V44: =P44*'Master Input'!$G$30 -> 0 | W44: =(Q44-S44)*'Master Input'!$G$31 -> 146755.4113 | X44: 236737.631
A45: Otsego | B45: =Federal!M44 -> 0 | C45: =Federal!N44 -> 0 | D45: =Federal!O44 -> 0 | E45: =Federal!P44 -> 0 | F45: =State!M44 -> 0 | G45: =State!N44 -> 51719.13654 | H45: =State!O44 -> 0 | I45: =State!P44 -> 62007.36639 | J45: =Private!M44 -> 0 | K45: =Private!N44 -> 45374.39333 | L45: =Private!O44 -> 0 | M45: =Private!P44 -> 176503.2907 | N45: 0 | O45: 97093.52987 | P45: 0 | Q45: 238510.6571 | R45: =Q45/$Q$55 -> 0.08253177789 | S45: =R45*'Master Input'!$B$27 -> 41265.88894 | T45: =N45*'Master Input'!$C$30 -> 0 | U45: =O45*'Master Input'!$C$31 -> 77674.8239 | V45: =P45*'Master Input'!$G$30 -> 0 | W45: =(Q45-S45)*'Master Input'!$G$31 -> 197244.7682 | X45: 274919.5921
A46: Ottawa | B46: =Federal!M45 -> 0 | C46: =Federal!N45 -> 0 | D46: =Federal!O45 -> 0 | E46: =Federal!P45 -> 0 | F46: =State!M45 -> 0 | G46: =State!N45 -> 606.144828 | H46: =State!O45 -> 0 | I46: =State!P45 -> 3963.289765 | J46: =Private!M45 -> 0 | K46: =Private!N45 -> 7031.800476 | L46: =Private!O45 -> 0 | M46: =Private!P45 -> 73688.29938 | N46: 0 | O46: 7637.945304 | P46: 0 | Q46: 77651.58914 | R46: 0 | S46: =R46*'Master Input'!$B$27 -> 0 | T46: =N46*'Master Input'!$C$30 -> 0 | U46: =O46*'Master Input'!$C$31 -> 6110.356243 | V46: =P46*'Master Input'!$G$30 -> 0 | W46: =(Q46-S46)*'Master Input'!$G$31 -> 77651.58914 | X46: 83761.94539
A47: Presque Isle | B47: =Federal!M46 -> 0 | C47: =Federal!N46 -> 0 | D47: =Federal!O46 -> 0 | E47: =Federal!P46 -> 0 | F47: =State!M46 -> 0 | G47: =State!N46 -> 19508.12576 | H47: =State!O46 -> 0 | I47: =State!P46 -> 14759.70247 | J47: =Private!M46 -> 0 | K47: =Private!N46 -> 44335.81696 | L47: =Private!O46 -> 0 | M47: =Private!P46 -> 103150.9084 | N47: 0 | O47: 63843.94272 | P47: 0 | Q47: 117910.6108 | R47: =Q47/$Q$55 -> 0.04080057664 | S47: =R47*'Master Input'!$B$27 -> 20400.28832 | T47: =N47*'Master Input'!$C$30 -> 0 | U47: =O47*'Master Input'!$C$31 -> 51075.15417 | V47: =P47*'Master Input'!$G$30 -> 0 | W47: =(Q47-S47)*'Master Input'!$G$31 -> 97510.32252 | X47: 148585.4767
A48: Roscommon | B48: =Federal!M47 -> 0 | C48: =Federal!N47 -> 0 | D48: =Federal!O47 -> 0 | E48: =Federal!P47 -> 0 | F48: =State!M47 -> 0 | G48: =State!N47 -> 46883.70368 | H48: =State!O47 -> 0 | I48: =State!P47 -> 74231.99063 | J48: =Private!M47 -> 0 | K48: =Private!N47 -> 4704.459625 | L48: =Private!O47 -> 0 | M48: =Private!P47 -> 55926.34952 | N48: 0 | O48: 51588.1633 | P48: 0 | Q48: 130158.3401 | R48: =Q48/$Q$55 -> 0.04503865508 | S48: =R48*'Master Input'!$B$27 -> 22519.32754 | T48: =N48*'Master Input'!$C$30 -> 0 | U48: =O48*'Master Input'!$C$31 -> 41270.53064 | V48: =P48*'Master Input'!$G$30 -> 0 | W48: =(Q48-S48)*'Master Input'!$G$31 -> 107639.0126 | X48: 148909.5432
A49: Saginaw | B49: =Federal!M48 -> 0 | C49: =Federal!N48 -> 0 | D49: =Federal!O48 -> 0 | E49: =Federal!P48 -> 23443.60515 | F49: =State!M48 -> 0 | G49: =State!N48 -> 1029.363855 | H49: =State!O48 -> 0 | I49: =State!P48 -> 2895.558106 | J49: =Private!M48 -> 0 | K49: =Private!N48 -> 5568.585069 | L49: =Private!O48 -> 0 | M49: =Private!P48 -> 128790.0213 | N49: 0 | O49: 6597.948923 | P49: 0 | Q49: 155129.1846 | R49: 0 | S49: =R49*'Master Input'!$B$27 -> 0 | T49: =N49*'Master Input'!$C$30 -> 0 | U49: =O49*'Master Input'!$C$31 -> 5278.359139 | V49: =P49*'Master Input'!$G$30 -> 0 | W49: =(Q49-S49)*'Master Input'!$G$31 -> 155129.1846 | X49: 160407.5437
A50: Sanilac | B50: =Federal!M49 -> 0 | C50: =Federal!N49 -> 0 | D50: =Federal!O49 -> 0 | E50: =Federal!P49 -> 0 | F50: =State!M49 -> 0 | G50: =State!N49 -> 0 | H50: =State!O49 -> 0 | I50: =State!P49 -> 19852.36285 | J50: =Private!M49 -> 0 | K50: =Private!N49 -> 8228.275474 | L50: =Private!O49 -> 0 | M50: =Private!P49 -> 79052.2381 | N50: 0 | O50: 8228.275474 | P50: 0 | Q50: 98904.60095 | R50: 0 | S50: =R50*'Master Input'!$B$27 -> 0 | T50: =N50*'Master Input'!$C$30 -> 0 | U50: =O50*'Master Input'!$C$31 -> 6582.620379 | V50: =P50*'Master Input'!$G$30 -> 0 | W50: =(Q50-S50)*'Master Input'!$G$31 -> 98904.60095 | X50: 105487.2213
A51: Shiawassee | B51: =Federal!M50 -> 0 | C51: =Federal!N50 -> 0 | D51: =Federal!O50 -> 0 | E51: =Federal!P50 -> 0 | F51: =State!M50 -> 0 | G51: =State!N50 -> 792.7432845 | H51: =State!O50 -> 0 | I51: =State!P50 -> 8076.527404 | J51: =Private!M50 -> 0 | K51: =Private!N50 -> 0 | L51: =Private!O50 -> 0 | M51: =Private!P50 -> 26156.06646 | N51: 0 | O51: 792.7432845 | P51: 0 | Q51: 34232.59386 | R51: 0 | S51: =R51*'Master Input'!$B$27 -> 0 | T51: =N51*'Master Input'!$C$30 -> 0 | U51: =O51*'Master Input'!$C$31 -> 634.1946276 | V51: =P51*'Master Input'!$G$30 -> 0 | W51: =(Q51-S51)*'Master Input'!$G$31 -> 34232.59386 | X51: 34866.78849
A52: Tuscola | B52: =Federal!M51 -> 0 | C52: =Federal!N51 -> 0 | D52: =Federal!O51 -> 0 | E52: =Federal!P51 -> 0 | F52: =State!M51 -> 0 | G52: =State!N51 -> 1174.872171 | H52: =State!O51 -> 0 | I52: =State!P51 -> 30668.40312 | J52: =Private!M51 -> 0 | K52: =Private!N51 -> 10318.49273 | L52: =Private!O51 -> 0 | M52: =Private!P51 -> 99455.83073 | N52: 0 | O52: 11493.3649 | P52: 0 | Q52: 130124.2339 | R52: 0 | S52: =R52*'Master Input'!$B$27 -> 0 | T52: =N52*'Master Input'!$C$30 -> 0 | U52: =O52*'Master Input'!$C$31 -> 9194.691917 | V52: =P52*'Master Input'!$G$30 -> 0 | W52: =(Q52-S52)*'Master Input'!$G$31 -> 130124.2339 | X52: 139318.9258
A53: Wexford | B53: =Federal!M52 -> 0 | C53: =Federal!N52 -> 50436.19332 | D53: =Federal!O52 -> 0 | E53: =Federal!P52 -> 88517.62911 | F53: =State!M52 -> 0 | G53: =State!N52 -> 19818.73645 | H53: =State!O52 -> 0 | I53: =State!P52 -> 20965.96939 | J53: =Private!M52 -> 0 | K53: =Private!N52 -> 41233.41511 | L53: =Private!O52 -> 0 | M53: =Private!P52 -> 79585.28139 | N53: 0 | O53: 111488.3449 | P53: 0 | Q53: 189068.8799 | R53: =Q53/$Q$55 -> 0.06542345315 | S53: =R53*'Master Input'!$B$27 -> 32711.72658 | T53: =N53*'Master Input'!$C$30 -> 0 | U53: =O53*'Master Input'!$C$31 -> 89190.67591 | V53: =P53*'Master Input'!$G$30 -> 0 | W53: =(Q53-S53)*'Master Input'!$G$31 -> 156357.1533 | X53: 245547.8292
T54: =SUM(T3:T53) -> 0 | U54: =SUM(U3:U53) -> 1590908.989 | V54: 0 | W54: 6128572.478 | X54: 7719481.467
Q55: =SUM(Q53,Q48,Q47,Q45,Q44,Q42,Q38,Q36,Q32,Q30,Q26,Q24,Q19,Q16,Q14,Q11,Q10,Q9,Q5,Q4,Q3) -> 2889925.108 | R55: =SUM(R53,R48,R47,R45,R44,R42,R38,R36,R32,R30,R26,R24,R19,R16,R14,R11,R10,R9,R5,R4,R3) -> 1

Sheet Manton optimiz
A1: County (supplier) | B1: Biorefinery location (demand site)
A2: Cost | B2: Manton | E2: supply
A3: Alcona | B3: ='Cost per ton'!B3 -> 22.908388 | E3: =total!X3 -> 211862.2042
A4: Alpena | B4: ='Cost per ton'!B4 -> 26.118804 | E4: =total!X4 -> 121911.7829
A5: Antrim | B5: ='Cost per ton'!B5 -> 14.584128 | E5: =total!X5 -> 134826.9076
A6: Arenac | B6: ='Cost per ton'!B6 -> 21.180488 | E6: =total!X6 -> 118832.7873
A7: Bay | B7: ='Cost per ton'!B8 -> 24.238168 | E7: =total!X8 -> 29470.61493
A8: Benzie | B8: ='Cost per ton'!B9 -> 13.530664 | E8: =total!X9 -> 101328.7463
A9: Charlevoix | B9: ='Cost per ton'!B10 -> 17.748072 | E9: =total!X10 -> 96751.32216
A10: Cheboygan | B10: ='Cost per ton'!B11 -> 23.776408 | E10: =total!X11 -> 225280.4385
A11: Clare | B11: ='Cost per ton'!B12 -> 15.108048 | E11: =total!X12 -> 154447.198
A12: Crawford | B12: ='Cost per ton'!B14 -> 15.310216 | E12: =total!X14 -> 120788.7171
A13: Emmet | B13: ='Cost per ton'!B16 -> 21.66948 | E13: =total!X16 -> 138994.3787
A14: Gladwin | B14: ='Cost per ton'!B18 -> 18.411112 | E14: =total!X18 -> 120903.5532
A15: Grand Traverse | B15: ='Cost per ton'!B19 -> 10.527744 | E15: =total!X19 -> 117902.2863
A16: Gratiot | B16: ='Cost per ton'!B20 -> 24.091352 | E16: =total!X20 -> 65649.05878
A17: Iosco | B17: ='Cost per ton'!B24 -> 19.986424 | E17: =total!X24 -> 159342.7623
A18: Isabella | B18: ='Cost per ton'!B25 -> 18.712588 | E18: =total!X25 -> 147913.4348
A19: Kalkaska | B19: ='Cost per ton'!B26 -> 11.7742 | E19: =total!X26 -> 171816.4305
A20: Kent | B20: ='Cost per ton'!B27 -> 21.825472 | E20: =total!X27 -> 194887.2295
A21: Lake | B21: ='Cost per ton'!B28 -> 13.96312 | E21: =total!X28 -> 247106.0863
A22: Leelanau | B22: ='Cost per ton'!B30 -> 15.114708 | E22: =total!X30 -> 48922.09006
A23: Manistee | B23: ='Cost per ton'!B32 -> 12.341928 | E23: =total!X32 -> 206185.2965
A24: Mason | B24: ='Cost per ton'!B33 -> 17.216012 | E24: =total!X33 -> 210137.0812
A25: Mecosta | B25: ='Cost per ton'!B34 -> 15.206172 | E25: =total!X34 -> 161936.8791
A26: Midland | B26: ='Cost per ton'!B35 -> 21.991972 | E26: =total!X35 -> 105192.485
A27: Missaukee | B27: ='Cost per ton'!B36 -> 9.702348 | E27: =total!X36 -> 193405.9585
A28: Montcalm | B28: ='Cost per ton'!B37 -> 19.874832 | E28: =total!X37 -> 184012.8197
A29: Montmorency | B29: ='Cost per ton'!B38 -> 22.333556 | E29: =total!X38 -> 200041.089
A30: Muskegon | B30: ='Cost per ton'!B39 -> 23.696784 | E30: =total!X39 -> 226222.3584
A31: Newaygo | B31: ='Cost per ton'!B40 -> 18.400752 | E31: =total!X40 -> 293727.064
A32: Oceana | B32: ='Cost per ton'!B41 -> 20.975804 | E32: =total!X41 -> 223430.02
A33: Ogemaw | B33: ='Cost per ton'!B42 -> 16.704524 | E33: =total!X42 -> 122488.3221
A34: Osceola | B34: ='Cost per ton'!B43 -> 11.607108 | E34: =total!X43 -> 140037.8412
A35: Oscoda | B35: ='Cost per ton'!B44 -> 18.863844 | E35: =total!X44 -> 236737.631
A36: Otsego | B36: ='Cost per ton'!B45 -> 18.785404 | E36: =total!X45 -> 274919.5921
A37: Presque Isle | B37: ='Cost per ton'!B47 -> 27.0034 | E37: =total!X47 -> 148585.4767
A38: Roscommon | B38: ='Cost per ton'!B48 -> 13.211872 | E38: =total!X48 -> 148909.5432
A39: Wexford | B39: ='Cost per ton'!B53 -> 8.771576 | E39: =total!X53 -> 245547.8292
A40: demand
A45: COST OPTIMIZATION
B46: Manton | E46: supply
A47: Alcona | B47: 0 | C47: =SUM(B47:B47) -> 0 | D47: ≤ | E47: =total!X3 -> 211862.2042
A48: Alpena | B48: 0 | C48: 0 | D48: ≤ | E48: =total!X4 -> 121911.7829
A49: Antrim | B49: 0 | C49: 0 | D49: ≤ | E49: =total!X5 -> 134826.9076
A50: Arenac | B50: 0 | C50: 0 | D50: ≤ | E50: =total!X6 -> 118832.7873
A51: Bay | B51: 0 | C51: 0 | D51: ≤ | E51: =total!X8 -> 29470.61493
A52: Benzie | B52: 0 | C52: 0 | D52: ≤ | E52: =total!X9 -> 101328.7463
A53: Charlevoix | B53: 0 | C53: 0 | D53: ≤ | E53: =total!X10 -> 96751.32216
A54: Cheboygan | B54: 0 | C54: 0 | D54: ≤ | E54: =total!X11 -> 225280.4385
A55: Clare | B55: 0 | C55: 0 | D55: ≤ | E55: =total!X12 -> 154447.198
A56: Crawford | B56: 0 | C56: 0 | D56: ≤ | E56: =total!X14 -> 120788.7171
A57: Emmet | B57: 0 | C57: 0 | D57: ≤ | E57: =total!X16 -> 138994.3787
A58: Gladwin | B58: 0 | C58: 0 | D58: ≤ | E58: =total!X18 -> 120903.5532
A59: Grand Traverse | B59: 117902.2863 | C59: 117902.2863 | D59: ≤ | E59: =total!X19 -> 117902.2863
A60: Gratiot | B60: 0 | C60: 0 | D60: ≤ | E60: =total!X20 -> 65649.05878
A61: Iosco | B61: 0 | C61: 0 | D61: ≤ | E61: =total!X24 -> 159342.7623
A62: Isabella | B62: 0 | C62: 0 | D62: ≤ | E62: =total!X25 -> 147913.4348
A63: Kalkaska | B63: 53106.0848 | C63: 53106.0848 | D63: ≤ | E63: =total!X26 -> 171816.4305
A64: Kent | B64: 0 | C64: 0 | D64: ≤ | E64: =total!X27 -> 194887.2295
A65: Lake | B65: 0 | C65: 0 | D65: ≤ | E65: =total!X28 -> 247106.0863
A66: Leelanau | B66: 0 | C66: 0 | D66: ≤ | E66: =total!X30 -> 48922.09006
A67: Manistee | B67: 0 | C67: 0 | D67: ≤ | E67: =total!X32 -> 206185.2965
A68: Mason | B68: 0 | C68: 0 | D68: ≤ | E68: =total!X33 -> 210137.0812
A69: Mecosta | B69: 0 | C69: 0 | D69: ≤ | E69: =total!X34 -> 161936.8791
A70: Midland | B70: 0 | C70: 0 | D70: ≤ | E70: =total!X35 -> 105192.485
A71: Missaukee | B71: 193405.9585 | C71: 193405.9585 | D71: ≤ | E71: =total!X36 -> 193405.9585
A72: Montcalm | B72: 0 | C72: 0 | D72: ≤ | E72: =total!X37 -> 184012.8197
A73: Montmorency | B73: 0 | C73: 0 | D73: ≤ | E73: =total!X38 -> 200041.089
A74: Muskegon | B74: 0 | C74: 0 | D74: ≤ | E74: =total!X39 -> 226222.3584
A75: Newaygo | B75: 0 | C75: 0 | D75: ≤ | E75: =total!X40 -> 293727.064
A76: Oceana | B76: 0 | C76: 0 | D76: ≤ | E76: =total!X41 -> 223430.02
A77: Ogemaw | B77: 0 | C77: 0 | D77: ≤ | E77: =total!X42 -> 122488.3221
A78: Osceola | B78: 140037.8412 | C78: 140037.8412 | D78: ≤ | E78: =total!X43 -> 140037.8412
A79: Oscoda | B79: 0 | C79: 0 | D79: ≤ | E79: =total!X44 -> 236737.631
A80: Otsego | B80: 0 | C80: 0 | D80: ≤ | E80: =total!X45 -> 274919.5921
A81: Presque Isle | B81: 0 | C81: 0 | D81: ≤ | E81: =total!X47 -> 148585.4767
A82: Roscommon | B82: 0 | C82: 0 | D82: ≤ | E82: =total!X48 -> 148909.5432
A83: Wexford | B83: 245547.8292 | C83: 245547.8292 | D83: ≤ | E83: =total!X53 -> 245547.8292
B84: =SUM(B47:B83) -> 750000 | C84: 750000 | E84: =SUM(E47:E83) -> 6050455.316
B85: =
A86: Maximum | B86: ='Master Input'!E34 -> 750000 | D86: Total | E86: =SUMPRODUCT(B3:B39,B47:B83) -> 7522294.458 | F86: =+E86/B86 -> 10.02972594

Sheet Roscommon optimiz
A1: County (supplier)
B2: Roscommon | E2: supply
A3: Alcona | B3: ='Cost per ton'!C3 -> 16.1106 | E3: =total!X3 -> 211862.2042
A4: Alpena | B4: ='Cost per ton'!C4 -> 19.32072 | E4: =total!X4 -> 121911.7829
A5: Antrim | B5: ='Cost per ton'!C5 -> 15.919532 | E5: =total!X5 -> 134826.9076
A6: Arenac | B6: ='Cost per ton'!C6 -> 16.160476 | E6: =total!X6 -> 118832.7873
A7: Bay | B7: ='Cost per ton'!C8 -> 19.218156 | E7: =total!X8 -> 29470.61493
A8: Benzie | B8: ='Cost per ton'!C9 -> 18.550676 | E8: =total!X9 -> 101328.7463
A9: Charlevoix | B9: ='Cost per ton'!C10 -> 18.909724 | E9: =total!X10 -> 96751.32216
A10: Cheboygan | B10: ='Cost per ton'!C11 -> 16.978324 | E10: =total!X11 -> 225280.4385
A11: Clare | B11: ='Cost per ton'!C12 -> 13.69154 | E11: =total!X12 -> 154447.198
A12: Crawford | B12: ='Cost per ton'!C14 -> 8.854012 | E12: =total!X14 -> 120788.7171
A13: Emmet | B13: ='Cost per ton'!C16 -> 19.534284 | E13: =total!X16 -> 138994.3787
A14: Gladwin | B14: ='Cost per ton'!C18 -> 13.3911 | E14: =total!X18 -> 120903.5532
A15: Grand Traverse | B15: ='Cost per ton'!C19 -> 15.547756 | E15: =total!X19 -> 117902.2863
A16: Gratiot | B16: ='Cost per ton'!C20 -> 19.07134 | E16: =total!X20 -> 65649.05878
A17: Huron | B17: ='Cost per ton'!C21 -> 24.865688 | E17: =total!X21 -> 116639.552
A18: Iosco | B18: ='Cost per ton'!C24 -> 14.966412 | E18: =total!X24 -> 159342.7623
A19: Isabella | B19: ='Cost per ton'!C25 -> 17.18064 | E19: =total!X25 -> 147913.4348
A20: Kalkaska | B20: ='Cost per ton'!C26 -> 12.313068 | E20: =total!X26 -> 171816.4305
A21: Lake | B21: ='Cost per ton'!C28 -> 20.761204 | E21: =total!X28 -> 247106.0863
A22: Leelanau | B22: ='Cost per ton'!C30 -> 20.13472 | E22: =total!X30 -> 48922.09006
A23: Manistee | B23: ='Cost per ton'!C32 -> 19.140012 | E23: =total!X32 -> 206185.2965
A24: Mason | B24: ='Cost per ton'!C33 -> 24.014096 | E24: =total!X33 -> 210137.0812
A25: Mecosta | B25: ='Cost per ton'!C34 -> 20.76224 | E25: =total!X34 -> 161936.8791
A26: Midland | B26: ='Cost per ton'!C35 -> 16.97196 | E26: =total!X35 -> 105192.485
A27: Missaukee | B27: ='Cost per ton'!C36 -> 12.00508 | E27: =total!X36 -> 193405.9585
A28: Montcalm | B28: ='Cost per ton'!C37 -> 22.805084 | E28: =total!X37 -> 184012.8197
A29: Montmorency | B29: ='Cost per ton'!C38 -> 15.535472 | E29: =total!X38 -> 200041.089
A30: Newaygo | B30: ='Cost per ton'!C40 -> 25.198836 | E30: =total!X40 -> 293727.064
A31: Ogemaw | B31: ='Cost per ton'!C42 -> 11.684512 | E31: =total!X42 -> 122488.3221
A32: Osceola | B32: ='Cost per ton'!C43 -> 17.231848 | E32: =total!X43 -> 140037.8412
A33: Oscoda | B33: ='Cost per ton'!C44 -> 12.06576 | E33: =total!X44 -> 236737.631
A34: Otsego | B34: ='Cost per ton'!C45 -> 12.283616 | E34: =total!X45 -> 274919.5921
A35: Presque Isle | B35: ='Cost per ton'!C47 -> 20.205316 | E35: =total!X47 -> 148585.4767
A36: Roscommon | B36: ='Cost per ton'!C48 -> 8.431324 | E36: =total!X48 -> 148909.5432
A37: Saginaw | B37: ='Cost per ton'!C49 -> 22.659896 | E37: =total!X49 -> 160407.5437
A38: Tuscola | B38: ='Cost per ton'!C52 -> 25.914712 | E38: =total!X52 -> 139318.9258
A39: Wexford | B39: ='Cost per ton'!C53 -> 15.56966 | E39: =total!X53 -> 245547.8292
A40: demand
B46: Roscommon | E46: supply
A47: Alcona | B47: 0 | C47: =SUM(B47:B47) -> 0 | D47: ≤ | E47: =total!X3 -> 211862.2042
A48: Alpena | B48: 0 | C48: 0 | D48: ≤ | E48: =total!X4 -> 121911.7829
A49: Antrim | B49: 0 | C49: 0 | D49: ≤ | E49: =total!X5 -> 134826.9076
A50: Arenac | B50: 0 | C50: 0 | D50: ≤ | E50: =total!X6 -> 118832.7873
A51: Bay | B51: 0 | C51: 0 | D51: ≤ | E51: =total!X8 -> 29470.61493
A52: Benzie | B52: 0 | C52: 0 | D52: ≤ | E52: =total!X9 -> 101328.7463
A53: Charlevoix | B53: 0 | C53: 0 | D53: ≤ | E53: =total!X10 -> 96751.32216
A54: Cheboygan | B54: 0 | C54: 0 | D54: ≤ | E54: =total!X11 -> 225280.4385
A55: Clare | B55: 0 | C55: 0 | D55: ≤ | E55: =total!X12 -> 154447.198
A56: Crawford | B56: 120788.7171 | C56: 120788.7171 | D56: ≤ | E56: =total!X14 -> 120788.7171
A57: Emmet | B57: 0 | C57: 0 | D57: ≤ | E57: =total!X16 -> 138994.3787
A58: Gladwin | B58: 0 | C58: 0 | D58: ≤ | E58: =total!X18 -> 120903.5532
A59: Grand Traverse | B59: 0 | C59: 0 | D59: ≤ | E59: =total!X19 -> 117902.2863
A60: Gratiot | B60: 0 | C60: 0 | D60: ≤ | E60: =total!X20 -> 65649.05878
A61: Huron | B61: 0 | C61: 0 | D61: ≤ | E61: =total!X21 -> 116639.552
A62: Iosco | B62: 0 | C62: 0 | D62: ≤ | E62: =total!X24 -> 159342.7623
A63: Isabella | B63: 0 | C63: 0 | D63: ≤ | E63: =total!X25 -> 147913.4348
A64: Kalkaska | B64: 0 | C64: 0 | D64: ≤ | E64: =total!X26 -> 171816.4305
A65: Lake | B65: 0 | C65: 0 | D65: ≤ | E65: =total!X28 -> 247106.0863
A66: Leelanau | B66: 0 | C66: 0 | D66: ≤ | E66: =total!X30 -> 48922.09006
A67: Manistee | B67: 0 | C67: 0 | D67: ≤ | E67: =total!X32 -> 206185.2965
A68: Mason | B68: 0 | C68: 0 | D68: ≤ | E68: =total!X33 -> 210137.0812
A69: Mecosta | B69: 0 | C69: 0 | D69: ≤ | E69: =total!X34 -> 161936.8791
A70: Midland | B70: 0 | C70: 0 | D70: ≤ | E70: =total!X35 -> 105192.485
A71: Missaukee | B71: 193405.9585 | C71: 193405.9585 | D71: ≤ | E71: =total!X36 -> 193405.9585
A72: Montcalm | B72: 0 | C72: 0 | D72: ≤ | E72: =total!X37 -> 184012.8197
A73: Montmorency | B73: 0 | C73: 0 | D73: ≤ | E73: =total!X38 -> 200041.089
A74: Newaygo | B74: 0 | C74: 0 | D74: ≤ | E74: =total!X40 -> 293727.064
A75: Ogemaw | B75: 122488.3221 | C75: 122488.3221 | D75: ≤ | E75: =total!X42 -> 122488.3221
A76: Osceola | B76: 0 | C76: 0 | D76: ≤ | E76: =total!X43 -> 140037.8412
A77: Oscoda | B77: 164407.4591 | C77: 164407.4591 | D77: ≤ | E77: =total!X44 -> 236737.631
A78: Otsego | B78: 0 | C78: 0 | D78: ≤ | E78: =total!X45 -> 274919.5921
A79: Presque Isle | B79: 0 | C79: 0 | D79: ≤ | E79: =total!X47 -> 148585.4767
A80: Roscommon | B80: 148909.5432 | C80: 148909.5432 | D80: ≤ | E80: =total!X48 -> 148909.5432
A81: Saginaw | B81: 0 | C81: 0 | D81: ≤ | E81: =total!X49 -> 160407.5437
A82: Tuscola | B82: 0 | C82: 0 | D82: ≤ | E82: =total!X52 -> 139318.9258
A83: Wexford | B83: 0 | C83: 0 | D83: ≤ | E83: =total!X53 -> 245547.8292
B84: =SUM(B47:B83) -> 750000 | C84: 750000
B85: =
A86: Minimum needed | B86: ='Master Input'!E35 -> 750000 | D86: Total | E86: =SUMPRODUCT(B3:B39,B47:B83) -> 8061740.573 | F86: =+E86/B86 -> 10.74898743

Sheet Kingsley optimiz
A1: County (supplier)
B2: Kingsley | E2: supply
A3: Alcona | B3: ='Cost per ton'!D3 -> 22.136864 | E3: =total!X3 -> 211862.2042
A4: Alpena | B4: ='Cost per ton'!D4 -> 25.34728 | E4: =total!X4 -> 121911.7829
A5: Antrim | B5: ='Cost per ton'!D5 -> 13.812604 | E5: =total!X5 -> 134826.9076
A6: Arenac | B6: ='Cost per ton'!D6 -> 23.936988 | E6: =total!X6 -> 118832.7873
A7: Bay | B7: ='Cost per ton'!D8 -> 26.994668 | E7: =total!X8 -> 29470.61493
A8: Benzie | B8: ='Cost per ton'!D9 -> 10.774164 | E8: =total!X9 -> 101328.7463
A9: Charlevoix | B9: ='Cost per ton'!D10 -> 16.976548 | E9: =total!X10 -> 96751.32216
A10: Cheboygan | B10: ='Cost per ton'!D11 -> 23.004884 | E10: =total!X11 -> 225280.4385
A11: Clare | B11: ='Cost per ton'!D12 -> 17.864548 | E11: =total!X12 -> 154447.198
A12: Crawford | B12: ='Cost per ton'!D14 -> 14.538692 | E12: =total!X14 -> 120788.7171
A13: Emmet | B13: ='Cost per ton'!D16 -> 20.897956 | E13: =total!X16 -> 138994.3787
A14: Gladwin | B14: ='Cost per ton'!D18 -> 21.167612 | E14: =total!X18 -> 120903.5532
A15: Grand Traverse | B15: ='Cost per ton'!D19 -> 7.771244 | E15: =total!X19 -> 117902.2863
A16: Iosco | B16: ='Cost per ton'!D24 -> 22.742924 | E16: =total!X24 -> 159342.7623
A17: Isabella | B17: ='Cost per ton'!D25 -> 21.469088 | E17: =total!X25 -> 147913.4348
A18: Kalkaska | B18: ='Cost per ton'!D26 -> 11.002676 | E18: =total!X26 -> 171816.4305
A19: Lake | B19: ='Cost per ton'!D28 -> 14.734644 | E19: =total!X28 -> 247106.0863
A20: Leelanau | B20: ='Cost per ton'!D30 -> 12.358208 | E20: =total!X30 -> 48922.09006
A21: Manistee | B21: ='Cost per ton'!D32 -> 13.113452 | E21: =total!X32 -> 206185.2965
A22: Mason | B22: ='Cost per ton'!D33 -> 17.987536 | E22: =total!X33 -> 210137.0812
A23: Mecosta | B23: ='Cost per ton'!D34 -> 17.962672 | E23: =total!X34 -> 161936.8791
A24: Midland | B24: ='Cost per ton'!D35 -> 24.748472 | E24: =total!X35 -> 105192.485
A25: Missaukee | B25: ='Cost per ton'!D36 -> 12.458848 | E25: =total!X36 -> 193405.9585
A26: Montcalm | B26: ='Cost per ton'!D37 -> 22.631332 | E26: =total!X37 -> 184012.8197
A27: Montmorency | B27: ='Cost per ton'!D38 -> 21.562032 | E27: =total!X38 -> 200041.089
A28: Muskegon | B28: ='Cost per ton'!D39 -> 24.468308 | E28: =total!X39 -> 226222.3584
A29: Newaygo | B29: ='Cost per ton'!D40 -> 19.172276 | E29: =total!X40 -> 293727.064
A30: Oceana | B30: ='Cost per ton'!D41 -> 21.747328 | E30: =total!X41 -> 223430.02
A31: Ogemaw | B31: ='Cost per ton'!D42 -> 19.461024 | E31: =total!X42 -> 122488.3221
A32: Osceola | B32: ='Cost per ton'!D43 -> 14.363608 | E32: =total!X43 -> 140037.8412
A33: Oscoda | B33: ='Cost per ton'!D44 -> 18.09232 | E33: =total!X44 -> 236737.631
A34: Otsego | B34: ='Cost per ton'!D45 -> 18.01388 | E34: =total!X45 -> 274919.5921
A35: Presque Isle | B35: ='Cost per ton'!D47 -> 26.231876 | E35: =total!X47 -> 148585.4767
A36: Roscommon | B36: ='Cost per ton'!D48 -> 15.968372 | E36: =total!X48 -> 148909.5432
A37: Wexford | B37: ='Cost per ton'!D53 -> 9.5431 | E37: =total!X53 -> 245547.8292
A38: demand
B44: Kingsley | E44: supply
A45: Alcona | B45: 0 | C45: =SUM(B45:B45) -> 0 | D45: ≤ | E45: =total!X3 -> 211862.2042
A46: Alpena | B46: 0 | C46: 0 | D46: ≤ | E46: =total!X4 -> 121911.7829
A47: Antrim | B47: 0 | C47: 0 | D47: ≤ | E47: =total!X5 -> 134826.9076
A48: Arenac | B48: 0 | C48: 0 | D48: ≤ | E48: =total!X6 -> 118832.7873
A49: Bay | B49: 0 | C49: 0 | D49: ≤ | E49: =total!X8 -> 29470.61493
A50: Benzie | B50: 101328.7463 | C50: 101328.7463 | D50: ≤ | E50: =total!X9 -> 101328.7463
A51: Charlevoix | B51: 0 | C51: 0 | D51: ≤ | E51: =total!X10 -> 96751.32216
A52: Cheboygan | B52: 0 | C52: 0 | D52: ≤ | E52: =total!X11 -> 225280.4385
A53: Clare | B53: 0 | C53: 0 | D53: ≤ | E53: =total!X12 -> 154447.198
A54: Crawford | B54: 0 | C54: 0 | D54: ≤ | E54: =total!X14 -> 120788.7171
A55: Emmet | B55: 0 | C55: 0 | D55: ≤ | E55: =total!X16 -> 138994.3787
A56: Gladwin | B56: 0 | C56: 0 | D56: ≤ | E56: =total!X18 -> 120903.5532
A57: Grand Traverse | B57: 117902.2863 | C57: 117902.2863 | D57: ≤ | E57: =total!X19 -> 117902.2863
A58: Iosco | B58: 0 | C58: 0 | D58: ≤ | E58: =total!X24 -> 159342.7623
A59: Isabella | B59: 0 | C59: 0 | D59: ≤ | E59: =total!X25 -> 147913.4348
A60: Kalkaska | B60: 171816.4305 | C60: 171816.4305 | D60: ≤ | E60: =total!X26 -> 171816.4305
A61: Lake | B61: 0 | C61: 0 | D61: ≤ | E61: =total!X28 -> 247106.0863
A62: Leelanau | B62: 48922.09006 | C62: 48922.09006 | D62: ≤ | E62: =total!X30 -> 48922.09006
A63: Manistee | B63: 0 | C63: 0 | D63: ≤ | E63: =total!X32 -> 206185.2965
A64: Mason | B64: 0 | C64: 0 | D64: ≤ | E64: =total!X33 -> 210137.0812
A65: Mecosta | B65: 0 | C65: 0 | D65: ≤ | E65: =total!X34 -> 161936.8791
A66: Midland | B66: 0 | C66: 0 | D66: ≤ | E66: =total!X35 -> 105192.485
A67: Missaukee | B67: 64482.61766 | C67: 64482.61766 | D67: ≤ | E67: =total!X36 -> 193405.9585
A68: Montcalm | B68: 0 | C68: 0 | D68: ≤ | E68: =total!X37 -> 184012.8197
A69: Montmorency | B69: 0 | C69: 0 | D69: ≤ | E69: =total!X38 -> 200041.089
A70: Muskegon | B70: 0 | C70: 0 | D70: ≤ | E70: =total!X39 -> 226222.3584
A71: Newaygo | B71: 0 | C71: 0 | D71: ≤ | E71: =total!X40 -> 293727.064
A72: Oceana | B72: 0 | C72: 0 | D72: ≤ | E72: =total!X41 -> 223430.02
A73: Ogemaw | B73: 0 | C73: 0 | D73: ≤ | E73: =total!X42 -> 122488.3221
A74: Osceola | B74: 0 | C74: 0 | D74: ≤ | E74: =total!X43 -> 140037.8412
A75: Oscoda | B75: 0 | C75: 0 | D75: ≤ | E75: =total!X44 -> 236737.631
A76: Otsego | B76: 0 | C76: 0 | D76: ≤ | E76: =total!X45 -> 274919.5921
A77: Presque Isle | B77: 0 | C77: 0 | D77: ≤ | E77: =total!X47 -> 148585.4767
A78: Roscommon | B78: 0 | C78: 0 | D78: ≤ | E78: =total!X48 -> 148909.5432
A79: Wexford | B79: 245547.8292 | C79: 245547.8292 | D79: ≤ | E79: =total!X53 -> 245547.8292
B80: =SUM(B45:B79) -> 750000 | C80: 750000
B81: =
B82: ='Master Input'!E36 -> 750000 | D82: Total | E82: =SUMPRODUCT(B3:B37,B45:B79) -> 7649676.467 | F82: =+E82/B82 -> 10.19956862

Sheet Kalkaska optimiz
A1: County (supplier)
B2: Kalkaska | E2: supply
A3: Alcona | B3: ='Cost per ton'!E3 -> 18.555856 | E3: =total!X3 -> 211862.2042
A4: Alpena | B4: ='Cost per ton'!E4 -> 21.275208 | E4: =total!X4 -> 121911.7829
A5: Antrim | B5: ='Cost per ton'!E5 -> 9.740532 | E5: =total!X5 -> 134826.9076
A6: Arenac | B6: ='Cost per ton'!E6 -> 22.914604 | E6: =total!X6 -> 118832.7873
A7: Bay | B7: ='Cost per ton'!E8 -> 25.972284 | E7: =total!X8 -> 29470.61493
A8: Benzie | B8: ='Cost per ton'!E9 -> 13.759028 | E8: =total!X9 -> 101328.7463
A9: Charlevoix | B9: ='Cost per ton'!E10 -> 12.904476 | E9: =total!X10 -> 96751.32216
A10: Cheboygan | B10: ='Cost per ton'!E11 -> 18.932812 | E10: =total!X11 -> 225280.4385
A11: Clare | B11: ='Cost per ton'!E12 -> 16.842164 | E11: =total!X12 -> 154447.198
A12: Crawford | B12: ='Cost per ton'!E14 -> 11.340116 | E12: =total!X14 -> 120788.7171
A13: Emmet | B13: ='Cost per ton'!E16 -> 16.825884 | E13: =total!X16 -> 138994.3787
A14: Gladwin | B14: ='Cost per ton'!E18 -> 20.145228 | E14: =total!X18 -> 120903.5532
A15: Grand Traverse | B15: ='Cost per ton'!E19 -> 10.127996 | E15: =total!X19 -> 117902.2863
A16: Iosco | B16: ='Cost per ton'!E24 -> 21.72054 | E16: =total!X24 -> 159342.7623
A17: Isabella | B17: ='Cost per ton'!E25 -> 20.446704 | E17: =total!X25 -> 147913.4348
A18: Kalkaska | B18: ='Cost per ton'!E26 -> 7.88106 | E18: =total!X26 -> 171816.4305
A19: Lake | B19: ='Cost per ton'!E28 -> 18.806716 | E19: =total!X28 -> 247106.0863
A20: Leelanau | B20: ='Cost per ton'!E30 -> 13.380592 | E20: =total!X30 -> 48922.09006
A21: Manistee | B21: ='Cost per ton'!E32 -> 17.185524 | E21: =total!X32 -> 206185.2965
A22: Mason | B22: ='Cost per ton'!E33 -> 22.059608 | E22: =total!X33 -> 210137.0812
A23: Mecosta | B23: ='Cost per ton'!E34 -> 18.807752 | E23: =total!X34 -> 161936.8791
A24: Midland | B24: ='Cost per ton'!E35 -> 23.726088 | E24: =total!X35 -> 105192.485
A25: Missaukee | B25: ='Cost per ton'!E36 -> 11.436464 | E25: =total!X36 -> 193405.9585
A26: Montcalm | B26: ='Cost per ton'!E37 -> 21.608948 | E26: =total!X37 -> 184012.8197
A27: Montmorency | B27: ='Cost per ton'!E38 -> 17.48996 | E27: =total!X38 -> 200041.089
A28: Newaygo | B28: ='Cost per ton'!E40 -> 23.244348 | E28: =total!X40 -> 293727.064
A29: Oceana | B29: ='Cost per ton'!E41 -> 25.8194 | E29: =total!X41 -> 223430.02
A30: Ogemaw | B30: ='Cost per ton'!E42 -> 18.43864 | E30: =total!X42 -> 122488.3221
A31: Osceola | B31: ='Cost per ton'!E43 -> 15.27736 | E31: =total!X43 -> 140037.8412
A32: Oscoda | B32: ='Cost per ton'!E44 -> 14.791328 | E32: =total!X44 -> 236737.631
A33: Otsego | B33: ='Cost per ton'!E45 -> 13.941808 | E33: =total!X45 -> 274919.5921
A34: Presque Isle | B34: ='Cost per ton'!E47 -> 22.159804 | E34: =total!X47 -> 148585.4767
A35: Roscommon | B35: ='Cost per ton'!E48 -> 14.945988 | E35: =total!X48 -> 148909.5432
A36: Wexford | B36: ='Cost per ton'!E53 -> 13.615172 | E36: =total!X53 -> 245547.8292
A37: demand
B43: Kalkaska | E43: supply
A44: Alcona | B44: 0 | C44: =SUM(B44:B44) -> 0 | D44: ≤ | E44: =total!X3 -> 211862.2042
A45: Alpena | B45: 0 | C45: 0 | D45: ≤ | E45: =total!X4 -> 121911.7829
A46: Antrim | B46: 134826.9076 | C46: 134826.9076 | D46: ≤ | E46: =total!X5 -> 134826.9076
A47: Arenac | B47: 0 | C47: 0 | D47: ≤ | E47: =total!X6 -> 118832.7873
A48: Bay | B48: 0 | C48: 0 | D48: ≤ | E48: =total!X8 -> 29470.61493
A49: Benzie | B49: 0 | C49: 0 | D49: ≤ | E49: =total!X9 -> 101328.7463
A50: Charlevoix | B50: 11259.7 | C50: 11259.7 | D50: ≤ | E50: =total!X10 -> 96751.32216
A51: Cheboygan | B51: 0 | C51: 0 | D51: ≤ | E51: =total!X11 -> 225280.4385
A52: Clare | B52: 0 | C52: 0 | D52: ≤ | E52: =total!X12 -> 154447.198
A53: Crawford | B53: 120788.7171 | C53: 120788.7171 | D53: ≤ | E53: =total!X14 -> 120788.7171
A54: Emmet | B54: 0 | C54: 0 | D54: ≤ | E54: =total!X16 -> 138994.3787
A55: Gladwin | B55: 0 | C55: 0 | D55: ≤ | E55: =total!X18 -> 120903.5532
A56: Grand Traverse | B56: 117902.2863 | C56: 117902.2863 | D56: ≤ | E56: =total!X19 -> 117902.2863
A57: Iosco | B57: 0 | C57: 0 | D57: ≤ | E57: =total!X24 -> 159342.7623
A58: Isabella | B58: 0 | C58: 0 | D58: ≤ | E58: =total!X25 -> 147913.4348
A59: Kalkaska | B59: 171816.4305 | C59: 171816.4305 | D59: ≤ | E59: =total!X26 -> 171816.4305
A60: Lake | B60: 0 | C60: 0 | D60: ≤ | E60: =total!X28 -> 247106.0863
A61: Leelanau | B61: 0 | C61: 0 | D61: ≤ | E61: =total!X30 -> 48922.09006
A62: Manistee | B62: 0 | C62: 0 | D62: ≤ | E62: =total!X32 -> 206185.2965
A63: Mason | B63: 0 | C63: 0 | D63: ≤ | E63: =total!X33 -> 210137.0812
A64: Mecosta | B64: 0 | C64: 0 | D64: ≤ | E64: =total!X34 -> 161936.8791
A65: Midland | B65: 0 | C65: 0 | D65: ≤ | E65: =total!X35 -> 105192.485
A66: Missaukee | B66: 193405.9585 | C66: 193405.9585 | D66: ≤ | E66: =total!X36 -> 193405.9585
A67: Montcalm | B67: 0 | C67: 0 | D67: ≤ | E67: =total!X37 -> 184012.8197
A68: Montmorency | B68: 0 | C68: 0 | D68: ≤ | E68: =total!X38 -> 200041.089
A69: Newaygo | B69: 0 | C69: 0 | D69: ≤ | E69: =total!X40 -> 293727.064
A70: Oceana | B70: 0 | C70: 0 | D70: ≤ | E70: =total!X41 -> 223430.02
A71: Ogemaw | B71: 0 | C71: 0 | D71: ≤ | E71: =total!X42 -> 122488.3221
A72: Osceola | B72: 0 | C72: 0 | D72: ≤ | E72: =total!X43 -> 140037.8412
A73: Oscoda | B73: 0 | C73: 0 | D73: ≤ | E73: =total!X44 -> 236737.631
A74: Otsego | B74: 0 | C74: 0 | D74: ≤ | E74: =total!X45 -> 274919.5921
A75: Presque Isle | B75: 0 | C75: 0 | D75: ≤ | E75: =total!X47 -> 148585.4767
A76: Roscommon | B76: 0 | C76: 0 | D76: ≤ | E76: =total!X48 -> 148909.5432
A77: Wexford | B77: 0 | C77: 0 | D77: ≤ | E77: =total!X53 -> 245547.8292
B78: =SUM(B44:B77) -> 750000 | C78: 750000
B79: =
B80: ='Master Input'!$E$37 -> 750000 | D80: Total | E80: =SUMPRODUCT(B3:B36,B44:B77) -> 7588434.163 | F80: =+E80/B80 -> 10.11791222

Sheet Gaylord optimiz
A1: County (supplier)
B2: Gaylord | E2: supply
A3: Alcona | B3: ='Cost per ton'!F3 -> 17.960748 | E3: =total!X3 -> 211862.2042
A4: Alpena | B4: ='Cost per ton'!F4 -> 14.591084 | E4: =total!X4 -> 121911.7829
A5: Antrim | B5: ='Cost per ton'!F5 -> 10.383592 | E5: =total!X5 -> 134826.9076
A6: Arenac | B6: ='Cost per ton'!F6 -> 22.319496 | E6: =total!X6 -> 118832.7873
A7: Bay | B7: ='Cost per ton'!F8 -> 25.377176 | E7: =total!X8 -> 29470.61493
A8: Benzie | B8: ='Cost per ton'!F9 -> 20.443152 | E8: =total!X9 -> 101328.7463
A9: Charlevoix | B9: ='Cost per ton'!F10 -> 12.750704 | E9: =total!X10 -> 96751.32216
A10: Cheboygan | B10: ='Cost per ton'!F11 -> 12.248688 | E10: =total!X11 -> 225280.4385
A11: Clare | B11: ='Cost per ton'!F12 -> 18.421176 | E11: =total!X12 -> 154447.198
A12: Crawford | B12: ='Cost per ton'!F14 -> 10.745008 | E12: =total!X14 -> 120788.7171
A13: Emmet | B13: ='Cost per ton'!F16 -> 13.375264 | E13: =total!X16 -> 138994.3787
A14: Gladwin | B14: ='Cost per ton'!F18 -> 19.55012 | E14: =total!X18 -> 120903.5532
A15: Grand Traverse | B15: ='Cost per ton'!F19 -> 16.81212 | E15: =total!X19 -> 117902.2863
A16: Iosco | B16: ='Cost per ton'!F24 -> 21.125432 | E16: =total!X24 -> 159342.7623
A17: Isabella | B17: ='Cost per ton'!F25 -> 21.910276 | E17: =total!X25 -> 147913.4348
A18: Kalkaska | B18: ='Cost per ton'!F26 -> 13.19352 | E18: =total!X26 -> 171816.4305
A19: Lake | B19: ='Cost per ton'!F28 -> 25.49084 | E19: =total!X28 -> 247106.0863
A20: Leelanau | B20: ='Cost per ton'!F30 -> 15.904436 | E20: =total!X30 -> 48922.09006
A21: Manistee | B21: ='Cost per ton'!F32 -> 23.869648 | E21: =total!X32 -> 206185.2965
A22: Midland | B22: ='Cost per ton'!F35 -> 23.13098 | E22: =total!X35 -> 105192.485
A23: Missaukee | B23: ='Cost per ton'!F36 -> 16.734716 | E23: =total!X36 -> 193405.9585
A24: Montmorency | B24: ='Cost per ton'!F38 -> 10.805836 | E24: =total!X38 -> 200041.089
A25: Ogemaw | B25: ='Cost per ton'!F42 -> 17.843532 | E25: =total!X42 -> 122488.3221
A26: Osceola | B26: ='Cost per ton'!F43 -> 21.961484 | E26: =total!X43 -> 140037.8412
A27: Oscoda | B27: ='Cost per ton'!F44 -> 14.19622 | E27: =total!X44 -> 236737.631
A28: Otsego | B28: ='Cost per ton'!F45 -> 7.315404 | E28: =total!X45 -> 274919.5921
A29: Presque Isle | B29: ='Cost per ton'!F47 -> 15.47568 | E29: =total!X47 -> 148585.4767
A30: Roscommon | B30: ='Cost per ton'!F48 -> 14.35088 | E30: =total!X48 -> 148909.5432
A31: Wexford | B31: ='Cost per ton'!F53 -> 20.299296 | E31: =total!X53 -> 245547.8292
A32: demand
B38: Gaylord | E38: supply
A39: Alcona | B39: 0 | C39: =SUM(B39:B39) -> 0 | D39: ≤ | E39: =total!X3 -> 211862.2042
A40: Alpena | B40: 0 | C40: 0 | D40: ≤ | E40: =total!X4 -> 121911.7829
A41: Antrim | B41: 134826.9076 | C41: 134826.9076 | D41: ≤ | E41: =total!X5 -> 134826.9076
A42: Arenac | B42: 0 | C42: 0 | D42: ≤ | E42: =total!X6 -> 118832.7873
A43: Bay | B43: 0 | C43: 0 | D43: ≤ | E43: =total!X8 -> 29470.61493
A44: Benzie | B44: 0 | C44: 0 | D44: ≤ | E44: =total!X9 -> 101328.7463
A45: Charlevoix | B45: 0 | C45: 0 | D45: ≤ | E45: =total!X10 -> 96751.32216
A46: Cheboygan | B46: 19423.6942 | C46: 19423.6942 | D46: ≤ | E46: =total!X11 -> 225280.4385
A47: Clare | B47: 0 | C47: 0 | D47: ≤ | E47: =total!X12 -> 154447.198
A48: Crawford | B48: 120788.7171 | C48: 120788.7171 | D48: ≤ | E48: =total!X14 -> 120788.7171
A49: Emmet | B49: 0 | C49: 0 | D49: ≤ | E49: =total!X16 -> 138994.3787
A50: Gladwin | B50: 0 | C50: 0 | D50: ≤ | E50: =total!X18 -> 120903.5532
A51: Grand Traverse | B51: 0 | C51: 0 | D51: ≤ | E51: =total!X19 -> 117902.2863
A52: Iosco | B52: 0 | C52: 0 | D52: ≤ | E52: =total!X24 -> 159342.7623
A53: Isabella | B53: 0 | C53: 0 | D53: ≤ | E53: =total!X25 -> 147913.4348
A54: Kalkaska | B54: 0 | C54: 0 | D54: ≤ | E54: =total!X26 -> 171816.4305
A55: Lake | B55: 0 | C55: 0 | D55: ≤ | E55: =total!X28 -> 247106.0863
A56: Leelanau | B56: 0 | C56: 0 | D56: ≤ | E56: =total!X30 -> 48922.09006
A57: Manistee | B57: 0 | C57: 0 | D57: ≤ | E57: =total!X32 -> 206185.2965
A58: Midland | B58: 0 | C58: 0 | D58: ≤ | E58: =total!X35 -> 105192.485
A59: Missaukee | B59: 0 | C59: 0 | D59: ≤ | E59: =total!X36 -> 193405.9585
A60: Montmorency | B60: 200041.089 | C60: 200041.089 | D60: ≤ | E60: =total!X38 -> 200041.089
A61: Ogemaw | B61: 0 | C61: 0 | D61: ≤ | E61: =total!X42 -> 122488.3221
A62: Osceola | B62: 0 | C62: 0 | D62: ≤ | E62: =total!X43 -> 140037.8412
A63: Oscoda | B63: 0 | C63: 0 | D63: ≤ | E63: =total!X44 -> 236737.631
A64: Otsego | B64: 274919.5921 | C64: 274919.5921 | D64: ≤ | E64: =total!X45 -> 274919.5921
A65: Presque Isle | B65: 0 | C65: 0 | D65: ≤ | E65: =total!X47 -> 148585.4767
A66: Roscommon | B66: 0 | C66: 0 | D66: ≤ | E66: =total!X48 -> 148909.5432
A67: Wexford | B67: 0 | C67: 0 | D67: ≤ | E67: =total!X53 -> 245547.8292
B68: =SUM(B39:B67) -> 750000 | C68: 750000
B69: =
B70: ='Master Input'!E38 -> 750000 | D70: Total | E70: =SUMPRODUCT(B3:B31,B39:B67) -> 7108537.186 | F70: =+E70/B70 -> 9.478049581

Sheet Clare optimiz
A1: County (supplier)
B2: Clare | E2: supply
A3: Alcona | B3: ='Cost per ton'!G3 -> 24.087652 | E3: =total!X3 -> 211862.2042
A4: Antrim | B4: ='Cost per ton'!G5 -> 21.56292 | E4: =total!X5 -> 134826.9076
A5: Arenac | B5: ='Cost per ton'!G6 -> 15.663344 | E5: =total!X6 -> 118832.7873
A6: Barry | B6: ='Cost per ton'!G7 -> 23.256336 | E6: =total!X7 -> 199299.1219
A7: Bay | B7: ='Cost per ton'!G8 -> 13.574768 | E7: =total!X8 -> 29470.61493
A8: Benzie | B8: ='Cost per ton'!G9 -> 24.194064 | E8: =total!X9 -> 101328.7463
A9: Clare | B9: ='Cost per ton'!G12 -> 8.995352 | E9: =total!X12 -> 154447.198
A10: Clinton | B10: ='Cost per ton'!G13 -> 17.07778 | E10: =total!X13 -> 57879.37218
A11: Crawford | B11: ='Cost per ton'!G14 -> 16.48948 | E11: =total!X14 -> 120788.7171
A12: Eaton | B12: ='Cost per ton'!G15 -> 19.65446 | E12: =total!X15 -> 109262.9207
A13: Genesee | B13: ='Cost per ton'!G17 -> 22.821068 | E13: =total!X17 -> 158052.3169
A14: Gladwin | B14: ='Cost per ton'!G18 -> 11.199664 | E14: =total!X18 -> 120903.5532
A15: Grand Traverse | B15: ='Cost per ton'!G19 -> 21.191144 | E15: =total!X19 -> 117902.2863
A16: Gratiot | B16: ='Cost per ton'!G20 -> 13.427952 | E16: =total!X20 -> 65649.05878
A17: Huron | B17: ='Cost per ton'!G21 -> 20.026532 | E17: =total!X21 -> 116639.552
A18: Ingham | B18: ='Cost per ton'!G22 -> 22.364636 | E18: =total!X22 -> 127671.671
A19: Ionia | B19: ='Cost per ton'!G23 -> 17.936476 | E19: =total!X23 -> 199124.9946
A20: Iosco | B20: ='Cost per ton'!G24 -> 20.502056 | E20: =total!X24 -> 159342.7623
A21: Isabella | B21: ='Cost per ton'!G25 -> 9.203292 | E21: =total!X25 -> 147913.4348
A22: Kalkaska | B22: ='Cost per ton'!G26 -> 17.956456 | E22: =total!X26 -> 171816.4305
A23: Kent | B23: ='Cost per ton'!G27 -> 20.646208 | E23: =total!X27 -> 194887.2295
A24: Lake | B24: ='Cost per ton'!G28 -> 15.992792 | E24: =total!X28 -> 247106.0863
A25: Lapeer | B25: ='Cost per ton'!G29 -> 25.621376 | E25: =total!X29 -> 94265.21777
A26: Leelanau | B26: ='Cost per ton'!G30 -> 25.778108 | E26: =total!X30 -> 48922.09006
A27: Livingston | B27: ='Cost per ton'!G31 -> 25.71062 | E27: =total!X31 -> 82988.55933
A28: Manistee | B28: ='Cost per ton'!G32 -> 21.373776 | E28: =total!X32 -> 206185.2965
A29: Mason | B29: ='Cost per ton'!G33 -> 19.351652 | E29: =total!X33 -> 210137.0812
A30: Mecosta | B30: ='Cost per ton'!G34 -> 12.784892 | E30: =total!X34 -> 161936.8791
A31: Midland | B31: ='Cost per ton'!G35 -> 11.328572 | E31: =total!X35 -> 105192.485
A32: Missaukee | B32: ='Cost per ton'!G36 -> 14.401052 | E32: =total!X36 -> 193405.9585
A33: Montcalm | B33: ='Cost per ton'!G37 -> 14.827736 | E33: =total!X37 -> 184012.8197
A34: Montmorency | B34: ='Cost per ton'!G38 -> 23.51282 | E34: =total!X38 -> 200041.089
A35: Muskegon | B35: ='Cost per ton'!G39 -> 22.51752 | E35: =total!X39 -> 226222.3584
A36: Newaygo | B36: ='Cost per ton'!G40 -> 17.221488 | E36: =total!X40 -> 293727.064
A37: Oceana | B37: ='Cost per ton'!G41 -> 19.79654 | E37: =total!X41 -> 223430.02
A38: Ogemaw | B38: ='Cost per ton'!G42 -> 16.606844 | E38: =total!X42 -> 122488.3221
A39: Osceola | B39: ='Cost per ton'!G43 -> 12.496292 | E39: =total!X43 -> 140037.8412
A40: Oscoda | B40: ='Cost per ton'!G44 -> 20.043108 | E40: =total!X44 -> 236737.631
A41: Otsego | B41: ='Cost per ton'!G45 -> 19.964668 | E41: =total!X45 -> 274919.5921
A42: Ottawa | B42: ='Cost per ton'!G46 -> 24.740628 | E42: =total!X46 -> 83761.94539
A43: Roscommon | B43: ='Cost per ton'!G48 -> 12.986024 | E43: =total!X48 -> 148909.5432
A44: Saginaw | B44: ='Cost per ton'!G49 -> 17.016508 | E44: =total!X49 -> 160407.5437
A45: Shiawassee | B45: ='Cost per ton'!G51 -> 20.317056 | E45: =total!X51 -> 34866.78849
A46: Tuscola | B46: ='Cost per ton'!G52 -> 20.271324 | E46: =total!X52 -> 139318.9258
A47: Wexford | B47: ='Cost per ton'!G53 -> 17.928928 | E47: =total!X53 -> 245547.8292
A48: demand
B54: Clare | E54: supply
A55: Alcona | B55: 0 | C55: =SUM(B55:B55) -> 0 | D55: ≤ | E55: =total!X3 -> 211862.2042
A56: Antrim | B56: 0 | C56: 0 | D56: ≤ | E56: =total!X5 -> 134826.9076
A57: Arenac | B57: 0 | C57: 0 | D57: ≤ | E57: =total!X6 -> 118832.7873
A58: Barry | B58: 0 | C58: 0 | D58: ≤ | E58: =total!X7 -> 199299.1219
A59: Bay | B59: 0 | C59: 0 | D59: ≤ | E59: =total!X8 -> 29470.61493
A60: Benzie | B60: 0 | C60: 0 | D60: ≤ | E60: =total!X9 -> 101328.7463
A61: Clare | B61: 154447.198 | C61: 154447.198 | D61: ≤ | E61: =total!X12 -> 154447.198
A62: Clinton | B62: 0 | C62: 0 | D62: ≤ | E62: =total!X13 -> 57879.37218
A63: Crawford | B63: 0 | C63: 0 | D63: ≤ | E63: =total!X14 -> 120788.7171
A64: Eaton | B64: 0 | C64: 0 | D64: ≤ | E64: =total!X15 -> 109262.9207
A65: Genesee | B65: 0 | C65: 0 | D65: ≤ | E65: =total!X17 -> 158052.3169
A66: Gladwin | B66: 120903.5532 | C66: 120903.5532 | D66: ≤ | E66: =total!X18 -> 120903.5532
A67: Grand Traverse | B67: 0 | C67: 0 | D67: ≤ | E67: =total!X19 -> 117902.2863
A68: Gratiot | B68: 0 | C68: 0 | D68: ≤ | E68: =total!X20 -> 65649.05878
A69: Huron | B69: 0 | C69: 0 | D69: ≤ | E69: =total!X21 -> 116639.552
A70: Ingham | B70: 0 | C70: 0 | D70: ≤ | E70: =total!X22 -> 127671.671
A71: Ionia | B71: 0 | C71: 0 | D71: ≤ | E71: =total!X23 -> 199124.9946
A72: Iosco | B72: 0 | C72: 0 | D72: ≤ | E72: =total!X24 -> 159342.7623
A73: Isabella | B73: 147913.4348 | C73: 147913.4348 | D73: ≤ | E73: =total!X25 -> 147913.4348
A74: Kalkaska | B74: 0 | C74: 0 | D74: ≤ | E74: =total!X26 -> 171816.4305
A75: Kent | B75: 0 | C75: 0 | D75: ≤ | E75: =total!X27 -> 194887.2295
A76: Lake | B76: 0 | C76: 0 | D76: ≤ | E76: =total!X28 -> 247106.0863
A77: Lapeer | B77: 0 | C77: 0 | D77: ≤ | E77: =total!X29 -> 94265.21777
A78: Leelanau | B78: 0 | C78: 0 | D78: ≤ | E78: =total!X30 -> 48922.09006
A79: Livingston | B79: 0 | C79: 0 | D79: ≤ | E79: =total!X31 -> 82988.55933
A80: Manistee | B80: 0 | C80: 0 | D80: ≤ | E80: =total!X32 -> 206185.2965
A81: Mason | B81: 0 | C81: 0 | D81: ≤ | E81: =total!X33 -> 210137.0812
A82: Mecosta | B82: 81505.48789 | C82: 81505.48789 | D82: ≤ | E82: =total!X34 -> 161936.8791
A83: Midland | B83: 105192.485 | C83: 105192.485 | D83: ≤ | E83: =total!X35 -> 105192.485
A84: Missaukee | B84: 0 | C84: 0 | D84: ≤ | E84: =total!X36 -> 193405.9585
A85: Montcalm | B85: 0 | C85: 0 | D85: ≤ | E85: =total!X37 -> 184012.8197
A86: Montmorency | B86: 0 | C86: 0 | D86: ≤ | E86: =total!X38 -> 200041.089
A87: Muskegon | B87: 0 | C87: 0 | D87: ≤ | E87: =total!X39 -> 226222.3584
A88: Newaygo | B88: 0 | C88: 0 | D88: ≤ | E88: =total!X40 -> 293727.064
A89: Oceana | B89: 0 | C89: 0 | D89: ≤ | E89: =total!X41 -> 223430.02
A90: Ogemaw | B90: 0 | C90: 0 | D90: ≤ | E90: =total!X42 -> 122488.3221
A91: Osceola | B91: 140037.8412 | C91: 140037.8412 | D91: ≤ | E91: =total!X43 -> 140037.8412
A92: Oscoda | B92: 0 | C92: 0 | D92: ≤ | E92: =total!X44 -> 236737.631
A93: Otsego | B93: 0 | C93: 0 | D93: ≤ | E93: =total!X45 -> 274919.5921
A94: Ottawa | B94: 0 | C94: 0 | D94: ≤ | E94: =total!X46 -> 83761.94539
A95: Roscommon | B95: 0 | C95: 0 | D95: ≤ | E95: =total!X48 -> 148909.5432
A96: Saginaw | B96: 0 | C96: 0 | D96: ≤ | E96: =total!X49 -> 160407.5437
A97: Shiawassee | B97: 0 | C97: 0 | D97: ≤ | E97: =total!X51 -> 34866.78849
A98: Tuscola | B98: 0 | C98: 0 | D98: ≤ | E98: =total!X52 -> 139318.9258
A99: Wexford | B99: 0 | C99: 0 | D99: ≤ | E99: =total!X53 -> 245547.8292
B100: =SUM(B55:B99) -> 750000 | C100: 750000
B101: =
A102: Minimum needed | B102: ='Master Input'!E39 -> 750000 | D102: Total | E102: =SUMPRODUCT(B3:B47,B55:B99) -> 8088349.869 | F102: =+E102/B102 -> 10.78446649

Sheet West Branch optimiz
A1: County (supplier)
B2: West Branch | E2: supply
A3: Alcona | B3: ='Cost per ton'!H3 -> 15.627824 | E3: =total!X3 -> 211862.2042
A4: Alpena | B4: ='Cost per ton'!H4 -> 18.83824 | E4: =total!X4 -> 121911.7829
A5: Antrim | B5: ='Cost per ton'!H5 -> 20.737228 | E5: =total!X5 -> 134826.9076
A6: Arenac | B6: ='Cost per ton'!H6 -> 11.34278 | E6: =total!X6 -> 118832.7873
A7: Bay | B7: ='Cost per ton'!H8 -> 14.40046 | E7: =total!X8 -> 29470.61493
A8: Benzie | B8: ='Cost per ton'!H9 -> 23.368372 | E8: =total!X9 -> 101328.7463
A9: Charlevoix | B9: ='Cost per ton'!H10 -> 23.72742 | E9: =total!X10 -> 96751.32216
A10: Cheboygan | B10: ='Cost per ton'!H11 -> 20.81478 | E10: =total!X11 -> 225280.4385
A11: Clare | B11: ='Cost per ton'!H12 -> 14.17402 | E11: =total!X12 -> 154447.198
A12: Clinton | B12: ='Cost per ton'!H13 -> 22.811448 | E12: =total!X13 -> 57879.37218
A13: Crawford | B13: ='Cost per ton'!H14 -> 13.671708 | E13: =total!X14 -> 120788.7171
A14: Emmet | B14: ='Cost per ton'!H16 -> 24.35198 | E14: =total!X16 -> 138994.3787
A15: Genesee | B15: ='Cost per ton'!H17 -> 23.64676 | E15: =total!X17 -> 158052.3169
A16: Gladwin | B16: ='Cost per ton'!H18 -> 10.700164 | E16: =total!X18 -> 120903.5532
A17: Grand Traverse | B17: ='Cost per ton'!H19 -> 20.365452 | E17: =total!X19 -> 117902.2863
A18: Gratiot | B18: ='Cost per ton'!H20 -> 19.3333 | E18: =total!X20 -> 65649.05878
A19: Huron | B19: ='Cost per ton'!H21 -> 20.047992 | E19: =total!X21 -> 116639.552
A20: Iosco | B20: ='Cost per ton'!H24 -> 12.042228 | E20: =total!X24 -> 159342.7623
A21: Isabella | B21: ='Cost per ton'!H25 -> 17.66312 | E21: =total!X25 -> 147913.4348
A22: Kalkaska | B22: ='Cost per ton'!H26 -> 17.130764 | E22: =total!X26 -> 171816.4305
A23: Lake | B23: ='Cost per ton'!H28 -> 21.243684 | E23: =total!X28 -> 247106.0863
A24: Lapeer | B24: ='Cost per ton'!H29 -> 26.447068 | E24: =total!X29 -> 94265.21777
A25: Leelanau | B25: ='Cost per ton'!H30 -> 24.952416 | E25: =total!X30 -> 48922.09006
A26: Manistee | B26: ='Cost per ton'!H32 -> 20.548084 | E26: =total!X32 -> 206185.2965
A27: Mecosta | B27: ='Cost per ton'!H34 -> 21.24472 | E27: =total!X34 -> 161936.8791
A28: Midland | B28: ='Cost per ton'!H35 -> 14.141608 | E28: =total!X35 -> 105192.485
A29: Missaukee | B29: ='Cost per ton'!H36 -> 13.57536 | E29: =total!X36 -> 193405.9585
A30: Montcalm | B30: ='Cost per ton'!H37 -> 23.287564 | E30: =total!X37 -> 184012.8197
A31: Montmorency | B31: ='Cost per ton'!H38 -> 15.052992 | E31: =total!X38 -> 200041.089
A32: Newaygo | B32: ='Cost per ton'!H40 -> 25.681316 | E32: =total!X40 -> 293727.064
A33: Ogemaw | B33: ='Cost per ton'!H42 -> 8.147016 | E33: =total!X42 -> 122488.3221
A34: Osceola | B34: ='Cost per ton'!H43 -> 17.714328 | E34: =total!X43 -> 140037.8412
A35: Oscoda | B35: ='Cost per ton'!H44 -> 11.58328 | E35: =total!X44 -> 236737.631
A36: Otsego | B36: ='Cost per ton'!H45 -> 17.101312 | E36: =total!X45 -> 274919.5921
A37: Presque Isle | B37: ='Cost per ton'!H47 -> 19.722836 | E37: =total!X47 -> 148585.4767
A38: Roscommon | B38: ='Cost per ton'!H48 -> 10.065836 | E38: =total!X48 -> 148909.5432
A39: Saginaw | B39: ='Cost per ton'!H49 -> 17.8422 | E39: =total!X49 -> 160407.5437
A40: Sanilac | B40: ='Cost per ton'!H50 -> 25.813036 | E40: =total!X50 -> 105487.2213
A41: Shiawassee | B41: ='Cost per ton'!H51 -> 21.142748 | E41: =total!X51 -> 34866.78849
A42: Tuscola | B42: ='Cost per ton'!H52 -> 21.097016 | E42: =total!X52 -> 139318.9258
A43: Wexford | B43: ='Cost per ton'!H53 -> 17.103236 | E43: =total!X53 -> 245547.8292
A44: demand
B50: West Branch | E50: supply
A51: Alcona | B51: 0 | C51: =SUM(B51:B51) -> 0 | D51: ≤ | E51: =total!X3 -> 211862.2042
A52: Alpena | B52: 0 | C52: 0 | D52: ≤ | E52: =total!X4 -> 121911.7829
A53: Antrim | B53: 0 | C53: 0 | D53: ≤ | E53: =total!X5 -> 134826.9076
A54: Arenac | B54: 118832.7873 | C54: 118832.7873 | D54: ≤ | E54: =total!X6 -> 118832.7873
A55: Bay | B55: 0 | C55: 0 | D55: ≤ | E55: =total!X8 -> 29470.61493
A56: Benzie | B56: 0 | C56: 0 | D56: ≤ | E56: =total!X9 -> 101328.7463
A57: Charlevoix | B57: 0 | C57: 0 | D57: ≤ | E57: =total!X10 -> 96751.32216
A58: Cheboygan | B58: 0 | C58: 0 | D58: ≤ | E58: =total!X11 -> 225280.4385
A59: Clare | B59: 0 | C59: 0 | D59: ≤ | E59: =total!X12 -> 154447.198
A60: Clinton | B60: 0 | C60: 0 | D60: ≤ | E60: =total!X13 -> 57879.37218
A61: Crawford | B61: 0 | C61: 0 | D61: ≤ | E61: =total!X14 -> 120788.7171
A62: Emmet | B62: 0 | C62: 0 | D62: ≤ | E62: =total!X16 -> 138994.3787
A63: Genesee | B63: 0 | C63: 0 | D63: ≤ | E63: =total!X17 -> 158052.3169
A64: Gladwin | B64: 120903.5532 | C64: 120903.5532 | D64: ≤ | E64: =total!X18 -> 120903.5532
A65: Grand Traverse | B65: 0 | C65: 0 | D65: ≤ | E65: =total!X19 -> 117902.2863
A66: Gratiot | B66: 0 | C66: 0 | D66: ≤ | E66: =total!X20 -> 65649.05878
A67: Huron | B67: 0 | C67: 0 | D67: ≤ | E67: =total!X21 -> 116639.552
A68: Iosco | B68: 2128.163184 | C68: 2128.163184 | D68: ≤ | E68: =total!X24 -> 159342.7623
A69: Isabella | B69: 0 | C69: 0 | D69: ≤ | E69: =total!X25 -> 147913.4348
A70: Kalkaska | B70: 0 | C70: 0 | D70: ≤ | E70: =total!X26 -> 171816.4305
A71: Lake | B71: 0 | C71: 0 | D71: ≤ | E71: =total!X28 -> 247106.0863
A72: Lapeer | B72: 0 | C72: 0 | D72: ≤ | E72: =total!X29 -> 94265.21777
A73: Leelanau | B73: 0 | C73: 0 | D73: ≤ | E73: =total!X30 -> 48922.09006
A74: Manistee | B74: 0 | C74: 0 | D74: ≤ | E74: =total!X32 -> 206185.2965
A75: Mecosta | B75: 0 | C75: 0 | D75: ≤ | E75: =total!X34 -> 161936.8791
A76: Midland | B76: 0 | C76: 0 | D76: ≤ | E76: =total!X35 -> 105192.485
A77: Missaukee | B77: 0 | C77: 0 | D77: ≤ | E77: =total!X36 -> 193405.9585
A78: Montcalm | B78: 0 | C78: 0 | D78: ≤ | E78: =total!X37 -> 184012.8197
A79: Montmorency | B79: 0 | C79: 0 | D79: ≤ | E79: =total!X38 -> 200041.089
A80: Newaygo | B80: 0 | C80: 0 | D80: ≤ | E80: =total!X40 -> 293727.064
A81: Ogemaw | B81: 122488.3221 | C81: 122488.3221 | D81: ≤ | E81: =total!X42 -> 122488.3221
A82: Osceola | B82: 0 | C82: 0 | D82: ≤ | E82: =total!X43 -> 140037.8412
A83: Oscoda | B83: 236737.631 | C83: 236737.631 | D83: ≤ | E83: =total!X44 -> 236737.631
A84: Otsego | B84: 0 | C84: 0 | D84: ≤ | E84: =total!X45 -> 274919.5921
A85: Presque Isle | B85: 0 | C85: 0 | D85: ≤ | E85: =total!X47 -> 148585.4767
A86: Roscommon | B86: 148909.5432 | C86: 148909.5432 | D86: ≤ | E86: =total!X48 -> 148909.5432
A87: Saginaw | B87: 0 | C87: 0 | D87: ≤ | E87: =total!X49 -> 160407.5437
A88: Sanilac | B88: 0 | C88: 0 | D88: ≤ | E88: =total!X50 -> 105487.2213
A89: Shiawassee | B89: 0 | C89: 0 | D89: ≤ | E89: =total!X51 -> 34866.78849
A90: Tuscola | B90: 0 | C90: 0 | D90: ≤ | E90: =total!X52 -> 139318.9258
A91: Wexford | B91: 0 | C91: 0 | D91: ≤ | E91: =total!X53 -> 245547.8292
B92: =SUM(B51:B91) -> 750000 | C92: 750000
B93: =
A94: Minimum needed | B94: ='Master Input'!E40 -> 750000 | D94: Total | E94: =SUMPRODUCT(B3:B43,B51:B91) -> 7906221.464 | F94: =+E94/B94 -> 10.54162862

Sheet Traverse City optimiz
A1: County (supplier)
B2: Traverse City | E2: supply
A3: Alcona | B3: ='Cost per ton'!I3 -> 21.806972 | E3: =total!X3 -> 211862.2042
A4: Alpena | B4: ='Cost per ton'!I4 -> 24.116068 | E4: =total!X4 -> 121911.7829
A5: Antrim | B5: ='Cost per ton'!I5 -> 12.581392 | E5: =total!X5 -> 134826.9076
A6: Arenac | B6: ='Cost per ton'!I6 -> 26.16572 | E6: =total!X6 -> 118832.7873
A7: Benzie | B7: ='Cost per ton'!I9 -> 10.918168 | E7: =total!X9 -> 101328.7463
A8: Charlevoix | B8: ='Cost per ton'!I10 -> 15.745336 | E8: =total!X10 -> 96751.32216
A9: Cheboygan | B9: ='Cost per ton'!I11 -> 21.773672 | E9: =total!X11 -> 225280.4385
A10: Clare | B10: ='Cost per ton'!I12 -> 20.09328 | E10: =total!X12 -> 154447.198
A11: Crawford | B11: ='Cost per ton'!I14 -> 14.591232 | E11: =total!X14 -> 120788.7171
A12: Emmet | B12: ='Cost per ton'!I16 -> 19.666744 | E12: =total!X16 -> 138994.3787
A13: Gladwin | B13: ='Cost per ton'!I18 -> 23.396344 | E13: =total!X18 -> 120903.5532
A14: Grand Traverse | B14: ='Cost per ton'!I19 -> 7.897488 | E14: =total!X19 -> 117902.2863
A15: Isabella | B15: ='Cost per ton'!I25 -> 23.69782 | E15: =total!X25 -> 147913.4348
A16: Kalkaska | B16: ='Cost per ton'!I26 -> 11.132176 | E16: =total!X26 -> 171816.4305
A17: Lake | B17: ='Cost per ton'!I28 -> 15.965856 | E17: =total!X28 -> 247106.0863
A18: Leelanau | B18: ='Cost per ton'!I30 -> 10.129476 | E18: =total!X30 -> 48922.09006
A19: Manistee | B19: ='Cost per ton'!I32 -> 14.344664 | E19: =total!X32 -> 206185.2965
A20: Mason | B20: ='Cost per ton'!I33 -> 19.218748 | E20: =total!X33 -> 210137.0812
A21: Mecosta | B21: ='Cost per ton'!I34 -> 20.191404 | E21: =total!X34 -> 161936.8791
A22: Midland | B22: ='Cost per ton'!I35 -> 26.977204 | E22: =total!X35 -> 105192.485
A23: Missaukee | B23: ='Cost per ton'!I36 -> 14.68758 | E23: =total!X36 -> 193405.9585
A24: Montmorency | B24: ='Cost per ton'!I38 -> 20.33082 | E24: =total!X38 -> 200041.089
A25: Newaygo | B25: ='Cost per ton'!I40 -> 20.403488 | E25: =total!X40 -> 293727.064
A26: Oceana | B26: ='Cost per ton'!I41 -> 22.97854 | E26: =total!X41 -> 223430.02
A27: Ogemaw | B27: ='Cost per ton'!I42 -> 21.689756 | E27: =total!X42 -> 122488.3221
A28: Osceola | B28: ='Cost per ton'!I43 -> 16.59234 | E28: =total!X43 -> 140037.8412
A29: Oscoda | B29: ='Cost per ton'!I44 -> 18.042444 | E29: =total!X44 -> 236737.631
A30: Otsego | B30: ='Cost per ton'!I45 -> 16.782668 | E30: =total!X45 -> 274919.5921
A31: Presque Isle | B31: ='Cost per ton'!I47 -> 25.000664 | E31: =total!X47 -> 148585.4767
A32: Roscommon | B32: ='Cost per ton'!I48 -> 18.197104 | E32: =total!X48 -> 148909.5432
A33: Wexford | B33: ='Cost per ton'!I53 -> 11.159704 | E33: =total!X53 -> 245547.8292
A34: demand
B40: Traverse City | E40: supply
A41: Alcona | B41: 0 | C41: =SUM(B41:B41) -> 0 | D41: ≤ | E41: =total!X3 -> 211862.2042
A42: Alpena | B42: 0 | C42: 0 | D42: ≤ | E42: =total!X4 -> 121911.7829
A43: Antrim | B43: 64482.61766 | C43: 64482.61766 | D43: ≤ | E43: =total!X5 -> 134826.9076
A44: Arenac | B44: 0 | C44: 0 | D44: ≤ | E44: =total!X6 -> 118832.7873
A45: Benzie | B45: 101328.7463 | C45: 101328.7463 | D45: ≤ | E45: =total!X9 -> 101328.7463
A46: Charlevoix | B46: 0 | C46: 0 | D46: ≤ | E46: =total!X10 -> 96751.32216
A47: Cheboygan | B47: 0 | C47: 0 | D47: ≤ | E47: =total!X11 -> 225280.4385
A48: Clare | B48: 0 | C48: 0 | D48: ≤ | E48: =total!X12 -> 154447.198
A49: Crawford | B49: 0 | C49: 0 | D49: ≤ | E49: =total!X14 -> 120788.7171
A50: Emmet | B50: 0 | C50: 0 | D50: ≤ | E50: =total!X16 -> 138994.3787
A51: Gladwin | B51: 0 | C51: 0 | D51: ≤ | E51: =total!X18 -> 120903.5532
A52: Grand Traverse | B52: 117902.2863 | C52: 117902.2863 | D52: ≤ | E52: =total!X19 -> 117902.2863
A53: Isabella | B53: 0 | C53: 0 | D53: ≤ | E53: =total!X25 -> 147913.4348
A54: Kalkaska | B54: 171816.4305 | C54: 171816.4305 | D54: ≤ | E54: =total!X26 -> 171816.4305
A55: Lake | B55: 0 | C55: 0 | D55: ≤ | E55: =total!X28 -> 247106.0863
A56: Leelanau | B56: 48922.09006 | C56: 48922.09006 | D56: ≤ | E56: =total!X30 -> 48922.09006
A57: Manistee | B57: 0 | C57: 0 | D57: ≤ | E57: =total!X32 -> 206185.2965
A58: Mason | B58: 0 | C58: 0 | D58: ≤ | E58: =total!X33 -> 210137.0812
A59: Mecosta | B59: 0 | C59: 0 | D59: ≤ | E59: =total!X34 -> 161936.8791
A60: Midland | B60: 0 | C60: 0 | D60: ≤ | E60: =total!X35 -> 105192.485
A61: Missaukee | B61: 0 | C61: 0 | D61: ≤ | E61: =total!X36 -> 193405.9585
A62: Montmorency | B62: 0 | C62: 0 | D62: ≤ | E62: =total!X38 -> 200041.089
A63: Newaygo | B63: 0 | C63: 0 | D63: ≤ | E63: =total!X40 -> 293727.064
A64: Oceana | B64: 0 | C64: 0 | D64: ≤ | E64: =total!X41 -> 223430.02
A65: Ogemaw | B65: 0 | C65: 0 | D65: ≤ | E65: =total!X42 -> 122488.3221
A66: Osceola | B66: 0 | C66: 0 | D66: ≤ | E66: =total!X43 -> 140037.8412
A67: Oscoda | B67: 0 | C67: 0 | D67: ≤ | E67: =total!X44 -> 236737.631
A68: Otsego | B68: 0 | C68: 0 | D68: ≤ | E68: =total!X45 -> 274919.5921
A69: Presque Isle | B69: 0 | C69: 0 | D69: ≤ | E69: =total!X47 -> 148585.4767
A70: Roscommon | B70: 0 | C70: 0 | D70: ≤ | E70: =total!X48 -> 148909.5432
A71: Wexford | B71: 245547.8292 | C71: 245547.8292 | D71: ≤ | E71: =total!X53 -> 245547.8292
B72: =SUM(B41:B71) -> 750000 | C72: 750000
B73: =
A74: Minimum needed | B74: ='Master Input'!E41 -> 750000 | D74: Total | E74: =SUMPRODUCT(B3:B33,B41:B71) -> 7997224.229 | F74: =+E74/B74 -> 10.66296564

Sheet Boyne City optimiz
A1: County (supplier)
B2: Boyne City | E2: supply
A3: Alcona | B3: ='Cost per ton'!J3 -> 22.30884 | E3: 211862.2042
A4: Alpena | B4: ='Cost per ton'!J4 -> 18.396312 | E4: 121911.7829
A5: Antrim | B5: ='Cost per ton'!J5 -> 9.816308 | E5: 134826.9076
A6: Arenac | B6: ='Cost per ton'!J6 -> 26.667588 | E6: 118832.7873
A7: Benzie | B7: ='Cost per ton'!J7 -> 999 | E7: 101328.7463
A8: Charlevoix | B8: ='Cost per ton'!J8 -> 999 | E8: 96751.32216
A9: Cheboygan | B9: ='Cost per ton'!J9 -> 19.875868 | E9: 225280.4385
A10: Clare | B10: ='Cost per ton'!J10 -> 8.402612 | E10: 154447.198
A11: Crawford | B11: ='Cost per ton'!J11 -> 12.815972 | E11: 120788.7171
A12: Emmet | B12: ='Cost per ton'!J12 -> 20.595148 | E12: 138994.3787
A13: Gladwin | B13: ='Cost per ton'!J13 -> 999 | E13: 120903.5532
A14: Grand Traverse | B14: ='Cost per ton'!J14 -> 15.0931 | E14: 117902.2863
A15: Iosco | B15: ='Cost per ton'!J15 -> 999 | E15: 159342.7623
A16: Kalkaska | B16: ='Cost per ton'!J16 -> 10.709044 | E16: 171816.4305
A17: Lake | B17: ='Cost per ton'!J17 -> 999 | E17: 247106.0863
A18: Leelanau | B18: ='Cost per ton'!J18 -> 23.898212 | E18: 48922.09006
A19: Manistee | B19: ='Cost per ton'!J19 -> 16.244836 | E19: 206185.2965
A20: Missaukee | B20: ='Cost per ton'!J20 -> 999 | E20: 193405.9585
A21: Montmorency | B21: ='Cost per ton'!J21 -> 999 | E21: 200041.089
A22: Ogemaw | B22: ='Cost per ton'!J22 -> 999 | E22: 122488.3221
A23: Osceola | B23: ='Cost per ton'!J23 -> 999 | E23: 140037.8412
A24: Oscoda | B24: ='Cost per ton'!J24 -> 25.473524 | E24: 236737.631
A25: Otsego | B25: ='Cost per ton'!J25 -> 999 | E25: 274919.5921
A26: Presque Isle | B26: ='Cost per ton'!J26 -> 12.626236 | E26: 148585.4767
A27: Roscommon | B27: ='Cost per ton'!J27 -> 999 | E27: 148909.5432
A28: Wexford | B28: ='Cost per ton'!J28 -> 24.923556 | E28: 245547.8292
A29: demand
B35: Boyne City | E35: supply
A36: Alcona | B36: 0 | C36: =SUM(B36:B36) -> 0 | D36: ≤ | E36: 211862.2042
A37: Alpena | B37: 0 | C37: 0 | D37: ≤ | E37: 121911.7829
A38: Antrim | B38: 134826.9076 | C38: 134826.9076 | D38: ≤ | E38: 134826.9076
A39: Arenac | B39: 0 | C39: 0 | D39: ≤ | E39: 118832.7873
A40: Benzie | B40: 0 | C40: 0 | D40: ≤ | E40: 101328.7463
A41: Charlevoix | B41: 0 | C41: 0 | D41: ≤ | E41: 96751.32216
A42: Cheboygan | B42: 0 | C42: 0 | D42: ≤ | E42: 225280.4385
A43: Clare | B43: 154447.198 | C43: 154447.198 | D43: ≤ | E43: 154447.198
A44: Crawford | B44: 120788.7171 | C44: 120788.7171 | D44: ≤ | E44: 120788.7171
A45: Emmet | B45: 0 | C45: 0 | D45: ≤ | E45: 138994.3787
A46: Gladwin | B46: 0 | C46: 0 | D46: ≤ | E46: 120903.5532
A47: Grand Traverse | B47: 19535.27005 | C47: 19535.27005 | D47: ≤ | E47: 117902.2863
A48: Iosco | B48: 0 | C48: 0 | D48: ≤ | E48: 159342.7623
A49: Kalkaska | B49: 171816.4305 | C49: 171816.4305 | D49: ≤ | E49: 171816.4305
A50: Lake | B50: 0 | C50: 0 | D50: ≤ | E50: 247106.0863
A51: Leelanau | B51: 0 | C51: 0 | D51: ≤ | E51: 48922.09006
A52: Manistee | B52: 0 | C52: 0 | D52: ≤ | E52: 206185.2965
A53: Missaukee | B53: 0 | C53: 0 | D53: ≤ | E53: 193405.9585
A54: Montmorency | B54: 0 | C54: 0 | D54: ≤ | E54: 200041.089
A55: Ogemaw | B55: 0 | C55: 0 | D55: ≤ | E55: 122488.3221
A56: Osceola | B56: 0 | C56: 0 | D56: ≤ | E56: 140037.8412
A57: Oscoda | B57: 0 | C57: 0 | D57: ≤ | E57: 236737.631
A58: Otsego | B58: 0 | C58: 0 | D58: ≤ | E58: 274919.5921
A59: Presque Isle | B59: 148585.4767 | C59: 148585.4767 | D59: ≤ | E59: 148585.4767
A60: Roscommon | B60: 0 | C60: 0 | D60: ≤ | E60: 148909.5432
A61: Wexford | B61: 0 | C61: 0 | D61: ≤ | E61: 245547.8292
B62: =SUM(B36:B61) -> 750000 | C62: 750000
B63: =
B64: ='Master Input'!E42 -> 750000 | D64: Total | E64: =SUMPRODUCT(B3:B28,B36:B61) -> 8180199.941 | F64: =+E64/B64 -> 10.90693326

Sheet Ros-Clare-BC
A1: ='Cost per ton'!A1 -> County (supplier)
B2: ='Cost per ton'!C2 -> Roscommon | C2: ='Cost per ton'!G2 -> Clare | D2: ='Cost per ton'!J2 -> Boyne City | G2: =total!X2 -> total
A3: ='Cost per ton'!A3 -> Alcona | B3: ='Cost per ton'!C3 -> 16.1106 | C3: ='Cost per ton'!G3 -> 24.087652 | D3: ='Cost per ton'!J3 -> 22.30884 | G3: =total!X3 -> 211862.2042
A4: ='Cost per ton'!A4 -> Alpena | B4: ='Cost per ton'!C4 -> 19.32072 | C4: ='Cost per ton'!G4 -> 999 | D4: ='Cost per ton'!J4 -> 18.396312 | G4: =total!X4 -> 121911.7829
A5: ='Cost per ton'!A5 -> Antrim | B5: ='Cost per ton'!C5 -> 15.919532 | C5: ='Cost per ton'!G5 -> 21.56292 | D5: ='Cost per ton'!J5 -> 9.816308 | G5: =total!X5 -> 134826.9076
A6: ='Cost per ton'!A6 -> Arenac | B6: ='Cost per ton'!C6 -> 16.160476 | C6: ='Cost per ton'!G6 -> 15.663344 | D6: ='Cost per ton'!J6 -> 26.667588 | G6: =total!X6 -> 118832.7873
A7: ='Cost per ton'!A7 -> Barry | B7: ='Cost per ton'!C7 -> 999 | C7: ='Cost per ton'!G7 -> 23.256336 | D7: ='Cost per ton'!J7 -> 999 | G7: =total!X7 -> 199299.1219
A8: ='Cost per ton'!A8 -> Bay | B8: ='Cost per ton'!C8 -> 19.218156 | C8: ='Cost per ton'!G8 -> 13.574768 | D8: ='Cost per ton'!J8 -> 999 | G8: =total!X8 -> 29470.61493
A9: ='Cost per ton'!A9 -> Benzie | B9: ='Cost per ton'!C9 -> 18.550676 | C9: ='Cost per ton'!G9 -> 24.194064 | D9: ='Cost per ton'!J9 -> 19.875868 | G9: =total!X9 -> 101328.7463
A10: ='Cost per ton'!A10 -> Charlevoix | B10: ='Cost per ton'!C10 -> 18.909724 | C10: ='Cost per ton'!G10 -> 999 | D10: ='Cost per ton'!J10 -> 8.402612 | G10: =total!X10 -> 96751.32216
A11: ='Cost per ton'!A11 -> Cheboygan | B11: ='Cost per ton'!C11 -> 16.978324 | C11: ='Cost per ton'!G11 -> 999 | D11: ='Cost per ton'!J11 -> 12.815972 | G11: =total!X11 -> 225280.4385
A12: ='Cost per ton'!A12 -> Clare | B12: ='Cost per ton'!C12 -> 13.69154 | C12: ='Cost per ton'!G12 -> 8.995352 | D12: ='Cost per ton'!J12 -> 20.595148 | G12: =total!X12 -> 154447.198
A13: ='Cost per ton'!A13 -> Clinton | B13: ='Cost per ton'!C13 -> 999 | C13: ='Cost per ton'!G13 -> 17.07778 | D13: ='Cost per ton'!J13 -> 999 | G13: =total!X13 -> 57879.37218
A14: ='Cost per ton'!A14 -> Crawford | B14: ='Cost per ton'!C14 -> 8.854012 | C14: ='Cost per ton'!G14 -> 16.48948 | D14: ='Cost per ton'!J14 -> 15.0931 | G14: =total!X14 -> 120788.7171
A15: ='Cost per ton'!A15 -> Eaton | B15: ='Cost per ton'!C15 -> 999 | C15: ='Cost per ton'!G15 -> 19.65446 | D15: ='Cost per ton'!J15 -> 999 | G15: =total!X15 -> 109262.9207
A16: ='Cost per ton'!A16 -> Emmet | B16: ='Cost per ton'!C16 -> 19.534284 | C16: ='Cost per ton'!G16 -> 999 | D16: ='Cost per ton'!J16 -> 10.709044 | G16: =total!X16 -> 138994.3787
A17: ='Cost per ton'!A17 -> Genesee | B17: ='Cost per ton'!C17 -> 999 | C17: ='Cost per ton'!G17 -> 22.821068 | D17: ='Cost per ton'!J17 -> 999 | G17: =total!X17 -> 158052.3169
A18: ='Cost per ton'!A18 -> Gladwin | B18: ='Cost per ton'!C18 -> 13.3911 | C18: ='Cost per ton'!G18 -> 11.199664 | D18: ='Cost per ton'!J18 -> 23.898212 | G18: =total!X18 -> 120903.5532
A19: ='Cost per ton'!A19 -> Grand Traverse | B19: ='Cost per ton'!C19 -> 15.547756 | C19: ='Cost per ton'!G19 -> 21.191144 | D19: ='Cost per ton'!J19 -> 16.244836 | G19: =total!X19 -> 117902.2863
A20: ='Cost per ton'!A20 -> Gratiot | B20: ='Cost per ton'!C20 -> 19.07134 | C20: ='Cost per ton'!G20 -> 13.427952 | D20: ='Cost per ton'!J20 -> 999 | G20: =total!X20 -> 65649.05878
A21: ='Cost per ton'!A21 -> Huron | B21: ='Cost per ton'!C21 -> 24.865688 | C21: ='Cost per ton'!G21 -> 20.026532 | D21: ='Cost per ton'!J21 -> 999 | G21: =total!X21 -> 116639.552
A22: ='Cost per ton'!A22 -> Ingham | B22: ='Cost per ton'!C22 -> 999 | C22: ='Cost per ton'!G22 -> 22.364636 | D22: ='Cost per ton'!J22 -> 999 | G22: =total!X22 -> 127671.671
A23: ='Cost per ton'!A23 -> Ionia | B23: ='Cost per ton'!C23 -> 999 | C23: ='Cost per ton'!G23 -> 17.936476 | D23: ='Cost per ton'!J23 -> 999 | G23: =total!X23 -> 199124.9946
A24: ='Cost per ton'!A24 -> Iosco | B24: ='Cost per ton'!C24 -> 14.966412 | C24: ='Cost per ton'!G24 -> 20.502056 | D24: ='Cost per ton'!J24 -> 25.473524 | G24: =total!X24 -> 159342.7623
A25: ='Cost per ton'!A25 -> Isabella | B25: ='Cost per ton'!C25 -> 17.18064 | C25: ='Cost per ton'!G25 -> 9.203292 | D25: ='Cost per ton'!J25 -> 999 | G25: =total!X25 -> 147913.4348
A26: ='Cost per ton'!A26 -> Kalkaska | B26: ='Cost per ton'!C26 -> 12.313068 | C26: ='Cost per ton'!G26 -> 17.956456 | D26: ='Cost per ton'!J26 -> 12.626236 | G26: =total!X26 -> 171816.4305
A27: ='Cost per ton'!A27 -> Kent | B27: ='Cost per ton'!C27 -> 999 | C27: ='Cost per ton'!G27 -> 20.646208 | D27: ='Cost per ton'!J27 -> 999 | G27: =total!X27 -> 194887.2295
A28: ='Cost per ton'!A28 -> Lake | B28: ='Cost per ton'!C28 -> 20.761204 | C28: ='Cost per ton'!G28 -> 15.992792 | D28: ='Cost per ton'!J28 -> 24.923556 | G28: =total!X28 -> 247106.0863
A29: ='Cost per ton'!A29 -> Lapeer | B29: ='Cost per ton'!C29 -> 999 | C29: ='Cost per ton'!G29 -> 25.621376 | D29: ='Cost per ton'!J29 -> 999 | G29: =total!X29 -> 94265.21777
A30: ='Cost per ton'!A30 -> Leelanau | B30: ='Cost per ton'!C30 -> 20.13472 | C30: ='Cost per ton'!G30 -> 25.778108 | D30: ='Cost per ton'!J30 -> 15.337152 | G30: =total!X30 -> 48922.09006
A31: ='Cost per ton'!A31 -> Livingston | B31: ='Cost per ton'!C31 -> 999 | C31: ='Cost per ton'!G31 -> 25.71062 | D31: ='Cost per ton'!J31 -> 999 | G31: =total!X31 -> 82988.55933
A32: ='Cost per ton'!A32 -> Manistee | B32: ='Cost per ton'!C32 -> 19.140012 | C32: ='Cost per ton'!G32 -> 21.373776 | D32: ='Cost per ton'!J32 -> 23.302364 | G32: =total!X32 -> 206185.2965
A33: ='Cost per ton'!A33 -> Mason | B33: ='Cost per ton'!C33 -> 24.014096 | C33: ='Cost per ton'!G33 -> 19.351652 | D33: ='Cost per ton'!J33 -> 999 | G33: =total!X33 -> 210137.0812
A34: ='Cost per ton'!A34 -> Mecosta | B34: ='Cost per ton'!C34 -> 20.76224 | C34: ='Cost per ton'!G34 -> 12.784892 | D34: ='Cost per ton'!J34 -> 999 | G34: =total!X34 -> 161936.8791
A35: ='Cost per ton'!A35 -> Midland | B35: ='Cost per ton'!C35 -> 16.97196 | C35: ='Cost per ton'!G35 -> 11.328572 | D35: ='Cost per ton'!J35 -> 999 | G35: =total!X35 -> 105192.485
A36: ='Cost per ton'!A36 -> Missaukee | B36: ='Cost per ton'!C36 -> 12.00508 | C36: ='Cost per ton'!G36 -> 14.401052 | D36: ='Cost per ton'!J36 -> 16.167432 | G36: =total!X36 -> 193405.9585
A37: ='Cost per ton'!A37 -> Montcalm | B37: ='Cost per ton'!C37 -> 22.805084 | C37: ='Cost per ton'!G37 -> 14.827736 | D37: ='Cost per ton'!J37 -> 999 | G37: =total!X37 -> 184012.8197
A38: ='Cost per ton'!A38 -> Montmorency | B38: ='Cost per ton'!C38 -> 15.535472 | C38: ='Cost per ton'!G38 -> 23.51282 | D38: ='Cost per ton'!J38 -> 14.949096 | G38: =total!X38 -> 200041.089
A39: ='Cost per ton'!A39 -> Muskegon | B39: ='Cost per ton'!C39 -> 999 | C39: ='Cost per ton'!G39 -> 22.51752 | D39: ='Cost per ton'!J39 -> 999 | G39: =total!X39 -> 226222.3584
A40: ='Cost per ton'!A40 -> Newaygo | B40: ='Cost per ton'!C40 -> 25.198836 | C40: ='Cost per ton'!G40 -> 17.221488 | D40: ='Cost per ton'!J40 -> 999 | G40: =total!X40 -> 293727.064
A41: ='Cost per ton'!A41 -> Oceana | B41: ='Cost per ton'!C41 -> 999 | C41: ='Cost per ton'!G41 -> 19.79654 | D41: ='Cost per ton'!J41 -> 999 | G41: =total!X41 -> 223430.02
A42: ='Cost per ton'!A42 -> Ogemaw | B42: ='Cost per ton'!C42 -> 11.684512 | C42: ='Cost per ton'!G42 -> 16.606844 | D42: ='Cost per ton'!J42 -> 22.191624 | G42: =total!X42 -> 122488.3221
A43: ='Cost per ton'!A43 -> Osceola | B43: ='Cost per ton'!C43 -> 17.231848 | C43: ='Cost per ton'!G43 -> 12.496292 | D43: ='Cost per ton'!J43 -> 21.3942 | G43: =total!X43 -> 140037.8412
A44: ='Cost per ton'!A44 -> Oscoda | B44: ='Cost per ton'!C44 -> 12.06576 | C44: ='Cost per ton'!G44 -> 20.043108 | D44: ='Cost per ton'!J44 -> 18.544312 | G44: =total!X44 -> 236737.631
A45: ='Cost per ton'!A45 -> Otsego | B45: ='Cost per ton'!C45 -> 12.283616 | C45: ='Cost per ton'!G45 -> 19.964668 | D45: ='Cost per ton'!J45 -> 11.663496 | G45: =total!X45 -> 274919.5921
A46: ='Cost per ton'!A46 -> Ottawa | B46: ='Cost per ton'!C46 -> 999 | C46: ='Cost per ton'!G46 -> 24.740628 | D46: ='Cost per ton'!J46 -> 999 | G46: =total!X46 -> 83761.94539
A47: ='Cost per ton'!A47 -> Presque Isle | B47: ='Cost per ton'!C47 -> 20.205316 | C47: ='Cost per ton'!G47 -> 999 | D47: ='Cost per ton'!J47 -> 16.042964 | G47: =total!X47 -> 148585.4767
A48: ='Cost per ton'!A48 -> Roscommon | B48: ='Cost per ton'!C48 -> 8.431324 | C48: ='Cost per ton'!G48 -> 12.986024 | D48: ='Cost per ton'!J48 -> 18.698972 | G48: =total!X48 -> 148909.5432
A49: ='Cost per ton'!A49 -> Saginaw | B49: ='Cost per ton'!C49 -> 22.659896 | C49: ='Cost per ton'!G49 -> 17.016508 | D49: ='Cost per ton'!J49 -> 999 | G49: =total!X49 -> 160407.5437
A50: ='Cost per ton'!A51 -> Shiawassee | B50: ='Cost per ton'!C51 -> 999 | C50: ='Cost per ton'!G51 -> 20.317056 | D50: ='Cost per ton'!J51 -> 999 | G50: =total!X51 -> 34866.78849
A51: ='Cost per ton'!A52 -> Tuscola | B51: ='Cost per ton'!C52 -> 25.914712 | C51: ='Cost per ton'!G52 -> 20.271324 | D51: ='Cost per ton'!J52 -> 999 | G51: =total!X52 -> 139318.9258
A52: ='Cost per ton'!A53 -> Wexford | B52: ='Cost per ton'!C53 -> 15.56966 | C52: ='Cost per ton'!G53 -> 17.928928 | D52: ='Cost per ton'!J53 -> 19.732012 | G52: =total!X53 -> 245547.8292
A55: ='Cost per ton'!A1 -> County (supplier)
B56: ='Cost per ton'!C2 -> Roscommon | C56: ='Cost per ton'!G2 -> Clare | D56: ='Cost per ton'!J2 -> Boyne City | G56: =total!X2 -> total
A57: ='Cost per ton'!A3 -> Alcona | B57: 0 | C57: 0 | D57: 0 | E57: =SUM(B57:D57) -> 0 | F57: ≤ | G57: =total!X3 -> 211862.2042
A58: ='Cost per ton'!A4 -> Alpena | B58: 0 | C58: 0 | D58: 0 | E58: =SUM(B58:D58) -> 0 | F58: ≤ | G58: =total!X4 -> 121911.7829
A59: ='Cost per ton'!A5 -> Antrim | B59: 0 | C59: 0 | D59: 134826.9076 | E59: 134826.9076 | F59: ≤ | G59: =total!X5 -> 134826.9076
A60: ='Cost per ton'!A6 -> Arenac | B60: 0 | C60: 118832.7873 | D60: 0 | E60: 118832.7873 | F60: ≤ | G60: =total!X6 -> 118832.7873
A61: ='Cost per ton'!A7 -> Barry | B61: 0 | C61: 0 | D61: 0 | E61: 0 | F61: ≤ | G61: =total!X7 -> 199299.1219
A62: ='Cost per ton'!A8 -> Bay | B62: 0 | C62: 29470.61493 | D62: 0 | E62: 29470.61493 | F62: ≤ | G62: =total!X8 -> 29470.61493
A63: ='Cost per ton'!A9 -> Benzie | B63: 0 | C63: 0 | D63: 0 | E63: 0 | F63: ≤ | G63: =total!X9 -> 101328.7463
A64: ='Cost per ton'!A10 -> Charlevoix | B64: 0 | C64: 0 | D64: 96751.32216 | E64: 96751.32216 | F64: ≤ | G64: =total!X10 -> 96751.32216
A65: ='Cost per ton'!A11 -> Cheboygan | B65: 0 | C65: 0 | D65: 225280.4385 | E65: 225280.4385 | F65: ≤ | G65: =total!X11 -> 225280.4385
A66: ='Cost per ton'!A12 -> Clare | B66: 0 | C66: 154447.198 | D66: 0 | E66: 154447.198 | F66: ≤ | G66: =total!X12 -> 154447.198
A67: ='Cost per ton'!A13 -> Clinton | B67: 0 | C67: 0 | D67: 0 | E67: 0 | F67: ≤ | G67: =total!X13 -> 57879.37218
A68: ='Cost per ton'!A14 -> Crawford | B68: 120788.7171 | C68: 0 | D68: 0 | E68: 120788.7171 | F68: ≤ | G68: =total!X14 -> 120788.7171
A69: ='Cost per ton'!A15 -> Eaton | B69: 0 | C69: 0 | D69: 0 | E69: 0 | F69: ≤ | G69: =total!X15 -> 109262.9207
A70: ='Cost per ton'!A16 -> Emmet | B70: 0 | C70: 0 | D70: 138994.3787 | E70: 138994.3787 | F70: ≤ | G70: =total!X16 -> 138994.3787
A71: ='Cost per ton'!A17 -> Genesee | B71: 0 | C71: 0 | D71: 0 | E71: 0 | F71: ≤ | G71: =total!X17 -> 158052.3169
A72: ='Cost per ton'!A18 -> Gladwin | B72: 0 | C72: 120903.5532 | D72: 0 | E72: 120903.5532 | F72: ≤ | G72: =total!X18 -> 120903.5532
A73: ='Cost per ton'!A19 -> Grand Traverse | B73: 117902.2863 | C73: 0 | D73: 0 | E73: 117902.2863 | F73: ≤ | G73: =total!X19 -> 117902.2863
A74: ='Cost per ton'!A20 -> Gratiot | B74: 0 | C74: 65649.05878 | D74: 0 | E74: 65649.05878 | F74: ≤ | G74: =total!X20 -> 65649.05878
A75: ='Cost per ton'!A21 -> Huron | B75: 0 | C75: 0 | D75: 0 | E75: 0 | F75: ≤ | G75: =total!X21 -> 116639.552
A76: ='Cost per ton'!A22 -> Ingham | B76: 0 | C76: 0 | D76: 0 | E76: 0 | F76: ≤ | G76: =total!X22 -> 127671.671
A77: ='Cost per ton'!A23 -> Ionia | B77: 0 | C77: 0 | D77: 0 | E77: 0 | F77: ≤ | G77: =total!X23 -> 199124.9946
A78: ='Cost per ton'!A24 -> Iosco | B78: 159342.7623 | C78: 0 | D78: 0 | E78: 159342.7623 | F78: ≤ | G78: =total!X24 -> 159342.7623
A79: ='Cost per ton'!A25 -> Isabella | B79: 0 | C79: 147913.4348 | D79: 0 | E79: 147913.4348 | F79: ≤ | G79: =total!X25 -> 147913.4348
A80: ='Cost per ton'!A26 -> Kalkaska | B80: 41552.24869 | C80: 0 | D80: 130264.1818 | E80: 171816.4305 | F80: ≤ | G80: =total!X26 -> 171816.4305
A81: ='Cost per ton'!A27 -> Kent | B81: 0 | C81: 0 | D81: 0 | E81: 0 | F81: ≤ | G81: =total!X27 -> 194887.2295
A82: ='Cost per ton'!A28 -> Lake | B82: 0 | C82: 21603.32818 | D82: 0 | E82: 21603.32818 | F82: ≤ | G82: =total!X28 -> 247106.0863
A83: ='Cost per ton'!A29 -> Lapeer | B83: 0 | C83: 0 | D83: 0 | E83: 0 | F83: ≤ | G83: =total!X29 -> 94265.21777
A84: ='Cost per ton'!A30 -> Leelanau | B84: 0 | C84: 0 | D84: 48922.09006 | E84: 48922.09006 | F84: ≤ | G84: =total!X30 -> 48922.09006
A85: ='Cost per ton'!A31 -> Livingston | B85: 0 | C85: 0 | D85: 0 | E85: 0 | F85: ≤ | G85: =total!X31 -> 82988.55933
A86: ='Cost per ton'!A32 -> Manistee | B86: 0 | C86: 0 | D86: 0 | E86: 0 | F86: ≤ | G86: =total!X32 -> 206185.2965
A87: ='Cost per ton'!A33 -> Mason | B87: 0 | C87: 0 | D87: 0 | E87: 0 | F87: ≤ | G87: =total!X33 -> 210137.0812
A88: ='Cost per ton'!A34 -> Mecosta | B88: 0 | C88: 161936.8791 | D88: 0 | E88: 161936.8791 | F88: ≤ | G88: =total!X34 -> 161936.8791
A89: ='Cost per ton'!A35 -> Midland | B89: 0 | C89: 105192.485 | D89: 0 | E89: 105192.485 | F89: ≤ | G89: =total!X35 -> 105192.485
A90: ='Cost per ton'!A36 -> Missaukee | B90: 193405.9585 | C90: 0 | D90: 0 | E90: 193405.9585 | F90: ≤ | G90: =total!X36 -> 193405.9585
A91: ='Cost per ton'!A37 -> Montcalm | B91: 0 | C91: 184012.8197 | D91: 0 | E91: 184012.8197 | F91: ≤ | G91: =total!X37 -> 184012.8197
A92: ='Cost per ton'!A38 -> Montmorency | B92: 0 | C92: 0 | D92: 200041.089 | E92: 200041.089 | F92: ≤ | G92: =total!X38 -> 200041.089
A93: ='Cost per ton'!A39 -> Muskegon | B93: 0 | C93: 0 | D93: 0 | E93: 0 | F93: ≤ | G93: =total!X39 -> 226222.3584
A94: ='Cost per ton'!A40 -> Newaygo | B94: 0 | C94: 0 | D94: 0 | E94: 0 | F94: ≤ | G94: =total!X40 -> 293727.064
A95: ='Cost per ton'!A41 -> Oceana | B95: 0 | C95: 0 | D95: 0 | E95: 0 | F95: ≤ | G95: =total!X41 -> 223430.02
A96: ='Cost per ton'!A42 -> Ogemaw | B96: 122488.3221 | C96: 0 | D96: 0 | E96: 122488.3221 | F96: ≤ | G96: =total!X42 -> 122488.3221
A97: ='Cost per ton'!A43 -> Osceola | B97: 0 | C97: 140037.8412 | D97: 0 | E97: 140037.8412 | F97: ≤ | G97: =total!X43 -> 140037.8412
A98: ='Cost per ton'!A44 -> Oscoda | B98: 236737.631 | C98: 0 | D98: 0 | E98: 236737.631 | F98: ≤ | G98: =total!X44 -> 236737.631
A99: ='Cost per ton'!A45 -> Otsego | B99: 0 | C99: 0 | D99: 274919.5921 | E99: 274919.5921 | F99: ≤ | G99: =total!X45 -> 274919.5921
A100: ='Cost per ton'!A46 -> Ottawa | B100: 0 | C100: 0 | D100: 0 | E100: 0 | F100: ≤ | G100: =total!X46 -> 83761.94539
A101: ='Cost per ton'!A47 -> Presque Isle | B101: 0 | C101: 0 | D101: 0 | E101: 0 | F101: ≤ | G101: =total!X47 -> 148585.4767
A102: ='Cost per ton'!A48 -> Roscommon | B102: 148909.5432 | C102: 0 | D102: 0 | E102: 148909.5432 | F102: ≤ | G102: =total!X48 -> 148909.5432
A103: ='Cost per ton'!A49 -> Saginaw | B103: 0 | C103: 0 | D103: 0 | E103: 0 | F103: ≤ | G103: =total!X49 -> 160407.5437
A104: ='Cost per ton'!A51 -> Shiawassee | B104: 0 | C104: 0 | D104: 0 | E104: 0 | F104: ≤ | G104: =total!X51 -> 34866.78849
A105: ='Cost per ton'!A52 -> Tuscola | B105: 0 | C105: 0 | D105: 0 | E105: 0 | F105: ≤ | G105: =total!X52 -> 139318.9258
A106: ='Cost per ton'!A53 -> Wexford | B106: 108872.5308 | C106: 0 | D106: 0 | E106: 108872.5308 | F106: ≤ | G106: =total!X53 -> 245547.8292
B107: =SUM(B57:B106) -> 1250000 | C107: =SUM(C57:C106) -> 1250000 | D107: 1250000
B108: = | C108: = | D108: =
B109: ='Master Input'!E62 -> 1250000 | C109: ='Master Input'!E63 -> 1250000 | D109: ='Master Input'!E64 -> 1250000 | G109: =SUMPRODUCT(B3:D52,B57:D106) -> 45796843.81
G110: =+G109/(+B109+C109+D109) -> 12.21249168
A111: Individual Location Cost | B111: =SUMPRODUCT(B57:B106,B3:B52) -> 15359108.43 | C111: =SUMPRODUCT(C57:C106,C3:C52) -> 15333555.56 | D111: 15104179.82
B112: =+B111/B109 -> 12.28728674 | C112: =+C111/C109 -> 12.26684445 | D112: 12.08334386

Sheet Ros-Clare-BC-TC
A1: ='Cost per ton'!A1 -> County (supplier)
B2: ='Cost per ton'!C2 -> Roscommon | C2: ='Cost per ton'!G2 -> Clare | D2: ='Cost per ton'!I2 -> Traverse City | E2: ='Cost per ton'!J2 -> Boyne City | H2: =total!X2 -> total
A3: ='Cost per ton'!A3 -> Alcona | B3: ='Cost per ton'!C3 -> 16.1106 | C3: ='Cost per ton'!G3 -> 24.087652 | D3: ='Cost per ton'!I3 -> 21.806972 | E3: ='Cost per ton'!J3 -> 22.30884 | H3: =total!X3 -> 211862.2042
A4: ='Cost per ton'!A4 -> Alpena | B4: ='Cost per ton'!C4 -> 19.32072 | C4: ='Cost per ton'!G4 -> 999 | D4: ='Cost per ton'!I4 -> 24.116068 | E4: ='Cost per ton'!J4 -> 18.396312 | H4: =total!X4 -> 121911.7829
A5: ='Cost per ton'!A5 -> Antrim | B5: ='Cost per ton'!C5 -> 15.919532 | C5: ='Cost per ton'!G5 -> 21.56292 | D5: ='Cost per ton'!I5 -> 12.581392 | E5: ='Cost per ton'!J5 -> 9.816308 | H5: =total!X5 -> 134826.9076
A6: ='Cost per ton'!A6 -> Arenac | B6: ='Cost per ton'!C6 -> 16.160476 | C6: ='Cost per ton'!G6 -> 15.663344 | D6: ='Cost per ton'!I6 -> 26.16572 | E6: ='Cost per ton'!J6 -> 26.667588 | H6: =total!X6 -> 118832.7873
A7: ='Cost per ton'!A7 -> Barry | B7: ='Cost per ton'!C7 -> 999 | C7: ='Cost per ton'!G7 -> 23.256336 | D7: ='Cost per ton'!I7 -> 999 | E7: ='Cost per ton'!J7 -> 999 | H7: =total!X7 -> 199299.1219
A8: ='Cost per ton'!A8 -> Bay | B8: ='Cost per ton'!C8 -> 19.218156 | C8: ='Cost per ton'!G8 -> 13.574768 | D8: ='Cost per ton'!I8 -> 999 | E8: ='Cost per ton'!J8 -> 999 | H8: =total!X8 -> 29470.61493
A9: ='Cost per ton'!A9 -> Benzie | B9: ='Cost per ton'!C9 -> 18.550676 | C9: ='Cost per ton'!G9 -> 24.194064 | D9: ='Cost per ton'!I9 -> 10.918168 | E9: ='Cost per ton'!J9 -> 19.875868 | H9: =total!X9 -> 101328.7463
A10: ='Cost per ton'!A10 -> Charlevoix | B10: ='Cost per ton'!C10 -> 18.909724 | C10: ='Cost per ton'!G10 -> 999 | D10: ='Cost per ton'!I10 -> 15.745336 | E10: ='Cost per ton'!J10 -> 8.402612 | H10: =total!X10 -> 96751.32216
A11: ='Cost per ton'!A11 -> Cheboygan | B11: ='Cost per ton'!C11 -> 16.978324 | C11: ='Cost per ton'!G11 -> 999 | D11: ='Cost per ton'!I11 -> 21.773672 | E11: ='Cost per ton'!J11 -> 12.815972 | H11: =total!X11 -> 225280.4385
A12: ='Cost per ton'!A12 -> Clare | B12: ='Cost per ton'!C12 -> 13.69154 | C12: ='Cost per ton'!G12 -> 8.995352 | D12: ='Cost per ton'!I12 -> 20.09328 | E12: ='Cost per ton'!J12 -> 20.595148 | H12: =total!X12 -> 154447.198
A13: ='Cost per ton'!A13 -> Clinton | B13: ='Cost per ton'!C13 -> 999 | C13: ='Cost per ton'!G13 -> 17.07778 | D13: ='Cost per ton'!I13 -> 999 | E13: ='Cost per ton'!J13 -> 999 | H13: =total!X13 -> 57879.37218
A14: ='Cost per ton'!A14 -> Crawford | B14: ='Cost per ton'!C14 -> 8.854012 | C14: ='Cost per ton'!G14 -> 16.48948 | D14: ='Cost per ton'!I14 -> 14.591232 | E14: ='Cost per ton'!J14 -> 15.0931 | H14: =total!X14 -> 120788.7171
A15: ='Cost per ton'!A15 -> Eaton | B15: ='Cost per ton'!C15 -> 999 | C15: ='Cost per ton'!G15 -> 19.65446 | D15: ='Cost per ton'!I15 -> 999 | E15: ='Cost per ton'!J15 -> 999 | H15: =total!X15 -> 109262.9207
A16: ='Cost per ton'!A16 -> Emmet | B16: ='Cost per ton'!C16 -> 19.534284 | C16: ='Cost per ton'!G16 -> 999 | D16: ='Cost per ton'!I16 -> 19.666744 | E16: ='Cost per ton'!J16 -> 10.709044 | H16: =total!X16 -> 138994.3787
A17: ='Cost per ton'!A17 -> Genesee | B17: ='Cost per ton'!C17 -> 999 | C17: ='Cost per ton'!G17 -> 22.821068 | D17: ='Cost per ton'!I17 -> 999 | E17: ='Cost per ton'!J17 -> 999 | H17: =total!X17 -> 158052.3169
A18: ='Cost per ton'!A18 -> Gladwin | B18: ='Cost per ton'!C18 -> 13.3911 | C18: ='Cost per ton'!G18 -> 11.199664 | D18: ='Cost per ton'!I18 -> 23.396344 | E18: ='Cost per ton'!J18 -> 23.898212 | H18: =total!X18 -> 120903.5532
A19: ='Cost per ton'!A19 -> Grand Traverse | B19: ='Cost per ton'!C19 -> 15.547756 | C19: ='Cost per ton'!G19 -> 21.191144 | D19: ='Cost per ton'!I19 -> 7.897488 | E19: ='Cost per ton'!J19 -> 16.244836 | H19: =total!X19 -> 117902.2863
A20: ='Cost per ton'!A20 -> Gratiot | B20: ='Cost per ton'!C20 -> 19.07134 | C20: ='Cost per ton'!G20 -> 13.427952 | D20: ='Cost per ton'!I20 -> 999 | E20: ='Cost per ton'!J20 -> 999 | H20: =total!X20 -> 65649.05878
A21: ='Cost per ton'!A21 -> Huron | B21: ='Cost per ton'!C21 -> 24.865688 | C21: ='Cost per ton'!G21 -> 20.026532 | D21: ='Cost per ton'!I21 -> 999 | E21: ='Cost per ton'!J21 -> 999 | H21: =total!X21 -> 116639.552
A22: ='Cost per ton'!A22 -> Ingham | B22: ='Cost per ton'!C22 -> 999 | C22: ='Cost per ton'!G22 -> 22.364636 | D22: ='Cost per ton'!I22 -> 999 | E22: ='Cost per ton'!J22 -> 999 | H22: =total!X22 -> 127671.671
A23: ='Cost per ton'!A23 -> Ionia | B23: ='Cost per ton'!C23 -> 999 | C23: ='Cost per ton'!G23 -> 17.936476 | D23: ='Cost per ton'!I23 -> 999 | E23: ='Cost per ton'!J23 -> 999 | H23: =total!X23 -> 199124.9946
A24: ='Cost per ton'!A24 -> Iosco | B24: ='Cost per ton'!C24 -> 14.966412 | C24: ='Cost per ton'!G24 -> 20.502056 | D24: ='Cost per ton'!I24 -> 999 | E24: ='Cost per ton'!J24 -> 25.473524 | H24: =total!X24 -> 159342.7623
A25: ='Cost per ton'!A25 -> Isabella | B25: ='Cost per ton'!C25 -> 17.18064 | C25: ='Cost per ton'!G25 -> 9.203292 | D25: ='Cost per ton'!I25 -> 23.69782 | E25: ='Cost per ton'!J25 -> 999 | H25: =total!X25 -> 147913.4348
A26: ='Cost per ton'!A26 -> Kalkaska | B26: ='Cost per ton'!C26 -> 12.313068 | C26: ='Cost per ton'!G26 -> 17.956456 | D26: ='Cost per ton'!I26 -> 11.132176 | E26: ='Cost per ton'!J26 -> 12.626236 | H26: =total!X26 -> 171816.4305
A27: ='Cost per ton'!A27 -> Kent | B27: ='Cost per ton'!C27 -> 999 | C27: ='Cost per ton'!G27 -> 20.646208 | D27: ='Cost per ton'!I27 -> 999 | E27: ='Cost per ton'!J27 -> 999 | H27: =total!X27 -> 194887.2295
A28: ='Cost per ton'!A28 -> Lake | B28: ='Cost per ton'!C28 -> 20.761204 | C28: ='Cost per ton'!G28 -> 15.992792 | D28: ='Cost per ton'!I28 -> 15.965856 | E28: ='Cost per ton'!J28 -> 24.923556 | H28: =total!X28 -> 247106.0863
A29: ='Cost per ton'!A29 -> Lapeer | B29: ='Cost per ton'!C29 -> 999 | C29: ='Cost per ton'!G29 -> 25.621376 | D29: ='Cost per ton'!I29 -> 999 | E29: ='Cost per ton'!J29 -> 999 | H29: =total!X29 -> 94265.21777
A30: ='Cost per ton'!A30 -> Leelanau | B30: ='Cost per ton'!C30 -> 20.13472 | C30: ='Cost per ton'!G30 -> 25.778108 | D30: ='Cost per ton'!I30 -> 10.129476 | E30: ='Cost per ton'!J30 -> 15.337152 | H30: =total!X30 -> 48922.09006
A31: ='Cost per ton'!A31 -> Livingston | B31: ='Cost per ton'!C31 -> 999 | C31: ='Cost per ton'!G31 -> 25.71062 | D31: ='Cost per ton'!I31 -> 999 | E31: ='Cost per ton'!J31 -> 999 | H31: =total!X31 -> 82988.55933
A32: ='Cost per ton'!A32 -> Manistee | B32: ='Cost per ton'!C32 -> 19.140012 | C32: ='Cost per ton'!G32 -> 21.373776 | D32: ='Cost per ton'!I32 -> 14.344664 | E32: ='Cost per ton'!J32 -> 23.302364 | H32: =total!X32 -> 206185.2965
A33: ='Cost per ton'!A33 -> Mason | B33: ='Cost per ton'!C33 -> 24.014096 | C33: ='Cost per ton'!G33 -> 19.351652 | D33: ='Cost per ton'!I33 -> 19.218748 | E33: ='Cost per ton'!J33 -> 999 | H33: =total!X33 -> 210137.0812
A34: ='Cost per ton'!A34 -> Mecosta | B34: ='Cost per ton'!C34 -> 20.76224 | C34: ='Cost per ton'!G34 -> 12.784892 | D34: ='Cost per ton'!I34 -> 20.191404 | E34: ='Cost per ton'!J34 -> 999 | H34: =total!X34 -> 161936.8791
A35: ='Cost per ton'!A35 -> Midland | B35: ='Cost per ton'!C35 -> 16.97196 | C35: ='Cost per ton'!G35 -> 11.328572 | D35: ='Cost per ton'!I35 -> 26.977204 | E35: ='Cost per ton'!J35 -> 999 | H35: =total!X35 -> 105192.485
A36: ='Cost per ton'!A36 -> Missaukee | B36: ='Cost per ton'!C36 -> 12.00508 | C36: ='Cost per ton'!G36 -> 14.401052 | D36: ='Cost per ton'!I36 -> 14.68758 | E36: ='Cost per ton'!J36 -> 16.167432 | H36: =total!X36 -> 193405.9585
A37: ='Cost per ton'!A37 -> Montcalm | B37: ='Cost per ton'!C37 -> 22.805084 | C37: ='Cost per ton'!G37 -> 14.827736 | D37: ='Cost per ton'!I37 -> 999 | E37: ='Cost per ton'!J37 -> 999 | H37: =total!X37 -> 184012.8197
A38: ='Cost per ton'!A38 -> Montmorency | B38: ='Cost per ton'!C38 -> 15.535472 | C38: ='Cost per ton'!G38 -> 23.51282 | D38: ='Cost per ton'!I38 -> 20.33082 | E38: ='Cost per ton'!J38 -> 14.949096 | H38: =total!X38 -> 200041.089
A39: ='Cost per ton'!A39 -> Muskegon | B39: ='Cost per ton'!C39 -> 999 | C39: ='Cost per ton'!G39 -> 22.51752 | D39: ='Cost per ton'!I39 -> 999 | E39: ='Cost per ton'!J39 -> 999 | H39: =total!X39 -> 226222.3584
A40: ='Cost per ton'!A40 -> Newaygo | B40: ='Cost per ton'!C40 -> 25.198836 | C40: ='Cost per ton'!G40 -> 17.221488 | D40: ='Cost per ton'!I40 -> 20.403488 | E40: ='Cost per ton'!J40 -> 999 | H40: =total!X40 -> 293727.064
A41: ='Cost per ton'!A41 -> Oceana | B41: ='Cost per ton'!C41 -> 999 | C41: ='Cost per ton'!G41 -> 19.79654 | D41: ='Cost per ton'!I41 -> 22.97854 | E41: ='Cost per ton'!J41 -> 999 | H41: =total!X41 -> 223430.02
A42: ='Cost per ton'!A42 -> Ogemaw | B42: ='Cost per ton'!C42 -> 11.684512 | C42: ='Cost per ton'!G42 -> 16.606844 | D42: ='Cost per ton'!I42 -> 21.689756 | E42: ='Cost per ton'!J42 -> 22.191624 | H42: =total!X42 -> 122488.3221
A43: ='Cost per ton'!A43 -> Osceola | B43: ='Cost per ton'!C43 -> 17.231848 | C43: ='Cost per ton'!G43 -> 12.496292 | D43: ='Cost per ton'!I43 -> 16.59234 | E43: ='Cost per ton'!J43 -> 21.3942 | H43: =total!X43 -> 140037.8412
A44: ='Cost per ton'!A44 -> Oscoda | B44: ='Cost per ton'!C44 -> 12.06576 | C44: ='Cost per ton'!G44 -> 20.043108 | D44: ='Cost per ton'!I44 -> 18.042444 | E44: ='Cost per ton'!J44 -> 18.544312 | H44: =total!X44 -> 236737.631
A45: ='Cost per ton'!A45 -> Otsego | B45: ='Cost per ton'!C45 -> 12.283616 | C45: ='Cost per ton'!G45 -> 19.964668 | D45: ='Cost per ton'!I45 -> 16.782668 | E45: ='Cost per ton'!J45 -> 11.663496 | H45: =total!X45 -> 274919.5921
A46: ='Cost per ton'!A46 -> Ottawa | B46: ='Cost per ton'!C46 -> 999 | C46: ='Cost per ton'!G46 -> 24.740628 | D46: ='Cost per ton'!I46 -> 999 | E46: ='Cost per ton'!J46 -> 999 | H46: =total!X46 -> 83761.94539
A47: ='Cost per ton'!A47 -> Presque Isle | B47: ='Cost per ton'!C47 -> 20.205316 | C47: ='Cost per ton'!G47 -> 999 | D47: ='Cost per ton'!I47 -> 25.000664 | E47: ='Cost per ton'!J47 -> 16.042964 | H47: =total!X47 -> 148585.4767
A48: ='Cost per ton'!A48 -> Roscommon | B48: ='Cost per ton'!C48 -> 8.431324 | C48: ='Cost per ton'!G48 -> 12.986024 | D48: ='Cost per ton'!I48 -> 18.197104 | E48: ='Cost per ton'!J48 -> 18.698972 | H48: =total!X48 -> 148909.5432
